Workbook

Sheet Índice
A1: =+"Índice de Contenidos"&" - "&PremisaCosto!A2 -> Índice de Contenidos - EDEMET
G2: Significado de los colores:
B3: Hoja | D3: Descripción | G3: Decisiones a tomar/Intervenciones
G4: Reportes
B5: Tablero | D5: Seleccionar empresa desde donde se toman los datos | G5: Carga de Datos Externos (o vinculados)
D6: Elección sobre el modo en que se cierran las pérdidas | G6: Cálculos
D7: Comparativa de Tarifa vigente versus Tarifa Nueva
D8: Comparativa de Ingresos a Tarifa Vigente versus Ingresos con Tarifa Nueva
D9: Comparativa de Tarifa Media Vigente versus Tarifa Media Nueva | F9: Reporte de Resultados y Análisis
D10: Gráfico de Tarifa Media por Consumo
D11: Gráfico de Tarifa Media por Factor de Carga y Consumo
B13: Resumen | D13: Resumen de Costos e Ingresos por componente del Régimen Tarifario
D14: Resumen Económico
B16: Pliegos | D16: Comparación de Pliegos: Vigente vs Nuevo
B18: CD | D18: Cálculo de Cargos de Distribución
B20: CCOMF | D20: Cálculo de Cargos de Comercialización Fijo
B22: CCOMV | D22: Cálculo de Cargos de Comercialización Variable
B24: CSERAP | D24: Cálculo de Cargos por el Servicio de Alumbrado Público
B26: CX | D26: Cálculo de Cargos de Conexión
B28: CCONAP | D28: Cálculo de Cargos por el Consumo de Alumbrado Público | F28: Cálculo de Nuevos Cargos Tarifarios
B30: CENEGEN | D30: Cálculo de Cargos por Energía en Generación
B32: CPOTGEN | D32: Cálculo de Cargos Potencia en Generación
B34: CPT | D34: Cálculo de Cargos por Potencia en Transmisión
B36: CPET | D36: Cálculo de Cargos por Pérdida de Energía en Transmisión
B38: CPERDP | D38: Cálculo de Cargos por Pérdida de Potencia en Distribución
B40: CPERDE | D40: Cálculo de Cargos por Pérdida de Energía en Distribución
B42: Límites | D42: Límites de consumo por bloques y escalones
D43: Puntos de corte de subcategorías
B45: Costos | D45: Costos para Asignación siguiendo Régimen Tarifario
D46: Costos siguiendo criterio Económico
B48: Balance | D48: Balance de Energía
D49: Energía en punta y fuera de punta, con pérdidas y sin pérdidas por nivel de tensión
D50: Balance de Potencia
D51: Potencia Simultánea en punta y fuera de punta, con pérdidas y sin pérdidas por nivel de tensión
B53: Parámetros | D53: Parámetros característicos de consumo para todas las categorías tarifarias | F53: Proyección de los Nuevos Costos
B55: PremisaCosto | D55: Datos IMP
D56: Porcentajes de pérdidas permitidas
D57: Precios Energía y Potencia
D58: Costos de Conexión por categoría tarifaria
D59: Cargos Fijos de Comercialización por categorías tarifaria
D60: Alicuotas de subsidios para subcategorías
D61: Ventana de años
D62: Variables auxiliares para funcionamiento del modelo
B64: Energía | D64: Energía para facturación
D65: Estimación de Energía con pérdidas en punta y fuera de punta para cálculo de costos
B67: Clientes | D67: Clientes para facturación | F67: Demanda a Facturar
B69: Potencia | D69: Potencia para facturación
D70: Cálculo de Potencia Simultánea para determinación de costos

Sheet Tablero
A1: =+"Tablero de Mando y Análisis"&" - "&PremisaCosto!A2 -> Tablero de Mando y Análisis - EDEMET
A3: Selector de Empresa | D3: EDEMET | E3: 1 | F3: Indicaciones antes de utilizar Selector de Empresa:
D4: EDECHI | F4: Abrir "Inputs EDEMET.xlsm" e "Inputs EDECHI.xlsm" antes de cambiar el selector de empresa para que se habilite el cambio de vícnulos
F5: Indicaciones Cierre de Pérdidas:
A6: Cierre de Pérdidas a utilizar: | F6: Se pueden seleccionar los precios esperados (opción para cálculo tarifario) o se pueden buscar los precios que igualen el valor del IMP de Pérdidas dado por el Regulador
F7: Indicaciones Generador de Escenarios:
F8: Este botón Genera una carpeta nueva con el Modelo Tarifario Actual y los Archivos actuales de Inputs de ambas Empresas
A9: Resumen | B9: Costo Permitido | C9: Ingreso | D9: Check | F9: En la celda F13 poner el nombre del nuevo escenario (no es obligatorio ya que se guarda con la fecha y hora del momento)
A10: VP IMP sin Pérdidas | B10: =+Resumen!M21 -> 822793021.8 | C10: =+Resumen!N21 -> 822793021.8 | D10: =+IF(ROUND(B10-C10,)=0,"OK","Error") -> OK
A11: VP Pérdidas | B11: =+Resumen!M30 -> 214675145.5 | C11: =+Resumen!N30 -> 160768413.9 | D11: =+IF(ROUND(B11-C11,)=0,"OK",IF(Resumen!$P$32=1,"Abstmo Proy","Error")) -> Abstmo Proy
A12: VP IMP Total | B12: =+B10+B11 -> 1037468167 | C12: =+C10+C11 -> 983561435.6 | D12: =+IF(ROUND(B12-C12,)=0,"OK",IF(Resumen!$P$32=1,"Abstmo Proy","Error")) -> Abstmo Proy | F12: Nombre Escenario:
F13: Consulta Publica Opción 3
A14: =+"Costos de Abastecimiento "&PremisaCosto!$F$89 -> Costos de Abastecimiento 2022/2023 | B14: =+Resumen!C25+Resumen!C26 -> 542093855.4 | C14: =+Resumen!H25+Resumen!H26 -> 542093855.4 | D14: =+IF(ROUND(B14-C14,)=0,"OK","Error") -> OK
A16: Análisis de Cuadro Tarifario Vigente vs. Nuevo
B17: Tarifa Vigente | E17: Tarifa Nueva | H17: Diferencias
A18: Categorías | B18: $/Cliente mes | C18: $/kWh | D18: $/kW mes | E18: $/Cliente mes | F18: $/kWh | G18: $/kW mes | H18: $/Cliente mes | I18: $/kWh | J18: $/kW mes
A19: =+A188 -> ATH | B19: =+E664+I664 -> 13.41 | C19: =+B664+F664+H664+L664+N664+P664+R664+T664+V664+X664 -> 0 | D19: =+C664+G664+M664+O664+Q664+S664+U664+W664+Y664 -> 0 | E19: =+E525+I525 -> 13.63392504 | F19: =+B525+D525+F525+H525+J525+L525+N525+P525+R525+T525+V525+X525 -> 0 | G19: =+C525+G525+M525+O525+Q525+S525+U525+W525+Y525 -> 0 | H19: =+IF(OR(B19=0,E19=0),"",(E19-B19)/B19) -> 0.01669836248 | I19: =+IF(OR(C19=0,F19=0),"",(F19-C19)/C19) ->  | J19: =+IF(OR(D19=0,G19=0),"",(G19-D19)/D19) -> 
A20: ATH Punta | C20: =+B665+F665+H665+L665+N665+P665+R665+T665+V665+X665 -> 0.17627 | D20: =+C665+G665+M665+O665+Q665+S665+U665+W665+Y665 -> 14.24 | F20: =+B526+D526+F526+H526+J526+L526+N526+P526+R526+T526+V526+X526 -> 0.1761686868 | G20: 14.47965303 | H20: =+IF(OR(B20=0,E20=0),"",(E20-B20)/B20) ->  | I20: =+IF(OR(C20=0,F20=0),"",(F20-C20)/C20) -> -0.0005747616392 | J20: 0.01682956704
A21: ATH Fuera de Punta Medio | C21: =+B666+F666+H666+L666+N666+P666+R666+T666+V666+X666 -> 0.12693 | D21: =+C666+G666+M666+O666+Q666+S666+U666+W666+Y666 -> 3.86 | F21: =+B527+D527+F527+H527+J527+L527+N527+P527+R527+T527+V527+X527 -> 0.09971527166 | G21: =+C527+G527+M527+O527+Q527+S527+U527+W527+Y527 -> 5.858270255 | H21: =+IF(OR(B21=0,E21=0),"",(E21-B21)/B21) ->  | I21: =+IF(OR(C21=0,F21=0),"",(F21-C21)/C21) -> -0.2144073769 | J21: =+IF(OR(D21=0,G21=0),"",(G21-D21)/D21) -> 0.5176865946 | K21: =+F20/F21-1 -> 0.7667172123 | L21: =+F21/F22-1 -> 0.7231332213
A22: =+A191 -> ATH Fuera de Punta Bajo | C22: =+B667+F667+H667+L667+N667+P667+R667+T667+V667+X667 -> 0.12693 | D22: =+C667+G667+M667+O667+Q667+S667+U667+W667+Y667 -> 3.86 | F22: =+B528+D528+F528+H528+J528+L528+N528+P528+R528+T528+V528+X528 -> 0.05786857941 | G22: =+C528+G528+M528+O528+Q528+S528+U528+W528+Y528 -> 5.858270255 | I22: -0.5440906058 | J22: 0.5176865946 | K22: =+F20/F22-1 -> 2.044289121
A23: =+A192 -> ATD | B23: =+E668+I668 -> 13.41 | C23: =+B668+F668+H668+L668+N668+P668+R668+T668+V668+X668 -> 0.13415 | D23: =+C668+G668+M668+O668+Q668+S668+U668+W668+Y668 -> 11.27 | E23: =+E529+I529 -> 13.6339525 | F23: =+B529+D529+F529+H529+J529+L529+N529+P529+R529+T529+V529+X529 -> 0.1494124553 | G23: =+C529+G529+M529+O529+Q529+S529+U529+W529+Y529 -> 9.701942023 | H23: 0.01670041012 | I23: 0.1137715637 | J23: -0.1391355792
A24: =+A193 -> MTH | B24: =+E669+I669 -> 13.41 | C24: =+B669+F669+H669+L669+N669+P669+R669+T669+V669+X669 -> 0 | D24: =+C669+G669+M669+O669+Q669+S669+U669+W669+Y669 -> 0 | E24: =+E530+I530 -> 13.63347296 | F24: =+B530+D530+F530+H530+J530+L530+N530+P530+R530+T530+V530+X530 -> 0 | G24: =+C530+G530+M530+O530+Q530+S530+U530+W530+Y530 -> 0 | H24: 0.01666464994
A25: =+A194 -> MTH Punta | C25: =+B670+F670+H670+L670+N670+P670+R670+T670+V670+X670 -> 0.22106 | D25: =+C670+G670+M670+O670+Q670+S670+U670+W670+Y670 -> 12.85 | F25: =+B531+D531+F531+H531+J531+L531+N531+P531+R531+T531+V531+X531 -> 0.2201623093 | G25: =+C531+G531+M531+O531+Q531+S531+U531+W531+Y531 -> 17.80554455 | I25: -0.004060846228 | J25: 0.3856454906
A26: =+A195 -> MTH Fuera de Punta Medio | C26: =+B671+F671+H671+L671+N671+P671+R671+T671+V671+X671 -> 0.16234 | D26: =+C671+G671+M671+O671+Q671+S671+U671+W671+Y671 -> 1.9 | F26: =+B532+D532+F532+H532+J532+L532+N532+P532+R532+T532+V532+X532 -> 0.1265634499 | G26: =+C532+G532+M532+O532+Q532+S532+U532+W532+Y532 -> 2.878882775 | H26: =+IF(OR(B26=0,E26=0),"",(E26-B26)/B26) ->  | I26: =+IF(OR(C26=0,F26=0),"",(F26-C26)/C26) -> -0.2203803751 | J26: =+IF(OR(D26=0,G26=0),"",(G26-D26)/D26) -> 0.5152014605 | K26: =+F25/F26-1 -> 0.739540993 | L26: =+F26/F27-1 -> 0.7559642852
A27: =+A196 -> MTH Fuera de Punta Bajo | C27: =+B672+F672+H672+L672+N672+P672+R672+T672+V672+X672 -> 0.16234 | D27: =+C672+G672+M672+O672+Q672+S672+U672+W672+Y672 -> 1.9 | F27: =+B533+D533+F533+H533+J533+L533+N533+P533+R533+T533+V533+X533 -> 0.07207632352 | G27: =+C533+G533+M533+O533+Q533+S533+U533+W533+Y533 -> 2.878882775 | I27: -0.5560162405 | J27: 0.5152014605 | K27: =+F25/F27-1 -> 2.054571856
A28: MTD | B28: =+E673+I673 -> 13.35 | C28: 0 | D28: 0 | E28: =+E534+I534 -> 13.57285677 | F28: 0 | G28: 0 | H28: 0.01669339115
A29: MTD_1 (0-10,000) | C29: 0.16376 | D29: 13.89 | F29: 0.1312134931 | G29: 20.72543132 | I29: -0.1987451568 | J29: 0.4921116861
A30: MTD_2 (10,001-30,000) | C30: 0.16376 | D30: 13.89 | F30: 0 | G30: 0
A31: MTD_3 (30,001-50,000) | C31: 0.16376 | D31: 13.89 | F31: 0 | G31: 0
A32: MTD_4 (50,001-más) | C32: 0.16376 | D32: 13.89 | F32: 0 | G32: 0
A33: MTD_5 (xxx) | C33: 0 | D33: 0 | F33: 0 | G33: 0
A34: BTH | B34: =+E678+I678 -> 5.3 | E34: =+E540+I540 -> 5.387807071 | F34: 0 | G34: 0 | H34: 0.01656737188 | I34: =+IF(OR(C34=0,F34=0),"",(F34-C34)/C34) -> 
A35: BTH Punta | B35: =+E681+I681 -> 0 | C35: =+B679+F679+H679+L679+N679+P679+R679+T679+V679+X679 -> 0.22992 | D35: =+C679+G679+M679+O679+Q679+S679+U679+W679+Y679 -> 13.04 | E35: =+E541+I541 -> 0 | F35: 0.2151600624 | G35: 18.64756745 | I35: -0.06419597085 | J35: 0.4300281783
A36: BTH Fuera de Punta Medio | B36: =+E682+I682 -> 5.29 | C36: =+B680+F680+H680+L680+N680+P680+R680+T680+V680+X680 -> 0.15217 | D36: =+C680+G680+M680+O680+Q680+S680+U680+W680+Y680 -> 1.66 | E36: =+E542+I542 -> 0 | F36: =+B542+D542+F542+H542+J542+L542+N542+P542+R542+T542+V542+X542 -> 0.1203473332 | G36: =+C542+G542+M542+O542+Q542+S542+U542+W542+Y542 -> 2.551918487 | H36: =+IF(OR(B36=0,E36=0),"",(E36-B36)/B36) ->  | I36: =+IF(OR(C36=0,F36=0),"",(F36-C36)/C36) -> -0.2091257595 | J36: =+IF(OR(D36=0,G36=0),"",(G36-D36)/D36) -> 0.5373002933 | K36: =+F35/F36-1 -> 0.7878257598 | L36: =+F36/F37-1 -> 0.7163301821
A37: BTH Fuera de Punta Bajo | B37: 5.29 | C37: 0.15217 | D37: 1.66 | E37: 0 | F37: 0.07011898668 | G37: 2.551918487 | I37: -0.5392062386 | J37: 0.5373002933 | K37: =+F35/F37-1 -> 2.068499312
A38: =+A207 -> BTD | B38: =+E682+I682 -> 5.29 | E38: =+E544+I544 -> 5.378343647 | F38: =+B544+D544+F544+H544+J544+L544+N544+P544+R544+T544+V544+X544 -> 0 | G38: =+C544+G544+M544+O544+Q544+S544+U544+W544+Y544 -> 0 | H38: 0.01670012233
A39: BTD_1 (0-10,000) | C39: =+B683+F683+H683+L683+N683+P683+R683+T683+V683+X683 -> 0.15646 | D39: =+C683+G683+M683+O683+Q683+S683+U683+W683+Y683 -> 12.59 | F39: 0.1229428621 | G39: 18.32450305 | I39: -0.2142217684 | J39: 0.4554807822
A40: BTD_2 (10,001-30,000) | C40: =+B684+F684+H684+L684+N684+P684+R684+T684+V684+X684 -> 0.1632 | D40: =+C684+G684+M684+O684+Q684+S684+U684+W684+Y684 -> 12.59 | F40: 0.1282154971 | G40: 18.32450305 | I40: -0.2143658264 | J40: 0.4554807822
A41: BTD_3 (30,001-50,000) | C41: =+B685+F685+H685+L685+N685+P685+R685+T685+V685+X685 -> 0.17626 | D41: =+C685+G685+M685+O685+Q685+S685+U685+W685+Y685 -> 12.59 | F41: 0.1384140875 | G41: 18.32450305 | I41: -0.2147163993 | J41: 0.4554807822
A42: BTD_4 (50,001-más) | C42: =+B686+F686+H686+L686+N686+P686+R686+T686+V686+X686 -> 0.18907 | D42: =+C686+G686+M686+O686+Q686+S686+U686+W686+Y686 -> 12.59 | F42: 0.1484293064 | G42: 18.32450305 | I42: -0.2149505138 | J42: 0.4554807822
A43: BTD_5 (xxx) | D43: =+C688+G688+M688+O688+Q688+S688+U688+W688+Y688 -> 0 | F43: =+B549+D549+F549+H549+J549+L549+N549+P549+R549+T549+V549+X549 -> 0 | G43: 0
A44: BTS | B44: =+E687+I687 -> 2.95 | D44: 0 | E44: =+E550+I550 -> 2.998437224 | F44: 0 | G44: 0 | H44: 0.01641939812 | I44: =+IF(OR(C44=0,F44=0),"",(F44-C44)/C44) -> 
A45: BTS_1 (0-300) | C45: =+B688+F688+H688+L688+N688+P688+R688+T688+V688+X688 -> 0.15141 | D45: 0 | F45: 0.1472434251 | G45: 0 | I45: =+IF(OR(C45=0,F45=0),"",(F45-C45)/C45) -> -0.02751849189
A46: BTS_2 (301-750) | C46: =+B689+F689+H689+L689+N689+P689+R689+T689+V689+X689 -> 0.20006 | D46: 0 | F46: 0.2048174536 | G46: 0 | I46: =+IF(OR(C46=0,F46=0),"",(F46-C46)/C46) -> 0.02378013418
A47: BTS_3 (751-más) | C47: =+B690+F690+H690+L690+N690+P690+R690+T690+V690+X690 -> 0.2359 | D47: 0 | F47: 0.2882483227 | G47: 0 | I47: =+IF(OR(C47=0,F47=0),"",(F47-C47)/C47) -> 0.2219089559
A48: BTS_4 (xxx) | C48: =+B691+F691+H691+L691+N691+P691+R691+T691+V691+X691 -> 0 | D48: 0 | F48: 0 | G48: 0 | I48: =+IF(OR(C48=0,F48=0),"",(F48-C48)/C48) ->  | J48: =+IF(OR(D48=0,G48=0),"",(G48-D48)/D48) -> 
A49: BTS_5 (xxx) | D49: 0 | F49: 0 | G49: 0
A50: BTSH | B50: =+E695+I695 -> 0 | C50: =+B695+F695+H695+L695+N695+P695+R695+T695+V695+X695 -> 0 | D50: 0 | E50: =+E556+I556 -> 3.003099348 | F50: 0 | G50: 0 | H50: =+IF(OR(B50=0,E50=0),"",(E50-B50)/B50) ->  | I50: =+IF(OR(C50=0,F50=0),"",(F50-C50)/C50) -> 
A51: =+A220 -> BTSH_1 Punta | C51: =+B697+F697+H697+L697+N697+P697+R697+T697+V697+X697 -> 0 | D51: =+C697+G697+M697+O697+Q697+S697+U697+W697+Y697 -> 0 | F51: =+B557+D557+F557+H557+J557+L557+N557+P557+R557+T557+V557+X557 -> 0.3581639044 | G51: =+C557+G557+M557+O557+Q557+S557+U557+W557+Y557 -> 0 | I51: =+IF(OR(C51=0,F51=0),"",(F51-C51)/C51) ->  | J51: =+IF(OR(D51=0,G51=0),"",(G51-D51)/D51) -> 
A52: BTSH_1 Fuera de Punta Medio | C52: =+B698+F698+H698+L698+N698+P698+R698+T698+V698+X698 -> 0 | D52: =+C698+G698+M698+O698+Q698+S698+U698+W698+Y698 -> 0 | F52: 0.1634277022 | G52: 0 | H52: =+IF(OR(B52=0,E52=0),"",(E52-B52)/B52) ->  | I52: =+IF(OR(C52=0,F52=0),"",(F52-C52)/C52) ->  | K52: =+F51/F52-1 -> 1.191574008 | L52: =+F52/F53-1 -> 0.3051249491
A53: BTSH_1 Fuera de Punta Bajo | C53: =+B699+F699+H699+L699+N699+P699+R699+T699+V699+X699 -> 0 | D53: =+C699+G699+M699+O699+Q699+S699+U699+W699+Y699 -> 0 | F53: 0.1252199664 | G53: 0 | K53: =+F51/F53-1 -> 1.860277915
A54: BTSH_2 Punta | C54: =+B701+F701+H701+L701+N701+P701+R701+T701+V701+X701 -> 0 | D54: =+C701+G701+M701+O701+Q701+S701+U701+W701+Y701 -> 0 | F54: =+B560+D560+F560+H560+J560+L560+N560+P560+R560+T560+V560+X560 -> 0 | G54: =+C560+G560+M560+O560+Q560+S560+U560+W560+Y560 -> 0
A55: BTSH_2 Fuera de Punta Medio | C55: =+B702+F702+H702+L702+N702+P702+R702+T702+V702+X702 -> 0 | D55: =+C702+G702+M702+O702+Q702+S702+U702+W702+Y702 -> 0 | F55: 0 | G55: 0
A56: BTSH_2 Fuera de Punta Bajo | C56: =+B703+F703+H703+L703+N703+P703+R703+T703+V703+X703 -> 0 | D56: =+C703+G703+M703+O703+Q703+S703+U703+W703+Y703 -> 0 | F56: 0 | G56: 0
A57: BTSH_3 Punta | C57: =+B705+F705+H705+L705+N705+P705+R705+T705+V705+X705 -> 0 | D57: =+C705+G705+M705+O705+Q705+S705+U705+W705+Y705 -> 0 | F57: 0 | G57: 0
A58: BTSH_3 Fuera de Punta Medio | C58: 0 | D58: 0 | F58: 0 | G58: 0
A59: BTSH_3 Fuera de Punta Bajo | C59: 0 | D59: 0 | F59: 0 | G59: 0
A60: =+A229 -> BTS Prepago | B60: =+E691+I691 -> 0 | C60: =+B698+F698+H698+L698+N698+P698+R698+T698+V698+X698 -> 0 | D60: =+C698+G698+M698+O698+Q698+S698+U698+W698+Y698 -> 0 | E60: =+E566+I566 -> 0 | F60: =+B566+D566+F566+H566+J566+L566+N566+P566+R566+T566+V566+X566 -> 0 | G60: =+C566+G566+M566+O566+Q566+S566+U566+W566+Y566 -> 0
A61: BTS Prep | C61: =+B692+D692+F692+H692+L692+N692+P692+R692+T692+V692+X692 -> 0.1862991127 | D61: =+C692+G692+M692+O692+Q692+S692+U692+W692+Y692 -> 0 | F61: =+B567+D567+F567+H567+J567+L567+N567+P567+R567+T567+V567+X567 -> 0.1831700895 | G61: 0 | I61: =+IF(OR(C61=0,F61=0),"",(F61-C61)/C61) -> -0.01679569598 | J61: =+IF(OR(D61=0,G61=0),"",(G61-D61)/D61) -> 
A62: X1D_2 (10,001-30,000) | C62: 0 | D62: 0 | F62: 0 | G62: 0
A63: X1D_3 (30,001-50,000) | C63: 0 | D63: 0 | F63: 0 | G63: 0
A64: X1D_4 (50,001-más) | C64: 0 | D64: 0 | F64: 0 | G64: 0
A65: X1D_5 (xxx) | C65: 0 | D65: 0 | F65: 0 | G65: 0
A66: X2H | B66: =+E704+I704 -> 0 | C66: =+B704+F704+H704+L704+N704+P704+R704+T704+V704+X704 -> 0 | D66: =+C704+G704+M704+O704+Q704+S704+U704+W704+Y704 -> 0 | E66: =+E572+I572 -> 0 | F66: =+B572+D572+F572+H572+J572+L572+N572+P572+R572+T572+V572+X572 -> 0 | G66: =+C572+G572+M572+O572+Q572+S572+U572+W572+Y572 -> 0 | H66: =+IF(OR(B66=0,E66=0),"",(E66-B66)/B66) ->  | I66: =+IF(OR(C66=0,F66=0),"",(F66-C66)/C66) ->  | J66: =+IF(OR(D66=0,G66=0),"",(G66-D66)/D66) -> 
A67: X2H Punta | C67: 0 | D67: 0 | F67: 0 | G67: 0
A68: X2H Fuera de Punta | C68: 0 | D68: 0 | F68: 0 | G68: 0
A69: X2D | B69: =+E707+I707 -> 0 | C69: 0 | D69: 0 | E69: =+E575+I575 -> 0 | F69: 0 | G69: 0
A70: X2D_1 (0 - 10000) | C70: 0 | D70: 0 | F70: 0 | G70: 0
A71: X2D_2 (10,001-30,000) | C71: 0 | D71: 0 | F71: 0 | G71: 0
A72: X2D_3 (30,001-50,000) | C72: 0 | D72: 0 | F72: 0 | G72: 0
A73: X2D_4 (50,001-más) | C73: 0 | D73: 0 | F73: 0 | G73: 0
A74: X2D_5 (xxx) | C74: 0 | D74: 0 | F74: 0 | G74: 0
A75: X3D | B75: =+E713+I713 -> 0 | C75: =+B713+F713+H713+L713+N713+P713+R713+T713+V713+X713 -> 0 | D75: =+C713+G713+M713+O713+Q713+S713+U713+W713+Y713 -> 0 | E75: =+E581+I581 -> 0 | F75: =+B581+D581+F581+H581+J581+L581+N581+P581+R581+T581+V581+X581 -> 0 | G75: =+C581+G581+M581+O581+Q581+S581+U581+W581+Y581 -> 0 | H75: =+IF(OR(B75=0,E75=0),"",(E75-B75)/B75) ->  | I75: =+IF(OR(C75=0,F75=0),"",(F75-C75)/C75) ->  | J75: =+IF(OR(D75=0,G75=0),"",(G75-D75)/D75) -> 
A76: X3D_1 (0-10,000) | C76: 0 | D76: 0 | F76: 0 | G76: 0
A77: X3D_2 (10,001-30,000) | C77: 0 | D77: 0 | F77: 0 | G77: 0
A78: X3D_3 (30,001-50,000) | C78: 0 | D78: 0 | F78: 0 | G78: 0
A79: X3D_4 (50,001-más) | C79: 0 | D79: 0 | F79: 0 | G79: 0
A80: X3D_5 (xxx) | C80: 0 | D80: 0 | F80: 0 | G80: 0
A83: =+"Análisis de Impacto de Ingresos a Tarifa Vigente vs. Ingresos con Nueva Tarifa -"&PremisaCosto!F89 -> Análisis de Impacto de Ingresos a Tarifa Vigente vs. Ingresos con Nueva Tarifa -2022/2023
A104: =+"Ingreso a Tarifa Vigente " &PremisaCosto!G89 -> Ingreso a Tarifa Vigente 2023/2024 | B104: Total | C104: VAD | D104: Abastecimiento | E104: Pérdidas | F104: CD | G104: CCOMF | H104: CCOMV | I104: CSERAP | J104: CX | K104: CCONAP | L104: CENEGEN | M104: CPOTGEN | N104: CPT | O104: CPET | P104: CPERDP | Q104: CPERDE
A105: =+A19 -> ATH | B105: =+SUM(C105:E105) -> 225.8840433 | C105: =+SUM(F105:J105) -> 27.54849762 | D105: =+SUM(K105:O105) -> 181.4899374 | E105: =+SUM(P105:Q105) -> 16.84560828 | F105: 15.70117737 | G105: 0.001616705179 | H105: 9.719145179 | I105: 2.126530994 | J105: 2.736919732e-05 | K105: 3.472120232 | L105: 167.1906296 | M105: 2.272247352 | N105: 4.865759083 | O105: 3.689181131 | P105: 0 | Q105: 16.84560828
A106: =+A23 -> ATD | B106: =+SUM(C106:E106) -> 7126.834952 | C106: =+SUM(F106:J106) -> 1804.434153 | D106: =+SUM(K106:O106) -> 5023.793952 | E106: =+SUM(P106:Q106) -> 298.6068471 | F106: 1200.278955 | G106: 388.0092429 | H106: 171.954107 | I106: 37.62324067 | J106: 6.568607357 | K106: 61.42981948 | L106: 2799.119398 | M106: 603.8536486 | N106: 1494.120958 | O106: 65.2701277 | P106: 0 | Q106: 298.6068471
A107: =+A24 -> MTH | B107: 2954205.708 | C107: 430658.3168 | D107: =+SUM(K107:O107) -> 2360571.736 | E107: 162975.6549 | F107: 313548.8895 | G107: 2313.305736 | H107: 94154.75514 | I107: 20600.88633 | J107: 40.48002191 | K107: 33636.39207 | L107: 2120461.768 | M107: 16164.85881 | N107: 154569.5334 | O107: 35739.18374 | P107: 0 | Q107: 162975.6549
A108: =+A28 -> MTD | B108: 189661270.9 | C108: 32741208.75 | D108: 145979224.5 | E108: 10940837.62 | F108: 24923596.6 | G108: 117367.122 | H108: 6310022.666 | I108: 1388204.986 | J108: 2017.376148 | K108: 2250764.463 | L108: 107054356.6 | M108: 26812514.99 | N108: 7470116.633 | O108: 2391471.848 | P108: 0 | Q108: 10940837.62
A109: =+A34 -> BTH | B109: 5239400.138 | C109: 1021776.048 | D109: 3937858.472 | E109: 279765.6182 | F109: 815200.1275 | G109: 8837.900329 | H109: 161890.6383 | I109: 35421.37232 | J109: 426.0094338 | K109: 57856.16858 | L109: 3465082.698 | M109: 41464.13316 | N109: 311982.4033 | O109: 61473.06867 | P109: 0 | Q109: 279765.6182
A110: =+A38 -> BTD | B110: 249013063.8 | C110: 55306577.64 | D110: 179953738.7 | E110: 13752747.54 | F110: 45038335.57 | G110: 567178.6532 | H110: 7931722.763 | I110: 1744979.008 | J110: 24361.64349 | K110: 2829234.516 | L110: 133245940.2 | M110: 31108803.56 | N110: 9763655.185 | O110: 3006105.174 | P110: 0 | Q110: 13752747.54
A111: =+A44 -> BTS | B111: 416976327.3 | C111: 101436129.4 | D111: 291948414 | E111: 23591783.9 | F111: 64254294.55 | G111: 20316287.74 | H111: 13659613.06 | I111: 2977258.348 | J111: 228675.6807 | K111: 4869045.454 | L111: 186907531.9 | M111: 71632442.92 | N111: 23348856.57 | O111: 5190537.199 | P111: 0 | Q111: 23591783.9
A112: =+A50 -> BTSH | B112: 0 | C112: 0 | D112: 0 | E112: 0
A113: =+A60 -> BTS Prepago | B113: 1692054.062 | C113: 512842.0687 | D113: 1063333.122 | E113: 115878.8716 | F113: 328992.6416 | G113: 98950.58595 | H113: 66538.85205 | I113: 14625.90778 | J113: 3734.081311 | K113: 23720.10741 | L113: 647186.3697 | M113: 250094.8887 | N113: 116833.1833 | O113: 25498.57268 | P113: 0 | Q113: 115878.8716
A114: =+A66 -> X2H | B114: =+SUM(C114:E114) -> 0 | C114: =+SUM(F114:J114) -> 0 | D114: =+SUM(K114:O114) -> 0 | E114: =+SUM(P114:Q114) -> 0
A115: =+A69 -> X2D | B115: =+SUM(C115:E115) -> 0 | C115: =+SUM(F115:J115) -> 0 | D115: =+SUM(K115:O115) -> 0 | E115: =+SUM(P115:Q115) -> 0
A116: =+A75 -> X3D | B116: =+SUM(C116:E116) -> 0 | C116: =+SUM(F116:J116) -> 0 | D116: =+SUM(K116:O116) -> 0 | E116: =+SUM(P116:Q116) -> 0
A117: Total | B117: =+SUM(B105:B116) -> 865543674.6 | C117: =+SUM(C105:C116) -> 191451024.2 | D117: =+SUM(D105:D116) -> 625248345.8 | E117: =+SUM(E105:E116) -> 48844304.65 | F117: =+SUM(F105:F116) -> 135675184.4 | G117: =+SUM(G105:G116) -> 21111323.32 | H117: 28224124.4 | I117: 6181130.259 | J117: 259261.8397 | K117: 10064322 | L117: 433443525.8 | M117: 129862091.5 | N117: 41167512.5 | O117: 10710894.01 | P117: 0 | Q117: 48844304.65
A118: =+"Ingreso a Tarifa Nueva" -> Ingreso a Tarifa Nueva | B118: =+B104 -> Total | C118: =+C104 -> VAD | D118: Abastecimiento | E118: Pérdidas | F118: CD | G118: CCOMF | H118: CCOMV | I118: CSERAP | J118: CX | K118: CCONAP | L118: CENEGEN | M118: CPOTGEN | N118: CPT | O118: CPET | P118: CPERDP | Q118: CPERDE
A119: =+A105 -> ATH | B119: =+SUM(C119:E119) -> 177.8686782 | C119: =+SUM(F119:J119) -> 36.52147826 | D119: =+SUM(K119:O119) -> 130.8210964 | E119: =+SUM(P119:Q119) -> 10.5261035 | F119: =+CD!$AA11+CD!$AF11 -> 22.66564911 | G119: =+CCOMF!$AA11+CCOMF!$AF11 -> 0.00164321521 | H119: =+CCOMV!$AA11+CCOMV!$AF11 -> 11.83622515 | I119: =+CSERAP!$AA11+CSERAP!$AF11 -> 2.017933045 | J119: =+CX!$AA11+CX!$AF11 -> 2.774271354e-05 | K119: =+CCONAP!$AA11+CCONAP!$AF11 -> 2.6070463 | L119: =+CENEGEN!$AA11+CENEGEN!$AF11 -> 116.0813253 | M119: =+CPOTGEN!$AA11+CPOTGEN!$AF11 -> 2.910864269 | N119: =+CPT!$AA11+CPT!$AF11 -> 5.334052762 | O119: =+CPET!$AA11+CPET!$AF11 -> 3.88780779 | P119: =+CPERDP!$AU11+CPERDP!$AZ11 -> 0 | Q119: =+CPERDE!$AU11+CPERDE!$AZ11 -> 10.5261035
A120: ATD | B120: 7169.763691 | C120: =+SUM(F120:J120) -> 2378.821018 | D120: 4469.838494 | E120: 321.1041787 | F120: =+CD!$AA15+CD!$AF15 -> 1732.679085 | G120: =+CCOMF!$AA15+CCOMF!$AF15 -> 394.3716543 | H120: =+CCOMV!$AA15+CCOMV!$AF15 -> 209.4101373 | I120: =+CSERAP!$AA15+CSERAP!$AF15 -> 35.70189234 | J120: =+CX!$AA15+CX!$AF15 -> 6.658249124 | K120: =+CCONAP!$AA15+CCONAP!$AF15 -> 46.12466531 | L120: =+CENEGEN!$AA15+CENEGEN!$AF15 -> 1943.443183 | M120: =+CPOTGEN!$AA15+CPOTGEN!$AF15 -> 773.5671948 | N120: =+CPT!$AA15+CPT!$AF15 -> 1637.919159 | O120: =+CPET!$AA15+CPET!$AF15 -> 68.78429167 | P120: =+CPERDP!$AU15+CPERDP!$AZ15 -> 0 | Q120: =+CPERDE!$AU15+CPERDE!$AZ15 -> 321.1041787
A121: MTH | B121: 2416388.906 | C121: 589232.9631 | D121: 1725319.394 | E121: 101836.5488 | F121: =+CD!$AA16+CD!$AF16 -> 452627.8023 | G121: =+CCOMF!$AA16+CCOMF!$AF16 -> 2351.192022 | H121: =+CCOMV!$AA16+CCOMV!$AF16 -> 114664.0994 | I121: =+CSERAP!$AA16+CSERAP!$AF16 -> 19548.8372 | J121: =+CX!$AA16+CX!$AF16 -> 41.03218794 | K121: =+CCONAP!$AA16+CCONAP!$AF16 -> 25255.90486 | L121: =+CENEGEN!$AA16+CENEGEN!$AF16 -> 1472246.534 | M121: =+CPOTGEN!$AA16+CPOTGEN!$AF16 -> 20707.98646 | N121: =+CPT!$AA16+CPT!$AF16 -> 169445.6163 | O121: =+CPET!$AA16+CPET!$AF16 -> 37663.35246 | P121: =+CPERDP!$AU16+CPERDP!$AZ16 -> 0 | Q121: =+CPERDE!$AU16+CPERDE!$AZ16 -> 101836.5488
A122: MTD | B122: 177942620.4 | C122: 45102060.72 | D122: 121075428.7 | E122: 11765131.01 | F122: =+CD!$AA20+CD!$AF20 -> 35978902.32 | G122: =+CCOMF!$AA20+CCOMF!$AF20 -> 119291.197 | H122: =+CCOMV!$AA20+CCOMV!$AF20 -> 7684510.449 | I122: =+CSERAP!$AA20+CSERAP!$AF20 -> 1317311.879 | J122: =+CX!$AA20+CX!$AF20 -> 2044.873843 | K122: =+CCONAP!$AA20+CCONAP!$AF20 -> 1689985.327 | L122: =+CENEGEN!$AA20+CENEGEN!$AF20 -> 74328208.6 | M122: =+CPOTGEN!$AA20+CPOTGEN!$AF20 -> 34348031.38 | N122: =+CPT!$AA20+CPT!$AF20 -> 8188980.35 | O122: =+CPET!$AA20+CPET!$AF20 -> 2520223.028 | P122: =+CPERDP!$AU20+CPERDP!$AZ20 -> 0 | Q122: =+CPERDE!$AU20+CPERDE!$AZ20 -> 11765131.01
A123: BTH | B123: 4499989.088 | C123: 1417060.71 | D123: 2908114.753 | E123: 174813.6252 | F123: =+CD!$AA76+CD!$AF76 -> 1176870.813 | G123: =+CCOMF!$AA76+CCOMF!$AF76 -> 8982.162577 | H123: =+CCOMV!$AA76+CCOMV!$AF76 -> 197163.7338 | I123: =+CSERAP!$AA76+CSERAP!$AF76 -> 33612.16158 | J123: =+CX!$AA76+CX!$AF76 -> 431.8390762 | K123: =+CCONAP!$AA76+CCONAP!$AF76 -> 43425.25783 | L123: =+CENEGEN!$AA76+CENEGEN!$AF76 -> 2404947.954 | M123: =+CPOTGEN!$AA76+CPOTGEN!$AF76 -> 53098.11504 | N123: =+CPT!$AA76+CPT!$AF76 -> 341884.6768 | O123: =+CPET!$AA76+CPET!$AF76 -> 64758.74851 | P123: =+CPERDP!$AU76+CPERDP!$AZ76 -> 0 | Q123: =+CPERDE!$AU76+CPERDE!$AZ76 -> 174813.6252
A124: BTD | B124: 240160857.3 | C124: 76932542.54 | D124: 148439421.8 | E124: 14788892.97 | F124: =+CD!$AA80+CD!$AF80 -> 65016029.42 | G124: =+CCOMF!$AA80+CCOMF!$AF80 -> 576478.9173 | H124: =+CCOMV!$AA80+CCOMV!$AF80 -> 9659465.56 | I124: =+CSERAP!$AA80+CSERAP!$AF80 -> 1655865.884 | J124: =+CX!$AA80+CX!$AF80 -> 24702.76057 | K124: =+CCONAP!$AA80+CCONAP!$AF80 -> 2124318.057 | L124: =+CENEGEN!$AA80+CENEGEN!$AF80 -> 92571060.15 | M124: =+CPOTGEN!$AA80+CPOTGEN!$AF80 -> 39872975.65 | N124: =+CPT!$AA80+CPT!$AF80 -> 10703137.94 | O124: =+CPET!$AA80+CPET!$AF80 -> 3167930.041 | P124: =+CPERDP!$AU80+CPERDP!$AZ80 -> 0 | Q124: =+CPERDE!$AU80+CPERDE!$AZ80 -> 14788892.97
A125: BTS | B125: 413702744.9 | C125: 133235803 | D125: 255094365.9 | E125: 25372575.98 | F125: =+CD!$AA136+CD!$AF136 -> 92882490.97 | G125: =+CCOMF!$AA136+CCOMF!$AF136 -> 20647335.46 | H125: =+CCOMV!$AA136+CCOMV!$AF136 -> 16648317.2 | I125: =+CSERAP!$AA136+CSERAP!$AF136 -> 2825346.917 | J125: =+CX!$AA136+CX!$AF136 -> 232312.4968 | K125: =+CCONAP!$AA136+CCONAP!$AF136 -> 3637229.998 | L125: =+CENEGEN!$AA136+CENEGEN!$AF136 -> 129337752.6 | M125: =+CPOTGEN!$AA136+CPOTGEN!$AF136 -> 91211959.5 | N125: =+CPT!$AA136+CPT!$AF136 -> 25465648.88 | O125: =+CPET!$AA136+CPET!$AF136 -> 5441774.952 | P125: =+CPERDP!$AU136+CPERDP!$AZ136 -> 0 | Q125: =+CPERDE!$AU136+CPERDE!$AZ136 -> 25372575.98
A126: BTSH | B126: =+SUM(C126:E126) -> 41801.2198 | C126: 13838.67896 | D126: =+SUM(K126:O126) -> 26392.72791 | E126: =+SUM(P126:Q126) -> 1569.812924 | F126: =+CD!$AA196+CD!$AF196 -> 9617.618551 | G126: =+CCOMF!$AA196+CCOMF!$AF196 -> 2184.344757 | H126: =+CCOMV!$AA196+CCOMV!$AF196 -> 1717.995098 | I126: =+CSERAP!$AA196+CSERAP!$AF196 -> 295.4909732 | J126: =+CX!$AA196+CX!$AF196 -> 23.22958491 | K126: =+CCONAP!$AA196+CCONAP!$AF196 -> 378.1750361 | L126: =+CENEGEN!$AA196+CENEGEN!$AF196 -> 13372.07128 | M126: =+CPOTGEN!$AA196+CPOTGEN!$AF196 -> 9446.622971 | N126: =+CPT!$AA196+CPT!$AF196 -> 2634.930159 | O126: =+CPET!$AA196+CPET!$AF196 -> 560.9284662 | P126: =+CPERDP!$AU196+CPERDP!$AZ196 -> 0 | Q126: =+CPERDE!$AU196+CPERDE!$AZ196 -> 1569.812924
A127: BTS Prepago | B127: 1704841.954 | C127: 624236.5041 | D127: 962226.616 | E127: 118378.834 | F127: =+CD!$AA209+CD!$AF209 -> 433310.9048 | G127: =+CCOMF!$AA209+CCOMF!$AF209 -> 96486.5711 | H127: =+CCOMV!$AA209+CCOMV!$AF209 -> 77442.88225 | I127: =+CSERAP!$AA209+CSERAP!$AF209 -> 13202.69839 | J127: =+CX!$AA209+CX!$AF209 -> 3793.44751 | K127: =+CCONAP!$AA209+CCONAP!$AF209 -> 16612.93659 | L127: =+CENEGEN!$AA209+CENEGEN!$AF209 -> 375439.3524 | M127: =+CPOTGEN!$AA209+CPOTGEN!$AF209 -> 426012.4568 | N127: =+CPT!$AA209+CPT!$AF209 -> 118830.2951 | O127: =+CPET!$AA209+CPET!$AF209 -> 25331.57523 | P127: =+CPERDP!$AU209+CPERDP!$AZ209 -> 0 | Q127: =+CPERDE!$AU209+CPERDE!$AZ209 -> 118378.834
A128: X2H | B128: =+SUM(C128:E128) -> 0 | C128: =+SUM(F128:J128) -> 0 | D128: =+SUM(K128:O128) -> 0 | E128: =+SUM(P128:Q128) -> 0 | F128: =+CD!$AA265+CD!$AF265 -> 0 | G128: =+CCOMF!$AA265+CCOMF!$AF265 -> 0 | H128: =+CCOMV!$AA265+CCOMV!$AF265 -> 0 | I128: =+CSERAP!$AA265+CSERAP!$AF265 -> 0 | J128: =+CX!$AA265+CX!$AF265 -> 0 | K128: =+CCONAP!$AA265+CCONAP!$AF265 -> 0 | L128: =+CENEGEN!$AA265+CENEGEN!$AF265 -> 0 | M128: =+CPOTGEN!$AA265+CPOTGEN!$AF265 -> 0 | N128: =+CPT!$AA265+CPT!$AF265 -> 0 | O128: =+CPET!$AA265+CPET!$AF265 -> 0 | P128: =+CPERDP!$AU265+CPERDP!$AZ265 -> 0 | Q128: =+CPERDE!$AU265+CPERDE!$AZ265 -> 0
A129: X2D | B129: =+SUM(C129:E129) -> 0 | C129: =+SUM(F129:J129) -> 0 | D129: =+SUM(K129:O129) -> 0 | E129: =+SUM(P129:Q129) -> 0 | F129: =+CD!$AA268+CD!$AF268 -> 0 | G129: =+CCOMF!$AA268+CCOMF!$AF268 -> 0 | H129: =+CCOMV!$AA268+CCOMV!$AF268 -> 0 | I129: =+CSERAP!$AA268+CSERAP!$AF268 -> 0 | J129: =+CX!$AA268+CX!$AF268 -> 0 | K129: =+CCONAP!$AA268+CCONAP!$AF268 -> 0 | L129: =+CENEGEN!$AA268+CENEGEN!$AF268 -> 0 | M129: =+CPOTGEN!$AA268+CPOTGEN!$AF268 -> 0 | N129: =+CPT!$AA268+CPT!$AF268 -> 0 | O129: =+CPET!$AA268+CPET!$AF268 -> 0 | P129: =+CPERDP!$AU268+CPERDP!$AZ268 -> 0 | Q129: =+CPERDE!$AU268+CPERDE!$AZ268 -> 0
A130: X3D | B130: =+SUM(C130:E130) -> 0 | C130: =+SUM(F130:J130) -> 0 | D130: =+SUM(K130:O130) -> 0 | E130: =+SUM(P130:Q130) -> 0 | F130: =+CD!$AA324+CD!$AF324 -> 0 | G130: =+CCOMF!$AA324+CCOMF!$AF324 -> 0 | H130: =+CCOMV!$AA324+CCOMV!$AF324 -> 0 | I130: =+CSERAP!$AA324+CSERAP!$AF324 -> 0 | J130: =+CX!$AA324+CX!$AF324 -> 0 | K130: =+CCONAP!$AA324+CCONAP!$AF324 -> 0 | L130: =+CENEGEN!$AA324+CENEGEN!$AF324 -> 0 | M130: =+CPOTGEN!$AA324+CPOTGEN!$AF324 -> 0 | N130: =+CPT!$AA324+CPT!$AF324 -> 0 | O130: =+CPET!$AA324+CPET!$AF324 -> 0 | P130: =+CPERDP!$AU324+CPERDP!$AZ324 -> 0 | Q130: =+CPERDE!$AU324+CPERDE!$AZ324 -> 0
A131: Total | B131: =+SUM(B119:B127) -> 840476591.5 | C131: =+SUM(C119:C127) -> 257917190.5 | D131: =+SUM(D119:D127) -> 530235870.6 | E131: =+SUM(E119:E127) -> 52323530.41 | F131: 195951605.2 | G131: 21453504.22 | H131: 34383503.16 | I131: 5865221.588 | J131: 263356.3378 | K131: =+SUM(K119:K127) -> 7537254.388 | L131: =+SUM(L119:L127) -> 300505086.8 | M131: 165943008.2 | N131: 44992205.94 | O131: =+SUM(O119:O127) -> 11258315.3 | P131: 0 | Q131: =+SUM(Q119:Q127) -> 52323530.41
A132: Diferencias | B132: =+B118 -> Total | C132: =+C118 -> VAD | D132: Abastecimiento | E132: Pérdidas | F132: CD | G132: CCOMF | H132: CCOMV | I132: CSERAP | J132: CX | K132: CCONAP | L132: CENEGEN | M132: CPOTGEN | N132: CPT | O132: CPET | P132: CPERDP | Q132: CPERDE
A133: =+A119 -> ATH | B133: =+IF(B105=0,"",(B119-B105)/B105) -> -0.2125664319 | C133: =+IF(C105=0,"",(C119-C105)/C105) -> 0.3257157893 | D133: =+IF(D105=0,"",(D119-D105)/D105) -> -0.2791826461 | E133: =+IF(E105=0,"",(E119-E105)/E105) -> -0.3751425701 | F133: 0.4435636626 | G133: 0.01639756703 | H133: 0.217825738 | I133: -0.05106812426 | J133: 0.01364732076 | K133: =+IF(K105=0,"",(K119-K105)/K105) -> -0.2491486107 | L133: -0.3056947893 | M133: 0.281050792 | N133: 0.0962426769 | O133: =+IF(O105=0,"",(O119-O105)/O105) -> 0.053840311 | Q133: =+IF(Q105=0,"",(Q119-Q105)/Q105) -> -0.3751425701
A134: ATD | B134: 0.006023534784 | C134: =+IF(C106=0,"",(C120-C106)/C106) -> 0.3183196591 | D134: -0.1102663571 | E134: 0.07534097682 | F134: 0.4435636626 | G134: 0.01639757679 | H134: 0.217825738 | I134: -0.05106812426 | J134: 0.0136469973 | K134: -0.2491486107 | L134: -0.3056947893 | M134: 0.281050792 | N134: 0.0962426769 | O134: 0.053840311 | Q134: 0.07534097682
A135: MTH | B135: -0.1820512364 | C135: =+IF(C107=0,"",(C121-C107)/C107) -> 0.3682145222 | D135: -0.2691095264 | E135: -0.3751425701 | F135: 0.443563723 | G135: 0.01637755231 | H135: 0.2178258997 | I135: -0.05106814912 | J135: 0.01364045762 | K135: -0.2491494091 | L135: -0.3056953178 | M135: 0.2810496341 | N135: 0.09624201206 | O135: 0.05383919041 | Q135: -0.3751425701
A136: MTD | B136: -0.06178726098 | C136: =+IF(C108=0,"",(C122-C108)/C108) -> 0.3775319374 | D136: -0.1705982197 | E136: 0.07534097682 | F136: 0.4435678326 | G136: 0.01639364553 | H136: 0.2178261247 | I136: -0.0510681837 | J136: 0.01363042559 | K136: -0.2491505197 | L136: -0.3056965546 | M136: 0.2810447433 | N136: 0.09623192676 | O136: 0.05383763155 | Q136: 0.07534097682
A137: BTH | B137: -0.1411251346 | C137: =+IF(C109=0,"",(C123-C109)/C109) -> 0.3868603722 | D137: -0.2614984074 | E137: -0.3751425701 | F137: 0.4436587696 | G137: 0.01632313591 | H137: 0.2178822441 | I137: -0.05107681111 | J137: 0.01368430356 | K137: -0.249427349 | L137: -0.305947891 | M137: 0.2805794067 | N137: 0.09584602576 | O137: 0.05344909415 | Q137: -0.3751425701
A138: BTD | B138: -0.03554916504 | C138: =+IF(C110=0,"",(C124-C110)/C110) -> 0.3910197633 | D138: -0.1751245463 | E138: 0.07534097682 | F138: 0.4435708733 | G138: 0.01639741559 | H138: 0.2178269272 | I138: -0.05106830707 | J138: 0.01400221924 | K138: -0.2491544816 | L138: -0.3052616838 | M138: 0.2817264273 | N138: 0.0962224426 | O138: 0.05383207103 | Q138: 0.07534097682
A139: BTS | B139: -0.007850763035 | C139: =+IF(C111=0,"",(C125-C111)/C111) -> 0.3134945494 | D139: -0.1262347946 | E139: 0.07548357014 | F139: 0.4455452608 | G139: 0.0162946954 | H139: 0.2187985947 | I139: -0.05102393331 | J139: 0.01590381677 | K139: -0.2529891059 | L139: -0.3080120886 | M139: 0.2733330846 | N139: 0.09065935625 | O139: 0.04840303482 | Q139: 0.07548357014
A140: BTSH
A141: BTS Prepago
A142: =+A128 -> X2H
A143: =+A129 -> X2D
A144: =+A130 -> X3D
A145: Total | B145: =+(SUM(B119:B130)-SUM(B105:B116))/SUM(B105:B116) -> -0.02896108405 | C145: =+(SUM(C119:C130)-SUM(C105:C116))/SUM(C105:C116) -> 0.3471705968 | D145: =+(SUM(D119:D130)-SUM(D105:D116))/SUM(D105:D116) -> -0.1519595787 | E145: =+(SUM(E119:E130)-SUM(E105:E116))/SUM(E105:E116) -> 0.07123094044 | F145: =+(SUM(F119:F130)-SUM(F105:F116))/SUM(F105:F116) -> 0.4442700492 | G145: =+(SUM(G119:G130)-SUM(G105:G116))/SUM(G105:G116) -> 0.01620840604 | H145: 0.2182309953 | I145: -0.05110856065 | J145: 0.01579290702 | K145: =+(SUM(K119:K130)-SUM(K105:K116))/SUM(K105:K116) -> -0.2510916895 | L145: =+(SUM(L119:L130)-SUM(L105:L116))/SUM(L105:L116) -> -0.3067030215 | M145: 0.2778402558 | N145: 0.09290562403 | O145: =+(SUM(O119:O130)-SUM(O105:O116))/SUM(O105:O116) -> 0.05110883297 | Q145: =+(SUM(Q119:Q130)-SUM(Q105:Q116))/SUM(Q105:Q116) -> 0.07123094044
A147: Análisis de Impacto de Tarifa Media Vigente vs. Tarifa Media Nueva
A148: Tarifa Media Vigente | B148: Total | C148: VAD | D148: Abastecimiento | E148: Pérdidas | F148: CD | G148: CCOMF | H148: CCOMV | I148: CSERAP | J148: CX | K148: CCONAP | L148: CENEGEN | M148: CPOTGEN | N148: CPT | O148: CPET | P148: CPERDP | Q148: CPERDE
A149: =+A105 -> ATH | B149: =+SUM(C149:E149) -> 150.8350183 | C149: =+SUM(F149:J149) -> 18.39562495 | D149: =+SUM(K149:O149) -> 121.1906677 | E149: =+SUM(P149:Q149) -> 11.24872566 | F149: 10.48452711 | G149: 0.001079561671 | H149: 6.49 | I149: 1.42 | J149: 1.827589642e-05 | K149: 2.318522863 | L149: 111.6422449 | M149: 1.517302709 | N149: 3.249131057 | O149: 2.463466189 | P149: 0 | Q149: 11.24872566
A150: ATD | B150: =+SUM(C150:E150) -> 268.9854848 | C150: =+SUM(F150:J150) -> 68.10408811 | D150: =+SUM(K150:O150) -> 189.6111894 | E150: =+SUM(P150:Q150) -> 11.27020733 | F150: 45.30168285 | G150: 14.64448876 | H150: 6.49 | I150: 1.42 | J150: 0.247916508 | K150: 2.318522863 | L150: 105.6461239 | M150: 22.791024 | N150: 56.39205244 | O150: 2.463466189 | P150: 0 | Q150: 11.27020733
A151: MTH | B151: 203.6306612 | C151: 29.6848786 | D151: 162.7120217 | E151: 11.23376083 | F151: 21.61263433 | G151: 0.1594540202 | H151: 6.49 | I151: 1.42 | J151: 0.00279025039 | K151: 2.318525328 | L151: 146.1614642 | M151: 1.114228735 | N151: 10.65433467 | O151: 2.463468809 | P151: 0 | Q151: 11.23376083
A152: MTD | B152: 195.2126172 | C152: 33.69953718 | D152: 150.2520063 | E152: 11.26107368 | F152: 25.65310514 | G152: 0.1208024335 | H152: 6.494715729 | I152: 1.42883746 | J152: 0.002076424332 | K152: 2.316643875 | L152: 110.1878155 | M152: 27.59731178 | N152: 7.688765408 | O152: 2.461469736 | P152: 0 | Q152: 11.26107368
A153: BTH | B153: 210.0412183 | C153: 40.96176667 | D153: 157.8639862 | E153: 11.21546546 | F153: 32.68038772 | G153: 0.3543007412 | H153: 6.49 | I153: 1.42 | J153: 0.01707820325 | K153: 2.319383864 | L153: 138.9109769 | M153: 1.662246978 | N153: 12.50699743 | O153: 2.464381016 | P153: 0 | Q153: 11.21546546
A154: BTD | B154: 203.9558548 | C154: 45.29923107 | D154: 147.3923417 | E154: 11.26428203 | F154: 36.8889571 | G154: 0.464551559 | H154: 6.496531833 | I154: 1.429237003 | J154: 0.01995357089 | K154: 2.3173039 | L154: 109.1359996 | M154: 25.47987854 | N154: 7.996988625 | O154: 2.462171023 | P154: 0 | Q154: 11.26428203
A155: BTS | B155: 203.7620682 | C155: 49.56836674 | D155: 142.6652036 | E155: 11.52849782 | F155: 31.39887588 | G155: 9.927874888 | H155: 6.674985664 | I155: 1.454884316 | J155: 0.1117459831 | K155: 2.379335964 | L155: 91.33531752 | M155: 35.00432462 | N155: 11.40978754 | O155: 2.536437984 | P155: 0 | Q155: 11.52849782
A156: BTSH | B156: 0 | C156: 0 | D156: 0 | E156: 0
A157: BTS Prepago | B157: 177.1263033 | C157: 53.68493942 | D157: 111.3110209 | E157: 12.13034301 | F157: 34.43935495 | G157: 10.35826922 | H157: 6.965368989 | I157: 1.531058041 | J157: 0.3908882309 | K157: 2.483050059 | L157: 67.74826633 | M157: 26.18024099 | N157: 12.23024153 | O157: 2.669221995 | P157: 0 | Q157: 12.13034301
A158: Total | B158: =+SUM(C158:E158) -> 195.8858087 | C158: =+SUM(F158:J158) -> 43.32830312 | D158: =+SUM(K158:O158) -> 141.5032903 | E158: =+SUM(P158:Q158) -> 11.05421529 | F158: 30.70537512 | G158: 4.777816259 | H158: 6.387552236 | I158: 1.39888458 | J158: 0.05867493071 | K158: 2.277710429 | L158: 98.09491776 | M158: 29.38978304 | N158: 9.316839479 | O158: 2.42403959 | P158: 0 | Q158: 11.05421529
A159: Tarifa Media Nueva | B159: =+B148 -> Total | C159: =+C148 -> VAD | D159: Abastecimiento | E159: Pérdidas | F159: CD | G159: CCOMF | H159: CCOMV | I159: CSERAP | J159: CX | K159: CCONAP | L159: CENEGEN | M159: CPOTGEN | N159: CPT | O159: CPET | P159: CPERDP | Q159: CPERDE
A160: =+A149 -> ATH | B160: =+SUM(C160:E160) -> 118.7877071 | C160: =+SUM(F160:J160) -> 24.39048126 | D160: =+SUM(K160:O160) -> 87.36747941 | E160: =+SUM(P160:Q160) -> 7.029746392 | F160: =+IF(Energía!$AA$11=0,"",F119/Energía!$AA$11) -> 15.13701296 | G160: =+IF(Energía!$AA$11=0,"",G119/Energía!$AA$11) -> 0.001097403821 | H160: =+IF(Energía!$AA$11=0,"",H119/Energía!$AA$11) -> 7.904697221 | I160: =+IF(Energía!$AA$11=0,"",I119/Energía!$AA$11) -> 1.347655146 | J160: =+IF(Energía!$AA$11=0,"",J119/Energía!$AA$11) -> 1.85276765e-05 | K160: =+IF(Energía!$AA$11=0,"",K119/Energía!$AA$11) -> 1.741088175 | L160: =+IF(Energía!$AA$11=0,"",L119/Energía!$AA$11) -> 77.52367986 | M160: =+IF(Energía!$AA$11=0,"",M119/Energía!$AA$11) -> 1.943989778 | N160: =+IF(Energía!$AA$11=0,"",N119/Energía!$AA$11) -> 3.562290469 | O160: =+IF(Energía!$AA$11=0,"",O119/Energía!$AA$11) -> 2.596431129 | P160: =+IF(Energía!$AA$11=0,"",P119/Energía!$AA$11) -> 0 | Q160: =+IF(Energía!$AA$11=0,"",Q119/Energía!$AA$11) -> 7.029746392
A161: ATD | B161: 270.6402462 | C161: =+SUM(F161:J161) -> 89.79441079 | D161: 168.7249738 | E161: 12.12086168 | F161: =+IF(Energía!$AA$15=0,"",F120/Energía!$AA$15) -> 65.404205 | G161: =+IF(Energía!$AA$15=0,"",G120/Energía!$AA$15) -> 14.88652154 | H161: =+IF(Energía!$AA$15=0,"",H120/Energía!$AA$15) -> 7.904697221 | I161: =+IF(Energía!$AA$15=0,"",I120/Energía!$AA$15) -> 1.347655146 | J161: =+IF(Energía!$AA$15=0,"",J120/Energía!$AA$15) -> 0.2513318793 | K161: =+IF(Energía!$AA$15=0,"",K120/Energía!$AA$15) -> 1.741088175 | L161: =+IF(Energía!$AA$15=0,"",L120/Energía!$AA$15) -> 73.36001078 | M161: =+IF(Energía!$AA$15=0,"",M120/Energía!$AA$15) -> 29.20018359 | N161: =+IF(Energía!$AA$15=0,"",N120/Energía!$AA$15) -> 61.8272601 | O161: =+IF(Energía!$AA$15=0,"",O120/Energía!$AA$15) -> 2.596431129 | P161: =+IF(Energía!$AA$15=0,"",P120/Energía!$AA$15) -> 0 | Q161: =+IF(Energía!$AA$15=0,"",Q120/Energía!$AA$15) -> 12.12086168
A162: MTH | B162: 166.5806929 | C162: 40.62046264 | D162: 118.939836 | E162: 7.020394287 | F162: =+F121/Energía!$AA$16 -> 31.20319446 | G162: =+G121/Energía!$AA$16 -> 0.1620861589 | H162: =+H121/Energía!$AA$16 -> 7.904698238 | I162: =+I121/Energía!$AA$16 -> 1.347655105 | J162: =+J121/Energía!$AA$16 -> 0.002828671445 | K162: =+K121/Energía!$AA$16 -> 1.741088167 | L162: =+L121/Energía!$AA$16 -> 101.4935332 | M162: =+M121/Energía!$AA$16 -> 1.427564381 | N162: =+N121/Energía!$AA$16 -> 11.68121907 | O162: =+O121/Energía!$AA$16 -> 2.596431119 | P162: =+P121/Energía!$AA$16 -> 0 | Q162: =+Q121/Energía!$AA$16 -> 7.020394287
A163: MTD | B163: 183.1743249 | C163: 46.42810983 | D163: 124.6351765 | E163: 12.11103852 | F163: =+F122/Energía!$AA$20 -> 37.03672076 | G163: =+G122/Energía!$AA$20 -> 0.1227984866 | H163: =+H122/Energía!$AA$20 -> 7.910443323 | I163: =+I122/Energía!$AA$20 -> 1.356042266 | J163: =+J122/Energía!$AA$20 -> 0.002104995334 | K163: =+K122/Energía!$AA$20 -> 1.739672714 | L163: =+L122/Energía!$AA$20 -> 76.5135379 | M163: =+M122/Energía!$AA$20 -> 35.35790045 | N163: =+N122/Energía!$AA$20 -> 8.429745182 | O163: =+O122/Energía!$AA$20 -> 2.594320297 | P163: =+P122/Energía!$AA$20 -> 0 | Q163: =+Q122/Energía!$AA$20 -> 12.11103852
A164: BTH | B164: 180.4218754 | C164: 56.81541576 | D164: 116.5975089 | E164: 7.008950798 | F164: =+F123/Energía!$AA$76 -> 47.1852787 | G164: =+G123/Energía!$AA$76 -> 0.360129455 | H164: =+H123/Energía!$AA$76 -> 7.905052642 | I164: =+I123/Energía!$AA$76 -> 1.347640874 | J164: =+J123/Energía!$AA$76 -> 0.01731408999 | K164: =+K123/Energía!$AA$76 -> 1.741085657 | L164: =+L123/Energía!$AA$76 -> 96.4236161 | M164: =+M123/Energía!$AA$76 -> 2.128907717 | N164: =+N123/Energía!$AA$76 -> 13.70747203 | O164: =+O123/Energía!$AA$76 -> 2.596427375 | P164: =+P123/Energía!$AA$76 -> 0 | Q164: =+Q123/Energía!$AA$76 -> 7.008950798
A165: BTD | B165: 196.703383 | C165: 63.01148135 | D165: 121.5790815 | E165: 12.11282018 | F165: =+F124/Energía!$AA$80 -> 53.2512795 | G165: =+G124/Energía!$AA$80 -> 0.4721641759 | H165: =+H124/Energía!$AA$80 -> 7.9115705 | I165: =+I124/Energía!$AA$80 -> 1.356234421 | J165: =+J124/Energía!$AA$80 -> 0.02023275828 | K165: =+K124/Energía!$AA$80 -> 1.739919457 | L165: =+L124/Energía!$AA$80 -> 75.82018529 | M165: =+M124/Energía!$AA$80 -> 32.65789974 | N165: =+N124/Energía!$AA$80 -> 8.766388764 | O165: =+O124/Energía!$AA$80 -> 2.594688257 | P165: =+P124/Energía!$AA$80 -> 0 | Q165: =+Q124/Energía!$AA$80 -> 12.11282018
A166: BTS | B166: 202.1709927 | C166: 65.11055314 | D166: 124.6612013 | E166: 12.39923818 | F166: =+F125/Energía!$AA$136 -> 45.3904298 | G166: =+G125/Energía!$AA$136 -> 10.09007641 | H166: =+H125/Energía!$AA$136 -> 8.135809721 | I166: =+I125/Energía!$AA$136 -> 1.380709212 | J166: =+J125/Energía!$AA$136 -> 0.1135280069 | K166: =+K125/Energía!$AA$136 -> 1.777465603 | L166: =+L125/Energía!$AA$136 -> 63.20562807 | M166: =+M125/Energía!$AA$136 -> 44.57406343 | N166: =+N125/Energía!$AA$136 -> 12.44472167 | O166: =+O125/Energía!$AA$136 -> 2.659322563 | P166: =+P125/Energía!$AA$136 -> 0 | Q166: =+Q125/Energía!$AA$136 -> 12.39923818
A167: BTSH | B167: =+SUM(C167:E167) -> 197.2661181 | C167: 65.30676597 | D167: =+SUM(K167:O167) -> 124.5511735 | E167: =+SUM(P167:Q167) -> 7.40817859 | F167: =+IFERROR(F126/Energía!$AA$196,0) -> 45.38695966 | G167: =+IFERROR(G126/Energía!$AA$196,0) -> 10.3082449 | H167: =+IFERROR(H126/Energía!$AA$196,0) -> 8.107472114 | I167: =+IFERROR(I126/Energía!$AA$196,0) -> 1.39446546 | J167: =+IFERROR(J126/Energía!$AA$196,0) -> 0.1096238354 | K167: =+IFERROR(K126/Energía!$AA$196,0) -> 1.784663741 | L167: =+IFERROR(L126/Energía!$AA$196,0) -> 63.1047755 | M167: =+IFERROR(M126/Energía!$AA$196,0) -> 44.58000631 | N167: =+IFERROR(N126/Energía!$AA$196,0) -> 12.43462383 | O167: =+IFERROR(O126/Energía!$AA$196,0) -> 2.647104118 | P167: =+IFERROR(P126/Energía!$AA$196,0) -> 0 | Q167: =+IFERROR(Q126/Energía!$AA$196,0) -> 7.40817859
A168: BTS Prepago | B168: 178.4827274 | C168: 65.35235336 | D168: 100.7370979 | E168: 12.39327617 | F168: =+IFERROR(F127/Energía!$AA$209,0) -> 45.3640362 | G168: =+IFERROR(G127/Energía!$AA$209,0) -> 10.10133891 | H168: =+IFERROR(H127/Energía!$AA$209,0) -> 8.10762359 | I168: =+IFERROR(I127/Energía!$AA$209,0) -> 1.382212359 | J168: =+IFERROR(J127/Energía!$AA$209,0) -> 0.3971423019 | K168: =+IFERROR(K127/Energía!$AA$209,0) -> 1.739235843 | L168: =+IFERROR(L127/Energía!$AA$209,0) -> 39.30536754 | M168: =+IFERROR(M127/Energía!$AA$209,0) -> 44.59994959 | N168: =+IFERROR(N127/Energía!$AA$209,0) -> 12.44054038 | O168: =+IFERROR(O127/Energía!$AA$209,0) -> 2.65200456 | P168: =+IFERROR(P127/Energía!$AA$209,0) -> 0 | Q168: =+IFERROR(Q127/Energía!$AA$209,0) -> 12.39327617
A169: Total | B169: =+SUM(C169:E169) -> 190.2124266 | C169: =+SUM(F169:J169) -> 58.37051878 | D169: =+SUM(K169:O169) -> 120.0003101 | E169: =+SUM(P169:Q169) -> 11.84159772 | F169: =+SUM(F119:F127)/Energía!$AA$10 -> 44.34677979 | G169: =+SUM(G119:G127)/Energía!$AA$10 -> 4.85524896 | H169: =+SUM(H119:H127)/Energía!$AA$10 -> 7.78150116 | I169: =+SUM(I119:I127)/Energía!$AA$10 -> 1.327387392 | J169: =+SUM(J119:J127)/Energía!$AA$10 -> 0.05960147919 | K169: =+SUM(K119:K127)/Energía!$AA$10 -> 1.705793429 | L169: =+SUM(L119:L127)/Energía!$AA$10 -> 68.00879684 | M169: =+SUM(M119:M127)/Energía!$AA$10 -> 37.55538534 | N169: =+SUM(N119:N127)/Energía!$AA$10 -> 10.18240931 | O169: =+SUM(O119:O127)/Energía!$AA$10 -> 2.547925182 | P169: =+SUM(P119:P127)/Energía!$AA$10 -> 0 | Q169: =+SUM(Q119:Q127)/Energía!$AA$10 -> 11.84159772
A170: Diferencias | B170: =+B159 -> Total | C170: =+C159 -> VAD | D170: Abastecimiento | E170: Pérdidas | F170: CD | G170: CCOMF | H170: CCOMV | I170: CSERAP | J170: CX | K170: CCONAP | L170: CENEGEN | M170: CPOTGEN | N170: CPT | O170: CPET | P170: CPERDP | Q170: CPERDE
A171: =+A160 -> ATH | B171: =+IF(B149=0,"",(B160-B149)/B149) -> -0.2124659882 | C171: =+IF(C149=0,"",(C160-C149)/C149) -> 0.3258848954 | D171: =+IF(D149=0,"",(D160-D149)/D149) -> -0.2790906999 | E171: -0.3750628644 | F171: =+IF(F149="","",(F160-F149)/F149) -> 0.4437478011 | G171: =+IF(G149="","",(G160-G149)/G149) -> 0.01652721698 | H171: 0.2179810818 | I171: -0.05094708012 | J171: 0.01377661989 | K171: =+IF(K149="","",(K160-K149)/K149) -> -0.2490528333 | L171: =+IF(L149="","",(L160-L149)/L149) -> -0.3056062249 | M171: 0.2812142007 | N171: 0.09638251175 | O171: =+IF(O149="","",(O160-O149)/O149) -> 0.05397473708 | Q171: =+IF(Q149="","",(Q160-Q149)/Q149) -> -0.3750628644
A172: ATD | B172: 0.006151861437 | C172: =+IF(C150=0,"",(C161-C150)/C150) -> 0.3184878217 | D172: -0.1101528642 | E172: 0.07547814549 | F172: =+IF(F150="","",(F161-F150)/F150) -> 0.4437478011 | G172: 0.01652722674 | H172: 0.2179810818 | I172: -0.05094708012 | J172: 0.01377629639 | K172: =+IF(K150="","",(K161-K150)/K150) -> -0.2490528333 | L172: =+IF(L150="","",(L161-L150)/L150) -> -0.3056062249 | M172: 0.2812142007 | N172: 0.09638251175 | O172: =+IF(O150="","",(O161-O150)/O150) -> 0.05397473708 | Q172: =+IF(Q150="","",(Q161-Q150)/Q150) -> 0.07547814549
A173: MTH | B173: -0.1819469036 | C173: =+IF(C151=0,"",(C162-C151)/C151) -> 0.3683890437 | D173: -0.2690162983 | E173: -0.375062867 | F173: =+(F162-F151)/F151 -> 0.4437478556 | G173: 0.01650719552 | H173: 0.2179812385 | I173: -0.05094710889 | J173: 0.01376975171 | K173: =+(K162-K151)/K151 -> -0.2490536349 | L173: -0.3056067563 | M173: 0.2812130374 | N173: 0.09638184232 | O173: =+(O162-O151)/O151 -> 0.05397361202 | Q173: =+(Q162-Q151)/Q151 -> -0.375062867
A174: MTD | B174: -0.06166759337 | C174: =+IF(C152=0,"",(C163-C152)/C152) -> 0.3777076395 | D174: -0.1704924307 | E174: 0.07547813493 | F174: =+(F163-F152)/F152 -> 0.4437519574 | G174: 0.01652328499 | H174: 0.2179814565 | I174: -0.0509471489 | J174: 0.01375971261 | K174: -0.24905475 | L174: -0.3056079973 | M174: 0.2812081386 | N174: 0.09637174947 | O174: 0.05397204694 | Q174: 0.07547813493
A175: BTH | B175: -0.1410168113 | C175: =+IF(C153=0,"",(C164-C153)/C153) -> 0.3870352863 | D175: -0.2614052659 | E175: -0.3750637617 | F175: =+(F164-F153)/F153 -> 0.4438408471 | G175: 0.01645131693 | H175: 0.2180358462 | I175: -0.05095713072 | J175: 0.01381215177 | K175: -0.2493326851 | L175: -0.3058603555 | M175: 0.2807409164 | N175: 0.0959842364 | O175: 0.05358195759 | Q175: -0.3750637617
A176: BTD | B176: -0.0355590269 | C176: =+IF(C154=0,"",(C165-C154)/C154) -> 0.3910055396 | D176: -0.1751329809 | E176: 0.07532998107 | F176: =+(F165-F154)/F154 -> 0.4435561123 | G176: 0.01638702256 | H176: 0.2178144745 | I176: -0.05107801024 | J176: 0.0139918507 | K176: -0.2491621592 | L176: -0.3052687878 | M176: 0.2817133212 | N176: 0.09621123333 | O176: 0.05382129522 | Q176: 0.07532998107
A177: BTS | B177: -0.007808497108 | C177: =+IF(C155=0,"",(C166-C155)/C155) -> 0.3135505047 | D177: -0.1261975719 | E177: 0.07552938614 | F177: =+(F166-F155)/F155 -> 0.4456068416 | G177: 0.01633798993 | H177: 0.218850516 | I177: -0.05098350657 | J177: 0.01594709465 | K177: -0.252957283 | L177: -0.3079826097 | M177: 0.2733873291 | N177: 0.09070581874 | O177: 0.04844769718 | Q177: 0.07552938614
A178: BTSH
A179: BTS Prepago | B179: 0.007657948533 | C179: 0.2173312305 | D179: -0.09499439415 | E179: 0.02167565792 | F179: 0.317215037 | G179: -0.02480436623 | H179: 0.1639905371 | I179: -0.09721753091 | J179: 0.01599963999 | K179: -0.2995566737 | L179: -0.4198321275 | M179: 0.7035729198 | N179: 0.01719498738 | O179: -0.006450356806 | Q179: 0.02167565792
A180: Total | B180: =+(B169-B158)/B158 -> -0.02896270098 | C180: =+(C169-C158)/C158 -> 0.3471683535 | D180: =+(D169-D158)/D158 -> -0.1519609908 | E180: =+(E169-E158)/E158 -> 0.07122915667 | F180: 0.4442676443 | G180: 0.01620671389 | H180: 0.2182289667 | I180: -0.0511101407 | J180: 0.01579121556 | K180: =+(K169-K158)/K158 -> -0.2510929365 | L180: =+(L169-L158)/L158 -> -0.306704176 | M180: 0.277838128 | N180: 0.09290380417 | O180: =+(O169-O158)/O158 -> 0.05110708271 | Q180: =+(Q169-Q158)/Q158 -> 0.07122915667
A182: Análisis de Tarifa Media | Q182: Parámetros para Análisis de Tarifa Media
A184: Selector de Costos para comparación de tarifas
A186: Cuadro Tarifario | B186: Tarifas | V186: Parámetros
A187: Categorías | B187: $/Cliente mes | C187: $/kWh | D187: $/kW mes | V187: Kep | W187: Kefp | X187: FCp | Y187: FCfp | Z187: Categorías
A188: =+PremisaCosto!A93 -> ATH | B188: =+E599+I599 -> 13.63392504 | C188: =+B599+D599+F599+H599+J599+L599+N599+P599+R599+T599+V599+X599 -> 0 | D188: =+C599+G599+M599+O599+Q599+S599+U599+W599+Y599 -> 0 | Z188: =+A188 -> ATH
A189: =+PremisaCosto!A94 -> ATH Punta | C189: 0.1761686868 | D189: 14.47965303 | V189: =+Parametros!B10 -> 0.2596080895 | X189: 0.5483146274 | Z189: ATH Punta
A190: =+PremisaCosto!A95 -> ATH Fuera de Punta Medio | C190: 0.09971527166 | D190: 5.858270255 | W190: =(1-V189)/2 -> 0.3701959553 | Y190: 0.5902255624 | Z190: =+A190 -> ATH Fuera de Punta Medio
A191: =+PremisaCosto!A96 -> ATH Fuera de Punta Bajo | C191: 0.05786857941 | D191: 5.858270255 | W191: =+W190 -> 0.3701959553 | Y191: 0.5902255624 | Z191: ATH Fuera de Punta Bajo
A192: =+PremisaCosto!A97 -> ATD | B192: =+E603+I603 -> 13.6339525 | C192: 0.1494124553 | D192: 9.701942023 | X192: 0.7146301783 | Z192: ATD
A193: =+PremisaCosto!A98 -> MTH | B193: =+E604+I604 -> 13.63347296 | C193: 0 | D193: 0 | M193: Para cambio de escala: | Z193: MTH
A194: =+PremisaCosto!A99 -> MTH Punta | C194: 0.2201623093 | D194: 17.80554455 | M194: kWh inicial | N194: 40 | V194: =+Parametros!B8 -> 0.2596080895 | X194: 0.5483146274 | Z194: MTH Punta
A195: =+PremisaCosto!A100 -> MTH Fuera de Punta Medio | C195: =+B606+D606+F606+H606+J606+L606+N606+P606+R606+T606+V606+X606 -> 0.1265634499 | D195: =+C606+G606+M606+O606+Q606+S606+U606+W606+Y606 -> 2.878882775 | W195: =(1-V194)/2 -> 0.3701959553 | Y195: 0.5902255624 | Z195: =+A195 -> MTH Fuera de Punta Medio
A196: =+PremisaCosto!A101 -> MTH Fuera de Punta Bajo | C196: =+B607+D607+F607+H607+J607+L607+N607+P607+R607+T607+V607+X607 -> 0.07207632352 | D196: =+C607+G607+M607+O607+Q607+S607+U607+W607+Y607 -> 2.878882775 | M196: kWh final | N196: 10000 | W196: =+W195 -> 0.3701959553 | Y196: 0.5902255624 | Z196: MTH Fuera de Punta Bajo
A197: =+PremisaCosto!A102 -> MTD | B197: =+E608+I608 -> 13.57285677 | C197: 0 | D197: 0 | Z197: MTD
A198: =+PremisaCosto!A103 -> MTD_1 (0-10,000) | C198: 0.1312134931 | D198: 20.72543132 | X198: 0.52 | Z198: MTD_1 (0-10,000)
A199: =+PremisaCosto!A114 -> MTD_2 (10,001-30,000) | C199: 0 | D199: 0 | X199: =+X198 -> 0.52 | Z199: MTD_2 (10,001-30,000)
A200: =+PremisaCosto!A125 -> MTD_3 (30,001-50,000) | C200: 0 | D200: 0 | X200: =+X199 -> 0.52 | Z200: MTD_3 (30,001-50,000)
A201: =+PremisaCosto!A136 -> MTD_4 (50,001-más) | C201: 0 | D201: 0 | X201: =+X200 -> 0.52 | Z201: MTD_4 (50,001-más)
A202: =+PremisaCosto!A147 -> MTD_5 (xxx) | C202: =+B613+D613+F613+H613+J613+L613+N613+P613+R613+T613+V613+X613 -> 0 | D202: 0 | Z202: MTD_5 (xxx)
A203: =+PremisaCosto!A158 -> BTH | B203: =+E614+I614 -> 5.387807071 | C203: =+B614+D614+F614+H614+J614+L614+N614+P614+R614+T614+V614+X614 -> 0 | D203: 0 | Z203: BTH
A204: =+PremisaCosto!A159 -> BTH Punta | C204: =+B615+D615+F615+H615+J615+L615+N615+P615+R615+T615+V615+X615 -> 0.2151600624 | D204: 18.64756745 | V204: =+Parametros!B6 -> 0.2397669985 | X204: 0.4841106429 | Z204: BTH Punta
A205: =+PremisaCosto!A160 -> BTH Fuera de Punta Medio | C205: =+B616+D616+F616+H616+J616+L616+N616+P616+R616+T616+V616+X616 -> 0.1203473332 | D205: =+C616+G616+M616+O616+Q616+S616+U616+W616+Y616 -> 2.551918487 | W205: =(1-V204)/2 -> 0.3801165007 | Y205: 0.4008565847 | Z205: =+A205 -> BTH Fuera de Punta Medio
A206: =+PremisaCosto!A161 -> BTH Fuera de Punta Bajo | C206: =+B617+D617+F617+H617+J617+L617+N617+P617+R617+T617+V617+X617 -> 0.07011898668 | D206: =+C617+G617+M617+O617+Q617+S617+U617+W617+Y617 -> 2.551918487 | W206: =+W205 -> 0.3801165007 | Y206: 0.4008565847 | Z206: BTH Fuera de Punta Bajo
A207: =+PremisaCosto!A162 -> BTD | B207: =+E618+I618 -> 5.378343647 | C207: 0 | D207: 0 | Z207: BTD
A208: =+PremisaCosto!A163 -> BTD_1 (0-10,000) | C208: 0.1229428621 | D208: 18.32450305 | X208: 0.52 | Z208: BTD_1 (0-10,000)
A209: =+PremisaCosto!A174 -> BTD_2 (10,001-30,000) | C209: 0.1282154971 | D209: 18.32450305 | X209: =+X208 -> 0.52 | Z209: BTD_2 (10,001-30,000)
A210: =+PremisaCosto!A185 -> BTD_3 (30,001-50,000) | C210: 0.1384140875 | D210: 18.32450305 | X210: =+X209 -> 0.52 | Z210: BTD_3 (30,001-50,000)
A211: =+PremisaCosto!A196 -> BTD_4 (50,001-más) | C211: 0.1484293064 | D211: 18.32450305 | X211: =+X210 -> 0.52 | Z211: BTD_4 (50,001-más)
A212: =+PremisaCosto!A207 -> BTD_5 (xxx) | C212: =+B623+D623+F623+H623+J623+L623+N623+P623+R623+T623+V623+X623 -> 0 | D212: 0 | Z212: BTD_5 (xxx)
A213: =+PremisaCosto!A218 -> BTS | B213: =+E624+I624 -> 2.998437224 | C213: 0 | D213: 0 | Z213: BTS
A214: =+PremisaCosto!A219 -> BTS_1 (0-300) | C214: 0.1472434251 | D214: 0 | M214: Para cambio de escala: | Z214: BTS_1 (0-300)
A215: =+PremisaCosto!A230 -> BTS_2 (301-750) | C215: 0.2048174536 | D215: 0 | M215: FC inicial | N215: 0.1 | Z215: BTS_2 (301-750)
A216: =+PremisaCosto!A241 -> BTS_3 (751-más) | C216: 0.2882483227 | D216: 0 | M216: FC final | N216: 0.6 | Z216: BTS_3 (751-más)
A217: =+PremisaCosto!A252 -> BTS_4 (xxx) | C217: 0 | D217: 0 | M217: kW fijo | N217: 25000 | Z217: BTS_4 (xxx)
A218: =+PremisaCosto!A263 -> BTS_5 (xxx) | C218: 0 | D218: 0 | Z218: BTS_5 (xxx)
A219: =+PremisaCosto!A278 -> BTSH | B219: =+E630+I630 -> 3.003099348 | C219: 0 | D219: 0 | Z219: BTSH
A220: =+PremisaCosto!A280 -> BTSH_1 Punta | C220: 0.3581639044 | D220: 0 | V220: =+Parametros!B12 -> 0.2631218194 | Z220: BTSH_1 Punta
A221: =+PremisaCosto!A281 -> BTSH_1 Fuera de Punta Medio | C221: =+B632+D632+F632+H632+J632+L632+N632+P632+R632+T632+V632+X632 -> 0.1634277022 | D221: =+C632+G632+M632+O632+Q632+S632+U632+W632+Y632 -> 0 | W221: =(1-V220)/2 -> 0.3684390903 | Z221: BTSH_1 Fuera de Punta Medio
A222: =+PremisaCosto!A282 -> BTSH_1 Fuera de Punta Bajo | C222: 0.1252199664 | D222: 0 | W222: =+W221 -> 0.3684390903 | Z222: BTSH_1 Fuera de Punta Bajo
A223: =+PremisaCosto!A284 -> BTSH_2 Punta | B223: =+E634+I634 -> 0 | C223: 0 | D223: 0 | Z223: BTSH_2 Punta
A224: =+PremisaCosto!A285 -> BTSH_2 Fuera de Punta Medio | B224: 0 | C224: 0 | D224: 0 | Z224: BTSH_2 Fuera de Punta Medio
A225: =+PremisaCosto!A286 -> BTSH_2 Fuera de Punta Bajo | B225: 0 | C225: 0 | D225: 0 | Z225: BTSH_2 Fuera de Punta Bajo
A226: =+PremisaCosto!A288 -> BTSH_3 Punta | B226: 0 | C226: 0 | D226: 0 | Z226: BTSH_3 Punta
A227: =+PremisaCosto!A289 -> BTSH_3 Fuera de Punta Medio | B227: 0 | C227: 0 | D227: 0 | Z227: BTSH_3 Fuera de Punta Medio
A228: =+PremisaCosto!A290 -> BTSH_3 Fuera de Punta Bajo | B228: 0 | C228: 0 | D228: 0 | Z228: BTSH_3 Fuera de Punta Bajo
... 453 more rows

Sheet Resumen
A1: =+"Resumen y Controles"&" - "&PremisaCosto!A2 -> Resumen y Controles - EDEMET
R2: Recuperación costos 2022/2023 | S2: Cuatro años = 1
R3: 2 | S3: Tres años = 2
C4: Costos | H4: Ingresos | M4: VP - IMP | P4: Checks | R4: Ingresos año 1 nueva tarifa | S4: Ingresos año 1 tarifa vigente | T4: Ingresos a recuperar en tres años
A5: Resumen siguiendo Regimen Tarifario | B5: u.m. | C5: =+PremisaCosto!F89 -> 2022/2023 | D5: =+PremisaCosto!G89 -> 2023/2024 | E5: =+PremisaCosto!H89 -> 2024/2025 | F5: =+PremisaCosto!I89 -> 2025/2026 | H5: =+C5 -> 2022/2023 | I5: =+D5 -> 2023/2024 | J5: =+E5 -> 2024/2025 | K5: =+F5 -> 2025/2026 | M5: Permitido | N5: Ingresos
A6: Sistema de Distribucion | B6: $ | C6: =+(Costos!E35) -> 165405635.2 | D6: =+(Costos!F35) -> 178009628.3 | E6: =+(Costos!G35) -> 191294077.7 | F6: =+(Costos!H35) -> 196738119.2 | H6: =+CD!Z10+CD!AE10 -> 128486664.7 | I6: =+CD!AA10+CD!AF10 -> 195951605.2 | J6: =+CD!AB10+CD!AG10 -> 202999516.4 | K6: =+CD!AC10+CD!AH10 -> 210312333.9 | M6: =+SUMPRODUCT(C6:F6,PremisaCosto!$F$84:$I$84) -> 617356695.3 | N6: =+SUMPRODUCT(H6:K6,PremisaCosto!$F$84:$I$84) -> 617356695.3 | P6: =+IF(ROUND(M6-N6,0)=0,"OK","Error") -> OK | Q6: =+N6-M6 -> 0 | R6: =CD!Z4 -> 172861915.5 | S6: =CD!AA4 -> 128486664.7 | T6: =+R6-S6 -> 44375250.84
A7: Conexión | B7: $ | C7: =+Costos!E39 -> 221319.544 | D7: =+Costos!F39 -> 259263.5469 | E7: =+Costos!G39 -> 237349.8336 | F7: =+Costos!H39 -> 226991.6507 | H7: =+CX!Z10+CX!AE10 -> 211623.6096 | I7: =+CX!AA10+CX!AF10 -> 263356.3378 | J7: =+CX!AB10+CX!AG10 -> 241090.1037 | K7: =+CX!AC10+CX!AH10 -> 230564.9446 | M7: =+SUMPRODUCT(C7:F7,PremisaCosto!$F$84:$I$84) -> 802544.8493 | N7: =+SUMPRODUCT(H7:K7,PremisaCosto!$F$84:$I$84) -> 802544.8493 | P7: =+IF(ROUND(M7-N7,0)=0,"OK","Error") -> OK | Q7: 0 | R7: =CX!Z4 -> 221319.7307 | S7: =CX!AA4 -> 211623.6096 | T7: =+R7-S7 -> 9696.121127
A8: Comercializacion Fijo | B8: $ | C8: =+Costos!E41 -> 20404109.86 | D8: =+Costos!F41 -> 21111323.32 | E8: =+Costos!G41 -> 21752389.35 | F8: =+Costos!H41 -> 22361890.84 | H8: =+CCOMF!Z10+CCOMF!AE10 -> 19510335 | I8: =+CCOMF!AA10+CCOMF!AF10 -> 21453504.22 | J8: =+CCOMF!AB10+CCOMF!AG10 -> 22104964.77 | K8: =+CCOMF!AC10+CCOMF!AH10 -> 22724338.89 | M8: =+SUMPRODUCT(C8:F8,PremisaCosto!$F$84:$I$84) -> 72491508.57 | N8: =+SUMPRODUCT(H8:K8,PremisaCosto!$F$84:$I$84) -> 72491508.57 | P8: OK | Q8: =+N8-M8 -> 0 | R8: =CCOMF!Z4 -> 20404092.54 | S8: =CCOMF!AA4 -> 19510335 | T8: =+R8-S8 -> 893757.5402
A9: Comercializacion Variable | B9: $ | C9: =+Costos!E42 -> 32025918.47 | D9: =+Costos!F42 -> 32350406.22 | E9: =+Costos!G42 -> 33314938.49 | F9: =+Costos!H42 -> 34121562.07 | H9: =+CCOMV!Z10+CCOMV!AE10 -> 26054646.42 | I9: =+CCOMV!AA10+CCOMV!AF10 -> 34383503.16 | J9: =+CCOMV!AB10+CCOMV!AG10 -> 35618297.78 | K9: =+CCOMV!AC10+CCOMV!AH10 -> 36899322.56 | M9: =+SUMPRODUCT(C9:F9,PremisaCosto!$F$84:$I$84) -> 111689889 | N9: =+SUMPRODUCT(H9:K9,PremisaCosto!$F$84:$I$84) -> 111689889 | P9: OK | Q9: =+N9-M9 -> 0 | R9: =CCOMV!Z4 -> 31276063.53 | S9: =CCOMV!AA4 -> 26054646.42 | T9: =+R9-S9 -> 5221417.111
A10: Servicio Alumbrado Publico | B10: $ | C10: =+Costos!E43 -> 5496400.97 | D10: =+Costos!F43 -> 5834845.514 | E10: =+Costos!G43 -> 6260719.673 | F10: =+Costos!H43 -> 6653538.653 | H10: =+CSERAP!Z10+CSERAP!AE10 -> 5903291.172 | I10: =+CSERAP!AA10+CSERAP!AF10 -> 5865221.588 | J10: =+CSERAP!AB10+CSERAP!AG10 -> 6075948.307 | K10: =+CSERAP!AC10+CSERAP!AH10 -> 6294573.032 | M10: =+SUMPRODUCT(C10:F10,PremisaCosto!$F$84:$I$84) -> 20452384.06 | N10: =+SUMPRODUCT(H10:K10,PremisaCosto!$F$84:$I$84) -> 20452384.06 | P10: OK | Q10: =+N10-M10 -> 0 | R10: =CSERAP!Z4 -> 5727089.403 | S10: =CSERAP!AA4 -> 5903291.172 | T10: =+R10-S10 -> -176201.7686
A11: Consumo Alumbrado Publico | B11: $ | C11: =+Costos!E27 -> 7276574.25 | D11: =+Costos!F27 -> 7537102.336 | E11: =+Costos!G27 -> 7806958.32 | F11: =+Costos!H27 -> 8086476.041 | H11: =+CCONAP!Z10+CCONAP!AE10 -> 7276574.25 | I11: =+CCONAP!AA10+CCONAP!AF10 -> 7537254.388 | J11: =+CCONAP!AB10+CCONAP!AG10 -> 7808016.368 | K11: =+CCONAP!AC10+CCONAP!AH10 -> 8088922.937 | M11: =+SUMPRODUCT(C11:F11,PremisaCosto!$F$84:$I$84) -> 25982876.73 | N11: =+SUMPRODUCT(H11:K11,PremisaCosto!$F$84:$I$84) -> 25985691.56 | P11: =+IF(ROUND(C11-H11,0)=0,"OK","Error") -> OK | Q11: =+H11-C11 -> 0 | T11: =+SUM(T6:T10) -> 50323919.84
A12: Generacion Energia | B12: $ | C12: =+Costos!E22+Costos!E23 -> 289782106.1 | D12: =+Costos!F22+Costos!F23 -> 300180902 | E12: =+Costos!G22+Costos!G23 -> 310957513.9 | F12: =+Costos!H22+Costos!H23 -> 322123126.4 | H12: =+CENEGEN!AE10+CENEGEN!Z10 -> 289782106.1 | I12: =+CENEGEN!AF10+CENEGEN!AA10 -> 300505086.8 | J12: =+CENEGEN!AG10+CENEGEN!AB10 -> 311803788.7 | K12: =+CENEGEN!AH10+CENEGEN!AC10 -> 323626649.7 | M12: =+SUMPRODUCT(C12:F12,PremisaCosto!$F$84:$I$84) -> 1034870663 | N12: =+SUMPRODUCT(H12:K12,PremisaCosto!$F$84:$I$84) -> 1036962777 | P12: =+IF(ROUND(C12-H12,0)=0,"OK","Error") -> OK | Q12: 0
A13: Perdidas Energia Distribucion | B13: $ | C13: =+Costos!E11+Costos!E12 -> 30520630.86 | D13: =+Costos!F11+Costos!F12 -> 52524117.4 | E13: =+Costos!G11+Costos!G12 -> 54231013 | F13: =+Costos!H11+Costos!H12 -> 56000806.25 | H13: =+CPERDE!AY10+CPERDE!AT10 -> 30520630.86 | I13: =+CPERDE!AZ10+CPERDE!AU10 -> 52323530.41 | J13: =+CPERDE!BA10+CPERDE!AV10 -> 54014865.7 | K13: =+CPERDE!BB10+CPERDE!AW10 -> 55768525.27 | M13: =+SUMPRODUCT(C13:F13,PremisaCosto!$F$84:$I$84) -> 161293593.7 | N13: =+SUMPRODUCT(H13:K13,PremisaCosto!$F$84:$I$84) -> 160768413.9 | P13: =+IF(ROUND(C13-H13,0)=0,"OK","Error") -> OK | Q13: 0
A14: Generacion Potencia | B14: $ | C14: =+Costos!E24 -> 160190080 | D14: =+Costos!F24 -> 166015250.4 | E14: =+Costos!G24 -> 172069967.5 | F14: =+Costos!H24 -> 178353528.4 | H14: =+CPOTGEN!AE10+CPOTGEN!Z10 -> 160190080 | I14: =+CPOTGEN!AF10+CPOTGEN!AA10 -> 165943008.2 | J14: =+CPOTGEN!AG10+CPOTGEN!AB10 -> 171961994.4 | K14: =+CPOTGEN!AH10+CPOTGEN!AC10 -> 178234485.8 | M14: =+SUMPRODUCT(C14:F14,PremisaCosto!$F$84:$I$84) -> 572492906.2 | N14: =+SUMPRODUCT(H14:K14,PremisaCosto!$F$84:$I$84) -> 572252975.3 | P14: =+IF(ROUND(C14-H14,0)=0,"OK","Error") -> OK | Q14: 0
A15: Perdidas Potencia Distribucion | B15: $ | C15: =+Costos!E13 -> 0 | D15: =+Costos!F13 -> 0 | E15: =+Costos!G13 -> 0 | F15: =+Costos!H13 -> 0 | H15: =+CPERDP!AY10+CPERDP!AT10 -> 0 | I15: =+CPERDP!AZ10+CPERDP!AU10 -> 0 | J15: =+CPERDP!BA10+CPERDP!AV10 -> 0 | K15: =+CPERDP!BB10+CPERDP!AW10 -> 0 | M15: =+SUMPRODUCT(C15:F15,PremisaCosto!$F$84:$I$84) -> 0 | N15: =+SUMPRODUCT(H15:K15,PremisaCosto!$F$84:$I$84) -> 0 | P15: =+IF(ROUND(C15-H15,0)=0,"OK","Error") -> OK | Q15: 0
A16: Sistema Transmision | B16: $ | C16: =+Costos!E18 -> 43455474.72 | D16: =+Costos!F18 -> 41858274.53 | E16: =+Costos!G18 -> 41857997 | F16: =+Costos!H18 -> 41857680.93 | H16: =+CPT!Z10+CPT!AE10 -> 43455474.72 | I16: =+CPT!AA10+CPT!AF10 -> 44992205.94 | J16: =+CPT!AB10+CPT!AG10 -> 46584272.66 | K16: =+CPT!AC10+CPT!AH10 -> 48233773.85 | M16: =+SUMPRODUCT(C16:F16,PremisaCosto!$F$84:$I$84) -> 143731567.7 | N16: =+SUMPRODUCT(H16:K16,PremisaCosto!$F$84:$I$84) -> 155077215.7 | P16: =+IF(ROUND(C16-H16,0)=0,"OK","Error") -> OK | Q16: 0
A17: Perdida Energia Transmision | B17: $ | C17: =+Costos!E20 -> 10868989.51 | D17: =+Costos!F20 -> 10473974 | E17: =+Costos!G20 -> 10474030.87 | F17: =+Costos!H20 -> 10474087.63 | H17: =+CPET!Z10+CPET!AE10 -> 10868989.51 | I17: =+CPET!AA10+CPET!AF10 -> 11258315.3 | J17: =+CPET!AB10+CPET!AG10 -> 11662688.64 | K17: =+CPET!AC10+CPET!AH10 -> 12082207.06 | M17: =+SUMPRODUCT(C17:F17,PremisaCosto!$F$84:$I$84) -> 35961029.84 | N17: =+SUMPRODUCT(H17:K17,PremisaCosto!$F$84:$I$84) -> 38814447.64 | P17: OK | Q17: 0
C19: Costos | H19: Ingresos | M19: VP - IMP sin Pérdidas | P19: Checks
A20: Resumen Económico | B20: u.m. | C20: =+C5 -> 2022/2023 | D20: =+D5 -> 2023/2024 | E20: =+E5 -> 2024/2025 | F20: =+F5 -> 2025/2026 | H20: =+H5 -> 2022/2023 | I20: =+I5 -> 2023/2024 | J20: =+J5 -> 2024/2025 | K20: =+K5 -> 2025/2026 | M20: Permitido | N20: Ingresos
A21: Distribución | B21: $ | C21: =+SUM(C22:C24) -> 223553384.1 | D21: =+SUM(D22:D24) -> 237565466.9 | E21: =+SUM(E22:E24) -> 252859475 | F21: =+SUM(F22:F24) -> 260102102.4 | H21: =+SUM(H22:H24) -> 180166560.9 | I21: =+SUM(I22:I24) -> 257917190.5 | J21: =+SUM(J22:J24) -> 267039817.3 | K21: =+SUM(K22:K24) -> 276461133.4 | M21: =+SUM(M22:M24) -> 822793021.8 | N21: =+SUM(N22:N24) -> 822793021.8 | P21: =+IF(ROUND(M21-N21,0)=0,"OK","Error") -> OK
A22: Sistema de Distribución | B22: $ | C22: =+C6+C7 -> 165626954.8 | D22: =+D6+D7 -> 178268891.9 | E22: =+E6+E7 -> 191531427.5 | F22: =+F6+F7 -> 196965110.8 | H22: =+H6+H7 -> 128698288.3 | I22: =+I6+I7 -> 196214961.5 | J22: =+J6+J7 -> 203240606.5 | K22: =+K6+K7 -> 210542898.9 | M22: =+M6+M7 -> 618159240.2 | N22: =+N6+N7 -> 618159240.2 | P22: =+IF(ROUND(M22-N22,0)=0,"OK","Error") -> OK
A23: Comercialización | B23: $ | C23: =+C8+C9 -> 52430028.33 | D23: =+D8+D9 -> 53461729.54 | E23: =+E8+E9 -> 55067327.83 | F23: =+F8+F9 -> 56483452.91 | H23: =+H8+H9 -> 45564981.42 | I23: =+I8+I9 -> 55837007.39 | J23: =+J8+J9 -> 57723262.54 | K23: =+K8+K9 -> 59623661.45 | M23: =+M8+M9 -> 184181397.5 | N23: =+N8+N9 -> 184181397.5 | P23: =+IF(ROUND(M23-N23,0)=0,"OK","Error") -> OK
A24: Alumbrado Público | B24: $ | C24: =+C10 -> 5496400.97 | D24: =+D10 -> 5834845.514 | E24: =+E10 -> 6260719.673 | F24: =+F10 -> 6653538.653 | H24: =+H10 -> 5903291.172 | I24: =+I10 -> 5865221.588 | J24: =+J10 -> 6075948.307 | K24: =+K10 -> 6294573.032 | M24: =+M10 -> 20452384.06 | N24: =+N10 -> 20452384.06 | P24: =+IF(ROUND(M24-N24,0)=0,"OK","Error") -> OK
A25: Transmisión | B25: $ | C25: =+C16+C17 -> 54324464.23 | D25: =+D16+D17 -> 52332248.53 | E25: =+E16+E17 -> 52332027.87 | F25: =+F16+F17 -> 52331768.56 | H25: =+H16+H17 -> 54324464.23 | I25: =+I16+I17 -> 56250521.24 | J25: =+J16+J17 -> 58246961.31 | K25: =+K16+K17 -> 60315980.92
A26: Generación | B26: $ | C26: =+C11+C12+C13+C14+C15 -> 487769391.2 | D26: =+D11+D12+D13+D14+D15 -> 526257372.2 | E26: =+E11+E12+E13+E14+E15 -> 545065452.7 | F26: =+F11+F12+F13+F14+F15 -> 564563937.1 | H26: =+H11+H12+H13+H14+H15 -> 487769391.2 | I26: =+I11+I12+I13+I14+I15 -> 526308879.8 | J26: =+J11+J12+J13+J14+J15 -> 545588665.1 | K26: =+K11+K12+K13+K14+K15 -> 565718583.7
C28: Costos | H28: Ingresos | M28: VP - IMP de Pérdidas | P28: Check
A29: Cierre Pérdidas Permitidas | B29: u.m. | C29: =+PremisaCosto!F89 -> 2022/2023 | D29: =+PremisaCosto!G89 -> 2023/2024 | E29: =+PremisaCosto!H89 -> 2024/2025 | F29: =+PremisaCosto!I89 -> 2025/2026 | H29: =+C29 -> 2022/2023 | I29: =+D29 -> 2023/2024 | J29: =+E29 -> 2024/2025 | K29: =+F29 -> 2025/2026 | M29: Permitido | N29: Ingresos
A30: Pérdidas | B30: $ | C30: =+PremisaCosto!F33 -> 59392438.49 | D30: =+PremisaCosto!G33 -> 58884544.66 | E30: =+PremisaCosto!H33 -> 66057844.99 | F30: =+PremisaCosto!I33 -> 70068069.3 | H30: =+H13+H15 -> 30520630.86 | I30: =+I13+I15 -> 52323530.41 | J30: =+J13+J15 -> 54014865.7 | K30: =+K13+K15 -> 55768525.27 | M30: =+SUMPRODUCT(C30:F30,PremisaCosto!$F$84:$I$84) -> 214675145.5 | N30: =+SUMPRODUCT(H30:K30,PremisaCosto!$F$84:$I$84) -> 160768413.9 | P30: =+IF(ROUND(M30-N30,)=0,"OK",IF(P32=1,"Abtsmo Proy", "Error")) -> Abtsmo Proy
P32: 1

Sheet Pliegos
A1: Pliegos Tarifarios: Vigente vs Nuevo
B3: Componente | C3: Ene-Jun/2023 | D3: Nuevo | E3: Diff
A4: BTS (0-300)
A5: Comercialización | C5: 0
A6: - Fijo (Primeros 10 kWh) | B6: BTS1CCCOF | C6: 2.95 | D6: =+SUMIF($F$463:$F$1916,B6,$G$463:$G$1916) -> 2.998437224 | E6: =+IF(C6=0,"",D6/C6-1) -> 0.01641939812
A7: - Energía (Siguientes kWh) | B7: BTS1EtCCOV | C7: 0.00696 | D7: 0.008483167854 | E7: =+IF(C7=0,"",D7/C7-1) -> 0.218845956
A8: Distribución | C8: 0 | D8: 0
A9: - Energía | B9: BTS1EtCD | C9: 0.03302 | D9: 0.04732837273 | E9: 0.4333244315
A10: - Pérdidas Energía | B10: BTS1EtCPEP | C10: 0.01209 | D10: 0.007760516735 | E10: -0.3581044884
A11: - Pérdidas Potencia | B11: BTS1EtCPP | C11: 0 | D11: 0
A12: - Cargos por Conexión | B12: BTS1CxCX | C12: 11.13 | D12: 11.30813094 | E12: 0.01600457668
A13: Alumbrado Público | C13: 0 | D13: 0
A14: - Sistema | B14: BTS1EtCSAP | C14: 0.00153 | D14: 0.001439658547 | E14: -0.05904670151
A15: - Consumo de energía | B15: BTS1EtCCAP | C15: 0.00248 | D15: 0.00185335444 | E15: -0.2526796614
A16: Transmisión | C16: 0 | D16: 0
A17: - Energía | B17: BTS1EtCUCOST | C17: 0.01197 | D17: 0.01297604865 | E17: 0.08404750661
A18: - Pérdidas de Energía en Transmisión | B18: BTS1EtCPST | C18: 0.00266 | D18: 0.002772862254 | E18: 0.04242941865
A19: - Capacidad Transmision costo pérdidas | C19: 0 | D19: 0
A20: Generación | C20: 0 | D20: 0
A21: - Energía | B21: BTS1EtCEGP | C21: 0.05819630312 | D21: 0.03116832647 | E21: -0.4644277247
A22: - Potencia Energizada | B22: BTS1EtCPG | C22: 0.02250369688 | D22: 0.03346111746 | E22: 0.4869164667
A23: BTS (301-750)
A24: Comercialización | B24: 0 | C24: 0 | D24: =+SUMIF($F$463:$F$1916,B24,$G$463:$G$1916) -> 0
A25: - Fijo (Primeros 10 kWh) | B25: BTS2CCCOF | C25: 2.95 | D25: 2.998437224 | E25: 0.01641939812
A26: - Energía (Siguientes kWh) | B26: BTS2EtCCOV | C26: 0.00696 | D26: 0.008483167854 | E26: 0.218845956
A27: Distribución | C27: 0 | D27: 0
A28: - Energía | B28: BTS2EtCD | C28: 0.03302 | D28: 0.04732837273 | E28: 0.4333244315
A29: - Pérdidas Energía | B29: BTS2EtCPEP | C29: 0.01209 | D29: 0.007760516735 | E29: -0.3581044884
A30: - Pérdidas Potencia | B30: BTS2EtCPP | C30: 0 | D30: 0
A31: - Cargos por Conexión | B31: BTS2CxCX | C31: 11.13 | D31: 11.30813094 | E31: 0.01600457668
A32: Alumbrado Público | C32: 0 | D32: 0
A33: - Sistema | B33: BTS2EtCSAP | C33: 0.00153 | D33: 0.001439658547 | E33: -0.05904670151
A34: - Consumo de energía | B34: BTS2EtCCAP | C34: 0.00248 | D34: 0.00185335444 | E34: -0.2526796614
A35: Transmisión | C35: 0 | D35: 0
A36: - Energía | B36: BTS2EtCUCOST | C36: 0.01197 | D36: 0.01297604865 | E36: 0.08404750661
A37: - Pérdidas de Energía en Transmisión | B37: BTS2EtCPST | C37: 0.00266 | D37: 0.002772862254 | E37: 0.04242941865
A38: Generación | C38: 0 | D38: 0
A39: - Energía | B39: BTS2EtCEGP | C39: 0.09327994806 | D39: 0.06857031824 | E39: -0.2648975512
A40: - Potencia Energizada | B40: BTS2EtCPG | C40: 0.03607005194 | D40: 0.05363315419 | E40: 0.4869164667
A41: BTS (750-más)
A42: Comercialización | B42: 0 | C42: 0 | D42: =+SUMIF($F$463:$F$1916,B42,$G$463:$G$1916) -> 0
A43: - Fijo (Primeros 10 kWh) | B43: BTS3CCCOF | C43: 2.95 | D43: 2.998437224 | E43: 0.01641939812
A44: - Energía (Siguientes kWh) | B44: BTS3EtCCOV | C44: 0.00696 | D44: 0.008483167854 | E44: 0.218845956
A45: Distribución | C45: 0 | D45: 0
A46: - Energía | B46: BTS3EtCD | C46: 0.03302 | D46: 0.04732837273 | E46: 0.4333244315
A47: - Pérdidas Energía | B47: BTS3EtCPEP | C47: 0.01209 | D47: 0.007760516735 | E47: -0.3581044884
A48: - Pérdidas Potencia | B48: BTS3EtCPP | C48: 0 | D48: 0
A49: - Cargos por Conexión | B49: BTS3CxCX | C49: 11.13 | D49: 11.30813094 | E49: 0.01600457668
A50: Alumbrado Público | C50: 0 | D50: 0
A51: - Sistema | B51: BTS3EtCSAP | C51: 0.00153 | D51: 0.001439658547 | E51: -0.05904670151
A52: - Consumo de energía | B52: BTS3EtCCAP | C52: 0.00248 | D52: 0.00185335444 | E52: -0.2526796614
A53: Transmisión | C53: 0 | D53: 0
A54: - Energía | B54: BTS3EtCUCOST | C54: 0.01197 | D54: 0.01297604865 | E54: 0.08404750661
A55: - Pérdidas de Energía en Transmisión | B55: BTS3EtCPST | C55: 0.00266 | D55: 0.002772862254 | E55: 0.04242941865
A56: Generación | C56: 0 | D56: 0
A57: - Energía | B57: BTS3EtCEGP | C57: 0.1191257412 | D57: 0.1371406365 | E57: 0.1512258824
A58: - Potencia Energizada | B58: BTS3EtCPG | C58: 0.04606425884 | D58: 0.06849370499 | E58: 0.4869164667
A59: BTD (0-10,000)
A60: Comercialización | C60: 0 | D60: =+SUMIF($F$463:$F$1916,B60,$G$463:$G$1916) -> 0
A61: - Fijo | B61: BTD1CCCOF | C61: 5.29 | D61: 5.378343647 | E61: 0.01670012233
A62: - Energía | B62: BTD1EtCCOV | C62: 0.0065 | D62: 0.007916884523 | E62: 0.2179822343
A63: Distribución | C63: 0 | D63: 0
A64: - Demanda Máxima | B64: BTD1PpCD | C64: 10.71 | D64: 15.4606441 | E64: 0.4435708772
A65: - Pérdidas Energía en Distribución | B65: BTD1EtCPEP | C65: 0.0113 | D65: 0.00672925148 | E65: -0.4044910195
A66: - Pérdidas Potencia en Distribución | B66: BTD1PpCPEP | C66: 0 | D66: 0.169775936
A67: - Cargos por Conexión | B67: BTD1CxCX | C67: 111.24 | D67: 112.7855792 | E67: 0.01389409587
A68: Alumbrado Público | C68: 0 | D68: 0
A69: - Sistema | B69: BTD1EtCSAP | C69: 0.00143 | D69: 0.001357145373 | E69: -0.05094729164
A70: - Consumo de energía | B70: BTD1EtCCAP | C70: 0.00233 | D70: 0.001741088122 | E70: -0.2527518792
A71: Transmisión | C71: 0 | D71: 0 | E71: =+IF(C71=0,"",D71/C71-1) -> 
A72: - Demanda Máxima | B72: BTD1PpCUCOST | C72: 0.66 | D72: 1.272591183 | E72: 0.9281684594
A73: - Energía | B73: BTD1EtCUCOST | C73: 0.00673 | D73: 0.004386131973 | E73: -0.3482716236
A74: - Pérdidas de Energía en Transmisión | B74: BTD1EtCPST | C74: 0.00247 | D74: 0.00259643105 | E74: 0.05118666002
A75: - Capacidad Transmision costo pérdidas | B75: BTD1PpCPST | C75: 0 | D75: 0
A76: Generación | C76: 0 | D76: 0
A77: - Demanda Máxima | B77: BTD1PpCPG | C77: 1.22 | D77: 1.421491833 | E77: 0.1651572402
A78: - Energía | B78: BTD1EtCEGP | C78: 0.10374 | D78: 0.0718970603 | E78: -0.3069494862
A79: - Potencia Energizada | B79: BTD1EtCPG | C79: 0.02196 | D79: 0.02631886929 | E79: 0.1984913157
A80: BTD (10,001-30,000)
A81: Comercialización | C81: 0 | D81: =+SUMIF($F$463:$F$1916,B81,$G$463:$G$1916) -> 0
A82: - Fijo | B82: BTD2CCCOF | C82: 5.29 | D82: 5.378343647 | E82: 0.01670012233
A83: - Energía | B83: BTD2EtCCOV | C83: 0.0065 | D83: 0.007916884523 | E83: 0.2179822343
A84: Distribución | C84: 0 | D84: 0
A85: - Demanda Máxima | B85: BTD2PpCD | C85: 10.71 | D85: 15.4606441 | E85: 0.4435708772
A86: - Pérdidas Energía en Distribución | B86: BTD2EtCPEP | C86: 0.0113 | D86: 0.00672925148 | E86: -0.4044910195
A87: - Pérdidas Potencia en Distribución | B87: BTD2PpCPEP | C87: 0 | D87: 0.169775936
A88: - Cargos por Conexión | B88: BTD2CxCX | C88: 111.24 | D88: 112.7855792 | E88: 0.01389409587
A89: Alumbrado Público | C89: 0 | D89: 0
A90: - Sistema | B90: BTD2EtCSAP | C90: 0.00143 | D90: 0.001357145373 | E90: -0.05094729164
A91: - Consumo de energía | B91: BTD2EtCCAP | C91: 0.00233 | D91: 0.001741088122 | E91: -0.2527518792
A92: Transmisión | C92: 0 | D92: 0
A93: - Demanda Máxima | B93: BTD2PpCUCOST | C93: 0.66 | D93: 1.272591183 | E93: 0.9281684594
A94: - Energía | B94: BTD2EtCUCOST | C94: 0.00673 | D94: 0.004386131973 | E94: -0.3482716236
A95: - Pérdidas de Energía en Transmisión | B95: BTD2EtCPST | C95: 0.00247 | D95: 0.00259643105 | E95: 0.05118666002
A96: Generación | C96: 0 | D96: 0
A97: - Demanda Máxima | B97: BTD2PpCPG | C97: 1.22 | D97: 1.421491833 | E97: 0.1651572402
A98: - Energía | B98: BTD2EtCEGP | C98: 0.10929 | D98: 0.07574349066 | E98: -0.3069494862
A99: - Potencia Energizada | B99: BTD2EtCPG | C99: 0.02315 | D99: 0.02774507396 | E99: 0.1984913157
A100: BTD (30,001-50,000)
A101: Comercialización | C101: 0 | D101: =+SUMIF($F$463:$F$1916,B101,$G$463:$G$1916) -> 0
A102: - Fijo | B102: BTD3CCCOF | C102: 5.29 | D102: 5.378343647 | E102: 0.01670012233
A103: - Energía | B103: BTD3EtCCOV | C103: 0.0065 | D103: 0.007916884523 | E103: 0.2179822343
A104: Distribución | C104: 0 | D104: 0
A105: - Demanda Máxima | B105: BTD3PpCD | C105: 10.71 | D105: 15.4606441 | E105: 0.4435708772
A106: - Pérdidas Energía en Distribución | B106: BTD3EtCPEP | C106: 0.0113 | D106: 0.00672925148 | E106: -0.4044910195
A107: - Pérdidas Potencia en Distribución | B107: BTD3PpCPEP | C107: 0 | D107: 0.169775936
A108: - Cargos por Conexión | B108: BTD3CxCX | C108: 111.24 | D108: 112.7855792 | E108: 0.01389409587
A109: Alumbrado Público | C109: 0 | D109: 0
A110: - Sistema | B110: BTD3EtCSAP | C110: 0.00143 | D110: 0.001357145373 | E110: -0.05094729164
A111: - Consumo de energía | B111: BTD3EtCCAP | C111: 0.00233 | D111: 0.001741088122 | E111: -0.2527518792
A112: Transmisión | C112: 0 | D112: 0
A113: - Demanda Máxima | B113: BTD3PpCUCOST | C113: 0.66 | D113: 1.272591183 | E113: 0.9281684594
A114: - Energía | B114: BTD3EtCUCOST | C114: 0.00673 | D114: 0.004386131973 | E114: -0.3482716236
A115: - Pérdidas de Energía en Transmisión | B115: BTD3EtCPST | C115: 0.00247 | D115: 0.00259643105 | E115: 0.05118666002
A116: Generación | C116: 0 | D116: 0
A117: - Demanda Máxima | B117: BTD3PpCPG | C117: 1.22 | D117: 1.421491833 | E117: 0.1651572402
A118: - Energía | B118: BTD3EtCEGP | C118: 0.12008 | D118: 0.0832215057 | E118: -0.3069494862
A119: - Potencia Energizada | B119: BTD3EtCPG | C119: 0.02542 | D119: 0.03046564924 | E119: 0.1984913157
A120: BTD (50,001-más)
A121: Comercialización | C121: 0 | D121: =+SUMIF($F$463:$F$1916,B121,$G$463:$G$1916) -> 0
A122: - Fijo | B122: BTD4CCCOF | C122: 5.29 | D122: 5.378343647 | E122: 0.01670012233
A123: - Energía | B123: BTD4EtCCOV | C123: 0.0065 | D123: 0.007916884523 | E123: 0.2179822343
A124: Distribución | C124: 0 | D124: 0
A125: - Demanda Máxima | B125: BTD4PpCD | C125: 10.71 | D125: 15.4606441 | E125: 0.4435708772
A126: - Pérdidas Energía en Distribución | B126: BTD4EtCPEP | C126: 0.0113 | D126: 0.00672925148 | E126: -0.4044910195
A127: - Pérdidas Potencia en Distribución | B127: BTD4PpCPEP | C127: 0 | D127: 0.169775936
A128: - Cargos por Conexión | B128: BTD4CxCX | C128: 111.24 | D128: 112.7855792 | E128: 0.01389409587
A129: Alumbrado Público | C129: 0 | D129: 0
A130: - Sistema | B130: BTD4EtCSAP | C130: 0.00143 | D130: 0.001357145373 | E130: -0.05094729164
A131: - Consumo de energía | B131: BTD4EtCCAP | C131: 0.00233 | D131: 0.001741088122 | E131: -0.2527518792
A132: Transmisión | C132: 0 | D132: 0
A133: - Demanda Máxima | B133: BTD4PpCUCOST | C133: 0.66 | D133: 1.272591183 | E133: 0.9281684594
A134: - Energía | B134: BTD4EtCUCOST | C134: 0.00673 | D134: 0.004386131973 | E134: -0.3482716236
A135: - Pérdidas de Energía en Transmisión | B135: BTD4EtCPST | C135: 0.00247 | D135: 0.00259643105 | E135: =+IF(C135=0,"",D135/C135-1) -> 0.05118666002
A136: Generación | C136: 0 | D136: 0
A137: - Demanda Máxima | B137: BTD4PpCPG | C137: 1.22 | D137: 1.421491833 | E137: 0.1651572402
A138: - Energía | B138: BTD4EtCEGP | C138: 0.13064 | D138: 0.09054011913 | E138: -0.3069494862
A139: - Potencia Energizada | B139: BTD4EtCPG | C139: 0.02767 | D139: 0.0331622547 | E139: 0.1984913157
A140: BTH
A141: Comercialización | C141: 0 | D141: =+SUMIF($F$463:$F$1916,B141,$G$463:$G$1916) -> 0
A142: - Fijo | B142: BTH1CCCOF | C142: 5.3 | D142: 5.387807071 | E142: 0.01656737188
A143: - Energía | B143: BTH1EtCCOV | C143: 0.00649 | D143: 0.007905052642 | E143: 0.2180358462
A144: Distribución | C144: 0 | D144: 0
A145: - Demanda Máxima en Punta | B145: BTH1PpCD | C145: 11.08 | D145: 15.99573939 | E145: 0.4436587897
A146: - Demanda Máxima Fuera de Punta Medio | B146: BTH1PfpmCD | D146: 2.208797948
A147: - Demanda Máxima Fuera de Punta | B147: BTH1PfpCD | C147: 1.53 | D147: 2.208797948 | E147: 0.4436587897
A148: - Pérdidas Energía en Distribución en Punta | B148: BTH1EpCPEP | C148: 0.01467 | D148: 0.008736104456 | E148: -0.4044918572
A149: - Pérdidas Energía en Distribución Fuera de Punta Medio | B149: BTH1EfpmCPEFP | D149: 0.006008677161
A150: - Pérdidas Energía en Distribución Fuera de Punta | B150: BTH1EfpCPEFP | C150: 0.01009 | D150: 0.006008677161 | E150: -0.4044918572
A151: - Pérdidas Potencia en Distribución | B151: BTH1PpCPEP | C151: 0 | D151: 0.1065908091
A152: - Cargos por Conexión | B152: BTH1CxCX | C152: 111.24 | D152: 112.7875558 | E152: 0.01391186449
A153: Alumbrado Público | C153: 0 | D153: 0
A154: - Sistema | B154: BTH1EtCSAP | C154: 0.00142 | D154: 0.001347640874 | E154: -0.05095713072
A155: - Consumo de energía | B155: BTH1EtCCAP | C155: 0.00233 | D155: 0.001741085657 | E155: -0.2527529368
A156: Transmisión | C156: 0 | D156: 0
A157: - Demanda Máxima | B157: BTH1PpCUCOST | C157: 1.33 | D157: 2.419881081 | E157: 0.8194594592
A158: - Demanda Máxima Fuera de Punta | B158: BTH1PfpCUCOST | D158: 0.2365297297
A159: - Demanda Máxima Fuera de Punta | B159: BTH1PfpCUCOST | C159: 0.13 | D159: 0.2365297297 | E159: 0.8194594592
A160: - Energía | B160: BTH1EtCUCOST | C160: 0.00863 | D160: 0.006853588481 | E160: -0.2058414275
A161: - Pérdidas de Energía en Transmisión | B161: BTH1EtCPST | C161: 0.00247 | D161: 0.002596427375 | E161: 0.0511851722
A162: - Capacidad Transmision costo pérdidas | C162: 0 | D162: 0
A163: Generación | C163: 0 | D163: 0
A164: - Demanda Máxima | B164: BTH1PpCPG | C164: 0.63 | D164: 0.125356166 | E164: -0.8010219587
A165: - Energía en Punta | B165: BTH1EpCEGP | C165: 0.19391 | D165: 0.1841706038 | E165: -0.05022637397
A166: - Energía Fuera de Punta Medio | B166: BTH1EfpmCEGFP | D166: 0.09208530191
A167: - Energía Fuera de Punta | B167: BTH1EfpCEGFP | C167: 0.12074 | D167: 0.04185695541 | E167: -0.6533298375
A168: - Potencia Energizada | B168: BTH1EtCPG | C168: 0.00691 | D168: 0.001809559074 | E168: -0.7381245913
A169: MTD (0-10,000)
A170: Comercialización | C170: 0 | D170: =+SUMIF($F$463:$F$1916,B170,$G$463:$G$1916) -> 0
A171: – Fijo | B171: MTD1CCCOF | C171: 13.35 | D171: 13.57285677 | E171: 0.01669339115
A172: – Energía | B172: MTD1EtCCOV | C172: 0.0065 | D172: 0.007916879467 | E172: 0.2179814565
A173: Distribución | C173: 0 | D173: 0
A174: - Demanda Máxima | B174: MTD1PpCD | C174: 11.28 | D174: 16.28344518 | E174: 0.4435678351
A175: - Energía en Distribución | B175: MTD1EtCD | C175: 0 | D175: 0
A176: - Pérdidas Energía en Distribución | B176: MTD1EtCPEP | C176: 0.0113 | D176: 0.006729251618 | E176: -0.4044910073
A177: - Pérdidas Potencia en Distribución | B177: MTD1PpCPEP | C177: 0 | D177: 0.2570595281
A178: - Cargos por Conexión | B178: MTD1CxCX | C178: 111.24 | D178: 112.7893583 | E178: 0.01392806826
A179: Alumbrado Público | C179: 0 | D179: 0
A180: - Sistema | B180: MTD1EtCSAP | C180: 0.00143 | D180: 0.001357145577 | E180: -0.0509471489
A181: - Consumo de energía | B181: MTD1EtCCAP | C181: 0.00233 | D181: 0.001741088157 | E181: -0.2527518638
A182: Transmisión | C182: 0 | D182: 0
A183: - Demanda Máxima | B183: MTD1PpCUCOST | C183: 0.82 | D183: 1.853106289 | E183: 1.259885718
A184: - Energía | B184: MTD1EtCUCOST | C184: 0.00578 | D184: 0.004218281432 | E184: -0.2701935239
A185: - Pérdidas de Energía en Transmisión | B185: MTD1EtCPST | C185: 0.00247 | D185: 0.002596431104 | E185: 0.05118668163
A186: - Capacidad Transmision costo pérdidas | B186: MTD1EtCPP | C186: 0 | D186: 0
A187: Generación | C187: 0 | D187: 0
A188: - Demanda Máxima | B188: MTD1PpCPG | C188: 1.79 | D188: 2.331820324 | E188: 0.3026929186
A189: - Energía | B189: MTD1EtCEGP | C189: 0.11049 | D189: 0.07657579132 | E189: -0.3069436934
A190: - Potencia Energizada | B190: MTD1EtCPG | C190: 0.02346 | D190: 0.03007862445 | E190: 0.2821238045
A191: MTD (10,001-30,000)
A192: Comercialización | C192: 0 | D192: =+SUMIF($F$463:$F$1916,B192,$G$463:$G$1916) -> 0
A193: – Fijo | B193: MTD2CCCOF | C193: 13.35 | D193: 0 | E193: -1
A194: – Energía | B194: MTD2EtCCOV | C194: 0.0065 | D194: 0 | E194: -1
A195: Distribución | C195: 0 | D195: 0
A196: - Demanda Máxima | B196: MTD2PpCD | C196: 11.28 | D196: 0 | E196: -1
A197: - Energía en Distribución | B197: MTD2EtCD | C197: 0 | D197: 0
A198: - Pérdidas Energía en Distribución | B198: MTD2EtCPEP | C198: 0.0113 | D198: 0 | E198: -1
A199: - Pérdidas Potencia en Distribución | B199: MTD2PpCPP | C199: 0 | D199: 0
A200: - Cargos por Conexión | B200: MTD2CxCX | C200: 111.24 | D200: 112.7893583 | E200: 0.01392806826
A201: Alumbrado Público | C201: 0 | D201: 0
... 1711 more rows

Sheet CD
A1: =+"Cargo de Distribución"&" - "&PremisaCosto!A2 -> Cargo de Distribución - EDEMET | AM1: =+PremisaCosto!A2 -> EDEMET | AP1: Factor de ajuste Cargos Distribución | AQ1: EDEMET | AR1: EDECHI
A2: Check: VP Costos = VP Ingresos | F2: =+PremisaCosto!F89 -> 2022/2023 | G2: =+PremisaCosto!G89 -> 2023/2024 | H2: =+PremisaCosto!H89 -> 2024/2025 | I2: =+PremisaCosto!I89 -> 2025/2026 | Z2: Ingresos año 1 nueva tarifa | AA2: Ingresos año 1 tarifa vigente | AB2: Ingresos a recuperar sig años | AK2: Recuperación costos 2022/2023 | AL2: Cuatro años = 1 | AM2: Factor de ajuste Pliego Vigente | AP2: Factor de ajuste Jul-Dic 22 | AQ2: 1.002837111 | AR2: 1.004313413
A3: =AI7 -> OK | E3: IMP - Costos por uso de red | F3: =+Costos!E35 -> 165405635.2 | G3: =+Costos!F35 -> 178009628.3 | H3: =+Costos!G35 -> 191294077.7 | I3: =+Costos!H35 -> 196738119.2 | AK3: =+Resumen!R3 -> 2 | AL3: Tres años = 2 | AM3: =IF(AM1="EDEMET",AQ2*AQ3,AR2*AR3) -> 1.019431601 | AP3: Factor de ajuste Ene-Jun 23 | AQ3: 1.016547543 | AR3: 1.023468809
E4: VP Costos Permitidos uso red | F4: =+SUMPRODUCT(F3:I3,PremisaCosto!$F$84:$I$84) -> 617356695.3 | Z4: 172861915.5 | AA4: =+SUM(Z10,AE10) -> 128486664.7 | AB4: =+Z4-AA4 -> 44375250.84 | AP4: Factor ajuste final | AQ4: 1.019431601 | AR4: 1.027883453
Z5: *Poner opción 1 en hoja "Resumen", celda R3 para ver los ingresos a recuperar
B6: Variables Auxiliares | E6: 1 - ASIGNACIÓN COSTOS | G6: 2 - DISEÑO DE CARGOS | M6: 3 - GENERACION DEL MULTIPLICADOR PARA AJUSTAR TARIFA | W6: 4 - CÁLCULO TARIFA A APLICAR | AK6: Para BUSCARV | AL6: 15 | AM6: 23
AD7: Check | AI7: =+IF(ROUND(SUM(AD10,AI10)-F4,0)=0,"OK","Error") -> OK | AL7: Tarifa Vigente | AP7: Ingreso por Potencia Cargo Relativo
A8: Categorías | B8: Sub Categoría | C8: Descuento | E8: % Asignación | G8: Diseño | J8: Cargo Relativo | M8: Ingreso por Energía Cargo Relativo | Q8: Ingreso por Energía a Cargo Relativo (VP) | R8: Ingreso por Potencia a Cargo Relativo (VP) | T8: Multiplicador Energía | U8: Multiplicador Potencia | W8: Tarifa a Aplicar (CR x Multiplicador) | Z8: Ingresos con Tarifa a Aplicar por Energía | AD8: Ingresos (VP) | AE8: Ingresos con Tarifa a Aplicar por Potencia | AI8: Ingresos (VP) | AK8: Categorías | AL8: Ingreso por Energia | AM8: Ingreso por Potencia | AP8: 2022/2023
G9: Energía | H9: Potencia | J9: Energía | K9: Potencia | M9: =+F2 -> 2022/2023 | N9: =+G2 -> 2023/2024 | O9: =+H2 -> 2024/2025 | P9: =+I2 -> 2025/2026 | W9: por Energía ($/kWh) | X9: por Potencia ($/kW mes) | Z9: =+M9 -> 2022/2023 | AA9: =+N9 -> 2023/2024 | AB9: =+O9 -> 2024/2025 | AC9: =+P9 -> 2025/2026 | AD9: por Energía | AE9: =+Z9 -> 2022/2023 | AF9: =+AA9 -> 2023/2024 | AG9: =+AB9 -> 2024/2025 | AH9: =+AC9 -> 2025/2026 | AI9: por Potencia | AL9: 2022/2023 | AM9: 2022/2023 | AP9: =+SUM(AP10,AP14,AP15,AP19,AP75,AP79,AP135,AP191,AP195,AP208,AP264,AP267,AP323) -> 68455955.1
A10: =+PremisaCosto!A92 -> TOTAL | E10: =+SUM(E11,E15,E16,E20,E76,E80,E136,E196,E209,E265,E268,E324) -> 1 | Z10: =+SUM(Z11,Z15,Z16,Z20,Z76,Z80,Z136,Z192,Z196,Z209,Z265,Z268,Z324) -> 61335562.95 | AA10: 93325419.5 | AB10: 96372612.1 | AC10: 99505974.35 | AD10: =+SUM(AD11,AD15,AD16,AD20,AD76,AD80,AD136,AD192,AD196,AD209,AD265,AD268,AD324) -> 293420973.6 | AE10: 67151101.75 | AF10: 102626185.7 | AG10: 106626904.3 | AH10: 110806359.6 | AI10: 323935721.8 | AK10: =+A10 -> TOTAL | AL10: 61335562.95 | AM10: 67151101.75 | AP10: =+SUM(AP11:AP13) -> 15.11857939
A11: =+PremisaCosto!A93 -> ATH | E11: 1.158886003e-07 | M11: =+SUM(M12:M14) -> 0 | N11: 0 | O11: 0 | P11: 0 | Q11: 0 | R11: 54.21027231 | Z11: =+SUM(Z12:Z14) -> 0 | AA11: 0 | AB11: 0 | AC11: 0 | AD11: 0 | AE11: 14.83040096 | AF11: 22.66564911 | AG11: 23.54993102 | AH11: 24.47376649 | AI11: =+SUM(AI12:AI14) -> 71.54460329 | AK11: =+A11 -> ATH | AL11: 0 | AM11: 14.83040096 | AP11: =+Potencia!T12*$K12*12*1000*(1-$C12) -> 1.392022923
A12: =+PremisaCosto!A94 -> ATH Punta | B12: =+PremisaCosto!H94 -> Regular | C12: =+IF(B12=0,0,VLOOKUP(B12,PremisaCosto!$A$69:$D$79,4,FALSE)) -> 0 | E12: =+E11 -> 1.158886003e-07 | G12: 0 | H12: 1 | J12: 0 | K12: 4.6 | M12: =+$J12*Energía!Z12*(1-$C12)*1000 -> 0 | N12: =+$J12*Energía!AA12*(1-$C12)*1000 -> 0 | O12: =+$J12*Energía!AB12*(1-$C12)*1000 -> 0 | P12: =+$J12*Energía!AC12*(1-$C12)*1000 -> 0 | Q12: =+SUMPRODUCT(M12:P12,PremisaCosto!$F$84:$I$84) -> 0 | R12: =+Potencia!X12*$K12*12*1000*(1-$C12) -> 4.991338123 | T12: =IF(Q12=0,0,(IF($AK$3=1,$E12*$F$4*G12/$Q$11,($E12*$F$4*G12-$AL$11*PremisaCosto!$F$84)/($Q$11-$M$11*PremisaCosto!$F$84)))) -> 0 | U12: =IF(R12=0,0,IF($AK$3=1,$E12*$F$4*H12/$R$11,($E12*$F$4*H12-$AM$11*PremisaCosto!$F$84)/($R$11-$AP$10*PremisaCosto!$F$84))) -> 1.443563663 | W12: =+J12*T12 -> 0 | X12: =+U12*K12 -> 6.640392848 | Z12: =+IF($AK$3=1,$W12*Energía!Z12*(1-$C12)*1000,AL12) -> 0 | AA12: =+$W12*Energía!AA12*(1-$C12)*1000 -> 0 | AB12: =+$W12*Energía!AB12*(1-$C12)*1000 -> 0 | AC12: =+$W12*Energía!AC12*(1-$C12)*1000 -> 0 | AD12: =+SUMPRODUCT(Z12:AC12,PremisaCosto!$F$84:$I$84) -> 0 | AE12: =+IF($AK$3=1,Potencia!T12*$X12*12*1000*(1-$C12),AM12) -> 1.36548928 | AF12: =+Potencia!U12*$X12*12*1000*(1-$C12) -> 2.086909246 | AG12: =+Potencia!V12*$X12*12*1000*(1-$C12) -> 2.168328317 | AH12: =+Potencia!W12*$X12*12*1000*(1-$C12) -> 2.253389229 | AI12: =+SUMPRODUCT(AE12:AH12,PremisaCosto!$F$84:$I$84) -> 6.587373402 | AK12: ATH Punta | AL12: 0 | AM12: 1.36548928 | AP12: =+Potencia!T13*$K13*12*1000*(1-$C13) -> 6.863278235
A13: =+PremisaCosto!A95 -> ATH Fuera de Punta Medio | B13: =+PremisaCosto!H95 -> Regular | C13: =+IF(B13=0,0,VLOOKUP(B13,PremisaCosto!$A$69:$D$79,4,FALSE)) -> 0 | E13: =+$E$11 -> 1.158886003e-07 | G13: 0 | H13: 1 | J13: 0 | K13: 3.78 | M13: =+$J13*Energía!Z13*(1-$C13)*1000 -> 0 | N13: =+$J13*Energía!AA13*(1-$C13)*1000 -> 0 | O13: =+$J13*Energía!AB13*(1-$C13)*1000 -> 0 | P13: =+$J13*Energía!AC13*(1-$C13)*1000 -> 0 | Q13: =+SUMPRODUCT(M13:P13,PremisaCosto!$F$84:$I$84) -> 0 | R13: =+Potencia!X13*$K13*12*1000*(1-$C13) -> 24.6094671 | T13: =IF(Q13=0,0,(IF($AK$3=1,$E13*$F$4*G13/$Q$11,($E13*$F$4*G13-$AL$11*PremisaCosto!$F$84)/($Q$11-$M$11*PremisaCosto!$F$84)))) -> 0 | U13: =IF(R13=0,0,IF($AK$3=1,$E13*$F$4*H13/$R$11,($E13*$F$4*H13-$AM$11*PremisaCosto!$F$84)/($R$11-$AP$10*PremisaCosto!$F$84))) -> 1.443563663 | W13: =+J13*T13 -> 0 | X13: =+U13*K13 -> 5.456670645 | Z13: =+IF($AK$3=1,$W13*Energía!Z13*(1-$C13)*1000,AL13) -> 0 | AA13: =+$W13*Energía!AA13*(1-$C13)*1000 -> 0 | AB13: =+$W13*Energía!AB13*(1-$C13)*1000 -> 0 | AC13: =+$W13*Energía!AC13*(1-$C13)*1000 -> 0 | AD13: =+SUMPRODUCT(Z13:AC13,PremisaCosto!$F$84:$I$84) -> 0 | AE13: =+IF($AK$3=1,Potencia!T13*$X13*12*1000*(1-$C13),AM13) -> 6.732455841 | AF13: =+Potencia!U13*$X13*12*1000*(1-$C13) -> 10.28936993 | AG13: =+Potencia!V13*$X13*12*1000*(1-$C13) -> 10.69080135 | AH13: =+Potencia!W13*$X13*12*1000*(1-$C13) -> 11.11018863 | AI13: =+SUMPRODUCT(AE13:AH13,PremisaCosto!$F$84:$I$84) -> 32.47861495 | AK13: ATH Fuera de Punta Medio | AL13: 0 | AM13: 6.732455841 | AP13: =+Potencia!T14*$K14*12*1000*(1-$C14) -> 6.863278235
A14: =+PremisaCosto!A96 -> ATH Fuera de Punta Bajo | B14: =+PremisaCosto!H96 -> Regular | C14: =+IF(B14=0,0,VLOOKUP(B14,PremisaCosto!$A$69:$D$79,4,FALSE)) -> 0 | E14: =+$E$11 -> 1.158886003e-07 | G14: 0 | H14: 1 | J14: 0 | K14: 3.78 | M14: =+$J14*Energía!Z14*(1-$C14)*1000 -> 0 | N14: =+$J14*Energía!AA14*(1-$C14)*1000 -> 0 | O14: =+$J14*Energía!AB14*(1-$C14)*1000 -> 0 | P14: =+$J14*Energía!AC14*(1-$C14)*1000 -> 0 | Q14: =+SUMPRODUCT(M14:P14,PremisaCosto!$F$84:$I$84) -> 0 | R14: =+Potencia!X14*$K14*12*1000*(1-$C14) -> 24.6094671 | T14: =IF(Q14=0,0,(IF($AK$3=1,$E14*$F$4*G14/$Q$11,($E14*$F$4*G14-$AL$11*PremisaCosto!$F$84)/($Q$11-$M$11*PremisaCosto!$F$84)))) -> 0 | U14: =IF(R14=0,0,IF($AK$3=1,$E14*$F$4*H14/$R$11,($E14*$F$4*H14-$AM$11*PremisaCosto!$F$84)/($R$11-$AP$10*PremisaCosto!$F$84))) -> 1.443563663 | W14: 0 | X14: 5.456670645 | Z14: =+IF($AK$3=1,$W14*Energía!Z14*(1-$C14)*1000,AL14) -> 0 | AA14: =+$W14*Energía!AA14*(1-$C14)*1000 -> 0 | AB14: =+$W14*Energía!AB14*(1-$C14)*1000 -> 0 | AC14: =+$W14*Energía!AC14*(1-$C14)*1000 -> 0 | AD14: =+SUMPRODUCT(Z14:AC14,PremisaCosto!$F$84:$I$84) -> 0 | AE14: =+IF($AK$3=1,Potencia!T14*$X14*12*1000*(1-$C14),AM14) -> 6.732455841 | AF14: =+Potencia!U14*$X14*12*1000*(1-$C14) -> 10.28936993 | AG14: =+Potencia!V14*$X14*12*1000*(1-$C14) -> 10.69080135 | AH14: =+Potencia!W14*$X14*12*1000*(1-$C14) -> 11.11018863 | AI14: =+SUMPRODUCT(AE14:AH14,PremisaCosto!$F$84:$I$84) -> 32.47861495 | AK14: ATH Fuera de Punta Bajo | AL14: 0 | AM14: 6.732455841 | AP14: =+Potencia!T15*$K15*12*1000*(1-$C15) -> 1155.742162
A15: =+PremisaCosto!A97 -> ATD | B15: =+PremisaCosto!H97 -> Regular | C15: =+IF(B15=0,0,VLOOKUP(B15,PremisaCosto!$A$69:$D$79,4,FALSE)) -> 0 | E15: 8.859122141e-06 | G15: 0 | H15: 1 | J15: 0 | K15: 4.34 | M15: =+$J15*Energía!Z15*(1-$C15)*1000 -> 0 | N15: =+$J15*Energía!AA15*(1-$C15)*1000 -> 0 | O15: =+$J15*Energía!AB15*(1-$C15)*1000 -> 0 | P15: =+$J15*Energía!AC15*(1-$C15)*1000 -> 0 | Q15: =+SUMPRODUCT(M15:P15,PremisaCosto!$F$84:$I$84) -> 0 | R15: =+Potencia!X15*$K15*12*1000*(1-$C15) -> 4144.112731 | T15: =IF(Q15=0,0,(IF($AK$3=1,$E15*$F$4*G15/$Q$15,($E15*$F$4*G15-$AL$15*PremisaCosto!$F$84)/($Q$15-$M$15*PremisaCosto!$F$84)))) -> 0 | U15: =IF(R15=0,0,IF($AK$3=1,$E15*$F$4*H15/$R$15,($E15*$F$4*H15-$AM$15*PremisaCosto!$F$84)/($R$15-$AP$14*PremisaCosto!$F$84))) -> 1.443563663 | W15: 0 | X15: 6.265066296 | Z15: =+IF($AK$3=1,$W15*Energía!Z15*(1-$C15)*1000,AL15) -> 0 | AA15: =+$W15*Energía!AA15*(1-$C15)*1000 -> 0 | AB15: =+$W15*Energía!AB15*(1-$C15)*1000 -> 0 | AC15: =+$W15*Energía!AC15*(1-$C15)*1000 -> 0 | AD15: =+SUMPRODUCT(Z15:AC15,PremisaCosto!$F$84:$I$84) -> 0 | AE15: =+IF($AK$3=1,Potencia!T15*$X15*12*1000*(1-$C15),AM15) -> 1133.712317 | AF15: =+Potencia!U15*$X15*12*1000*(1-$C15) -> 1732.679085 | AG15: =+Potencia!V15*$X15*12*1000*(1-$C15) -> 1800.278154 | AH15: =+Potencia!W15*$X15*12*1000*(1-$C15) -> 1870.9009 | AI15: =+SUMPRODUCT(AE15:AH15,PremisaCosto!$F$84:$I$84) -> 5469.238369 | AK15: ATD | AL15: 0 | AM15: 1133.712317 | AP15: =+SUM(AP16:AP18) -> 301914.6102
A16: =+PremisaCosto!A98 -> MTH | B16: =+PremisaCosto!H98 -> 0 | C16: =+IF(B16=0,0,VLOOKUP(B16,PremisaCosto!$A$69:$D$79,4,FALSE)) -> 0 | E16: 0.002314268303 | G16: 0 | H16: 0 | M16: =+SUM(M17:M19) -> 0 | N16: 0 | O16: 0 | P16: 0 | Q16: 0 | R16: 1082566.487 | T16: =IF(Q16=0,0,(IF($AK$3=1,$E16*$F$4*G16/$Q$16,($E16*$F$4*G16-$AL$16*PremisaCosto!$F$84)/($Q$16-$M$16*PremisaCosto!$F$84)))) -> 0 | W16: 0 | X16: 0 | Z16: =+SUM(Z17:Z19) -> 0 | AA16: =+SUM(AA17:AA19) -> 0 | AB16: =+SUM(AB17:AB19) -> 0 | AC16: =+SUM(AC17:AC19) -> 0 | AD16: =+SUM(AD17:AD19) -> 0 | AE16: 296159.7521 | AF16: 452627.8023 | AG16: 470286.5837 | AH16: 488735.2224 | AI16: =+SUM(AI17:AI19) -> 1428729.032 | AK16: MTH | AL16: 0 | AM16: 296159.7521 | AP16: =+Potencia!T17*$K17*12*1000*(1-$C17) -> 253698.8406
A17: =+PremisaCosto!A99 -> MTH Punta | B17: =+PremisaCosto!H99 -> Regular | C17: =+IF(B17=0,0,VLOOKUP(B17,PremisaCosto!$A$69:$D$79,4,FALSE)) -> 0 | E17: =+E16 -> 0.002314268303 | G17: 0 | H17: 1 | J17: 0 | K17: 10.13 | M17: =+$J17*Energía!Z17*(1-$C17)*1000 -> 0 | N17: =+$J17*Energía!AA17*(1-$C17)*1000 -> 0 | O17: =+$J17*Energía!AB17*(1-$C17)*1000 -> 0 | P17: =+$J17*Energía!AC17*(1-$C17)*1000 -> 0 | Q17: =+SUMPRODUCT(M17:P17,PremisaCosto!$F$84:$I$84) -> 0 | R17: =+Potencia!X17*$K17*12*1000*(1-$C17) -> 909680.9216 | T17: =IF(Q17=0,0,(IF($AK$3=1,$E17*$F$4*G17/$Q$16,($E17*$F$4*G17-$AL$16*PremisaCosto!$F$84)/($Q$16-$M$16*PremisaCosto!$F$84)))) -> 0 | U17: =IF(R17=0,0,IF($AK$3=1,$E17*$F$4*H17/$R$16,($E17*$F$4*H17-$AM$16*PremisaCosto!$F$84)/($R$16-$AP$15*PremisaCosto!$F$84))) -> 1.443563723 | W17: 0 | X17: 14.62330051 | Z17: =+IF($AK$3=1,$W17*Energía!Z17*(1-$C17)*1000,AL17) -> 0 | AA17: =+$W17*Energía!AA17*(1-$C17)*1000 -> 0 | AB17: =+$W17*Energía!AB17*(1-$C17)*1000 -> 0 | AC17: =+$W17*Energía!AC17*(1-$C17)*1000 -> 0 | AD17: =+SUMPRODUCT(Z17:AC17,PremisaCosto!$F$84:$I$84) -> 0 | AE17: =+IF($AK$3=1,Potencia!T17*$X17*12*1000*(1-$C17),AM17) -> 248863.0335 | AF17: =+Potencia!U17*$X17*12*1000*(1-$C17) -> 380343.2183 | AG17: =+Potencia!V17*$X17*12*1000*(1-$C17) -> 395182.0004 | AH17: =+Potencia!W17*$X17*12*1000*(1-$C17) -> 410684.5149 | AI17: =+SUMPRODUCT(AE17:AH17,PremisaCosto!$F$84:$I$84) -> 1200561.445 | AK17: MTH Punta | AL17: 0 | AM17: 248863.0335 | AP17: =+Potencia!T18*$K18*12*1000*(1-$C18) -> 24107.8848
A18: =+PremisaCosto!A100 -> MTH Fuera de Punta Medio | B18: =+PremisaCosto!H100 -> Regular | C18: =+IF(B18=0,0,VLOOKUP(B18,PremisaCosto!$A$69:$D$79,4,FALSE)) -> 0 | E18: =+E17 -> 0.002314268303 | G18: 0 | H18: 1 | J18: 0 | K18: 1.68 | M18: =+$J18*Energía!Z17*(1-$C18)*1000 -> 0 | N18: =+$J18*Energía!AA17*(1-$C18)*1000 -> 0 | O18: =+$J18*Energía!AB17*(1-$C18)*1000 -> 0 | P18: =+$J18*Energía!AC17*(1-$C18)*1000 -> 0 | Q18: =+SUMPRODUCT(M18:P18,PremisaCosto!$F$84:$I$84) -> 0 | R18: =+Potencia!X18*$K18*12*1000*(1-$C18) -> 86442.78275 | T18: =IF(Q18=0,0,(IF($AK$3=1,$E18*$F$4*G18/$Q$16,($E18*$F$4*G18-$AL$16*PremisaCosto!$F$84)/($Q$16-$M$16*PremisaCosto!$F$84)))) -> 0 | U18: =IF(R18=0,0,IF($AK$3=1,$E18*$F$4*H18/$R$16,($E18*$F$4*H18-$AM$16*PremisaCosto!$F$84)/($R$16-$AP$15*PremisaCosto!$F$84))) -> 1.443563723 | W18: =+J18*T18 -> 0 | X18: =+U18*K18 -> 2.425187055 | Z18: =+IF($AK$3=1,$W18*Energía!Z18*(1-$C18)*1000,AL18) -> 0 | AA18: =+$W18*Energía!AA17*(1-$C18)*1000 -> 0 | AB18: =+$W18*Energía!AB17*(1-$C18)*1000 -> 0 | AC18: =+$W18*Energía!AC17*(1-$C18)*1000 -> 0 | AD18: =+SUMPRODUCT(Z18:AC18,PremisaCosto!$F$84:$I$84) -> 0 | AE18: =+IF($AK$3=1,Potencia!T18*$X18*12*1000*(1-$C18),AM18) -> 23648.35932 | AF18: =+Potencia!U18*$X18*12*1000*(1-$C18) -> 36142.29201 | AG18: =+Potencia!V18*$X18*12*1000*(1-$C18) -> 37552.29164 | AH18: =+Potencia!W18*$X18*12*1000*(1-$C18) -> 39025.35371 | AI18: =+SUMPRODUCT(AE18:AH18,PremisaCosto!$F$84:$I$84) -> 114083.7934 | AK18: MTH Fuera de Punta Medio | AL18: 0 | AM18: 23648.35932 | AP18: =+Potencia!T19*$K19*12*1000*(1-$C19) -> 24107.8848
A19: =+PremisaCosto!A101 -> MTH Fuera de Punta Bajo | B19: =+PremisaCosto!H101 -> Regular | C19: =+IF(B19=0,0,VLOOKUP(B19,PremisaCosto!$A$69:$D$79,4,FALSE)) -> 0 | E19: =+E16 -> 0.002314268303 | G19: 0 | H19: 1 | J19: 0 | K19: 1.68 | M19: =+$J19*Energía!Z19*(1-$C19)*1000 -> 0 | N19: =+$J19*Energía!AA19*(1-$C19)*1000 -> 0 | O19: =+$J19*Energía!AB19*(1-$C19)*1000 -> 0 | P19: =+$J19*Energía!AC19*(1-$C19)*1000 -> 0 | Q19: =+SUMPRODUCT(M19:P19,PremisaCosto!$F$84:$I$84) -> 0 | R19: =+Potencia!X19*$K19*12*1000*(1-$C19) -> 86442.78275 | T19: =IF(Q19=0,0,(IF($AK$3=1,$E19*$F$4*G19/$Q$16,($E19*$F$4*G19-$AL$16*PremisaCosto!$F$84)/($Q$16-$M$16*PremisaCosto!$F$84)))) -> 0 | U19: =IF(R19=0,0,IF($AK$3=1,$E19*$F$4*H19/$R$16,($E19*$F$4*H19-$AM$16*PremisaCosto!$F$84)/($R$16-$AP$15*PremisaCosto!$F$84))) -> 1.443563723 | W19: 0 | X19: 2.425187055 | Z19: =+IF($AK$3=1,$W19*Energía!Z19*(1-$C19)*1000,AL19) -> 0 | AA19: =+$W19*Energía!AA19*(1-$C19)*1000 -> 0 | AB19: =+$W19*Energía!AB19*(1-$C19)*1000 -> 0 | AC19: =+$W19*Energía!AC19*(1-$C19)*1000 -> 0 | AD19: =+SUMPRODUCT(Z19:AC19,PremisaCosto!$F$84:$I$84) -> 0 | AE19: =+IF($AK$3=1,Potencia!T19*$X19*12*1000*(1-$C19),AM19) -> 23648.35932 | AF19: =+Potencia!U19*$X19*12*1000*(1-$C19) -> 36142.29201 | AG19: =+Potencia!V19*$X19*12*1000*(1-$C19) -> 37552.29164 | AH19: =+Potencia!W19*$X19*12*1000*(1-$C19) -> 39025.35371 | AI19: =+SUMPRODUCT(AE19:AH19,PremisaCosto!$F$84:$I$84) -> 114083.7934 | AK19: MTH Fuera de Punta Bajo | AL19: 0 | AM19: 23648.35932 | AP19: =+SUM(AP20,AP31,AP42,AP53,AP64) -> 23999206.98
A20: =+PremisaCosto!A102 -> MTD | B20: =+PremisaCosto!H102 -> 0 | C20: =+IF(B20=0,0,VLOOKUP(B20,PremisaCosto!$A$69:$D$79,4,FALSE)) -> 0 | E20: 0.1839568291 | G20: 0 | H20: 1 | J20: 0 | K20: 0 | M20: =+SUM(M21,M32,M43,M54,M65) -> 0 | N20: 0 | O20: 0 | P20: 0 | Q20: 0 | R20: 86051171.14 | T20: =IF(Q20=0,0,(IF($AK$3=1,$E20*$F$4*G20/$Q$20,($E20*$F$4*G20-$AL$20*PremisaCosto!$F$84)/($Q$20-$M$20*PremisaCosto!$F$84)))) -> 0 | U20: =IF(R20=0,0,IF($AK$3=1,$E20*$F$4*H20/$R$20,($E20*$F$4*H20-$AM$20*PremisaCosto!$F$84)/($R$20-$AP$19*PremisaCosto!$F$84))) -> 1.443567835 | W20: 0 | X20: 0 | Z20: =+SUM(Z21,Z32,Z43,Z54,Z65) -> 0 | AA20: =+SUM(AA21,AA32,AA43,AA54,AA65) -> 0 | AB20: =+SUM(AB21,AB32,AB43,AB54,AB65) -> 0 | AC20: =+SUM(AC21,AC32,AC43,AC54,AC65) -> 0 | AD20: =+SUM(AD21,AD32,AD43,AD54,AD65) -> 0 | AE20: 23541753.05 | AF20: 35978902.32 | AG20: 37381954.25 | AH20: 38847728.58 | AI20: =+SUM(AI21,AI32,AI43,AI54,AI65) -> 113566980.1 | AK20: MTD | AL20: 0 | AM20: 23541753.05 | AP20: =+SUM(AP21:AP30) -> 23999206.98
A21: =+PremisaCosto!A103 -> MTD_1 (0-10,000) | B21: =+PremisaCosto!H103 -> 0 | C21: =+IF(B21=0,0,VLOOKUP(B21,PremisaCosto!$A$69:$D$79,4,FALSE)) -> 0 | E21: =+E20 -> 0.1839568291 | G21: =+G20 -> 0 | H21: =+H20 -> 1 | J21: 0 | K21: 11.28 | M21: =+SUM(M22:M31) -> 0 | N21: 0 | O21: 0 | P21: 0 | Q21: 0 | R21: 86051171.14 | T21: =IF(Q21=0,0,(IF($AK$3=1,$E21*$F$4*G21/$Q$20,($E21*$F$4*G21-$AL$20*PremisaCosto!$F$84)/($Q$20-$M$20*PremisaCosto!$F$84)))) -> 0 | U21: =IF(R21=0,0,IF($AK$3=1,$E21*$F$4*H21/$R$20,($E21*$F$4*H21-$AM$20*PremisaCosto!$F$84)/($R$20-$AP$19*PremisaCosto!$F$84))) -> 1.443567835 | W21: =+W22 -> 0 | X21: =+X22 -> 16.28344518 | Z21: =+SUM(Z22:Z31) -> 0 | AA21: =+SUM(AA22:AA31) -> 0 | AB21: =+SUM(AB22:AB31) -> 0 | AC21: =+SUM(AC22:AC31) -> 0 | AD21: =+SUM(AD22:AD31) -> 0 | AE21: 23541753.05 | AF21: 35978902.32 | AG21: 37381954.25 | AH21: 38847728.58 | AI21: =+SUM(AI22:AI31) -> 113566980.1 | AK21: MTD_1 (0-10,000) | AL21: 0 | AM21: 0 | AP21: =+Potencia!T22*$K22*12*1000*(1-$C22) -> 23500981.93
A22: =+PremisaCosto!A104 -> MTD_1 Regular | B22: =+PremisaCosto!H104 -> Regular | C22: =+IF(B22=0,0,VLOOKUP(B22,PremisaCosto!$A$69:$D$79,4,FALSE)) -> 0 | E22: =+E21 -> 0.1839568291 | G22: =+G20 -> 0 | H22: =+H20 -> 1 | J22: =+J21 -> 0 | K22: =+K21 -> 11.28 | M22: =+$J22*Energía!Z22*(1-$C22)*1000 -> 0 | N22: =+$J22*Energía!AA22*(1-$C22)*1000 -> 0 | O22: =+$J22*Energía!AB22*(1-$C22)*1000 -> 0 | P22: =+$J22*Energía!AC22*(1-$C22)*1000 -> 0 | Q22: =+SUMPRODUCT(M22:P22,PremisaCosto!$F$84:$I$84) -> 0 | R22: =+Potencia!X22*$K22*12*1000*(1-$C22) -> 84264699.35 | T22: =IF(Q22=0,0,(IF($AK$3=1,$E22*$F$4*G22/$Q$20,($E22*$F$4*G22-$AL$20*PremisaCosto!$F$84)/($Q$20-$M$20*PremisaCosto!$F$84)))) -> 0 | U22: =IF(R22=0,0,IF($AK$3=1,$E22*$F$4*H22/$R$20,($E22*$F$4*H22-$AM$20*PremisaCosto!$F$84)/($R$20-$AP$19*PremisaCosto!$F$84))) -> 1.443567835 | W22: 0 | X22: 16.28344518 | Z22: =+IF($AK$3=1,$W22*Energía!Z22*(1-$C22)*1000,AL22) -> 0 | AA22: =+$W22*Energía!AA22*(1-$C22)*1000 -> 0 | AB22: =+$W22*Energía!AB22*(1-$C22)*1000 -> 0 | AC22: =+$W22*Energía!AC22*(1-$C22)*1000 -> 0 | AD22: =+SUMPRODUCT(Z22:AC22,PremisaCosto!$F$84:$I$84) -> 0 | AE22: =+IF($AK$3=1,Potencia!T22*$X22*12*1000*(1-$C22),AM22) -> 23053024.77 | AF22: =+Potencia!U22*$X22*12*1000*(1-$C22) -> 35231965.29 | AG22: =+Potencia!V22*$X22*12*1000*(1-$C22) -> 36605876.08 | AH22: =+Potencia!W22*$X22*12*1000*(1-$C22) -> 38041205.79 | AI22: =+SUMPRODUCT(AE22:AH22,PremisaCosto!$F$84:$I$84) -> 111209258.8 | AK22: MTD_1 Regular | AL22: 0 | AM22: 23053024.77 | AP22: =+Potencia!T23*$K23*12*1000*(1-$C23) -> 498225.0491
A23: =+PremisaCosto!A105 -> MTD_1 Agro | B23: =+PremisaCosto!H105 -> Agro | C23: =+IF(B23=0,0,VLOOKUP(B23,PremisaCosto!$A$69:$D$79,4,FALSE)) -> 0.05 | E23: 0.1839568291 | G23: =+G22 -> 0 | H23: =+H22 -> 1 | J23: =+J22 -> 0 | K23: 11.28 | M23: =+$J23*Energía!Z23*(1-$C23)*1000 -> 0 | N23: =+$J23*Energía!AA23*(1-$C23)*1000 -> 0 | O23: =+$J23*Energía!AB23*(1-$C23)*1000 -> 0 | P23: =+$J23*Energía!AC23*(1-$C23)*1000 -> 0 | Q23: =+SUMPRODUCT(M23:P23,PremisaCosto!$F$84:$I$84) -> 0 | R23: =+Potencia!X23*$K23*12*1000*(1-$C23) -> 1786471.79 | T23: =IF(Q23=0,0,(IF($AK$3=1,$E23*$F$4*G23/$Q$20,($E23*$F$4*G23-$AL$20*PremisaCosto!$F$84)/($Q$20-$M$20*PremisaCosto!$F$84)))) -> 0 | U23: =IF(R23=0,0,IF($AK$3=1,$E23*$F$4*H23/$R$20,($E23*$F$4*H23-$AM$20*PremisaCosto!$F$84)/($R$20-$AP$19*PremisaCosto!$F$84))) -> 1.443567835 | W23: 0 | X23: 16.28344518 | Z23: =+IF($AK$3=1,$W23*Energía!Z23*(1-$C23)*1000,AL23) -> 0 | AA23: =+$W23*Energía!AA23*(1-$C23)*1000 -> 0 | AB23: =+$W23*Energía!AB23*(1-$C23)*1000 -> 0 | AC23: =+$W23*Energía!AC23*(1-$C23)*1000 -> 0 | AD23: =+SUMPRODUCT(Z23:AC23,PremisaCosto!$F$84:$I$84) -> 0 | AE23: =+IF($AK$3=1,Potencia!T23*$X23*12*1000*(1-$C23),AM23) -> 488728.2763 | AF23: =+Potencia!U23*$X23*12*1000*(1-$C23) -> 746937.0294 | AG23: =+Potencia!V23*$X23*12*1000*(1-$C23) -> 776078.1717 | AH23: =+Potencia!W23*$X23*12*1000*(1-$C23) -> 806522.7849 | AI23: =+SUMPRODUCT(AE23:AH23,PremisaCosto!$F$84:$I$84) -> 2357721.258 | AK23: MTD_1 Agro | AL23: 0 | AM23: 488728.2763 | AP23: =+Potencia!T24*$K24*12*1000*(1-$C24) -> 0
A24: =+PremisaCosto!A106 -> MTD_1 Jub. 1 | B24: =+PremisaCosto!H106 -> Jub. 1 | C24: =+IF(B24=0,0,VLOOKUP(B24,PremisaCosto!$A$69:$D$79,4,FALSE)) -> 0.25 | E24: 0.1839568291 | G24: 0 | H24: =+H23 -> 1 | J24: 0 | K24: 11.28 | M24: =+$J24*Energía!Z24*(1-$C24)*1000 -> 0 | N24: =+$J24*Energía!AA24*(1-$C24)*1000 -> 0 | O24: =+$J24*Energía!AB24*(1-$C24)*1000 -> 0 | P24: =+$J24*Energía!AC24*(1-$C24)*1000 -> 0 | Q24: =+SUMPRODUCT(M24:P24,PremisaCosto!$F$84:$I$84) -> 0 | R24: =+Potencia!X24*$K24*12*1000*(1-$C24) -> 0 | T24: =IF(Q24=0,0,(IF($AK$3=1,$E24*$F$4*G24/$Q$20,($E24*$F$4*G24-$AL$20*PremisaCosto!$F$84)/($Q$20-$M$20*PremisaCosto!$F$84)))) -> 0 | U24: =IF(R24=0,0,IF($AK$3=1,$E24*$F$4*H24/$R$20,($E24*$F$4*H24-$AM$20*PremisaCosto!$F$84)/($R$20-$AP$19*PremisaCosto!$F$84))) -> 0 | W24: 0 | X24: 0 | Z24: =+IF($AK$3=1,$W24*Energía!Z24*(1-$C24)*1000,AL24) -> 0 | AA24: =+$W24*Energía!AA24*(1-$C24)*1000 -> 0 | AB24: =+$W24*Energía!AB24*(1-$C24)*1000 -> 0 | AC24: =+$W24*Energía!AC24*(1-$C24)*1000 -> 0 | AD24: =+SUMPRODUCT(Z24:AC24,PremisaCosto!$F$84:$I$84) -> 0 | AE24: =+IF($AK$3=1,Potencia!T24*$X24*12*1000*(1-$C24),AM24) -> 0 | AF24: =+Potencia!U24*$X24*12*1000*(1-$C24) -> 0 | AG24: =+Potencia!V24*$X24*12*1000*(1-$C24) -> 0 | AH24: =+Potencia!W24*$X24*12*1000*(1-$C24) -> 0 | AI24: =+SUMPRODUCT(AE24:AH24,PremisaCosto!$F$84:$I$84) -> 0 | AK24: MTD_1 Jub. 1 | AL24: 0 | AM24: 0 | AP24: =+Potencia!T25*$K25*12*1000*(1-$C25) -> 0
A25: =+PremisaCosto!A107 -> MTD_1 Jub. 2 | B25: =+PremisaCosto!H107 -> Jub. 2 | C25: =+IF(B25=0,0,VLOOKUP(B25,PremisaCosto!$A$69:$D$79,4,FALSE)) -> 0.25 | E25: 0.1839568291 | G25: 0 | H25: 1 | J25: 0 | K25: 11.28 | M25: =+$J25*((Energía!Z25-Clientes!T25*Límites!$B$14*12)+Clientes!T25*Límites!$B$14*12*(1-$C25))*1000 -> 0 | N25: =+$J25*((Energía!AA25-Clientes!U25*Límites!$B$14*12)+Clientes!U25*Límites!$B$14*12*(1-$C25))*1000 -> 0 | O25: =+$J25*((Energía!AB25-Clientes!V25*Límites!$B$14*12)+Clientes!V25*Límites!$B$14*12*(1-$C25))*1000 -> 0 | P25: =+$J25*((Energía!AC25-Clientes!W25*Límites!$B$14*12)+Clientes!W25*Límites!$B$14*12*(1-$C25))*1000 -> 0 | Q25: =+SUMPRODUCT(M25:P25,PremisaCosto!$F$84:$I$84) -> 0 | R25: =+Potencia!X25*$K25*12*1000*(1-$C25) -> 0 | T25: =IF(Q25=0,0,(IF($AK$3=1,$E25*$F$4*G25/$Q$20,($E25*$F$4*G25-$AL$20*PremisaCosto!$F$84)/($Q$20-$M$20*PremisaCosto!$F$84)))) -> 0 | U25: =IF(R25=0,0,IF($AK$3=1,$E25*$F$4*H25/$R$20,($E25*$F$4*H25-$AM$20*PremisaCosto!$F$84)/($R$20-$AP$19*PremisaCosto!$F$84))) -> 0 | W25: 0 | X25: 0 | Z25: =+IF($AK$3=1,$W25*((Energía!Z25-Clientes!T25*Límites!$B$14*12)+Clientes!T25*Límites!$B$14*12*(1-$C25))*1000,AL25) -> 0 | AA25: =+$W25*((Energía!AA25-Clientes!U25*Límites!$B$14*12)+Clientes!U25*Límites!$B$14*12*(1-$C25))*1000 -> 0 | AB25: =+$W25*((Energía!AB25-Clientes!V25*Límites!$B$14*12)+Clientes!V25*Límites!$B$14*12*(1-$C25))*1000 -> 0 | AC25: =+$W25*((Energía!AC25-Clientes!W25*Límites!$B$14*12)+Clientes!W25*Límites!$B$14*12*(1-$C25))*1000 -> 0 | AD25: =+SUMPRODUCT(Z25:AC25,PremisaCosto!$F$84:$I$84) -> 0 | AE25: =+IF($AK$3=1,Potencia!T25*$X25*12*1000*(1-$C25),AM25) -> 0 | AF25: =+Potencia!U25*$X25*12*1000*(1-$C25) -> 0 | AG25: =+Potencia!V25*$X25*12*1000*(1-$C25) -> 0 | AH25: =+Potencia!W25*$X25*12*1000*(1-$C25) -> 0 | AI25: =+SUMPRODUCT(AE25:AH25,PremisaCosto!$F$84:$I$84) -> 0 | AK25: MTD_1 Jub. 2 | AL25: 0 | AM25: 0 | AP25: =+Potencia!T26*$K26*12*1000*(1-$C26) -> 0
A26: =+PremisaCosto!A108 -> MTD_1 Político | B26: =+PremisaCosto!H108 -> Político | C26: =+IF(B26=0,0,VLOOKUP(B26,PremisaCosto!$A$69:$D$79,4,FALSE)) -> 0.5 | E26: 0.1839568291 | G26: 0 | H26: 1 | J26: 0 | K26: 11.28 | M26: =+$J26*Energía!Z26*(1-$C26)*1000 -> 0 | N26: =+$J26*Energía!AA26*(1-$C26)*1000 -> 0 | O26: =+$J26*Energía!AB26*(1-$C26)*1000 -> 0 | P26: =+$J26*Energía!AC26*(1-$C26)*1000 -> 0 | Q26: =+SUMPRODUCT(M26:P26,PremisaCosto!$F$84:$I$84) -> 0 | R26: =+Potencia!X26*$K26*12*1000*(1-$C26) -> 0 | T26: =IF(Q26=0,0,(IF($AK$3=1,$E26*$F$4*G26/$Q$20,($E26*$F$4*G26-$AL$20*PremisaCosto!$F$84)/($Q$20-$M$20*PremisaCosto!$F$84)))) -> 0 | U26: =IF(R26=0,0,IF($AK$3=1,$E26*$F$4*H26/$R$20,($E26*$F$4*H26-$AM$20*PremisaCosto!$F$84)/($R$20-$AP$19*PremisaCosto!$F$84))) -> 0 | W26: 0 | X26: 0 | Z26: =+IF($AK$3=1,$W26*Energía!Z26*(1-$C26)*1000,AL26) -> 0 | AA26: =+$W26*Energía!AA26*(1-$C26)*1000 -> 0 | AB26: =+$W26*Energía!AB26*(1-$C26)*1000 -> 0 | AC26: =+$W26*Energía!AC26*(1-$C26)*1000 -> 0 | AD26: =+SUMPRODUCT(Z26:AC26,PremisaCosto!$F$84:$I$84) -> 0 | AE26: =+IF($AK$3=1,Potencia!T26*$X26*12*1000*(1-$C26),AM26) -> 0 | AF26: =+Potencia!U26*$X26*12*1000*(1-$C26) -> 0 | AG26: =+Potencia!V26*$X26*12*1000*(1-$C26) -> 0 | AH26: =+Potencia!W26*$X26*12*1000*(1-$C26) -> 0 | AI26: =+SUMPRODUCT(AE26:AH26,PremisaCosto!$F$84:$I$84) -> 0 | AK26: MTD_1 Político | AL26: 0 | AM26: 0 | AP26: =+Potencia!T27*$K27*12*1000*(1-$C27) -> 0
A27: =+PremisaCosto!A109 -> MTD_1 x1 | B27: =+PremisaCosto!H109 -> x1 | C27: =+IF(B27=0,0,VLOOKUP(B27,PremisaCosto!$A$69:$D$79,4,FALSE)) -> 0 | E27: 0.1839568291 | G27: 0 | H27: 1 | J27: 0 | K27: 11.28 | M27: =+$J27*Energía!Z27*(1-$C27)*1000 -> 0 | N27: =+$J27*Energía!AA27*(1-$C27)*1000 -> 0 | O27: =+$J27*Energía!AB27*(1-$C27)*1000 -> 0 | P27: =+$J27*Energía!AC27*(1-$C27)*1000 -> 0 | Q27: =+SUMPRODUCT(M27:P27,PremisaCosto!$F$84:$I$84) -> 0 | R27: =+Potencia!X27*$K27*12*1000*(1-$C27) -> 0 | T27: =IF(Q27=0,0,(IF($AK$3=1,$E27*$F$4*G27/$Q$20,($E27*$F$4*G27-$AL$20*PremisaCosto!$F$84)/($Q$20-$M$20*PremisaCosto!$F$84)))) -> 0 | U27: =IF(R27=0,0,IF($AK$3=1,$E27*$F$4*H27/$R$20,($E27*$F$4*H27-$AM$20*PremisaCosto!$F$84)/($R$20-$AP$19*PremisaCosto!$F$84))) -> 0 | W27: 0 | X27: 0 | Z27: =+IF($AK$3=1,$W27*Energía!Z27*(1-$C27)*1000,AL27) -> 0 | AA27: =+$W27*Energía!AA27*(1-$C27)*1000 -> 0 | AB27: =+$W27*Energía!AB27*(1-$C27)*1000 -> 0 | AC27: =+$W27*Energía!AC27*(1-$C27)*1000 -> 0 | AD27: =+SUMPRODUCT(Z27:AC27,PremisaCosto!$F$84:$I$84) -> 0 | AE27: =+IF($AK$3=1,Potencia!T27*$X27*12*1000*(1-$C27),AM27) -> 0 | AF27: =+Potencia!U27*$X27*12*1000*(1-$C27) -> 0 | AG27: =+Potencia!V27*$X27*12*1000*(1-$C27) -> 0 | AH27: =+Potencia!W27*$X27*12*1000*(1-$C27) -> 0 | AI27: =+SUMPRODUCT(AE27:AH27,PremisaCosto!$F$84:$I$84) -> 0 | AK27: MTD_1 x1 | AL27: 0 | AM27: 0 | AP27: =+Potencia!T28*$K28*12*1000*(1-$C28) -> 0
A28: =+PremisaCosto!A110 -> MTD_1 x2 | B28: =+PremisaCosto!H110 -> x2 | C28: =+IF(B28=0,0,VLOOKUP(B28,PremisaCosto!$A$69:$D$79,4,FALSE)) -> 0 | E28: 0.1839568291 | G28: 0 | H28: 1 | J28: 0 | K28: 11.28 | M28: =+$J28*((Energía!Z28-Clientes!T28*Límites!$B$16*12)+Clientes!T28*Límites!$B$16*12*(1-$C28))*1000 -> 0 | N28: =+$J28*((Energía!AA28-Clientes!U28*Límites!$B$16*12)+Clientes!U28*Límites!$B$16*12*(1-$C28))*1000 -> 0 | O28: =+$J28*((Energía!AB28-Clientes!V28*Límites!$B$16*12)+Clientes!V28*Límites!$B$16*12*(1-$C28))*1000 -> 0 | P28: =+$J28*((Energía!AC28-Clientes!W28*Límites!$B$16*12)+Clientes!W28*Límites!$B$16*12*(1-$C28))*1000 -> 0 | Q28: =+SUMPRODUCT(M28:P28,PremisaCosto!$F$84:$I$84) -> 0 | R28: =+Potencia!X28*$K28*12*1000*(1-$C28) -> 0 | T28: =IF(Q28=0,0,(IF($AK$3=1,$E28*$F$4*G28/$Q$20,($E28*$F$4*G28-$AL$20*PremisaCosto!$F$84)/($Q$20-$M$20*PremisaCosto!$F$84)))) -> 0 | U28: =IF(R28=0,0,IF($AK$3=1,$E28*$F$4*H28/$R$20,($E28*$F$4*H28-$AM$20*PremisaCosto!$F$84)/($R$20-$AP$19*PremisaCosto!$F$84))) -> 0 | W28: 0 | X28: 0 | Z28: =+IF($AK$3=1,$W28*((Energía!Z28-Clientes!T28*Límites!$B$16*12)+Clientes!T28*Límites!$B$16*12*(1-$C28))*1000,AL28) -> 0 | AA28: =+$W28*((Energía!AA28-Clientes!U28*Límites!$B$16*12)+Clientes!U28*Límites!$B$16*12*(1-$C28))*1000 -> 0 | AB28: =+$W28*((Energía!AB28-Clientes!V28*Límites!$B$16*12)+Clientes!V28*Límites!$B$16*12*(1-$C28))*1000 -> 0 | AC28: =+$W28*((Energía!AC28-Clientes!W28*Límites!$B$16*12)+Clientes!W28*Límites!$B$16*12*(1-$C28))*1000 -> 0 | AD28: =+SUMPRODUCT(Z28:AC28,PremisaCosto!$F$84:$I$84) -> 0 | AE28: =+IF($AK$3=1,Potencia!T28*$X28*12*1000*(1-$C28),AM28) -> 0 | AF28: =+Potencia!U28*$X28*12*1000*(1-$C28) -> 0 | AG28: =+Potencia!V28*$X28*12*1000*(1-$C28) -> 0 | AH28: =+Potencia!W28*$X28*12*1000*(1-$C28) -> 0 | AI28: =+SUMPRODUCT(AE28:AH28,PremisaCosto!$F$84:$I$84) -> 0 | AK28: MTD_1 x2 | AL28: 0 | AM28: 0 | AP28: =+Potencia!T29*$K29*12*1000*(1-$C29) -> 0
A29: =+PremisaCosto!A111 -> MTD_1 Discap. | B29: =+PremisaCosto!H111 -> Discap. | C29: =+IF(B29=0,0,VLOOKUP(B29,PremisaCosto!$A$69:$D$79,4,FALSE)) -> 0.25 | E29: 0.1839568291 | G29: 0 | H29: 1 | J29: 0 | K29: 11.28 | M29: =+$J29*Energía!Z29*(1-$C29)*1000 -> 0 | N29: =+$J29*Energía!AA29*(1-$C29)*1000 -> 0 | O29: =+$J29*Energía!AB29*(1-$C29)*1000 -> 0 | P29: =+$J29*Energía!AC29*(1-$C29)*1000 -> 0 | Q29: =+SUMPRODUCT(M29:P29,PremisaCosto!$F$84:$I$84) -> 0 | R29: =+Potencia!X29*$K29*12*1000*(1-$C29) -> 0 | T29: =IF(Q29=0,0,(IF($AK$3=1,$E29*$F$4*G29/$Q$20,($E29*$F$4*G29-$AL$20*PremisaCosto!$F$84)/($Q$20-$M$20*PremisaCosto!$F$84)))) -> 0 | U29: =IF(R29=0,0,IF($AK$3=1,$E29*$F$4*H29/$R$20,($E29*$F$4*H29-$AM$20*PremisaCosto!$F$84)/($R$20-$AP$19*PremisaCosto!$F$84))) -> 0 | W29: 0 | X29: 0 | Z29: =+IF($AK$3=1,$W29*Energía!Z29*(1-$C29)*1000,AL29) -> 0 | AA29: =+$W29*Energía!AA29*(1-$C29)*1000 -> 0 | AB29: =+$W29*Energía!AB29*(1-$C29)*1000 -> 0 | AC29: =+$W29*Energía!AC29*(1-$C29)*1000 -> 0 | AD29: =+SUMPRODUCT(Z29:AC29,PremisaCosto!$F$84:$I$84) -> 0 | AE29: =+IF($AK$3=1,Potencia!T29*$X29*12*1000*(1-$C29),AM29) -> 0 | AF29: =+Potencia!U29*$X29*12*1000*(1-$C29) -> 0 | AG29: =+Potencia!V29*$X29*12*1000*(1-$C29) -> 0 | AH29: =+Potencia!W29*$X29*12*1000*(1-$C29) -> 0 | AI29: =+SUMPRODUCT(AE29:AH29,PremisaCosto!$F$84:$I$84) -> 0 | AK29: MTD_1 Discap. | AL29: 0 | AM29: 0 | AP29: =+Potencia!T30*$K30*12*1000*(1-$C30) -> 0
A30: =+PremisaCosto!A112 -> MTD_1 Discapacitados 601-más | B30: =+PremisaCosto!H112 -> Discapacitados 601-más | C30: =+IF(B30=0,0,VLOOKUP(B30,PremisaCosto!$A$69:$D$79,4,FALSE)) -> 0.25 | E30: 0.1839568291 | G30: 0 | H30: 1 | J30: 0 | K30: 11.28 | M30: =+$J30*((Energía!Z30-Clientes!T30*Límites!$B$15*12)+Clientes!T30*Límites!$B$15*12*(1-$C30))*1000 -> 0 | N30: =+$J30*((Energía!AA30-Clientes!U30*Límites!$B$15*12)+Clientes!U30*Límites!$B$15*12*(1-$C30))*1000 -> 0 | O30: =+$J30*((Energía!AB30-Clientes!V30*Límites!$B$15*12)+Clientes!V30*Límites!$B$15*12*(1-$C30))*1000 -> 0 | P30: =+$J30*((Energía!AC30-Clientes!W30*Límites!$B$15*12)+Clientes!W30*Límites!$B$15*12*(1-$C30))*1000 -> 0 | Q30: =+SUMPRODUCT(M30:P30,PremisaCosto!$F$84:$I$84) -> 0 | R30: =+Potencia!X30*$K30*12*1000*(1-$C30) -> 0 | T30: =IF(Q30=0,0,(IF($AK$3=1,$E30*$F$4*G30/$Q$20,($E30*$F$4*G30-$AL$20*PremisaCosto!$F$84)/($Q$20-$M$20*PremisaCosto!$F$84)))) -> 0 | U30: =IF(R30=0,0,IF($AK$3=1,$E30*$F$4*H30/$R$20,($E30*$F$4*H30-$AM$20*PremisaCosto!$F$84)/($R$20-$AP$19*PremisaCosto!$F$84))) -> 0 | W30: 0 | X30: 0 | Z30: =+IF($AK$3=1,$W30*((Energía!Z30-Clientes!T30*Límites!$B$15*12)+Clientes!T30*Límites!$B$15*12*(1-$C30))*1000,AL30) -> 0 | AA30: =+$W30*((Energía!AA30-Clientes!U30*Límites!$B$15*12)+Clientes!U30*Límites!$B$15*12*(1-$C30))*1000 -> 0 | AB30: =+$W30*((Energía!AB30-Clientes!V30*Límites!$B$15*12)+Clientes!V30*Límites!$B$15*12*(1-$C30))*1000 -> 0 | AC30: =+$W30*((Energía!AC30-Clientes!W30*Límites!$B$15*12)+Clientes!W30*Límites!$B$15*12*(1-$C30))*1000 -> 0 | AD30: =+SUMPRODUCT(Z30:AC30,PremisaCosto!$F$84:$I$84) -> 0 | AE30: =+IF($AK$3=1,Potencia!T30*$X30*12*1000*(1-$C30),AM30) -> 0 | AF30: =+Potencia!U30*$X30*12*1000*(1-$C30) -> 0 | AG30: =+Potencia!V30*$X30*12*1000*(1-$C30) -> 0 | AH30: =+Potencia!W30*$X30*12*1000*(1-$C30) -> 0 | AI30: =+SUMPRODUCT(AE30:AH30,PremisaCosto!$F$84:$I$84) -> 0 | AK30: MTD_1 Discapacitados 601-más | AL30: 0 | AM30: 0 | AP30: =+Potencia!T31*$K31*12*1000*(1-$C31) -> 0
A31: =+PremisaCosto!A113 -> MTD_1 Cruz Roja | B31: =+PremisaCosto!H113 -> Cruz Roja | C31: =+IF(B31=0,0,VLOOKUP(B31,PremisaCosto!$A$69:$D$79,4,FALSE)) -> 1 | E31: 0.1839568291 | G31: 0 | H31: 1 | J31: 0 | K31: 11.28 | M31: =+$J31*Energía!Z31*(1-$C31)*1000 -> 0 | N31: =+$J31*Energía!AA31*(1-$C31)*1000 -> 0 | O31: =+$J31*Energía!AB31*(1-$C31)*1000 -> 0 | P31: =+$J31*Energía!AC31*(1-$C31)*1000 -> 0 | Q31: =+SUMPRODUCT(M31:P31,PremisaCosto!$F$84:$I$84) -> 0 | R31: =+Potencia!X31*$K31*12*1000*(1-$C31) -> 0 | T31: =IF(Q31=0,0,(IF($AK$3=1,$E31*$F$4*G31/$Q$20,($E31*$F$4*G31-$AL$20*PremisaCosto!$F$84)/($Q$20-$M$20*PremisaCosto!$F$84)))) -> 0 | U31: =IF(R31=0,0,IF($AK$3=1,$E31*$F$4*H31/$R$20,($E31*$F$4*H31-$AM$20*PremisaCosto!$F$84)/($R$20-$AP$19*PremisaCosto!$F$84))) -> 0 | W31: 0 | X31: 0 | Z31: =+IF($AK$3=1,$W31*Energía!Z31*(1-$C31)*1000,AL31) -> 0 | AA31: =+$W31*Energía!AA31*(1-$C31)*1000 -> 0 | AB31: =+$W31*Energía!AB31*(1-$C31)*1000 -> 0 | AC31: =+$W31*Energía!AC31*(1-$C31)*1000 -> 0 | AD31: =+SUMPRODUCT(Z31:AC31,PremisaCosto!$F$84:$I$84) -> 0 | AE31: =+IF($AK$3=1,Potencia!T31*$X31*12*1000*(1-$C31),AM31) -> 0 | AF31: =+Potencia!U31*$X31*12*1000*(1-$C31) -> 0 | AG31: =+Potencia!V31*$X31*12*1000*(1-$C31) -> 0 | AH31: =+Potencia!W31*$X31*12*1000*(1-$C31) -> 0 | AI31: =+SUMPRODUCT(AE31:AH31,PremisaCosto!$F$84:$I$84) -> 0 | AK31: MTD_1 Cruz Roja | AL31: 0 | AM31: 0 | AP31: =+SUM(AP32:AP41) -> 0
A32: =+PremisaCosto!A114 -> MTD_2 (10,001-30,000) | B32: =+PremisaCosto!H114 -> 0 | C32: =+IF(B32=0,0,VLOOKUP(B32,PremisaCosto!$A$69:$D$79,4,FALSE)) -> 0 | E32: 0.1839568291 | G32: 0 | H32: 1 | J32: 0 | K32: 11.28 | M32: =+SUM(M33:M42) -> 0 | N32: 0 | O32: 0 | P32: 0 | Q32: 0 | R32: 0 | T32: =IF(Q32=0,0,(IF($AK$3=1,$E32*$F$4*G32/$Q$20,($E32*$F$4*G32-$AL$20*PremisaCosto!$F$84)/($Q$20-$M$20*PremisaCosto!$F$84)))) -> 0 | U32: =IF(R32=0,0,IF($AK$3=1,$E32*$F$4*H32/$R$20,($E32*$F$4*H32-$AM$20*PremisaCosto!$F$84)/($R$20-$AP$19*PremisaCosto!$F$84))) -> 0 | W32: =+W33 -> 0 | X32: =+X33 -> 0 | Z32: =+SUM(Z33:Z42) -> 0 | AA32: =+SUM(AA33:AA42) -> 0 | AB32: =+SUM(AB33:AB42) -> 0 | AC32: =+SUM(AC33:AC42) -> 0 | AD32: =+SUM(AD33:AD42) -> 0 | AE32: 0 | AF32: 0 | AG32: 0 | AH32: 0 | AI32: =+SUM(AI33:AI42) -> 0 | AK32: MTD_2 (10,001-30,000) | AL32: 0 | AM32: 0 | AP32: =+Potencia!T33*$K33*12*1000*(1-$C33) -> 0
A33: =+PremisaCosto!A115 -> MTD_2 Regular | B33: =+PremisaCosto!H115 -> Regular | C33: =+IF(B33=0,0,VLOOKUP(B33,PremisaCosto!$A$69:$D$79,4,FALSE)) -> 0 | E33: 0.1839568291 | G33: 0 | H33: 1 | J33: =+J32 -> 0 | K33: =+K32 -> 11.28 | M33: =+($J33*(Energía!Z33-Clientes!T33*Límites!$B$6*12)+$J22*Clientes!T33*Límites!$B$6*12)*(1-$C33)*1000 -> 0 | N33: =+($J33*(Energía!AA33-Clientes!U33*Límites!$B$6*12)+$J22*Clientes!U33*Límites!$B$6*12)*(1-$C33)*1000 -> 0 | O33: =+($J33*(Energía!AB33-Clientes!V33*Límites!$B$6*12)+$J22*Clientes!V33*Límites!$B$6*12)*(1-$C33)*1000 -> 0 | P33: =+($J33*(Energía!AC33-Clientes!W33*Límites!$B$6*12)+$J22*Clientes!W33*Límites!$B$6*12)*(1-$C33)*1000 -> 0 | Q33: =+SUMPRODUCT(M33:P33,PremisaCosto!$F$84:$I$84) -> 0 | R33: =+Potencia!X33*$K33*12*1000*(1-$C33) -> 0 | T33: =IF(Q33=0,0,(IF($AK$3=1,$E33*$F$4*G33/$Q$20,($E33*$F$4*G33-$AL$20*PremisaCosto!$F$84)/($Q$20-$M$20*PremisaCosto!$F$84)))) -> 0 | U33: =IF(R33=0,0,IF($AK$3=1,$E33*$F$4*H33/$R$20,($E33*$F$4*H33-$AM$20*PremisaCosto!$F$84)/($R$20-$AP$19*PremisaCosto!$F$84))) -> 0 | W33: 0 | X33: 0 | Z33: =+($W33*(Energía!Z33-Clientes!T33*Límites!$B$6*12)+$W22*Clientes!T33*Límites!$B$6*12)*(1-$C33)*1000 -> 0 | AA33: =+($W33*(Energía!AA33-Clientes!U33*Límites!$B$6*12)+$W22*Clientes!U33*Límites!$B$6*12)*(1-$C33)*1000 -> 0 | AB33: =+($W33*(Energía!AB33-Clientes!V33*Límites!$B$6*12)+$W22*Clientes!V33*Límites!$B$6*12)*(1-$C33)*1000 -> 0 | AC33: =+($W33*(Energía!AC33-Clientes!W33*Límites!$B$6*12)+$W22*Clientes!W33*Límites!$B$6*12)*(1-$C33)*1000 -> 0 | AD33: =+SUMPRODUCT(Z33:AC33,PremisaCosto!$F$84:$I$84) -> 0 | AE33: =+IF($AK$3=1,Potencia!T33*$X33*12*1000*(1-$C33),AM33) -> 0 | AF33: =+Potencia!U33*$X33*12*1000*(1-$C33) -> 0 | AG33: =+Potencia!V33*$X33*12*1000*(1-$C33) -> 0 | AH33: =+Potencia!W33*$X33*12*1000*(1-$C33) -> 0 | AI33: =+SUMPRODUCT(AE33:AH33,PremisaCosto!$F$84:$I$84) -> 0 | AK33: MTD_2 Regular | AL33: 0 | AM33: 0 | AP33: =+Potencia!T34*$K34*12*1000*(1-$C34) -> 0
A34: =+PremisaCosto!A116 -> MTD_2 Agro | B34: =+PremisaCosto!H116 -> Agro | C34: =+IF(B34=0,0,VLOOKUP(B34,PremisaCosto!$A$69:$D$79,4,FALSE)) -> 0.05 | E34: 0.1839568291 | G34: 0 | H34: 1 | J34: =+J33 -> 0 | K34: 11.28 | M34: =+($J34*(Energía!Z34-Clientes!T34*Límites!$B$6*12)+$J23*Clientes!T34*Límites!$B$6*12)*(1-$C34)*1000 -> 0 | N34: =+($J34*(Energía!AA34-Clientes!U34*Límites!$B$6*12)+$J23*Clientes!U34*Límites!$B$6*12)*(1-$C34)*1000 -> 0 | O34: =+($J34*(Energía!AB34-Clientes!V34*Límites!$B$6*12)+$J23*Clientes!V34*Límites!$B$6*12)*(1-$C34)*1000 -> 0 | P34: =+($J34*(Energía!AC34-Clientes!W34*Límites!$B$6*12)+$J23*Clientes!W34*Límites!$B$6*12)*(1-$C34)*1000 -> 0 | Q34: =+SUMPRODUCT(M34:P34,PremisaCosto!$F$84:$I$84) -> 0 | R34: =+Potencia!X34*$K34*12*1000*(1-$C34) -> 0 | T34: =IF(Q34=0,0,(IF($AK$3=1,$E34*$F$4*G34/$Q$20,($E34*$F$4*G34-$AL$20*PremisaCosto!$F$84)/($Q$20-$M$20*PremisaCosto!$F$84)))) -> 0 | U34: =IF(R34=0,0,IF($AK$3=1,$E34*$F$4*H34/$R$20,($E34*$F$4*H34-$AM$20*PremisaCosto!$F$84)/($R$20-$AP$19*PremisaCosto!$F$84))) -> 0 | W34: 0 | X34: 0 | Z34: =+($W34*(Energía!Z34-Clientes!T34*Límites!$B$6*12)+$W23*Clientes!T34*Límites!$B$6*12)*(1-$C34)*1000 -> 0 | AA34: =+($W34*(Energía!AA34-Clientes!U34*Límites!$B$6*12)+$W23*Clientes!U34*Límites!$B$6*12)*(1-$C34)*1000 -> 0 | AB34: =+($W34*(Energía!AB34-Clientes!V34*Límites!$B$6*12)+$W23*Clientes!V34*Límites!$B$6*12)*(1-$C34)*1000 -> 0 | AC34: =+($W34*(Energía!AC34-Clientes!W34*Límites!$B$6*12)+$W23*Clientes!W34*Límites!$B$6*12)*(1-$C34)*1000 -> 0 | AD34: =+SUMPRODUCT(Z34:AC34,PremisaCosto!$F$84:$I$84) -> 0 | AE34: =+IF($AK$3=1,Potencia!T34*$X34*12*1000*(1-$C34),AM34) -> 0 | AF34: =+Potencia!U34*$X34*12*1000*(1-$C34) -> 0 | AG34: =+Potencia!V34*$X34*12*1000*(1-$C34) -> 0 | AH34: =+Potencia!W34*$X34*12*1000*(1-$C34) -> 0 | AI34: =+SUMPRODUCT(AE34:AH34,PremisaCosto!$F$84:$I$84) -> 0 | AK34: MTD_2 Agro | AL34: 0 | AM34: 0 | AP34: =+Potencia!T35*$K35*12*1000*(1-$C35) -> 0
A35: =+PremisaCosto!A117 -> MTD_2 Jub. 1 | B35: =+PremisaCosto!H117 -> Jub. 1 | C35: =+IF(B35=0,0,VLOOKUP(B35,PremisaCosto!$A$69:$D$79,4,FALSE)) -> 0.25 | E35: 0.1839568291 | G35: 0 | H35: 1 | J35: 0 | K35: 11.28 | M35: =+($J35*(Energía!Z35-Clientes!T35*Límites!$B$6*12)+$J24*Clientes!T35*Límites!$B$6*12)*(1-$C35)*1000 -> 0 | N35: =+($J35*(Energía!AA35-Clientes!U35*Límites!$B$6*12)+$J24*Clientes!U35*Límites!$B$6*12)*(1-$C35)*1000 -> 0 | O35: =+($J35*(Energía!AB35-Clientes!V35*Límites!$B$6*12)+$J24*Clientes!V35*Límites!$B$6*12)*(1-$C35)*1000 -> 0 | P35: =+($J35*(Energía!AC35-Clientes!W35*Límites!$B$6*12)+$J24*Clientes!W35*Límites!$B$6*12)*(1-$C35)*1000 -> 0 | Q35: =+SUMPRODUCT(M35:P35,PremisaCosto!$F$84:$I$84) -> 0 | R35: =+Potencia!X35*$K35*12*1000*(1-$C35) -> 0 | T35: =IF(Q35=0,0,(IF($AK$3=1,$E35*$F$4*G35/$Q$20,($E35*$F$4*G35-$AL$20*PremisaCosto!$F$84)/($Q$20-$M$20*PremisaCosto!$F$84)))) -> 0 | U35: =IF(R35=0,0,IF($AK$3=1,$E35*$F$4*H35/$R$20,($E35*$F$4*H35-$AM$20*PremisaCosto!$F$84)/($R$20-$AP$19*PremisaCosto!$F$84))) -> 0 | W35: 0 | X35: 0 | Z35: =+($W35*(Energía!Z35-Clientes!T35*Límites!$B$6*12)+$W24*Clientes!T35*Límites!$B$6*12)*(1-$C35)*1000 -> 0 | AA35: =+($W35*(Energía!AA35-Clientes!U35*Límites!$B$6*12)+$W24*Clientes!U35*Límites!$B$6*12)*(1-$C35)*1000 -> 0 | AB35: =+($W35*(Energía!AB35-Clientes!V35*Límites!$B$6*12)+$W24*Clientes!V35*Límites!$B$6*12)*(1-$C35)*1000 -> 0 | AC35: =+($W35*(Energía!AC35-Clientes!W35*Límites!$B$6*12)+$W24*Clientes!W35*Límites!$B$6*12)*(1-$C35)*1000 -> 0 | AD35: =+SUMPRODUCT(Z35:AC35,PremisaCosto!$F$84:$I$84) -> 0 | AE35: =+IF($AK$3=1,Potencia!T35*$X35*12*1000*(1-$C35),AM35) -> 0 | AF35: =+Potencia!U35*$X35*12*1000*(1-$C35) -> 0 | AG35: =+Potencia!V35*$X35*12*1000*(1-$C35) -> 0 | AH35: =+Potencia!W35*$X35*12*1000*(1-$C35) -> 0 | AI35: =+SUMPRODUCT(AE35:AH35,PremisaCosto!$F$84:$I$84) -> 0 | AK35: MTD_2 Jub. 1 | AL35: 0 | AM35: 0 | AP35: =+Potencia!T36*$K36*12*1000*(1-$C36) -> 0
A36: =+PremisaCosto!A118 -> MTD_2 Jub. 2 | B36: =+PremisaCosto!H118 -> Jub. 2 | C36: =+IF(B36=0,0,VLOOKUP(B36,PremisaCosto!$A$69:$D$79,4,FALSE)) -> 0.25 | E36: 0.1839568291 | G36: 0 | H36: =+H35 -> 1 | J36: 0 | K36: 11.28 | M36: =+($J36*(Energía!Z36-Clientes!T36*Límites!$B$6*12)+$J25*Clientes!T36*Límites!$B$6*12)*(1-$C36)*1000 -> 0 | N36: =+($J36*(Energía!AA36-Clientes!U36*Límites!$B$6*12)+$J25*Clientes!U36*Límites!$B$6*12)*(1-$C36)*1000 -> 0 | O36: =+($J36*(Energía!AB36-Clientes!V36*Límites!$B$6*12)+$J25*Clientes!V36*Límites!$B$6*12)*(1-$C36)*1000 -> 0 | P36: =+($J36*(Energía!AC36-Clientes!W36*Límites!$B$6*12)+$J25*Clientes!W36*Límites!$B$6*12)*(1-$C36)*1000 -> 0 | Q36: =+SUMPRODUCT(M36:P36,PremisaCosto!$F$84:$I$84) -> 0 | R36: =+Potencia!X36*$K36*12*1000*(1-$C36) -> 0 | T36: =IF(Q36=0,0,(IF($AK$3=1,$E36*$F$4*G36/$Q$20,($E36*$F$4*G36-$AL$20*PremisaCosto!$F$84)/($Q$20-$M$20*PremisaCosto!$F$84)))) -> 0 | U36: =IF(R36=0,0,IF($AK$3=1,$E36*$F$4*H36/$R$20,($E36*$F$4*H36-$AM$20*PremisaCosto!$F$84)/($R$20-$AP$19*PremisaCosto!$F$84))) -> 0 | W36: 0 | X36: 0 | Z36: =+($W36*(Energía!Z36-Clientes!T36*Límites!$B$6*12)+$W25*Clientes!T36*Límites!$B$6*12)*(1-$C36)*1000 -> 0 | AA36: =+($W36*(Energía!AA36-Clientes!U36*Límites!$B$6*12)+$W25*Clientes!U36*Límites!$B$6*12)*(1-$C36)*1000 -> 0 | AB36: =+($W36*(Energía!AB36-Clientes!V36*Límites!$B$6*12)+$W25*Clientes!V36*Límites!$B$6*12)*(1-$C36)*1000 -> 0 | AC36: =+($W36*(Energía!AC36-Clientes!W36*Límites!$B$6*12)+$W25*Clientes!W36*Límites!$B$6*12)*(1-$C36)*1000 -> 0 | AD36: =+SUMPRODUCT(Z36:AC36,PremisaCosto!$F$84:$I$84) -> 0 | AE36: =+IF($AK$3=1,Potencia!T36*$X36*12*1000*(1-$C36),AM36) -> 0 | AF36: =+Potencia!U36*$X36*12*1000*(1-$C36) -> 0 | AG36: =+Potencia!V36*$X36*12*1000*(1-$C36) -> 0 | AH36: =+Potencia!W36*$X36*12*1000*(1-$C36) -> 0 | AI36: =+SUMPRODUCT(AE36:AH36,PremisaCosto!$F$84:$I$84) -> 0 | AK36: MTD_2 Jub. 2 | AL36: 0 | AM36: 0 | AP36: =+Potencia!T37*$K37*12*1000*(1-$C37) -> 0
A37: =+PremisaCosto!A119 -> MTD_2 Político | B37: =+PremisaCosto!H119 -> Político | C37: =+IF(B37=0,0,VLOOKUP(B37,PremisaCosto!$A$69:$D$79,4,FALSE)) -> 0.5 | E37: 0.1839568291 | G37: 0 | H37: 1 | J37: 0 | K37: 11.28 | M37: =+($J37*(Energía!Z37-Clientes!T37*Límites!$B$6*12)+$J26*Clientes!T37*Límites!$B$6*12)*(1-$C37)*1000 -> 0 | N37: =+($J37*(Energía!AA37-Clientes!U37*Límites!$B$6*12)+$J26*Clientes!U37*Límites!$B$6*12)*(1-$C37)*1000 -> 0 | O37: =+($J37*(Energía!AB37-Clientes!V37*Límites!$B$6*12)+$J26*Clientes!V37*Límites!$B$6*12)*(1-$C37)*1000 -> 0 | P37: =+($J37*(Energía!AC37-Clientes!W37*Límites!$B$6*12)+$J26*Clientes!W37*Límites!$B$6*12)*(1-$C37)*1000 -> 0 | Q37: =+SUMPRODUCT(M37:P37,PremisaCosto!$F$84:$I$84) -> 0 | R37: =+Potencia!X37*$K37*12*1000*(1-$C37) -> 0 | T37: =IF(Q37=0,0,(IF($AK$3=1,$E37*$F$4*G37/$Q$20,($E37*$F$4*G37-$AL$20*PremisaCosto!$F$84)/($Q$20-$M$20*PremisaCosto!$F$84)))) -> 0 | U37: =IF(R37=0,0,IF($AK$3=1,$E37*$F$4*H37/$R$20,($E37*$F$4*H37-$AM$20*PremisaCosto!$F$84)/($R$20-$AP$19*PremisaCosto!$F$84))) -> 0 | W37: 0 | X37: 0 | Z37: =+($W37*(Energía!Z37-Clientes!T37*Límites!$B$6*12)+$W26*Clientes!T37*Límites!$B$6*12)*(1-$C37)*1000 -> 0 | AA37: =+($W37*(Energía!AA37-Clientes!U37*Límites!$B$6*12)+$W26*Clientes!U37*Límites!$B$6*12)*(1-$C37)*1000 -> 0 | AB37: =+($W37*(Energía!AB37-Clientes!V37*Límites!$B$6*12)+$W26*Clientes!V37*Límites!$B$6*12)*(1-$C37)*1000 -> 0 | AC37: =+($W37*(Energía!AC37-Clientes!W37*Límites!$B$6*12)+$W26*Clientes!W37*Límites!$B$6*12)*(1-$C37)*1000 -> 0 | AD37: =+SUMPRODUCT(Z37:AC37,PremisaCosto!$F$84:$I$84) -> 0 | AE37: =+IF($AK$3=1,Potencia!T37*$X37*12*1000*(1-$C37),AM37) -> 0 | AF37: =+Potencia!U37*$X37*12*1000*(1-$C37) -> 0 | AG37: =+Potencia!V37*$X37*12*1000*(1-$C37) -> 0 | AH37: =+Potencia!W37*$X37*12*1000*(1-$C37) -> 0 | AI37: =+SUMPRODUCT(AE37:AH37,PremisaCosto!$F$84:$I$84) -> 0 | AK37: MTD_2 Político | AL37: 0 | AM37: 0 | AP37: =+Potencia!T38*$K38*12*1000*(1-$C38) -> 0
A38: =+PremisaCosto!A120 -> MTD_2 x1 | B38: =+PremisaCosto!H120 -> x1 | C38: =+IF(B38=0,0,VLOOKUP(B38,PremisaCosto!$A$69:$D$79,4,FALSE)) -> 0 | E38: 0.1839568291 | G38: 0 | H38: 1 | J38: 0 | K38: 11.28 | M38: =+($J38*(Energía!Z38-Clientes!T38*Límites!$B$6*12)+$J27*Clientes!T38*Límites!$B$6*12)*(1-$C38)*1000 -> 0 | N38: =+($J38*(Energía!AA38-Clientes!U38*Límites!$B$6*12)+$J27*Clientes!U38*Límites!$B$6*12)*(1-$C38)*1000 -> 0 | O38: =+($J38*(Energía!AB38-Clientes!V38*Límites!$B$6*12)+$J27*Clientes!V38*Límites!$B$6*12)*(1-$C38)*1000 -> 0 | P38: =+($J38*(Energía!AC38-Clientes!W38*Límites!$B$6*12)+$J27*Clientes!W38*Límites!$B$6*12)*(1-$C38)*1000 -> 0 | Q38: =+SUMPRODUCT(M38:P38,PremisaCosto!$F$84:$I$84) -> 0 | R38: =+Potencia!X38*$K38*12*1000*(1-$C38) -> 0 | T38: =IF(Q38=0,0,(IF($AK$3=1,$E38*$F$4*G38/$Q$20,($E38*$F$4*G38-$AL$20*PremisaCosto!$F$84)/($Q$20-$M$20*PremisaCosto!$F$84)))) -> 0 | U38: =IF(R38=0,0,IF($AK$3=1,$E38*$F$4*H38/$R$20,($E38*$F$4*H38-$AM$20*PremisaCosto!$F$84)/($R$20-$AP$19*PremisaCosto!$F$84))) -> 0 | W38: 0 | X38: 0 | Z38: =+($W38*(Energía!Z38-Clientes!T38*Límites!$B$6*12)+$W27*Clientes!T38*Límites!$B$6*12)*(1-$C38)*1000 -> 0 | AA38: =+($W38*(Energía!AA38-Clientes!U38*Límites!$B$6*12)+$W27*Clientes!U38*Límites!$B$6*12)*(1-$C38)*1000 -> 0 | AB38: =+($W38*(Energía!AB38-Clientes!V38*Límites!$B$6*12)+$W27*Clientes!V38*Límites!$B$6*12)*(1-$C38)*1000 -> 0 | AC38: =+($W38*(Energía!AC38-Clientes!W38*Límites!$B$6*12)+$W27*Clientes!W38*Límites!$B$6*12)*(1-$C38)*1000 -> 0 | AD38: =+SUMPRODUCT(Z38:AC38,PremisaCosto!$F$84:$I$84) -> 0 | AE38: =+IF($AK$3=1,Potencia!T38*$X38*12*1000*(1-$C38),AM38) -> 0 | AF38: =+Potencia!U38*$X38*12*1000*(1-$C38) -> 0 | AG38: =+Potencia!V38*$X38*12*1000*(1-$C38) -> 0 | AH38: =+Potencia!W38*$X38*12*1000*(1-$C38) -> 0 | AI38: =+SUMPRODUCT(AE38:AH38,PremisaCosto!$F$84:$I$84) -> 0 | AK38: MTD_2 x1 | AL38: 0 | AM38: 0 | AP38: =+Potencia!T39*$K39*12*1000*(1-$C39) -> 0
A39: =+PremisaCosto!A121 -> MTD_2 x2 | B39: =+PremisaCosto!H121 -> x2 | C39: =+IF(B39=0,0,VLOOKUP(B39,PremisaCosto!$A$69:$D$79,4,FALSE)) -> 0 | E39: 0.1839568291 | G39: 0 | H39: 1 | J39: 0 | K39: 11.28 | M39: =+($J39*(Energía!Z39-Clientes!T39*Límites!$B$6*12)+$J28*Clientes!T39*Límites!$B$6*12)*(1-$C39)*1000 -> 0 | N39: =+($J39*(Energía!AA39-Clientes!U39*Límites!$B$6*12)+$J28*Clientes!U39*Límites!$B$6*12)*(1-$C39)*1000 -> 0 | O39: =+($J39*(Energía!AB39-Clientes!V39*Límites!$B$6*12)+$J28*Clientes!V39*Límites!$B$6*12)*(1-$C39)*1000 -> 0 | P39: =+($J39*(Energía!AC39-Clientes!W39*Límites!$B$6*12)+$J28*Clientes!W39*Límites!$B$6*12)*(1-$C39)*1000 -> 0 | Q39: =+SUMPRODUCT(M39:P39,PremisaCosto!$F$84:$I$84) -> 0 | R39: =+Potencia!X39*$K39*12*1000*(1-$C39) -> 0 | T39: =IF(Q39=0,0,(IF($AK$3=1,$E39*$F$4*G39/$Q$20,($E39*$F$4*G39-$AL$20*PremisaCosto!$F$84)/($Q$20-$M$20*PremisaCosto!$F$84)))) -> 0 | U39: =IF(R39=0,0,IF($AK$3=1,$E39*$F$4*H39/$R$20,($E39*$F$4*H39-$AM$20*PremisaCosto!$F$84)/($R$20-$AP$19*PremisaCosto!$F$84))) -> 0 | W39: 0 | X39: 0 | Z39: =+($W39*(Energía!Z39-Clientes!T39*Límites!$B$6*12)+$W28*Clientes!T39*Límites!$B$6*12)*(1-$C39)*1000 -> 0 | AA39: =+($W39*(Energía!AA39-Clientes!U39*Límites!$B$6*12)+$W28*Clientes!U39*Límites!$B$6*12)*(1-$C39)*1000 -> 0 | AB39: =+($W39*(Energía!AB39-Clientes!V39*Límites!$B$6*12)+$W28*Clientes!V39*Límites!$B$6*12)*(1-$C39)*1000 -> 0 | AC39: =+($W39*(Energía!AC39-Clientes!W39*Límites!$B$6*12)+$W28*Clientes!W39*Límites!$B$6*12)*(1-$C39)*1000 -> 0 | AD39: =+SUMPRODUCT(Z39:AC39,PremisaCosto!$F$84:$I$84) -> 0 | AE39: =+IF($AK$3=1,Potencia!T39*$X39*12*1000*(1-$C39),AM39) -> 0 | AF39: =+Potencia!U39*$X39*12*1000*(1-$C39) -> 0 | AG39: =+Potencia!V39*$X39*12*1000*(1-$C39) -> 0 | AH39: =+Potencia!W39*$X39*12*1000*(1-$C39) -> 0 | AI39: =+SUMPRODUCT(AE39:AH39,PremisaCosto!$F$84:$I$84) -> 0 | AK39: MTD_2 x2 | AL39: 0 | AM39: 0 | AP39: =+Potencia!T40*$K40*12*1000*(1-$C40) -> 0
A40: =+PremisaCosto!A122 -> MTD_2 Discap. | B40: =+PremisaCosto!H122 -> Discap. | C40: =+IF(B40=0,0,VLOOKUP(B40,PremisaCosto!$A$69:$D$79,4,FALSE)) -> 0.25 | E40: 0.1839568291 | G40: 0 | H40: 1 | J40: 0 | K40: 11.28 | M40: =+($J40*(Energía!Z40-Clientes!T40*Límites!$B$6*12)+$J29*Clientes!T40*Límites!$B$6*12)*(1-$C40)*1000 -> 0 | N40: =+($J40*(Energía!AA40-Clientes!U40*Límites!$B$6*12)+$J29*Clientes!U40*Límites!$B$6*12)*(1-$C40)*1000 -> 0 | O40: =+($J40*(Energía!AB40-Clientes!V40*Límites!$B$6*12)+$J29*Clientes!V40*Límites!$B$6*12)*(1-$C40)*1000 -> 0 | P40: =+($J40*(Energía!AC40-Clientes!W40*Límites!$B$6*12)+$J29*Clientes!W40*Límites!$B$6*12)*(1-$C40)*1000 -> 0 | Q40: =+SUMPRODUCT(M40:P40,PremisaCosto!$F$84:$I$84) -> 0 | R40: =+Potencia!X40*$K40*12*1000*(1-$C40) -> 0 | T40: =IF(Q40=0,0,(IF($AK$3=1,$E40*$F$4*G40/$Q$20,($E40*$F$4*G40-$AL$20*PremisaCosto!$F$84)/($Q$20-$M$20*PremisaCosto!$F$84)))) -> 0 | U40: =IF(R40=0,0,IF($AK$3=1,$E40*$F$4*H40/$R$20,($E40*$F$4*H40-$AM$20*PremisaCosto!$F$84)/($R$20-$AP$19*PremisaCosto!$F$84))) -> 0 | W40: 0 | X40: 0 | Z40: =+($W40*(Energía!Z40-Clientes!T40*Límites!$B$6*12)+$W29*Clientes!T40*Límites!$B$6*12)*(1-$C40)*1000 -> 0 | AA40: =+($W40*(Energía!AA40-Clientes!U40*Límites!$B$6*12)+$W29*Clientes!U40*Límites!$B$6*12)*(1-$C40)*1000 -> 0 | AB40: =+($W40*(Energía!AB40-Clientes!V40*Límites!$B$6*12)+$W29*Clientes!V40*Límites!$B$6*12)*(1-$C40)*1000 -> 0 | AC40: =+($W40*(Energía!AC40-Clientes!W40*Límites!$B$6*12)+$W29*Clientes!W40*Límites!$B$6*12)*(1-$C40)*1000 -> 0 | AD40: =+SUMPRODUCT(Z40:AC40,PremisaCosto!$F$84:$I$84) -> 0 | AE40: =+IF($AK$3=1,Potencia!T40*$X40*12*1000*(1-$C40),AM40) -> 0 | AF40: =+Potencia!U40*$X40*12*1000*(1-$C40) -> 0 | AG40: =+Potencia!V40*$X40*12*1000*(1-$C40) -> 0 | AH40: =+Potencia!W40*$X40*12*1000*(1-$C40) -> 0 | AI40: =+SUMPRODUCT(AE40:AH40,PremisaCosto!$F$84:$I$84) -> 0 | AK40: MTD_2 Discap. | AL40: 0 | AM40: 0 | AP40: =+Potencia!T41*$K41*12*1000*(1-$C41) -> 0
A41: =+PremisaCosto!A123 -> MTD_2 Discapacitados 601-más | B41: =+PremisaCosto!H123 -> Discapacitados 601-más | C41: =+IF(B41=0,0,VLOOKUP(B41,PremisaCosto!$A$69:$D$79,4,FALSE)) -> 0.25 | E41: 0.1839568291 | G41: 0 | H41: 1 | J41: 0 | K41: 11.28 | M41: =+($J41*(Energía!Z41-Clientes!T41*Límites!$B$6*12)+$J30*Clientes!T41*Límites!$B$6*12)*(1-$C41)*1000 -> 0 | N41: =+($J41*(Energía!AA41-Clientes!U41*Límites!$B$6*12)+$J30*Clientes!U41*Límites!$B$6*12)*(1-$C41)*1000 -> 0 | O41: =+($J41*(Energía!AB41-Clientes!V41*Límites!$B$6*12)+$J30*Clientes!V41*Límites!$B$6*12)*(1-$C41)*1000 -> 0 | P41: =+($J41*(Energía!AC41-Clientes!W41*Límites!$B$6*12)+$J30*Clientes!W41*Límites!$B$6*12)*(1-$C41)*1000 -> 0 | Q41: =+SUMPRODUCT(M41:P41,PremisaCosto!$F$84:$I$84) -> 0 | R41: =+Potencia!X41*$K41*12*1000*(1-$C41) -> 0 | T41: =IF(Q41=0,0,(IF($AK$3=1,$E41*$F$4*G41/$Q$20,($E41*$F$4*G41-$AL$20*PremisaCosto!$F$84)/($Q$20-$M$20*PremisaCosto!$F$84)))) -> 0 | U41: =IF(R41=0,0,IF($AK$3=1,$E41*$F$4*H41/$R$20,($E41*$F$4*H41-$AM$20*PremisaCosto!$F$84)/($R$20-$AP$19*PremisaCosto!$F$84))) -> 0 | W41: 0 | X41: 0 | Z41: =+($W41*(Energía!Z41-Clientes!T41*Límites!$B$6*12)+$W30*Clientes!T41*Límites!$B$6*12)*(1-$C41)*1000 -> 0 | AA41: =+($W41*(Energía!AA41-Clientes!U41*Límites!$B$6*12)+$W30*Clientes!U41*Límites!$B$6*12)*(1-$C41)*1000 -> 0 | AB41: =+($W41*(Energía!AB41-Clientes!V41*Límites!$B$6*12)+$W30*Clientes!V41*Límites!$B$6*12)*(1-$C41)*1000 -> 0 | AC41: =+($W41*(Energía!AC41-Clientes!W41*Límites!$B$6*12)+$W30*Clientes!W41*Límites!$B$6*12)*(1-$C41)*1000 -> 0 | AD41: =+SUMPRODUCT(Z41:AC41,PremisaCosto!$F$84:$I$84) -> 0 | AE41: =+IF($AK$3=1,Potencia!T41*$X41*12*1000*(1-$C41),AM41) -> 0 | AF41: =+Potencia!U41*$X41*12*1000*(1-$C41) -> 0 | AG41: =+Potencia!V41*$X41*12*1000*(1-$C41) -> 0 | AH41: =+Potencia!W41*$X41*12*1000*(1-$C41) -> 0 | AI41: =+SUMPRODUCT(AE41:AH41,PremisaCosto!$F$84:$I$84) -> 0 | AK41: MTD_2 Discapacitados 601-más | AL41: 0 | AM41: 0 | AP41: =+Potencia!T42*$K42*12*1000*(1-$C42) -> 0
A42: =+PremisaCosto!A124 -> MTD_2 Cruz Roja | B42: =+PremisaCosto!H124 -> Cruz Roja | C42: =+IF(B42=0,0,VLOOKUP(B42,PremisaCosto!$A$69:$D$79,4,FALSE)) -> 1 | E42: 0.1839568291 | G42: 0 | H42: 1 | J42: 0 | K42: 11.28 | M42: =+($J42*(Energía!Z42-Clientes!T42*Límites!$B$6*12)+$J31*Clientes!T42*Límites!$B$6*12)*(1-$C42)*1000 -> 0 | N42: =+($J42*(Energía!AA42-Clientes!U42*Límites!$B$6*12)+$J31*Clientes!U42*Límites!$B$6*12)*(1-$C42)*1000 -> 0 | O42: =+($J42*(Energía!AB42-Clientes!V42*Límites!$B$6*12)+$J31*Clientes!V42*Límites!$B$6*12)*(1-$C42)*1000 -> 0 | P42: =+($J42*(Energía!AC42-Clientes!W42*Límites!$B$6*12)+$J31*Clientes!W42*Límites!$B$6*12)*(1-$C42)*1000 -> 0 | Q42: =+SUMPRODUCT(M42:P42,PremisaCosto!$F$84:$I$84) -> 0 | R42: =+Potencia!X42*$K42*12*1000*(1-$C42) -> 0 | T42: =IF(Q42=0,0,(IF($AK$3=1,$E42*$F$4*G42/$Q$20,($E42*$F$4*G42-$AL$20*PremisaCosto!$F$84)/($Q$20-$M$20*PremisaCosto!$F$84)))) -> 0 | U42: =IF(R42=0,0,IF($AK$3=1,$E42*$F$4*H42/$R$20,($E42*$F$4*H42-$AM$20*PremisaCosto!$F$84)/($R$20-$AP$19*PremisaCosto!$F$84))) -> 0 | W42: 0 | X42: 0 | Z42: =+($W42*(Energía!Z42-Clientes!T42*Límites!$B$6*12)+$W31*Clientes!T42*Límites!$B$6*12)*(1-$C42)*1000 -> 0 | AA42: =+($W42*(Energía!AA42-Clientes!U42*Límites!$B$6*12)+$W31*Clientes!U42*Límites!$B$6*12)*(1-$C42)*1000 -> 0 | AB42: =+($W42*(Energía!AB42-Clientes!V42*Límites!$B$6*12)+$W31*Clientes!V42*Límites!$B$6*12)*(1-$C42)*1000 -> 0 | AC42: =+($W42*(Energía!AC42-Clientes!W42*Límites!$B$6*12)+$W31*Clientes!W42*Límites!$B$6*12)*(1-$C42)*1000 -> 0 | AD42: =+SUMPRODUCT(Z42:AC42,PremisaCosto!$F$84:$I$84) -> 0 | AE42: =+IF($AK$3=1,Potencia!T42*$X42*12*1000*(1-$C42),AM42) -> 0 | AF42: =+Potencia!U42*$X42*12*1000*(1-$C42) -> 0 | AG42: =+Potencia!V42*$X42*12*1000*(1-$C42) -> 0 | AH42: =+Potencia!W42*$X42*12*1000*(1-$C42) -> 0 | AI42: =+SUMPRODUCT(AE42:AH42,PremisaCosto!$F$84:$I$84) -> 0 | AK42: MTD_2 Cruz Roja | AL42: 0 | AM42: 0 | AP42: =+SUM(AP43:AP52) -> 0
A43: =+PremisaCosto!A125 -> MTD_3 (30,001-50,000) | B43: =+PremisaCosto!H125 -> 0 | C43: =+IF(B43=0,0,VLOOKUP(B43,PremisaCosto!$A$69:$D$79,4,FALSE)) -> 0 | E43: 0.1839568291 | G43: 0 | H43: 1 | J43: 0 | K43: 11.28 | M43: =+SUM(M44:M53) -> 0 | N43: 0 | O43: 0 | P43: 0 | Q43: 0 | R43: 0 | T43: =IF(Q43=0,0,(IF($AK$3=1,$E43*$F$4*G43/$Q$20,($E43*$F$4*G43-$AL$20*PremisaCosto!$F$84)/($Q$20-$M$20*PremisaCosto!$F$84)))) -> 0 | U43: =IF(R43=0,0,IF($AK$3=1,$E43*$F$4*H43/$R$20,($E43*$F$4*H43-$AM$20*PremisaCosto!$F$84)/($R$20-$AP$19*PremisaCosto!$F$84))) -> 0 | W43: 0 | X43: 0 | Z43: =+SUM(Z44:Z53) -> 0 | AA43: =+SUM(AA44:AA53) -> 0 | AB43: =+SUM(AB44:AB53) -> 0 | AC43: =+SUM(AC44:AC53) -> 0 | AD43: =+SUM(AD44:AD53) -> 0 | AE43: 0 | AF43: 0 | AG43: 0 | AH43: 0 | AI43: =+SUM(AI44:AI53) -> 0 | AK43: MTD_3 (30,001-50,000) | AL43: 0 | AM43: 0 | AP43: =+Potencia!T44*$K44*12*1000*(1-$C44) -> 0
A44: =+PremisaCosto!A126 -> MTD_3 Regular | B44: =+PremisaCosto!H126 -> Regular | C44: =+IF(B44=0,0,VLOOKUP(B44,PremisaCosto!$A$69:$D$79,4,FALSE)) -> 0 | E44: 0.1839568291 | G44: 0 | H44: 1 | J44: =+J43 -> 0 | K44: =+K43 -> 11.28 | M44: =+($J44*(Energía!Z44-Clientes!T44*Límites!$C$6*12)+$J33*(Límites!$C$6-Límites!$B$6)*Clientes!T44*12+$J22*Clientes!T44*Límites!$B$6*12)*(1-$C44)*1000 -> 0 | N44: =+($J44*(Energía!AA44-Clientes!U44*Límites!$C$6*12)+$J33*(Límites!$C$6-Límites!$B$6)*Clientes!U44*12+$J22*Clientes!U44*Límites!$B$6*12)*(1-$C44)*1000 -> 0 | O44: =+($J44*(Energía!AB44-Clientes!V44*Límites!$C$6*12)+$J33*(Límites!$C$6-Límites!$B$6)*Clientes!V44*12+$J22*Clientes!V44*Límites!$B$6*12)*(1-$C44)*1000 -> 0 | P44: =+($J44*(Energía!AC44-Clientes!W44*Límites!$C$6*12)+$J33*(Límites!$C$6-Límites!$B$6)*Clientes!W44*12+$J22*Clientes!W44*Límites!$B$6*12)*(1-$C44)*1000 -> 0 | Q44: =+SUMPRODUCT(M44:P44,PremisaCosto!$F$84:$I$84) -> 0 | R44: =+Potencia!X44*$K44*12*1000*(1-$C44) -> 0 | T44: =IF(Q44=0,0,(IF($AK$3=1,$E44*$F$4*G44/$Q$20,($E44*$F$4*G44-$AL$20*PremisaCosto!$F$84)/($Q$20-$M$20*PremisaCosto!$F$84)))) -> 0 | U44: =IF(R44=0,0,IF($AK$3=1,$E44*$F$4*H44/$R$20,($E44*$F$4*H44-$AM$20*PremisaCosto!$F$84)/($R$20-$AP$19*PremisaCosto!$F$84))) -> 0 | W44: 0 | X44: 0 | Z44: =+($W44*(Energía!Z44-Clientes!T44*Límites!$C$6*12)+$W33*(Límites!$C$6-Límites!$B$6)*Clientes!T44*12+$W22*Clientes!T44*Límites!$B$6*12)*(1-$C44)*1000 -> 0 | AA44: =+($W44*(Energía!AA44-Clientes!U44*Límites!$C$6*12)+$W33*(Límites!$C$6-Límites!$B$6)*Clientes!U44*12+$W22*Clientes!U44*Límites!$B$6*12)*(1-$C44)*1000 -> 0 | AB44: =+($W44*(Energía!AB44-Clientes!V44*Límites!$C$6*12)+$W33*(Límites!$C$6-Límites!$B$6)*Clientes!V44*12+$W22*Clientes!V44*Límites!$B$6*12)*(1-$C44)*1000 -> 0 | AC44: =+($W44*(Energía!AC44-Clientes!W44*Límites!$C$6*12)+$W33*(Límites!$C$6-Límites!$B$6)*Clientes!W44*12+$W22*Clientes!W44*Límites!$B$6*12)*(1-$C44)*1000 -> 0 | AD44: =+SUMPRODUCT(Z44:AC44,PremisaCosto!$F$84:$I$84) -> 0 | AE44: =+IF($AK$3=1,Potencia!T44*$X44*12*1000*(1-$C44),AM44) -> 0 | AF44: =+Potencia!U44*$X44*12*1000*(1-$C44) -> 0 | AG44: =+Potencia!V44*$X44*12*1000*(1-$C44) -> 0 | AH44: =+Potencia!W44*$X44*12*1000*(1-$C44) -> 0 | AI44: =+SUMPRODUCT(AE44:AH44,PremisaCosto!$F$84:$I$84) -> 0 | AK44: MTD_3 Regular | AL44: 0 | AM44: 0 | AP44: =+Potencia!T45*$K45*12*1000*(1-$C45) -> 0
A45: =+PremisaCosto!A127 -> MTD_3 Agro | B45: =+PremisaCosto!H127 -> Agro | C45: =+IF(B45=0,0,VLOOKUP(B45,PremisaCosto!$A$69:$D$79,4,FALSE)) -> 0.05 | E45: 0.1839568291 | G45: 0 | H45: 1 | J45: =+J44 -> 0 | K45: 11.28 | M45: =+($J45*(Energía!Z45-Clientes!T45*Límites!$C$6*12)+$J34*(Límites!$C$6-Límites!$B$6)*Clientes!T45*12+$J23*Clientes!T45*Límites!$B$6*12)*(1-$C45)*1000 -> 0 | N45: =+($J45*(Energía!AA45-Clientes!U45*Límites!$C$6*12)+$J34*(Límites!$C$6-Límites!$B$6)*Clientes!U45*12+$J23*Clientes!U45*Límites!$B$6*12)*(1-$C45)*1000 -> 0 | O45: =+($J45*(Energía!AB45-Clientes!V45*Límites!$C$6*12)+$J34*(Límites!$C$6-Límites!$B$6)*Clientes!V45*12+$J23*Clientes!V45*Límites!$B$6*12)*(1-$C45)*1000 -> 0 | P45: =+($J45*(Energía!AC45-Clientes!W45*Límites!$C$6*12)+$J34*(Límites!$C$6-Límites!$B$6)*Clientes!W45*12+$J23*Clientes!W45*Límites!$B$6*12)*(1-$C45)*1000 -> 0 | Q45: =+SUMPRODUCT(M45:P45,PremisaCosto!$F$84:$I$84) -> 0 | R45: =+Potencia!X45*$K45*12*1000*(1-$C45) -> 0 | T45: =IF(Q45=0,0,(IF($AK$3=1,$E45*$F$4*G45/$Q$20,($E45*$F$4*G45-$AL$20*PremisaCosto!$F$84)/($Q$20-$M$20*PremisaCosto!$F$84)))) -> 0 | U45: =IF(R45=0,0,IF($AK$3=1,$E45*$F$4*H45/$R$20,($E45*$F$4*H45-$AM$20*PremisaCosto!$F$84)/($R$20-$AP$19*PremisaCosto!$F$84))) -> 0 | W45: 0 | X45: 0 | Z45: =+($W45*(Energía!Z45-Clientes!T45*Límites!$C$6*12)+$W34*(Límites!$C$6-Límites!$B$6)*Clientes!T45*12+$W23*Clientes!T45*Límites!$B$6*12)*(1-$C45)*1000 -> 0 | AA45: =+($W45*(Energía!AA45-Clientes!U45*Límites!$C$6*12)+$W34*(Límites!$C$6-Límites!$B$6)*Clientes!U45*12+$W23*Clientes!U45*Límites!$B$6*12)*(1-$C45)*1000 -> 0 | AB45: =+($W45*(Energía!AB45-Clientes!V45*Límites!$C$6*12)+$W34*(Límites!$C$6-Límites!$B$6)*Clientes!V45*12+$W23*Clientes!V45*Límites!$B$6*12)*(1-$C45)*1000 -> 0 | AC45: =+($W45*(Energía!AC45-Clientes!W45*Límites!$C$6*12)+$W34*(Límites!$C$6-Límites!$B$6)*Clientes!W45*12+$W23*Clientes!W45*Límites!$B$6*12)*(1-$C45)*1000 -> 0 | AD45: =+SUMPRODUCT(Z45:AC45,PremisaCosto!$F$84:$I$84) -> 0 | AE45: =+IF($AK$3=1,Potencia!T45*$X45*12*1000*(1-$C45),AM45) -> 0 | AF45: =+Potencia!U45*$X45*12*1000*(1-$C45) -> 0 | AG45: =+Potencia!V45*$X45*12*1000*(1-$C45) -> 0 | AH45: =+Potencia!W45*$X45*12*1000*(1-$C45) -> 0 | AI45: =+SUMPRODUCT(AE45:AH45,PremisaCosto!$F$84:$I$84) -> 0 | AK45: MTD_3 Agro | AL45: 0 | AM45: 0 | AP45: =+Potencia!T46*$K46*12*1000*(1-$C46) -> 0
A46: =+PremisaCosto!A128 -> MTD_3 Jub. 1 | B46: =+PremisaCosto!H128 -> Jub. 1 | C46: =+IF(B46=0,0,VLOOKUP(B46,PremisaCosto!$A$69:$D$79,4,FALSE)) -> 0.25 | E46: =+E45 -> 0.1839568291 | G46: 0 | H46: 1 | J46: 0 | K46: 11.28 | M46: =+($J46*(Energía!Z46-Clientes!T46*Límites!$C$6*12)+$J35*(Límites!$C$6-Límites!$B$6)*Clientes!T46*12+$J24*Clientes!T46*Límites!$B$6*12)*(1-$C46)*1000 -> 0 | N46: =+($J46*(Energía!AA46-Clientes!U46*Límites!$C$6*12)+$J35*(Límites!$C$6-Límites!$B$6)*Clientes!U46*12+$J24*Clientes!U46*Límites!$B$6*12)*(1-$C46)*1000 -> 0 | O46: =+($J46*(Energía!AB46-Clientes!V46*Límites!$C$6*12)+$J35*(Límites!$C$6-Límites!$B$6)*Clientes!V46*12+$J24*Clientes!V46*Límites!$B$6*12)*(1-$C46)*1000 -> 0 | P46: =+($J46*(Energía!AC46-Clientes!W46*Límites!$C$6*12)+$J35*(Límites!$C$6-Límites!$B$6)*Clientes!W46*12+$J24*Clientes!W46*Límites!$B$6*12)*(1-$C46)*1000 -> 0 | Q46: =+SUMPRODUCT(M46:P46,PremisaCosto!$F$84:$I$84) -> 0 | R46: =+Potencia!X46*$K46*12*1000*(1-$C46) -> 0 | T46: =IF(Q46=0,0,(IF($AK$3=1,$E46*$F$4*G46/$Q$20,($E46*$F$4*G46-$AL$20*PremisaCosto!$F$84)/($Q$20-$M$20*PremisaCosto!$F$84)))) -> 0 | U46: =IF(R46=0,0,IF($AK$3=1,$E46*$F$4*H46/$R$20,($E46*$F$4*H46-$AM$20*PremisaCosto!$F$84)/($R$20-$AP$19*PremisaCosto!$F$84))) -> 0 | W46: 0 | X46: 0 | Z46: =+($W46*(Energía!Z46-Clientes!T46*Límites!$C$6*12)+$W35*(Límites!$C$6-Límites!$B$6)*Clientes!T46*12+$W24*Clientes!T46*Límites!$B$6*12)*(1-$C46)*1000 -> 0 | AA46: =+($W46*(Energía!AA46-Clientes!U46*Límites!$C$6*12)+$W35*(Límites!$C$6-Límites!$B$6)*Clientes!U46*12+$W24*Clientes!U46*Límites!$B$6*12)*(1-$C46)*1000 -> 0 | AB46: =+($W46*(Energía!AB46-Clientes!V46*Límites!$C$6*12)+$W35*(Límites!$C$6-Límites!$B$6)*Clientes!V46*12+$W24*Clientes!V46*Límites!$B$6*12)*(1-$C46)*1000 -> 0 | AC46: =+($W46*(Energía!AC46-Clientes!W46*Límites!$C$6*12)+$W35*(Límites!$C$6-Límites!$B$6)*Clientes!W46*12+$W24*Clientes!W46*Límites!$B$6*12)*(1-$C46)*1000 -> 0 | AD46: =+SUMPRODUCT(Z46:AC46,PremisaCosto!$F$84:$I$84) -> 0 | AE46: =+IF($AK$3=1,Potencia!T46*$X46*12*1000*(1-$C46),AM46) -> 0 | AF46: =+Potencia!U46*$X46*12*1000*(1-$C46) -> 0 | AG46: =+Potencia!V46*$X46*12*1000*(1-$C46) -> 0 | AH46: =+Potencia!W46*$X46*12*1000*(1-$C46) -> 0 | AI46: =+SUMPRODUCT(AE46:AH46,PremisaCosto!$F$84:$I$84) -> 0 | AK46: MTD_3 Jub. 1 | AL46: 0 | AM46: 0 | AP46: =+Potencia!T47*$K47*12*1000*(1-$C47) -> 0
A47: =+PremisaCosto!A129 -> MTD_3 Jub. 2 | B47: =+PremisaCosto!H129 -> Jub. 2 | C47: =+IF(B47=0,0,VLOOKUP(B47,PremisaCosto!$A$69:$D$79,4,FALSE)) -> 0.25 | E47: 0.1839568291 | G47: 0 | H47: 1 | J47: 0 | K47: 11.28 | M47: =+($J47*(Energía!Z47-Clientes!T47*Límites!$C$6*12)+$J36*(Límites!$C$6-Límites!$B$6)*Clientes!T47*12+$J25*Clientes!T47*Límites!$B$6*12)*(1-$C47)*1000 -> 0 | N47: =+($J47*(Energía!AA47-Clientes!U47*Límites!$C$6*12)+$J36*(Límites!$C$6-Límites!$B$6)*Clientes!U47*12+$J25*Clientes!U47*Límites!$B$6*12)*(1-$C47)*1000 -> 0 | O47: =+($J47*(Energía!AB47-Clientes!V47*Límites!$C$6*12)+$J36*(Límites!$C$6-Límites!$B$6)*Clientes!V47*12+$J25*Clientes!V47*Límites!$B$6*12)*(1-$C47)*1000 -> 0 | P47: =+($J47*(Energía!AC47-Clientes!W47*Límites!$C$6*12)+$J36*(Límites!$C$6-Límites!$B$6)*Clientes!W47*12+$J25*Clientes!W47*Límites!$B$6*12)*(1-$C47)*1000 -> 0 | Q47: =+SUMPRODUCT(M47:P47,PremisaCosto!$F$84:$I$84) -> 0 | R47: =+Potencia!X47*$K47*12*1000*(1-$C47) -> 0 | T47: =IF(Q47=0,0,(IF($AK$3=1,$E47*$F$4*G47/$Q$20,($E47*$F$4*G47-$AL$20*PremisaCosto!$F$84)/($Q$20-$M$20*PremisaCosto!$F$84)))) -> 0 | U47: =IF(R47=0,0,IF($AK$3=1,$E47*$F$4*H47/$R$20,($E47*$F$4*H47-$AM$20*PremisaCosto!$F$84)/($R$20-$AP$19*PremisaCosto!$F$84))) -> 0 | W47: 0 | X47: 0 | Z47: =+($W47*(Energía!Z47-Clientes!T47*Límites!$C$6*12)+$W36*(Límites!$C$6-Límites!$B$6)*Clientes!T47*12+$W25*Clientes!T47*Límites!$B$6*12)*(1-$C47)*1000 -> 0 | AA47: =+($W47*(Energía!AA47-Clientes!U47*Límites!$C$6*12)+$W36*(Límites!$C$6-Límites!$B$6)*Clientes!U47*12+$W25*Clientes!U47*Límites!$B$6*12)*(1-$C47)*1000 -> 0 | AB47: =+($W47*(Energía!AB47-Clientes!V47*Límites!$C$6*12)+$W36*(Límites!$C$6-Límites!$B$6)*Clientes!V47*12+$W25*Clientes!V47*Límites!$B$6*12)*(1-$C47)*1000 -> 0 | AC47: =+($W47*(Energía!AC47-Clientes!W47*Límites!$C$6*12)+$W36*(Límites!$C$6-Límites!$B$6)*Clientes!W47*12+$W25*Clientes!W47*Límites!$B$6*12)*(1-$C47)*1000 -> 0 | AD47: =+SUMPRODUCT(Z47:AC47,PremisaCosto!$F$84:$I$84) -> 0 | AE47: =+IF($AK$3=1,Potencia!T47*$X47*12*1000*(1-$C47),AM47) -> 0 | AF47: =+Potencia!U47*$X47*12*1000*(1-$C47) -> 0 | AG47: =+Potencia!V47*$X47*12*1000*(1-$C47) -> 0 | AH47: =+Potencia!W47*$X47*12*1000*(1-$C47) -> 0 | AI47: =+SUMPRODUCT(AE47:AH47,PremisaCosto!$F$84:$I$84) -> 0 | AK47: MTD_3 Jub. 2 | AL47: 0 | AM47: 0 | AP47: =+Potencia!T48*$K48*12*1000*(1-$C48) -> 0
A48: =+PremisaCosto!A130 -> MTD_3 Político | B48: =+PremisaCosto!H130 -> Político | C48: =+IF(B48=0,0,VLOOKUP(B48,PremisaCosto!$A$69:$D$79,4,FALSE)) -> 0.5 | E48: 0.1839568291 | G48: 0 | H48: 1 | J48: 0 | K48: 11.28 | M48: =+($J48*(Energía!Z48-Clientes!T48*Límites!$C$6*12)+$J37*(Límites!$C$6-Límites!$B$6)*Clientes!T48*12+$J26*Clientes!T48*Límites!$B$6*12)*(1-$C48)*1000 -> 0 | N48: =+($J48*(Energía!AA48-Clientes!U48*Límites!$C$6*12)+$J37*(Límites!$C$6-Límites!$B$6)*Clientes!U48*12+$J26*Clientes!U48*Límites!$B$6*12)*(1-$C48)*1000 -> 0 | O48: =+($J48*(Energía!AB48-Clientes!V48*Límites!$C$6*12)+$J37*(Límites!$C$6-Límites!$B$6)*Clientes!V48*12+$J26*Clientes!V48*Límites!$B$6*12)*(1-$C48)*1000 -> 0 | P48: =+($J48*(Energía!AC48-Clientes!W48*Límites!$C$6*12)+$J37*(Límites!$C$6-Límites!$B$6)*Clientes!W48*12+$J26*Clientes!W48*Límites!$B$6*12)*(1-$C48)*1000 -> 0 | Q48: =+SUMPRODUCT(M48:P48,PremisaCosto!$F$84:$I$84) -> 0 | R48: =+Potencia!X48*$K48*12*1000*(1-$C48) -> 0 | T48: =IF(Q48=0,0,(IF($AK$3=1,$E48*$F$4*G48/$Q$20,($E48*$F$4*G48-$AL$20*PremisaCosto!$F$84)/($Q$20-$M$20*PremisaCosto!$F$84)))) -> 0 | U48: =IF(R48=0,0,IF($AK$3=1,$E48*$F$4*H48/$R$20,($E48*$F$4*H48-$AM$20*PremisaCosto!$F$84)/($R$20-$AP$19*PremisaCosto!$F$84))) -> 0 | W48: 0 | X48: 0 | Z48: =+($W48*(Energía!Z48-Clientes!T48*Límites!$C$6*12)+$W37*(Límites!$C$6-Límites!$B$6)*Clientes!T48*12+$W26*Clientes!T48*Límites!$B$6*12)*(1-$C48)*1000 -> 0 | AA48: =+($W48*(Energía!AA48-Clientes!U48*Límites!$C$6*12)+$W37*(Límites!$C$6-Límites!$B$6)*Clientes!U48*12+$W26*Clientes!U48*Límites!$B$6*12)*(1-$C48)*1000 -> 0 | AB48: =+($W48*(Energía!AB48-Clientes!V48*Límites!$C$6*12)+$W37*(Límites!$C$6-Límites!$B$6)*Clientes!V48*12+$W26*Clientes!V48*Límites!$B$6*12)*(1-$C48)*1000 -> 0 | AC48: =+($W48*(Energía!AC48-Clientes!W48*Límites!$C$6*12)+$W37*(Límites!$C$6-Límites!$B$6)*Clientes!W48*12+$W26*Clientes!W48*Límites!$B$6*12)*(1-$C48)*1000 -> 0 | AD48: =+SUMPRODUCT(Z48:AC48,PremisaCosto!$F$84:$I$84) -> 0 | AE48: =+IF($AK$3=1,Potencia!T48*$X48*12*1000*(1-$C48),AM48) -> 0 | AF48: =+Potencia!U48*$X48*12*1000*(1-$C48) -> 0 | AG48: =+Potencia!V48*$X48*12*1000*(1-$C48) -> 0 | AH48: =+Potencia!W48*$X48*12*1000*(1-$C48) -> 0 | AI48: =+SUMPRODUCT(AE48:AH48,PremisaCosto!$F$84:$I$84) -> 0 | AK48: MTD_3 Político | AL48: 0 | AM48: 0 | AP48: =+Potencia!T49*$K49*12*1000*(1-$C49) -> 0
A49: =+PremisaCosto!A131 -> MTD_3 x1 | B49: =+PremisaCosto!H131 -> x1 | C49: =+IF(B49=0,0,VLOOKUP(B49,PremisaCosto!$A$69:$D$79,4,FALSE)) -> 0 | E49: 0.1839568291 | G49: 0 | H49: =+H48 -> 1 | J49: 0 | K49: 11.28 | M49: =+($J49*(Energía!Z49-Clientes!T49*Límites!$C$6*12)+$J38*(Límites!$C$6-Límites!$B$6)*Clientes!T49*12+$J27*Clientes!T49*Límites!$B$6*12)*(1-$C49)*1000 -> 0 | N49: =+($J49*(Energía!AA49-Clientes!U49*Límites!$C$6*12)+$J38*(Límites!$C$6-Límites!$B$6)*Clientes!U49*12+$J27*Clientes!U49*Límites!$B$6*12)*(1-$C49)*1000 -> 0 | O49: =+($J49*(Energía!AB49-Clientes!V49*Límites!$C$6*12)+$J38*(Límites!$C$6-Límites!$B$6)*Clientes!V49*12+$J27*Clientes!V49*Límites!$B$6*12)*(1-$C49)*1000 -> 0 | P49: =+($J49*(Energía!AC49-Clientes!W49*Límites!$C$6*12)+$J38*(Límites!$C$6-Límites!$B$6)*Clientes!W49*12+$J27*Clientes!W49*Límites!$B$6*12)*(1-$C49)*1000 -> 0 | Q49: =+SUMPRODUCT(M49:P49,PremisaCosto!$F$84:$I$84) -> 0 | R49: =+Potencia!X49*$K49*12*1000*(1-$C49) -> 0 | T49: =IF(Q49=0,0,(IF($AK$3=1,$E49*$F$4*G49/$Q$20,($E49*$F$4*G49-$AL$20*PremisaCosto!$F$84)/($Q$20-$M$20*PremisaCosto!$F$84)))) -> 0 | U49: =IF(R49=0,0,IF($AK$3=1,$E49*$F$4*H49/$R$20,($E49*$F$4*H49-$AM$20*PremisaCosto!$F$84)/($R$20-$AP$19*PremisaCosto!$F$84))) -> 0 | W49: 0 | X49: 0 | Z49: =+($W49*(Energía!Z49-Clientes!T49*Límites!$C$6*12)+$W38*(Límites!$C$6-Límites!$B$6)*Clientes!T49*12+$W27*Clientes!T49*Límites!$B$6*12)*(1-$C49)*1000 -> 0 | AA49: =+($W49*(Energía!AA49-Clientes!U49*Límites!$C$6*12)+$W38*(Límites!$C$6-Límites!$B$6)*Clientes!U49*12+$W27*Clientes!U49*Límites!$B$6*12)*(1-$C49)*1000 -> 0 | AB49: =+($W49*(Energía!AB49-Clientes!V49*Límites!$C$6*12)+$W38*(Límites!$C$6-Límites!$B$6)*Clientes!V49*12+$W27*Clientes!V49*Límites!$B$6*12)*(1-$C49)*1000 -> 0 | AC49: =+($W49*(Energía!AC49-Clientes!W49*Límites!$C$6*12)+$W38*(Límites!$C$6-Límites!$B$6)*Clientes!W49*12+$W27*Clientes!W49*Límites!$B$6*12)*(1-$C49)*1000 -> 0 | AD49: =+SUMPRODUCT(Z49:AC49,PremisaCosto!$F$84:$I$84) -> 0 | AE49: =+IF($AK$3=1,Potencia!T49*$X49*12*1000*(1-$C49),AM49) -> 0 | AF49: =+Potencia!U49*$X49*12*1000*(1-$C49) -> 0 | AG49: =+Potencia!V49*$X49*12*1000*(1-$C49) -> 0 | AH49: =+Potencia!W49*$X49*12*1000*(1-$C49) -> 0 | AI49: =+SUMPRODUCT(AE49:AH49,PremisaCosto!$F$84:$I$84) -> 0 | AK49: MTD_3 x1 | AL49: 0 | AM49: 0 | AP49: =+Potencia!T50*$K50*12*1000*(1-$C50) -> 0
A50: =+PremisaCosto!A132 -> MTD_3 x2 | B50: =+PremisaCosto!H132 -> x2 | C50: =+IF(B50=0,0,VLOOKUP(B50,PremisaCosto!$A$69:$D$79,4,FALSE)) -> 0 | E50: 0.1839568291 | G50: 0 | H50: 1 | J50: 0 | K50: 11.28 | M50: =+($J50*(Energía!Z50-Clientes!T50*Límites!$C$6*12)+$J39*(Límites!$C$6-Límites!$B$6)*Clientes!T50*12+$J28*Clientes!T50*Límites!$B$6*12)*(1-$C50)*1000 -> 0 | N50: =+($J50*(Energía!AA50-Clientes!U50*Límites!$C$6*12)+$J39*(Límites!$C$6-Límites!$B$6)*Clientes!U50*12+$J28*Clientes!U50*Límites!$B$6*12)*(1-$C50)*1000 -> 0 | O50: =+($J50*(Energía!AB50-Clientes!V50*Límites!$C$6*12)+$J39*(Límites!$C$6-Límites!$B$6)*Clientes!V50*12+$J28*Clientes!V50*Límites!$B$6*12)*(1-$C50)*1000 -> 0 | P50: =+($J50*(Energía!AC50-Clientes!W50*Límites!$C$6*12)+$J39*(Límites!$C$6-Límites!$B$6)*Clientes!W50*12+$J28*Clientes!W50*Límites!$B$6*12)*(1-$C50)*1000 -> 0 | Q50: =+SUMPRODUCT(M50:P50,PremisaCosto!$F$84:$I$84) -> 0 | R50: =+Potencia!X50*$K50*12*1000*(1-$C50) -> 0 | T50: =IF(Q50=0,0,(IF($AK$3=1,$E50*$F$4*G50/$Q$20,($E50*$F$4*G50-$AL$20*PremisaCosto!$F$84)/($Q$20-$M$20*PremisaCosto!$F$84)))) -> 0 | U50: =IF(R50=0,0,IF($AK$3=1,$E50*$F$4*H50/$R$20,($E50*$F$4*H50-$AM$20*PremisaCosto!$F$84)/($R$20-$AP$19*PremisaCosto!$F$84))) -> 0 | W50: 0 | X50: 0 | Z50: =+($W50*(Energía!Z50-Clientes!T50*Límites!$C$6*12)+$W39*(Límites!$C$6-Límites!$B$6)*Clientes!T50*12+$W28*Clientes!T50*Límites!$B$6*12)*(1-$C50)*1000 -> 0 | AA50: =+($W50*(Energía!AA50-Clientes!U50*Límites!$C$6*12)+$W39*(Límites!$C$6-Límites!$B$6)*Clientes!U50*12+$W28*Clientes!U50*Límites!$B$6*12)*(1-$C50)*1000 -> 0 | AB50: =+($W50*(Energía!AB50-Clientes!V50*Límites!$C$6*12)+$W39*(Límites!$C$6-Límites!$B$6)*Clientes!V50*12+$W28*Clientes!V50*Límites!$B$6*12)*(1-$C50)*1000 -> 0 | AC50: =+($W50*(Energía!AC50-Clientes!W50*Límites!$C$6*12)+$W39*(Límites!$C$6-Límites!$B$6)*Clientes!W50*12+$W28*Clientes!W50*Límites!$B$6*12)*(1-$C50)*1000 -> 0 | AD50: =+SUMPRODUCT(Z50:AC50,PremisaCosto!$F$84:$I$84) -> 0 | AE50: =+IF($AK$3=1,Potencia!T50*$X50*12*1000*(1-$C50),AM50) -> 0 | AF50: =+Potencia!U50*$X50*12*1000*(1-$C50) -> 0 | AG50: =+Potencia!V50*$X50*12*1000*(1-$C50) -> 0 | AH50: =+Potencia!W50*$X50*12*1000*(1-$C50) -> 0 | AI50: =+SUMPRODUCT(AE50:AH50,PremisaCosto!$F$84:$I$84) -> 0 | AK50: MTD_3 x2 | AL50: 0 | AM50: 0 | AP50: =+Potencia!T51*$K51*12*1000*(1-$C51) -> 0
A51: =+PremisaCosto!A133 -> MTD_3 Discap. | B51: =+PremisaCosto!H133 -> Discap. | C51: =+IF(B51=0,0,VLOOKUP(B51,PremisaCosto!$A$69:$D$79,4,FALSE)) -> 0.25 | E51: 0.1839568291 | G51: 0 | H51: 1 | J51: 0 | K51: 11.28 | M51: =+($J51*(Energía!Z51-Clientes!T51*Límites!$C$6*12)+$J40*(Límites!$C$6-Límites!$B$6)*Clientes!T51*12+$J29*Clientes!T51*Límites!$B$6*12)*(1-$C51)*1000 -> 0 | N51: =+($J51*(Energía!AA51-Clientes!U51*Límites!$C$6*12)+$J40*(Límites!$C$6-Límites!$B$6)*Clientes!U51*12+$J29*Clientes!U51*Límites!$B$6*12)*(1-$C51)*1000 -> 0 | O51: =+($J51*(Energía!AB51-Clientes!V51*Límites!$C$6*12)+$J40*(Límites!$C$6-Límites!$B$6)*Clientes!V51*12+$J29*Clientes!V51*Límites!$B$6*12)*(1-$C51)*1000 -> 0 | P51: =+($J51*(Energía!AC51-Clientes!W51*Límites!$C$6*12)+$J40*(Límites!$C$6-Límites!$B$6)*Clientes!W51*12+$J29*Clientes!W51*Límites!$B$6*12)*(1-$C51)*1000 -> 0 | Q51: =+SUMPRODUCT(M51:P51,PremisaCosto!$F$84:$I$84) -> 0 | R51: =+Potencia!X51*$K51*12*1000*(1-$C51) -> 0 | T51: =IF(Q51=0,0,(IF($AK$3=1,$E51*$F$4*G51/$Q$20,($E51*$F$4*G51-$AL$20*PremisaCosto!$F$84)/($Q$20-$M$20*PremisaCosto!$F$84)))) -> 0 | U51: =IF(R51=0,0,IF($AK$3=1,$E51*$F$4*H51/$R$20,($E51*$F$4*H51-$AM$20*PremisaCosto!$F$84)/($R$20-$AP$19*PremisaCosto!$F$84))) -> 0 | W51: 0 | X51: 0 | Z51: =+($W51*(Energía!Z51-Clientes!T51*Límites!$C$6*12)+$W40*(Límites!$C$6-Límites!$B$6)*Clientes!T51*12+$W29*Clientes!T51*Límites!$B$6*12)*(1-$C51)*1000 -> 0 | AA51: =+($W51*(Energía!AA51-Clientes!U51*Límites!$C$6*12)+$W40*(Límites!$C$6-Límites!$B$6)*Clientes!U51*12+$W29*Clientes!U51*Límites!$B$6*12)*(1-$C51)*1000 -> 0 | AB51: =+($W51*(Energía!AB51-Clientes!V51*Límites!$C$6*12)+$W40*(Límites!$C$6-Límites!$B$6)*Clientes!V51*12+$W29*Clientes!V51*Límites!$B$6*12)*(1-$C51)*1000 -> 0 | AC51: =+($W51*(Energía!AC51-Clientes!W51*Límites!$C$6*12)+$W40*(Límites!$C$6-Límites!$B$6)*Clientes!W51*12+$W29*Clientes!W51*Límites!$B$6*12)*(1-$C51)*1000 -> 0 | AD51: =+SUMPRODUCT(Z51:AC51,PremisaCosto!$F$84:$I$84) -> 0 | AE51: =+IF($AK$3=1,Potencia!T51*$X51*12*1000*(1-$C51),AM51) -> 0 | AF51: =+Potencia!U51*$X51*12*1000*(1-$C51) -> 0 | AG51: =+Potencia!V51*$X51*12*1000*(1-$C51) -> 0 | AH51: =+Potencia!W51*$X51*12*1000*(1-$C51) -> 0 | AI51: =+SUMPRODUCT(AE51:AH51,PremisaCosto!$F$84:$I$84) -> 0 | AK51: MTD_3 Discap. | AL51: 0 | AM51: 0 | AP51: =+Potencia!T52*$K52*12*1000*(1-$C52) -> 0
A52: =+PremisaCosto!A134 -> MTD_3 Discapacitados 601-más | B52: =+PremisaCosto!H134 -> Discapacitados 601-más | C52: =+IF(B52=0,0,VLOOKUP(B52,PremisaCosto!$A$69:$D$79,4,FALSE)) -> 0.25 | E52: 0.1839568291 | G52: 0 | H52: 1 | J52: 0 | K52: 11.28 | M52: =+($J52*(Energía!Z52-Clientes!T52*Límites!$C$6*12)+$J41*(Límites!$C$6-Límites!$B$6)*Clientes!T52*12+$J30*Clientes!T52*Límites!$B$6*12)*(1-$C52)*1000 -> 0 | N52: =+($J52*(Energía!AA52-Clientes!U52*Límites!$C$6*12)+$J41*(Límites!$C$6-Límites!$B$6)*Clientes!U52*12+$J30*Clientes!U52*Límites!$B$6*12)*(1-$C52)*1000 -> 0 | O52: =+($J52*(Energía!AB52-Clientes!V52*Límites!$C$6*12)+$J41*(Límites!$C$6-Límites!$B$6)*Clientes!V52*12+$J30*Clientes!V52*Límites!$B$6*12)*(1-$C52)*1000 -> 0 | P52: =+($J52*(Energía!AC52-Clientes!W52*Límites!$C$6*12)+$J41*(Límites!$C$6-Límites!$B$6)*Clientes!W52*12+$J30*Clientes!W52*Límites!$B$6*12)*(1-$C52)*1000 -> 0 | Q52: =+SUMPRODUCT(M52:P52,PremisaCosto!$F$84:$I$84) -> 0 | R52: =+Potencia!X52*$K52*12*1000*(1-$C52) -> 0 | T52: =IF(Q52=0,0,(IF($AK$3=1,$E52*$F$4*G52/$Q$20,($E52*$F$4*G52-$AL$20*PremisaCosto!$F$84)/($Q$20-$M$20*PremisaCosto!$F$84)))) -> 0 | U52: =IF(R52=0,0,IF($AK$3=1,$E52*$F$4*H52/$R$20,($E52*$F$4*H52-$AM$20*PremisaCosto!$F$84)/($R$20-$AP$19*PremisaCosto!$F$84))) -> 0 | W52: 0 | X52: 0 | Z52: =+($W52*(Energía!Z52-Clientes!T52*Límites!$C$6*12)+$W41*(Límites!$C$6-Límites!$B$6)*Clientes!T52*12+$W30*Clientes!T52*Límites!$B$6*12)*(1-$C52)*1000 -> 0 | AA52: =+($W52*(Energía!AA52-Clientes!U52*Límites!$C$6*12)+$W41*(Límites!$C$6-Límites!$B$6)*Clientes!U52*12+$W30*Clientes!U52*Límites!$B$6*12)*(1-$C52)*1000 -> 0 | AB52: =+($W52*(Energía!AB52-Clientes!V52*Límites!$C$6*12)+$W41*(Límites!$C$6-Límites!$B$6)*Clientes!V52*12+$W30*Clientes!V52*Límites!$B$6*12)*(1-$C52)*1000 -> 0 | AC52: =+($W52*(Energía!AC52-Clientes!W52*Límites!$C$6*12)+$W41*(Límites!$C$6-Límites!$B$6)*Clientes!W52*12+$W30*Clientes!W52*Límites!$B$6*12)*(1-$C52)*1000 -> 0 | AD52: =+SUMPRODUCT(Z52:AC52,PremisaCosto!$F$84:$I$84) -> 0 | AE52: =+IF($AK$3=1,Potencia!T52*$X52*12*1000*(1-$C52),AM52) -> 0 | AF52: =+Potencia!U52*$X52*12*1000*(1-$C52) -> 0 | AG52: =+Potencia!V52*$X52*12*1000*(1-$C52) -> 0 | AH52: =+Potencia!W52*$X52*12*1000*(1-$C52) -> 0 | AI52: =+SUMPRODUCT(AE52:AH52,PremisaCosto!$F$84:$I$84) -> 0 | AK52: MTD_3 Discapacitados 601-más | AL52: 0 | AM52: 0 | AP52: =+Potencia!T53*$K53*12*1000*(1-$C53) -> 0
A53: =+PremisaCosto!A135 -> MTD_3 Cruz Roja | B53: =+PremisaCosto!H135 -> Cruz Roja | C53: =+IF(B53=0,0,VLOOKUP(B53,PremisaCosto!$A$69:$D$79,4,FALSE)) -> 1 | E53: 0.1839568291 | G53: 0 | H53: 1 | J53: 0 | K53: 11.28 | M53: =+($J53*(Energía!Z53-Clientes!T53*Límites!$C$6*12)+$J42*(Límites!$C$6-Límites!$B$6)*Clientes!T53*12+$J31*Clientes!T53*Límites!$B$6*12)*(1-$C53)*1000 -> 0 | N53: =+($J53*(Energía!AA53-Clientes!U53*Límites!$C$6*12)+$J42*(Límites!$C$6-Límites!$B$6)*Clientes!U53*12+$J31*Clientes!U53*Límites!$B$6*12)*(1-$C53)*1000 -> 0 | O53: =+($J53*(Energía!AB53-Clientes!V53*Límites!$C$6*12)+$J42*(Límites!$C$6-Límites!$B$6)*Clientes!V53*12+$J31*Clientes!V53*Límites!$B$6*12)*(1-$C53)*1000 -> 0 | P53: =+($J53*(Energía!AC53-Clientes!W53*Límites!$C$6*12)+$J42*(Límites!$C$6-Límites!$B$6)*Clientes!W53*12+$J31*Clientes!W53*Límites!$B$6*12)*(1-$C53)*1000 -> 0 | Q53: =+SUMPRODUCT(M53:P53,PremisaCosto!$F$84:$I$84) -> 0 | R53: =+Potencia!X53*$K53*12*1000*(1-$C53) -> 0 | T53: =IF(Q53=0,0,(IF($AK$3=1,$E53*$F$4*G53/$Q$20,($E53*$F$4*G53-$AL$20*PremisaCosto!$F$84)/($Q$20-$M$20*PremisaCosto!$F$84)))) -> 0 | U53: =IF(R53=0,0,IF($AK$3=1,$E53*$F$4*H53/$R$20,($E53*$F$4*H53-$AM$20*PremisaCosto!$F$84)/($R$20-$AP$19*PremisaCosto!$F$84))) -> 0 | W53: 0 | X53: 0 | Z53: =+($W53*(Energía!Z53-Clientes!T53*Límites!$C$6*12)+$W42*(Límites!$C$6-Límites!$B$6)*Clientes!T53*12+$W31*Clientes!T53*Límites!$B$6*12)*(1-$C53)*1000 -> 0 | AA53: =+($W53*(Energía!AA53-Clientes!U53*Límites!$C$6*12)+$W42*(Límites!$C$6-Límites!$B$6)*Clientes!U53*12+$W31*Clientes!U53*Límites!$B$6*12)*(1-$C53)*1000 -> 0 | AB53: =+($W53*(Energía!AB53-Clientes!V53*Límites!$C$6*12)+$W42*(Límites!$C$6-Límites!$B$6)*Clientes!V53*12+$W31*Clientes!V53*Límites!$B$6*12)*(1-$C53)*1000 -> 0 | AC53: =+($W53*(Energía!AC53-Clientes!W53*Límites!$C$6*12)+$W42*(Límites!$C$6-Límites!$B$6)*Clientes!W53*12+$W31*Clientes!W53*Límites!$B$6*12)*(1-$C53)*1000 -> 0 | AD53: =+SUMPRODUCT(Z53:AC53,PremisaCosto!$F$84:$I$84) -> 0 | AE53: =+IF($AK$3=1,Potencia!T53*$X53*12*1000*(1-$C53),AM53) -> 0 | AF53: =+Potencia!U53*$X53*12*1000*(1-$C53) -> 0 | AG53: =+Potencia!V53*$X53*12*1000*(1-$C53) -> 0 | AH53: =+Potencia!W53*$X53*12*1000*(1-$C53) -> 0 | AI53: =+SUMPRODUCT(AE53:AH53,PremisaCosto!$F$84:$I$84) -> 0 | AK53: MTD_3 Cruz Roja | AL53: 0 | AM53: 0 | AP53: =+SUM(AP54:AP63) -> 0
A54: =+PremisaCosto!A136 -> MTD_4 (50,001-más) | B54: =+PremisaCosto!H136 -> 0 | C54: =+IF(B54=0,0,VLOOKUP(B54,PremisaCosto!$A$69:$D$79,4,FALSE)) -> 0 | E54: 0.1839568291 | G54: 0 | H54: 1 | J54: 0 | K54: 11.28 | M54: =+SUM(M55:M64) -> 0 | N54: 0 | O54: 0 | P54: 0 | Q54: 0 | R54: 0 | T54: =IF(Q54=0,0,(IF($AK$3=1,$E54*$F$4*G54/$Q$20,($E54*$F$4*G54-$AL$20*PremisaCosto!$F$84)/($Q$20-$M$20*PremisaCosto!$F$84)))) -> 0 | U54: =IF(R54=0,0,IF($AK$3=1,$E54*$F$4*H54/$R$20,($E54*$F$4*H54-$AM$20*PremisaCosto!$F$84)/($R$20-$AP$19*PremisaCosto!$F$84))) -> 0 | W54: 0 | X54: 0 | Z54: =+SUM(Z55:Z64) -> 0 | AA54: =+SUM(AA55:AA64) -> 0 | AB54: =+SUM(AB55:AB64) -> 0 | AC54: =+SUM(AC55:AC64) -> 0 | AD54: =+SUM(AD55:AD64) -> 0 | AE54: 0 | AF54: 0 | AG54: 0 | AH54: 0 | AI54: =+SUM(AI55:AI64) -> 0 | AK54: MTD_4 (50,001-más) | AL54: 0 | AM54: 0 | AP54: =+Potencia!T55*$K55*12*1000*(1-$C55) -> 0
A55: =+PremisaCosto!A137 -> MTD_4 Regular | B55: =+PremisaCosto!H137 -> Regular | C55: =+IF(B55=0,0,VLOOKUP(B55,PremisaCosto!$A$69:$D$79,4,FALSE)) -> 0 | E55: 0.1839568291 | G55: 0 | H55: 1 | J55: =+J54 -> 0 | K55: =+K54 -> 11.28 | M55: =+($J55*(Energía!Z55-Clientes!T55*Límites!$D$6*12)+$J44*(Límites!$D$6-Límites!$C$6)*Clientes!T55*12+$J33*(Límites!$C$6-Límites!$B$6)*Clientes!T55*12+$J22*Clientes!T55*Límites!$B$6*12)*(1-$C55)*1000 -> 0 | N55: =+($J55*(Energía!AA55-Clientes!U55*Límites!$D$6*12)+$J44*(Límites!$D$6-Límites!$C$6)*Clientes!U55*12+$J33*(Límites!$C$6-Límites!$B$6)*Clientes!U55*12+$J22*Clientes!U55*Límites!$B$6*12)*(1-$C55)*1000 -> 0 | O55: =+($J55*(Energía!AB55-Clientes!V55*Límites!$D$6*12)+$J44*(Límites!$D$6-Límites!$C$6)*Clientes!V55*12+$J33*(Límites!$C$6-Límites!$B$6)*Clientes!V55*12+$J22*Clientes!V55*Límites!$B$6*12)*(1-$C55)*1000 -> 0 | P55: =+($J55*(Energía!AC55-Clientes!W55*Límites!$D$6*12)+$J44*(Límites!$D$6-Límites!$C$6)*Clientes!W55*12+$J33*(Límites!$C$6-Límites!$B$6)*Clientes!W55*12+$J22*Clientes!W55*Límites!$B$6*12)*(1-$C55)*1000 -> 0 | Q55: =+SUMPRODUCT(M55:P55,PremisaCosto!$F$84:$I$84) -> 0 | R55: =+Potencia!X55*$K55*12*1000*(1-$C55) -> 0 | T55: =IF(Q55=0,0,(IF($AK$3=1,$E55*$F$4*G55/$Q$20,($E55*$F$4*G55-$AL$20*PremisaCosto!$F$84)/($Q$20-$M$20*PremisaCosto!$F$84)))) -> 0 | U55: =IF(R55=0,0,IF($AK$3=1,$E55*$F$4*H55/$R$20,($E55*$F$4*H55-$AM$20*PremisaCosto!$F$84)/($R$20-$AP$19*PremisaCosto!$F$84))) -> 0 | W55: 0 | X55: 0 | Z55: =+($W55*(Energía!Z55-Clientes!T55*Límites!$D$6*12)+$W44*(Límites!$D$6-Límites!$C$6)*Clientes!T55*12+$W33*(Límites!$C$6-Límites!$B$6)*Clientes!T55*12+$W22*Clientes!T55*Límites!$B$6*12)*(1-$C55)*1000 -> 0 | AA55: =+($W55*(Energía!AA55-Clientes!U55*Límites!$D$6*12)+$W44*(Límites!$D$6-Límites!$C$6)*Clientes!U55*12+$W33*(Límites!$C$6-Límites!$B$6)*Clientes!U55*12+$W22*Clientes!U55*Límites!$B$6*12)*(1-$C55)*1000 -> 0 | AB55: =+($W55*(Energía!AB55-Clientes!V55*Límites!$D$6*12)+$W44*(Límites!$D$6-Límites!$C$6)*Clientes!V55*12+$W33*(Límites!$C$6-Límites!$B$6)*Clientes!V55*12+$W22*Clientes!V55*Límites!$B$6*12)*(1-$C55)*1000 -> 0 | AC55: =+($W55*(Energía!AC55-Clientes!W55*Límites!$D$6*12)+$W44*(Límites!$D$6-Límites!$C$6)*Clientes!W55*12+$W33*(Límites!$C$6-Límites!$B$6)*Clientes!W55*12+$W22*Clientes!W55*Límites!$B$6*12)*(1-$C55)*1000 -> 0 | AD55: =+SUMPRODUCT(Z55:AC55,PremisaCosto!$F$84:$I$84) -> 0 | AE55: =+IF($AK$3=1,Potencia!T55*$X55*12*1000*(1-$C55),AM55) -> 0 | AF55: =+Potencia!U55*$X55*12*1000*(1-$C55) -> 0 | AG55: =+Potencia!V55*$X55*12*1000*(1-$C55) -> 0 | AH55: =+Potencia!W55*$X55*12*1000*(1-$C55) -> 0 | AI55: =+SUMPRODUCT(AE55:AH55,PremisaCosto!$F$84:$I$84) -> 0 | AK55: MTD_4 Regular | AL55: 0 | AM55: 0 | AP55: =+Potencia!T56*$K56*12*1000*(1-$C56) -> 0
A56: =+PremisaCosto!A138 -> MTD_4 Agro | B56: =+PremisaCosto!H138 -> Agro | C56: =+IF(B56=0,0,VLOOKUP(B56,PremisaCosto!$A$69:$D$79,4,FALSE)) -> 0.05 | E56: 0.1839568291 | G56: 0 | H56: 1 | J56: =+J55 -> 0 | K56: 11.28 | M56: =+($J56*(Energía!Z56-Clientes!T56*Límites!$D$6*12)+$J45*(Límites!$D$6-Límites!$C$6)*Clientes!T56*12+$J34*(Límites!$C$6-Límites!$B$6)*Clientes!T56*12+$J23*Clientes!T56*Límites!$B$6*12)*(1-$C56)*1000 -> 0 | N56: =+($J56*(Energía!AA56-Clientes!U56*Límites!$D$6*12)+$J45*(Límites!$D$6-Límites!$C$6)*Clientes!U56*12+$J34*(Límites!$C$6-Límites!$B$6)*Clientes!U56*12+$J23*Clientes!U56*Límites!$B$6*12)*(1-$C56)*1000 -> 0 | O56: =+($J56*(Energía!AB56-Clientes!V56*Límites!$D$6*12)+$J45*(Límites!$D$6-Límites!$C$6)*Clientes!V56*12+$J34*(Límites!$C$6-Límites!$B$6)*Clientes!V56*12+$J23*Clientes!V56*Límites!$B$6*12)*(1-$C56)*1000 -> 0 | P56: =+($J56*(Energía!AC56-Clientes!W56*Límites!$D$6*12)+$J45*(Límites!$D$6-Límites!$C$6)*Clientes!W56*12+$J34*(Límites!$C$6-Límites!$B$6)*Clientes!W56*12+$J23*Clientes!W56*Límites!$B$6*12)*(1-$C56)*1000 -> 0 | Q56: =+SUMPRODUCT(M56:P56,PremisaCosto!$F$84:$I$84) -> 0 | R56: =+Potencia!X56*$K56*12*1000*(1-$C56) -> 0 | T56: =IF(Q56=0,0,(IF($AK$3=1,$E56*$F$4*G56/$Q$20,($E56*$F$4*G56-$AL$20*PremisaCosto!$F$84)/($Q$20-$M$20*PremisaCosto!$F$84)))) -> 0 | U56: =IF(R56=0,0,IF($AK$3=1,$E56*$F$4*H56/$R$20,($E56*$F$4*H56-$AM$20*PremisaCosto!$F$84)/($R$20-$AP$19*PremisaCosto!$F$84))) -> 0 | W56: 0 | X56: 0 | Z56: =+($W56*(Energía!Z56-Clientes!T56*Límites!$D$6*12)+$W45*(Límites!$D$6-Límites!$C$6)*Clientes!T56*12+$W34*(Límites!$C$6-Límites!$B$6)*Clientes!T56*12+$W23*Clientes!T56*Límites!$B$6*12)*(1-$C56)*1000 -> 0 | AA56: =+($W56*(Energía!AA56-Clientes!U56*Límites!$D$6*12)+$W45*(Límites!$D$6-Límites!$C$6)*Clientes!U56*12+$W34*(Límites!$C$6-Límites!$B$6)*Clientes!U56*12+$W23*Clientes!U56*Límites!$B$6*12)*(1-$C56)*1000 -> 0 | AB56: =+($W56*(Energía!AB56-Clientes!V56*Límites!$D$6*12)+$W45*(Límites!$D$6-Límites!$C$6)*Clientes!V56*12+$W34*(Límites!$C$6-Límites!$B$6)*Clientes!V56*12+$W23*Clientes!V56*Límites!$B$6*12)*(1-$C56)*1000 -> 0 | AC56: =+($W56*(Energía!AC56-Clientes!W56*Límites!$D$6*12)+$W45*(Límites!$D$6-Límites!$C$6)*Clientes!W56*12+$W34*(Límites!$C$6-Límites!$B$6)*Clientes!W56*12+$W23*Clientes!W56*Límites!$B$6*12)*(1-$C56)*1000 -> 0 | AD56: =+SUMPRODUCT(Z56:AC56,PremisaCosto!$F$84:$I$84) -> 0 | AE56: =+IF($AK$3=1,Potencia!T56*$X56*12*1000*(1-$C56),AM56) -> 0 | AF56: =+Potencia!U56*$X56*12*1000*(1-$C56) -> 0 | AG56: =+Potencia!V56*$X56*12*1000*(1-$C56) -> 0 | AH56: =+Potencia!W56*$X56*12*1000*(1-$C56) -> 0 | AI56: =+SUMPRODUCT(AE56:AH56,PremisaCosto!$F$84:$I$84) -> 0 | AK56: MTD_4 Agro | AL56: 0 | AM56: 0 | AP56: =+Potencia!T57*$K57*12*1000*(1-$C57) -> 0
A57: =+PremisaCosto!A139 -> MTD_4 Jub. 1 | B57: =+PremisaCosto!H139 -> Jub. 1 | C57: =+IF(B57=0,0,VLOOKUP(B57,PremisaCosto!$A$69:$D$79,4,FALSE)) -> 0.25 | E57: 0.1839568291 | G57: 0 | H57: 1 | J57: 0 | K57: 11.28 | M57: =+($J57*(Energía!Z57-Clientes!T57*Límites!$D$6*12)+$J46*(Límites!$D$6-Límites!$C$6)*Clientes!T57*12+$J35*(Límites!$C$6-Límites!$B$6)*Clientes!T57*12+$J24*Clientes!T57*Límites!$B$6*12)*(1-$C57)*1000 -> 0 | N57: =+($J57*(Energía!AA57-Clientes!U57*Límites!$D$6*12)+$J46*(Límites!$D$6-Límites!$C$6)*Clientes!U57*12+$J35*(Límites!$C$6-Límites!$B$6)*Clientes!U57*12+$J24*Clientes!U57*Límites!$B$6*12)*(1-$C57)*1000 -> 0 | O57: =+($J57*(Energía!AB57-Clientes!V57*Límites!$D$6*12)+$J46*(Límites!$D$6-Límites!$C$6)*Clientes!V57*12+$J35*(Límites!$C$6-Límites!$B$6)*Clientes!V57*12+$J24*Clientes!V57*Límites!$B$6*12)*(1-$C57)*1000 -> 0 | P57: =+($J57*(Energía!AC57-Clientes!W57*Límites!$D$6*12)+$J46*(Límites!$D$6-Límites!$C$6)*Clientes!W57*12+$J35*(Límites!$C$6-Límites!$B$6)*Clientes!W57*12+$J24*Clientes!W57*Límites!$B$6*12)*(1-$C57)*1000 -> 0 | Q57: =+SUMPRODUCT(M57:P57,PremisaCosto!$F$84:$I$84) -> 0 | R57: =+Potencia!X57*$K57*12*1000*(1-$C57) -> 0 | T57: =IF(Q57=0,0,(IF($AK$3=1,$E57*$F$4*G57/$Q$20,($E57*$F$4*G57-$AL$20*PremisaCosto!$F$84)/($Q$20-$M$20*PremisaCosto!$F$84)))) -> 0 | U57: =IF(R57=0,0,IF($AK$3=1,$E57*$F$4*H57/$R$20,($E57*$F$4*H57-$AM$20*PremisaCosto!$F$84)/($R$20-$AP$19*PremisaCosto!$F$84))) -> 0 | W57: 0 | X57: 0 | Z57: =+($W57*(Energía!Z57-Clientes!T57*Límites!$D$6*12)+$W46*(Límites!$D$6-Límites!$C$6)*Clientes!T57*12+$W35*(Límites!$C$6-Límites!$B$6)*Clientes!T57*12+$W24*Clientes!T57*Límites!$B$6*12)*(1-$C57)*1000 -> 0 | AA57: =+($W57*(Energía!AA57-Clientes!U57*Límites!$D$6*12)+$W46*(Límites!$D$6-Límites!$C$6)*Clientes!U57*12+$W35*(Límites!$C$6-Límites!$B$6)*Clientes!U57*12+$W24*Clientes!U57*Límites!$B$6*12)*(1-$C57)*1000 -> 0 | AB57: =+($W57*(Energía!AB57-Clientes!V57*Límites!$D$6*12)+$W46*(Límites!$D$6-Límites!$C$6)*Clientes!V57*12+$W35*(Límites!$C$6-Límites!$B$6)*Clientes!V57*12+$W24*Clientes!V57*Límites!$B$6*12)*(1-$C57)*1000 -> 0 | AC57: =+($W57*(Energía!AC57-Clientes!W57*Límites!$D$6*12)+$W46*(Límites!$D$6-Límites!$C$6)*Clientes!W57*12+$W35*(Límites!$C$6-Límites!$B$6)*Clientes!W57*12+$W24*Clientes!W57*Límites!$B$6*12)*(1-$C57)*1000 -> 0 | AD57: =+SUMPRODUCT(Z57:AC57,PremisaCosto!$F$84:$I$84) -> 0 | AE57: =+IF($AK$3=1,Potencia!T57*$X57*12*1000*(1-$C57),AM57) -> 0 | AF57: =+Potencia!U57*$X57*12*1000*(1-$C57) -> 0 | AG57: =+Potencia!V57*$X57*12*1000*(1-$C57) -> 0 | AH57: =+Potencia!W57*$X57*12*1000*(1-$C57) -> 0 | AI57: =+SUMPRODUCT(AE57:AH57,PremisaCosto!$F$84:$I$84) -> 0 | AK57: MTD_4 Jub. 1 | AL57: 0 | AM57: 0 | AP57: =+Potencia!T58*$K58*12*1000*(1-$C58) -> 0
A58: =+PremisaCosto!A140 -> MTD_4 Jub. 2 | B58: =+PremisaCosto!H140 -> Jub. 2 | C58: =+IF(B58=0,0,VLOOKUP(B58,PremisaCosto!$A$69:$D$79,4,FALSE)) -> 0.25 | E58: 0.1839568291 | G58: 0 | H58: 1 | J58: 0 | K58: 11.28 | M58: =+($J58*(Energía!Z58-Clientes!T58*Límites!$D$6*12)+$J47*(Límites!$D$6-Límites!$C$6)*Clientes!T58*12+$J36*(Límites!$C$6-Límites!$B$6)*Clientes!T58*12+$J25*Clientes!T58*Límites!$B$6*12)*(1-$C58)*1000 -> 0 | N58: =+($J58*(Energía!AA58-Clientes!U58*Límites!$D$6*12)+$J47*(Límites!$D$6-Límites!$C$6)*Clientes!U58*12+$J36*(Límites!$C$6-Límites!$B$6)*Clientes!U58*12+$J25*Clientes!U58*Límites!$B$6*12)*(1-$C58)*1000 -> 0 | O58: =+($J58*(Energía!AB58-Clientes!V58*Límites!$D$6*12)+$J47*(Límites!$D$6-Límites!$C$6)*Clientes!V58*12+$J36*(Límites!$C$6-Límites!$B$6)*Clientes!V58*12+$J25*Clientes!V58*Límites!$B$6*12)*(1-$C58)*1000 -> 0 | P58: =+($J58*(Energía!AC58-Clientes!W58*Límites!$D$6*12)+$J47*(Límites!$D$6-Límites!$C$6)*Clientes!W58*12+$J36*(Límites!$C$6-Límites!$B$6)*Clientes!W58*12+$J25*Clientes!W58*Límites!$B$6*12)*(1-$C58)*1000 -> 0 | Q58: =+SUMPRODUCT(M58:P58,PremisaCosto!$F$84:$I$84) -> 0 | R58: =+Potencia!X58*$K58*12*1000*(1-$C58) -> 0 | T58: =IF(Q58=0,0,(IF($AK$3=1,$E58*$F$4*G58/$Q$20,($E58*$F$4*G58-$AL$20*PremisaCosto!$F$84)/($Q$20-$M$20*PremisaCosto!$F$84)))) -> 0 | U58: =IF(R58=0,0,IF($AK$3=1,$E58*$F$4*H58/$R$20,($E58*$F$4*H58-$AM$20*PremisaCosto!$F$84)/($R$20-$AP$19*PremisaCosto!$F$84))) -> 0 | W58: 0 | X58: 0 | Z58: =+($W58*(Energía!Z58-Clientes!T58*Límites!$D$6*12)+$W47*(Límites!$D$6-Límites!$C$6)*Clientes!T58*12+$W36*(Límites!$C$6-Límites!$B$6)*Clientes!T58*12+$W25*Clientes!T58*Límites!$B$6*12)*(1-$C58)*1000 -> 0 | AA58: =+($W58*(Energía!AA58-Clientes!U58*Límites!$D$6*12)+$W47*(Límites!$D$6-Límites!$C$6)*Clientes!U58*12+$W36*(Límites!$C$6-Límites!$B$6)*Clientes!U58*12+$W25*Clientes!U58*Límites!$B$6*12)*(1-$C58)*1000 -> 0 | AB58: =+($W58*(Energía!AB58-Clientes!V58*Límites!$D$6*12)+$W47*(Límites!$D$6-Límites!$C$6)*Clientes!V58*12+$W36*(Límites!$C$6-Límites!$B$6)*Clientes!V58*12+$W25*Clientes!V58*Límites!$B$6*12)*(1-$C58)*1000 -> 0 | AC58: =+($W58*(Energía!AC58-Clientes!W58*Límites!$D$6*12)+$W47*(Límites!$D$6-Límites!$C$6)*Clientes!W58*12+$W36*(Límites!$C$6-Límites!$B$6)*Clientes!W58*12+$W25*Clientes!W58*Límites!$B$6*12)*(1-$C58)*1000 -> 0 | AD58: =+SUMPRODUCT(Z58:AC58,PremisaCosto!$F$84:$I$84) -> 0 | AE58: =+IF($AK$3=1,Potencia!T58*$X58*12*1000*(1-$C58),AM58) -> 0 | AF58: =+Potencia!U58*$X58*12*1000*(1-$C58) -> 0 | AG58: =+Potencia!V58*$X58*12*1000*(1-$C58) -> 0 | AH58: =+Potencia!W58*$X58*12*1000*(1-$C58) -> 0 | AI58: =+SUMPRODUCT(AE58:AH58,PremisaCosto!$F$84:$I$84) -> 0 | AK58: MTD_4 Jub. 2 | AL58: 0 | AM58: 0 | AP58: =+Potencia!T59*$K59*12*1000*(1-$C59) -> 0
A59: =+PremisaCosto!A141 -> MTD_4 Político | B59: =+PremisaCosto!H141 -> Político | C59: =+IF(B59=0,0,VLOOKUP(B59,PremisaCosto!$A$69:$D$79,4,FALSE)) -> 0.5 | E59: 0.1839568291 | G59: 0 | H59: =+H58 -> 1 | J59: 0 | K59: 11.28 | M59: =+($J59*(Energía!Z59-Clientes!T59*Límites!$D$6*12)+$J48*(Límites!$D$6-Límites!$C$6)*Clientes!T59*12+$J37*(Límites!$C$6-Límites!$B$6)*Clientes!T59*12+$J26*Clientes!T59*Límites!$B$6*12)*(1-$C59)*1000 -> 0 | N59: =+($J59*(Energía!AA59-Clientes!U59*Límites!$D$6*12)+$J48*(Límites!$D$6-Límites!$C$6)*Clientes!U59*12+$J37*(Límites!$C$6-Límites!$B$6)*Clientes!U59*12+$J26*Clientes!U59*Límites!$B$6*12)*(1-$C59)*1000 -> 0 | O59: =+($J59*(Energía!AB59-Clientes!V59*Límites!$D$6*12)+$J48*(Límites!$D$6-Límites!$C$6)*Clientes!V59*12+$J37*(Límites!$C$6-Límites!$B$6)*Clientes!V59*12+$J26*Clientes!V59*Límites!$B$6*12)*(1-$C59)*1000 -> 0 | P59: =+($J59*(Energía!AC59-Clientes!W59*Límites!$D$6*12)+$J48*(Límites!$D$6-Límites!$C$6)*Clientes!W59*12+$J37*(Límites!$C$6-Límites!$B$6)*Clientes!W59*12+$J26*Clientes!W59*Límites!$B$6*12)*(1-$C59)*1000 -> 0 | Q59: =+SUMPRODUCT(M59:P59,PremisaCosto!$F$84:$I$84) -> 0 | R59: =+Potencia!X59*$K59*12*1000*(1-$C59) -> 0 | T59: =IF(Q59=0,0,(IF($AK$3=1,$E59*$F$4*G59/$Q$20,($E59*$F$4*G59-$AL$20*PremisaCosto!$F$84)/($Q$20-$M$20*PremisaCosto!$F$84)))) -> 0 | U59: =IF(R59=0,0,IF($AK$3=1,$E59*$F$4*H59/$R$20,($E59*$F$4*H59-$AM$20*PremisaCosto!$F$84)/($R$20-$AP$19*PremisaCosto!$F$84))) -> 0 | W59: 0 | X59: 0 | Z59: =+($W59*(Energía!Z59-Clientes!T59*Límites!$D$6*12)+$W48*(Límites!$D$6-Límites!$C$6)*Clientes!T59*12+$W37*(Límites!$C$6-Límites!$B$6)*Clientes!T59*12+$W26*Clientes!T59*Límites!$B$6*12)*(1-$C59)*1000 -> 0 | AA59: =+($W59*(Energía!AA59-Clientes!U59*Límites!$D$6*12)+$W48*(Límites!$D$6-Límites!$C$6)*Clientes!U59*12+$W37*(Límites!$C$6-Límites!$B$6)*Clientes!U59*12+$W26*Clientes!U59*Límites!$B$6*12)*(1-$C59)*1000 -> 0 | AB59: =+($W59*(Energía!AB59-Clientes!V59*Límites!$D$6*12)+$W48*(Límites!$D$6-Límites!$C$6)*Clientes!V59*12+$W37*(Límites!$C$6-Límites!$B$6)*Clientes!V59*12+$W26*Clientes!V59*Límites!$B$6*12)*(1-$C59)*1000 -> 0 | AC59: =+($W59*(Energía!AC59-Clientes!W59*Límites!$D$6*12)+$W48*(Límites!$D$6-Límites!$C$6)*Clientes!W59*12+$W37*(Límites!$C$6-Límites!$B$6)*Clientes!W59*12+$W26*Clientes!W59*Límites!$B$6*12)*(1-$C59)*1000 -> 0 | AD59: =+SUMPRODUCT(Z59:AC59,PremisaCosto!$F$84:$I$84) -> 0 | AE59: =+IF($AK$3=1,Potencia!T59*$X59*12*1000*(1-$C59),AM59) -> 0 | AF59: =+Potencia!U59*$X59*12*1000*(1-$C59) -> 0 | AG59: =+Potencia!V59*$X59*12*1000*(1-$C59) -> 0 | AH59: =+Potencia!W59*$X59*12*1000*(1-$C59) -> 0 | AI59: =+SUMPRODUCT(AE59:AH59,PremisaCosto!$F$84:$I$84) -> 0 | AK59: MTD_4 Político | AL59: 0 | AM59: 0 | AP59: =+Potencia!T60*$K60*12*1000*(1-$C60) -> 0
A60: =+PremisaCosto!A142 -> MTD_4 x1 | B60: =+PremisaCosto!H142 -> x1 | C60: =+IF(B60=0,0,VLOOKUP(B60,PremisaCosto!$A$69:$D$79,4,FALSE)) -> 0 | E60: 0.1839568291 | G60: 0 | H60: 1 | J60: 0 | K60: 11.28 | M60: =+($J60*(Energía!Z60-Clientes!T60*Límites!$D$6*12)+$J49*(Límites!$D$6-Límites!$C$6)*Clientes!T60*12+$J38*(Límites!$C$6-Límites!$B$6)*Clientes!T60*12+$J27*Clientes!T60*Límites!$B$6*12)*(1-$C60)*1000 -> 0 | N60: =+($J60*(Energía!AA60-Clientes!U60*Límites!$D$6*12)+$J49*(Límites!$D$6-Límites!$C$6)*Clientes!U60*12+$J38*(Límites!$C$6-Límites!$B$6)*Clientes!U60*12+$J27*Clientes!U60*Límites!$B$6*12)*(1-$C60)*1000 -> 0 | O60: =+($J60*(Energía!AB60-Clientes!V60*Límites!$D$6*12)+$J49*(Límites!$D$6-Límites!$C$6)*Clientes!V60*12+$J38*(Límites!$C$6-Límites!$B$6)*Clientes!V60*12+$J27*Clientes!V60*Límites!$B$6*12)*(1-$C60)*1000 -> 0 | P60: =+($J60*(Energía!AC60-Clientes!W60*Límites!$D$6*12)+$J49*(Límites!$D$6-Límites!$C$6)*Clientes!W60*12+$J38*(Límites!$C$6-Límites!$B$6)*Clientes!W60*12+$J27*Clientes!W60*Límites!$B$6*12)*(1-$C60)*1000 -> 0 | Q60: =+SUMPRODUCT(M60:P60,PremisaCosto!$F$84:$I$84) -> 0 | R60: =+Potencia!X60*$K60*12*1000*(1-$C60) -> 0 | T60: =IF(Q60=0,0,(IF($AK$3=1,$E60*$F$4*G60/$Q$20,($E60*$F$4*G60-$AL$20*PremisaCosto!$F$84)/($Q$20-$M$20*PremisaCosto!$F$84)))) -> 0 | U60: =IF(R60=0,0,IF($AK$3=1,$E60*$F$4*H60/$R$20,($E60*$F$4*H60-$AM$20*PremisaCosto!$F$84)/($R$20-$AP$19*PremisaCosto!$F$84))) -> 0 | W60: 0 | X60: 0 | Z60: =+($W60*(Energía!Z60-Clientes!T60*Límites!$D$6*12)+$W49*(Límites!$D$6-Límites!$C$6)*Clientes!T60*12+$W38*(Límites!$C$6-Límites!$B$6)*Clientes!T60*12+$W27*Clientes!T60*Límites!$B$6*12)*(1-$C60)*1000 -> 0 | AA60: =+($W60*(Energía!AA60-Clientes!U60*Límites!$D$6*12)+$W49*(Límites!$D$6-Límites!$C$6)*Clientes!U60*12+$W38*(Límites!$C$6-Límites!$B$6)*Clientes!U60*12+$W27*Clientes!U60*Límites!$B$6*12)*(1-$C60)*1000 -> 0 | AB60: =+($W60*(Energía!AB60-Clientes!V60*Límites!$D$6*12)+$W49*(Límites!$D$6-Límites!$C$6)*Clientes!V60*12+$W38*(Límites!$C$6-Límites!$B$6)*Clientes!V60*12+$W27*Clientes!V60*Límites!$B$6*12)*(1-$C60)*1000 -> 0 | AC60: =+($W60*(Energía!AC60-Clientes!W60*Límites!$D$6*12)+$W49*(Límites!$D$6-Límites!$C$6)*Clientes!W60*12+$W38*(Límites!$C$6-Límites!$B$6)*Clientes!W60*12+$W27*Clientes!W60*Límites!$B$6*12)*(1-$C60)*1000 -> 0 | AD60: =+SUMPRODUCT(Z60:AC60,PremisaCosto!$F$84:$I$84) -> 0 | AE60: =+IF($AK$3=1,Potencia!T60*$X60*12*1000*(1-$C60),AM60) -> 0 | AF60: =+Potencia!U60*$X60*12*1000*(1-$C60) -> 0 | AG60: =+Potencia!V60*$X60*12*1000*(1-$C60) -> 0 | AH60: =+Potencia!W60*$X60*12*1000*(1-$C60) -> 0 | AI60: =+SUMPRODUCT(AE60:AH60,PremisaCosto!$F$84:$I$84) -> 0 | AK60: MTD_4 x1 | AL60: 0 | AM60: 0 | AP60: =+Potencia!T61*$K61*12*1000*(1-$C61) -> 0
A61: =+PremisaCosto!A143 -> MTD_4 x2 | B61: =+PremisaCosto!H143 -> x2 | C61: =+IF(B61=0,0,VLOOKUP(B61,PremisaCosto!$A$69:$D$79,4,FALSE)) -> 0 | E61: 0.1839568291 | G61: 0 | H61: 1 | J61: 0 | K61: 11.28 | M61: =+($J61*(Energía!Z61-Clientes!T61*Límites!$D$6*12)+$J50*(Límites!$D$6-Límites!$C$6)*Clientes!T61*12+$J39*(Límites!$C$6-Límites!$B$6)*Clientes!T61*12+$J28*Clientes!T61*Límites!$B$6*12)*(1-$C61)*1000 -> 0 | N61: =+($J61*(Energía!AA61-Clientes!U61*Límites!$D$6*12)+$J50*(Límites!$D$6-Límites!$C$6)*Clientes!U61*12+$J39*(Límites!$C$6-Límites!$B$6)*Clientes!U61*12+$J28*Clientes!U61*Límites!$B$6*12)*(1-$C61)*1000 -> 0 | O61: =+($J61*(Energía!AB61-Clientes!V61*Límites!$D$6*12)+$J50*(Límites!$D$6-Límites!$C$6)*Clientes!V61*12+$J39*(Límites!$C$6-Límites!$B$6)*Clientes!V61*12+$J28*Clientes!V61*Límites!$B$6*12)*(1-$C61)*1000 -> 0 | P61: =+($J61*(Energía!AC61-Clientes!W61*Límites!$D$6*12)+$J50*(Límites!$D$6-Límites!$C$6)*Clientes!W61*12+$J39*(Límites!$C$6-Límites!$B$6)*Clientes!W61*12+$J28*Clientes!W61*Límites!$B$6*12)*(1-$C61)*1000 -> 0 | Q61: =+SUMPRODUCT(M61:P61,PremisaCosto!$F$84:$I$84) -> 0 | R61: =+Potencia!X61*$K61*12*1000*(1-$C61) -> 0 | T61: =IF(Q61=0,0,(IF($AK$3=1,$E61*$F$4*G61/$Q$20,($E61*$F$4*G61-$AL$20*PremisaCosto!$F$84)/($Q$20-$M$20*PremisaCosto!$F$84)))) -> 0 | U61: =IF(R61=0,0,IF($AK$3=1,$E61*$F$4*H61/$R$20,($E61*$F$4*H61-$AM$20*PremisaCosto!$F$84)/($R$20-$AP$19*PremisaCosto!$F$84))) -> 0 | W61: 0 | X61: 0 | Z61: =+($W61*(Energía!Z61-Clientes!T61*Límites!$D$6*12)+$W50*(Límites!$D$6-Límites!$C$6)*Clientes!T61*12+$W39*(Límites!$C$6-Límites!$B$6)*Clientes!T61*12+$W28*Clientes!T61*Límites!$B$6*12)*(1-$C61)*1000 -> 0 | AA61: =+($W61*(Energía!AA61-Clientes!U61*Límites!$D$6*12)+$W50*(Límites!$D$6-Límites!$C$6)*Clientes!U61*12+$W39*(Límites!$C$6-Límites!$B$6)*Clientes!U61*12+$W28*Clientes!U61*Límites!$B$6*12)*(1-$C61)*1000 -> 0 | AB61: =+($W61*(Energía!AB61-Clientes!V61*Límites!$D$6*12)+$W50*(Límites!$D$6-Límites!$C$6)*Clientes!V61*12+$W39*(Límites!$C$6-Límites!$B$6)*Clientes!V61*12+$W28*Clientes!V61*Límites!$B$6*12)*(1-$C61)*1000 -> 0 | AC61: =+($W61*(Energía!AC61-Clientes!W61*Límites!$D$6*12)+$W50*(Límites!$D$6-Límites!$C$6)*Clientes!W61*12+$W39*(Límites!$C$6-Límites!$B$6)*Clientes!W61*12+$W28*Clientes!W61*Límites!$B$6*12)*(1-$C61)*1000 -> 0 | AD61: =+SUMPRODUCT(Z61:AC61,PremisaCosto!$F$84:$I$84) -> 0 | AE61: =+IF($AK$3=1,Potencia!T61*$X61*12*1000*(1-$C61),AM61) -> 0 | AF61: =+Potencia!U61*$X61*12*1000*(1-$C61) -> 0 | AG61: =+Potencia!V61*$X61*12*1000*(1-$C61) -> 0 | AH61: =+Potencia!W61*$X61*12*1000*(1-$C61) -> 0 | AI61: =+SUMPRODUCT(AE61:AH61,PremisaCosto!$F$84:$I$84) -> 0 | AK61: MTD_4 x2 | AL61: 0 | AM61: 0 | AP61: =+Potencia!T62*$K62*12*1000*(1-$C62) -> 0
A62: =+PremisaCosto!A144 -> MTD_4 Discap. | B62: =+PremisaCosto!H144 -> Discap. | C62: =+IF(B62=0,0,VLOOKUP(B62,PremisaCosto!$A$69:$D$79,4,FALSE)) -> 0.25 | E62: 0.1839568291 | G62: 0 | H62: 1 | J62: 0 | K62: 11.28 | M62: =+($J62*(Energía!Z62-Clientes!T62*Límites!$D$6*12)+$J51*(Límites!$D$6-Límites!$C$6)*Clientes!T62*12+$J40*(Límites!$C$6-Límites!$B$6)*Clientes!T62*12+$J29*Clientes!T62*Límites!$B$6*12)*(1-$C62)*1000 -> 0 | N62: =+($J62*(Energía!AA62-Clientes!U62*Límites!$D$6*12)+$J51*(Límites!$D$6-Límites!$C$6)*Clientes!U62*12+$J40*(Límites!$C$6-Límites!$B$6)*Clientes!U62*12+$J29*Clientes!U62*Límites!$B$6*12)*(1-$C62)*1000 -> 0 | O62: =+($J62*(Energía!AB62-Clientes!V62*Límites!$D$6*12)+$J51*(Límites!$D$6-Límites!$C$6)*Clientes!V62*12+$J40*(Límites!$C$6-Límites!$B$6)*Clientes!V62*12+$J29*Clientes!V62*Límites!$B$6*12)*(1-$C62)*1000 -> 0 | P62: =+($J62*(Energía!AC62-Clientes!W62*Límites!$D$6*12)+$J51*(Límites!$D$6-Límites!$C$6)*Clientes!W62*12+$J40*(Límites!$C$6-Límites!$B$6)*Clientes!W62*12+$J29*Clientes!W62*Límites!$B$6*12)*(1-$C62)*1000 -> 0 | Q62: =+SUMPRODUCT(M62:P62,PremisaCosto!$F$84:$I$84) -> 0 | R62: =+Potencia!X62*$K62*12*1000*(1-$C62) -> 0 | T62: =IF(Q62=0,0,(IF($AK$3=1,$E62*$F$4*G62/$Q$20,($E62*$F$4*G62-$AL$20*PremisaCosto!$F$84)/($Q$20-$M$20*PremisaCosto!$F$84)))) -> 0 | U62: =IF(R62=0,0,IF($AK$3=1,$E62*$F$4*H62/$R$20,($E62*$F$4*H62-$AM$20*PremisaCosto!$F$84)/($R$20-$AP$19*PremisaCosto!$F$84))) -> 0 | W62: 0 | X62: 0 | Z62: =+($W62*(Energía!Z62-Clientes!T62*Límites!$D$6*12)+$W51*(Límites!$D$6-Límites!$C$6)*Clientes!T62*12+$W40*(Límites!$C$6-Límites!$B$6)*Clientes!T62*12+$W29*Clientes!T62*Límites!$B$6*12)*(1-$C62)*1000 -> 0 | AA62: =+($W62*(Energía!AA62-Clientes!U62*Límites!$D$6*12)+$W51*(Límites!$D$6-Límites!$C$6)*Clientes!U62*12+$W40*(Límites!$C$6-Límites!$B$6)*Clientes!U62*12+$W29*Clientes!U62*Límites!$B$6*12)*(1-$C62)*1000 -> 0 | AB62: =+($W62*(Energía!AB62-Clientes!V62*Límites!$D$6*12)+$W51*(Límites!$D$6-Límites!$C$6)*Clientes!V62*12+$W40*(Límites!$C$6-Límites!$B$6)*Clientes!V62*12+$W29*Clientes!V62*Límites!$B$6*12)*(1-$C62)*1000 -> 0 | AC62: =+($W62*(Energía!AC62-Clientes!W62*Límites!$D$6*12)+$W51*(Límites!$D$6-Límites!$C$6)*Clientes!W62*12+$W40*(Límites!$C$6-Límites!$B$6)*Clientes!W62*12+$W29*Clientes!W62*Límites!$B$6*12)*(1-$C62)*1000 -> 0 | AD62: =+SUMPRODUCT(Z62:AC62,PremisaCosto!$F$84:$I$84) -> 0 | AE62: =+IF($AK$3=1,Potencia!T62*$X62*12*1000*(1-$C62),AM62) -> 0 | AF62: =+Potencia!U62*$X62*12*1000*(1-$C62) -> 0 | AG62: =+Potencia!V62*$X62*12*1000*(1-$C62) -> 0 | AH62: =+Potencia!W62*$X62*12*1000*(1-$C62) -> 0 | AI62: =+SUMPRODUCT(AE62:AH62,PremisaCosto!$F$84:$I$84) -> 0 | AK62: MTD_4 Discap. | AL62: 0 | AM62: 0 | AP62: =+Potencia!T63*$K63*12*1000*(1-$C63) -> 0
A63: =+PremisaCosto!A145 -> MTD_4 Discapacitados 601-más | B63: =+PremisaCosto!H145 -> Discapacitados 601-más | C63: =+IF(B63=0,0,VLOOKUP(B63,PremisaCosto!$A$69:$D$79,4,FALSE)) -> 0.25 | E63: 0.1839568291 | G63: 0 | H63: 1 | J63: 0 | K63: 11.28 | M63: =+($J63*(Energía!Z63-Clientes!T63*Límites!$D$6*12)+$J52*(Límites!$D$6-Límites!$C$6)*Clientes!T63*12+$J41*(Límites!$C$6-Límites!$B$6)*Clientes!T63*12+$J30*Clientes!T63*Límites!$B$6*12)*(1-$C63)*1000 -> 0 | N63: =+($J63*(Energía!AA63-Clientes!U63*Límites!$D$6*12)+$J52*(Límites!$D$6-Límites!$C$6)*Clientes!U63*12+$J41*(Límites!$C$6-Límites!$B$6)*Clientes!U63*12+$J30*Clientes!U63*Límites!$B$6*12)*(1-$C63)*1000 -> 0 | O63: =+($J63*(Energía!AB63-Clientes!V63*Límites!$D$6*12)+$J52*(Límites!$D$6-Límites!$C$6)*Clientes!V63*12+$J41*(Límites!$C$6-Límites!$B$6)*Clientes!V63*12+$J30*Clientes!V63*Límites!$B$6*12)*(1-$C63)*1000 -> 0 | P63: =+($J63*(Energía!AC63-Clientes!W63*Límites!$D$6*12)+$J52*(Límites!$D$6-Límites!$C$6)*Clientes!W63*12+$J41*(Límites!$C$6-Límites!$B$6)*Clientes!W63*12+$J30*Clientes!W63*Límites!$B$6*12)*(1-$C63)*1000 -> 0 | Q63: =+SUMPRODUCT(M63:P63,PremisaCosto!$F$84:$I$84) -> 0 | R63: =+Potencia!X63*$K63*12*1000*(1-$C63) -> 0 | T63: =IF(Q63=0,0,(IF($AK$3=1,$E63*$F$4*G63/$Q$20,($E63*$F$4*G63-$AL$20*PremisaCosto!$F$84)/($Q$20-$M$20*PremisaCosto!$F$84)))) -> 0 | U63: =IF(R63=0,0,IF($AK$3=1,$E63*$F$4*H63/$R$20,($E63*$F$4*H63-$AM$20*PremisaCosto!$F$84)/($R$20-$AP$19*PremisaCosto!$F$84))) -> 0 | W63: 0 | X63: 0 | Z63: =+($W63*(Energía!Z63-Clientes!T63*Límites!$D$6*12)+$W52*(Límites!$D$6-Límites!$C$6)*Clientes!T63*12+$W41*(Límites!$C$6-Límites!$B$6)*Clientes!T63*12+$W30*Clientes!T63*Límites!$B$6*12)*(1-$C63)*1000 -> 0 | AA63: =+($W63*(Energía!AA63-Clientes!U63*Límites!$D$6*12)+$W52*(Límites!$D$6-Límites!$C$6)*Clientes!U63*12+$W41*(Límites!$C$6-Límites!$B$6)*Clientes!U63*12+$W30*Clientes!U63*Límites!$B$6*12)*(1-$C63)*1000 -> 0 | AB63: =+($W63*(Energía!AB63-Clientes!V63*Límites!$D$6*12)+$W52*(Límites!$D$6-Límites!$C$6)*Clientes!V63*12+$W41*(Límites!$C$6-Límites!$B$6)*Clientes!V63*12+$W30*Clientes!V63*Límites!$B$6*12)*(1-$C63)*1000 -> 0 | AC63: =+($W63*(Energía!AC63-Clientes!W63*Límites!$D$6*12)+$W52*(Límites!$D$6-Límites!$C$6)*Clientes!W63*12+$W41*(Límites!$C$6-Límites!$B$6)*Clientes!W63*12+$W30*Clientes!W63*Límites!$B$6*12)*(1-$C63)*1000 -> 0 | AD63: =+SUMPRODUCT(Z63:AC63,PremisaCosto!$F$84:$I$84) -> 0 | AE63: =+IF($AK$3=1,Potencia!T63*$X63*12*1000*(1-$C63),AM63) -> 0 | AF63: =+Potencia!U63*$X63*12*1000*(1-$C63) -> 0 | AG63: =+Potencia!V63*$X63*12*1000*(1-$C63) -> 0 | AH63: =+Potencia!W63*$X63*12*1000*(1-$C63) -> 0 | AI63: =+SUMPRODUCT(AE63:AH63,PremisaCosto!$F$84:$I$84) -> 0 | AK63: MTD_4 Discapacitados 601-más | AL63: 0 | AM63: 0 | AP63: =+Potencia!T64*$K64*12*1000*(1-$C64) -> 0
A64: =+PremisaCosto!A146 -> MTD_4 Cruz Roja | B64: =+PremisaCosto!H146 -> Cruz Roja | C64: =+IF(B64=0,0,VLOOKUP(B64,PremisaCosto!$A$69:$D$79,4,FALSE)) -> 1 | E64: 0.1839568291 | G64: 0 | H64: 1 | J64: 0 | K64: 11.28 | M64: =+($J64*(Energía!Z64-Clientes!T64*Límites!$D$6*12)+$J53*(Límites!$D$6-Límites!$C$6)*Clientes!T64*12+$J42*(Límites!$C$6-Límites!$B$6)*Clientes!T64*12+$J31*Clientes!T64*Límites!$B$6*12)*(1-$C64)*1000 -> 0 | N64: =+($J64*(Energía!AA64-Clientes!U64*Límites!$D$6*12)+$J53*(Límites!$D$6-Límites!$C$6)*Clientes!U64*12+$J42*(Límites!$C$6-Límites!$B$6)*Clientes!U64*12+$J31*Clientes!U64*Límites!$B$6*12)*(1-$C64)*1000 -> 0 | O64: =+($J64*(Energía!AB64-Clientes!V64*Límites!$D$6*12)+$J53*(Límites!$D$6-Límites!$C$6)*Clientes!V64*12+$J42*(Límites!$C$6-Límites!$B$6)*Clientes!V64*12+$J31*Clientes!V64*Límites!$B$6*12)*(1-$C64)*1000 -> 0 | P64: =+($J64*(Energía!AC64-Clientes!W64*Límites!$D$6*12)+$J53*(Límites!$D$6-Límites!$C$6)*Clientes!W64*12+$J42*(Límites!$C$6-Límites!$B$6)*Clientes!W64*12+$J31*Clientes!W64*Límites!$B$6*12)*(1-$C64)*1000 -> 0 | Q64: =+SUMPRODUCT(M64:P64,PremisaCosto!$F$84:$I$84) -> 0 | R64: =+Potencia!X64*$K64*12*1000*(1-$C64) -> 0 | T64: =IF(Q64=0,0,(IF($AK$3=1,$E64*$F$4*G64/$Q$20,($E64*$F$4*G64-$AL$20*PremisaCosto!$F$84)/($Q$20-$M$20*PremisaCosto!$F$84)))) -> 0 | U64: =IF(R64=0,0,IF($AK$3=1,$E64*$F$4*H64/$R$20,($E64*$F$4*H64-$AM$20*PremisaCosto!$F$84)/($R$20-$AP$19*PremisaCosto!$F$84))) -> 0 | W64: 0 | X64: 0 | Z64: =+($W64*(Energía!Z64-Clientes!T64*Límites!$D$6*12)+$W53*(Límites!$D$6-Límites!$C$6)*Clientes!T64*12+$W42*(Límites!$C$6-Límites!$B$6)*Clientes!T64*12+$W31*Clientes!T64*Límites!$B$6*12)*(1-$C64)*1000 -> 0 | AA64: =+($W64*(Energía!AA64-Clientes!U64*Límites!$D$6*12)+$W53*(Límites!$D$6-Límites!$C$6)*Clientes!U64*12+$W42*(Límites!$C$6-Límites!$B$6)*Clientes!U64*12+$W31*Clientes!U64*Límites!$B$6*12)*(1-$C64)*1000 -> 0 | AB64: =+($W64*(Energía!AB64-Clientes!V64*Límites!$D$6*12)+$W53*(Límites!$D$6-Límites!$C$6)*Clientes!V64*12+$W42*(Límites!$C$6-Límites!$B$6)*Clientes!V64*12+$W31*Clientes!V64*Límites!$B$6*12)*(1-$C64)*1000 -> 0 | AC64: =+($W64*(Energía!AC64-Clientes!W64*Límites!$D$6*12)+$W53*(Límites!$D$6-Límites!$C$6)*Clientes!W64*12+$W42*(Límites!$C$6-Límites!$B$6)*Clientes!W64*12+$W31*Clientes!W64*Límites!$B$6*12)*(1-$C64)*1000 -> 0 | AD64: =+SUMPRODUCT(Z64:AC64,PremisaCosto!$F$84:$I$84) -> 0 | AE64: =+IF($AK$3=1,Potencia!T64*$X64*12*1000*(1-$C64),AM64) -> 0 | AF64: =+Potencia!U64*$X64*12*1000*(1-$C64) -> 0 | AG64: =+Potencia!V64*$X64*12*1000*(1-$C64) -> 0 | AH64: =+Potencia!W64*$X64*12*1000*(1-$C64) -> 0 | AI64: =+SUMPRODUCT(AE64:AH64,PremisaCosto!$F$84:$I$84) -> 0 | AK64: MTD_4 Cruz Roja | AL64: 0 | AM64: 0 | AP64: =+SUM(AP65:AP74) -> 0
A65: =+PremisaCosto!A147 -> MTD_5 (xxx) | B65: =+PremisaCosto!H147 -> 0 | C65: =+IF(B65=0,0,VLOOKUP(B65,PremisaCosto!$A$69:$D$79,4,FALSE)) -> 0 | E65: 0.1839568291 | G65: 0 | H65: 1 | J65: 0 | K65: 0 | M65: =+SUM(M66:M75) -> 0 | N65: 0 | O65: 0 | P65: 0 | Q65: 0 | R65: 0 | T65: =IF(Q65=0,0,(IF($AK$3=1,$E65*$F$4*G65/$Q$20,($E65*$F$4*G65-$AL$20*PremisaCosto!$F$84)/($Q$20-$M$20*PremisaCosto!$F$84)))) -> 0 | U65: =IF(R65=0,0,IF($AK$3=1,$E65*$F$4*H65/$R$20,($E65*$F$4*H65-$AM$20*PremisaCosto!$F$84)/($R$20-$AP$19*PremisaCosto!$F$84))) -> 0 | W65: 0 | X65: 0 | Z65: =+SUM(Z66:Z75) -> 0 | AA65: =+SUM(AA66:AA75) -> 0 | AB65: =+SUM(AB66:AB75) -> 0 | AC65: =+SUM(AC66:AC75) -> 0 | AD65: =+SUM(AD66:AD75) -> 0 | AE65: 0 | AF65: 0 | AG65: 0 | AH65: 0 | AI65: =+SUM(AI66:AI75) -> 0 | AK65: MTD_5 (xxx) | AL65: 0 | AM65: 0 | AP65: =+Potencia!T66*$K66*12*1000*(1-$C66) -> 0
A66: =+PremisaCosto!A148 -> MTD_5 Regular | B66: =+PremisaCosto!H148 -> Regular | C66: =+IF(B66=0,0,VLOOKUP(B66,PremisaCosto!$A$69:$D$79,4,FALSE)) -> 0 | E66: 0.1839568291 | G66: 0 | H66: 1 | J66: =+J65 -> 0 | K66: =+K65 -> 0 | M66: =+($J66*(Energía!Z66-Clientes!T66*Límites!$E$6*12)+$J55*(Límites!$E$6-Límites!$D$6)*Clientes!T66*12+$J44*(Límites!$D$6-Límites!$C$6)*Clientes!T66*12+$J33*(Límites!$C$6-Límites!$B$6)*Clientes!T66*12+$J22*Clientes!T66*Límites!$B$6*12)*(1-$C66)*1000 -> 0 | N66: =+($J66*(Energía!AA66-Clientes!U66*Límites!$E$6*12)+(Límites!$E$6-Límites!$D$6)*Clientes!U66*12*$J55+(Límites!$D$6-Límites!$C$6)*Clientes!U66*12*$J44+(Límites!$C$6-Límites!$B$6)*Clientes!U66*12*$J33+Clientes!U66*Límites!$B$6*12*$J22)*(1-$C66)*1000 -> 0 | O66: =+($J66*(Energía!AB66-Clientes!V66*Límites!$E$6*12)+(Límites!$E$6-Límites!$D$6)*Clientes!V66*12*$J55+(Límites!$D$6-Límites!$C$6)*Clientes!V66*12*$J44+(Límites!$C$6-Límites!$B$6)*Clientes!V66*12*$J33+Clientes!V66*Límites!$B$6*12*$J22)*(1-$C66)*1000 -> 0 | P66: =+($J66*(Energía!AC66-Clientes!W66*Límites!$E$6*12)+(Límites!$E$6-Límites!$D$6)*Clientes!W66*12*$J55+(Límites!$D$6-Límites!$C$6)*Clientes!W66*12*$J44+(Límites!$C$6-Límites!$B$6)*Clientes!W66*12*$J33+Clientes!W66*Límites!$B$6*12*$J22)*(1-$C66)*1000 -> 0 | Q66: =+SUMPRODUCT(M66:P66,PremisaCosto!$F$84:$I$84) -> 0 | R66: =+Potencia!X66*$K66*12*1000*(1-$C66) -> 0 | T66: =IF(Q66=0,0,(IF($AK$3=1,$E66*$F$4*G66/$Q$20,($E66*$F$4*G66-$AL$20*PremisaCosto!$F$84)/($Q$20-$M$20*PremisaCosto!$F$84)))) -> 0 | U66: =IF(R66=0,0,IF($AK$3=1,$E66*$F$4*H66/$R$20,($E66*$F$4*H66-$AM$20*PremisaCosto!$F$84)/($R$20-$AP$19*PremisaCosto!$F$84))) -> 0 | W66: 0 | X66: 0 | Z66: =+($W66*(Energía!Z66-Clientes!T66*Límites!$E$6*12)+$W55*(Límites!$E$6-Límites!$D$6)*Clientes!T66*12+$W44*(Límites!$D$6-Límites!$C$6)*Clientes!T66*12+$W33*(Límites!$C$6-Límites!$B$6)*Clientes!T66*12+$W22*Clientes!T66*Límites!$B$6*12)*(1-$C66)*1000 -> 0 | AA66: =+($W66*(Energía!AA66-Clientes!U66*Límites!$E$6*12)+(Límites!$E$6-Límites!$D$6)*Clientes!U66*12*$W55+(Límites!$D$6-Límites!$C$6)*Clientes!U66*12*$W44+(Límites!$C$6-Límites!$B$6)*Clientes!U66*12*$W33+Clientes!U66*Límites!$B$6*12*$W22)*(1-$C66)*1000 -> 0 | AB66: =+($W66*(Energía!AB66-Clientes!V66*Límites!$E$6*12)+(Límites!$E$6-Límites!$D$6)*Clientes!V66*12*$W55+(Límites!$D$6-Límites!$C$6)*Clientes!V66*12*$W44+(Límites!$C$6-Límites!$B$6)*Clientes!V66*12*$W33+Clientes!V66*Límites!$B$6*12*$W22)*(1-$C66)*1000 -> 0 | AC66: =+($W66*(Energía!AC66-Clientes!W66*Límites!$E$6*12)+(Límites!$E$6-Límites!$D$6)*Clientes!W66*12*$W55+(Límites!$D$6-Límites!$C$6)*Clientes!W66*12*$W44+(Límites!$C$6-Límites!$B$6)*Clientes!W66*12*$W33+Clientes!W66*Límites!$B$6*12*$W22)*(1-$C66)*1000 -> 0 | AD66: =+SUMPRODUCT(Z66:AC66,PremisaCosto!$F$84:$I$84) -> 0 | AE66: =+IF($AK$3=1,Potencia!T66*$X66*12*1000*(1-$C66),AM66) -> 0 | AF66: =+Potencia!U66*$X66*12*1000*(1-$C66) -> 0 | AG66: =+Potencia!V66*$X66*12*1000*(1-$C66) -> 0 | AH66: =+Potencia!W66*$X66*12*1000*(1-$C66) -> 0 | AI66: =+SUMPRODUCT(AE66:AH66,PremisaCosto!$F$84:$I$84) -> 0 | AK66: MTD_5 Regular | AL66: 0 | AM66: 0 | AP66: =+Potencia!T67*$K67*12*1000*(1-$C67) -> 0
A67: =+PremisaCosto!A149 -> MTD_5 Agro | B67: =+PremisaCosto!H149 -> Agro | C67: =+IF(B67=0,0,VLOOKUP(B67,PremisaCosto!$A$69:$D$79,4,FALSE)) -> 0.05 | E67: 0.1839568291 | G67: 0 | H67: 1 | J67: =+J66 -> 0 | K67: 0 | M67: =+($J67*(Energía!Z67-Clientes!T67*Límites!$E$6*12)+(Límites!$E$6-Límites!$D$6)*Clientes!T67*12*$J56+(Límites!$D$6-Límites!$C$6)*Clientes!T67*12*$J45+(Límites!$C$6-Límites!$B$6)*Clientes!T67*12*$J34+Clientes!T67*Límites!$B$6*12*$J23)*(1-$C67)*1000 -> 0 | N67: =+($J67*(Energía!AA67-Clientes!U67*Límites!$E$6*12)+(Límites!$E$6-Límites!$D$6)*Clientes!U67*12*$J56+(Límites!$D$6-Límites!$C$6)*Clientes!U67*12*$J45+(Límites!$C$6-Límites!$B$6)*Clientes!U67*12*$J34+Clientes!U67*Límites!$B$6*12*$J23)*(1-$C67)*1000 -> 0 | O67: =+($J67*(Energía!AB67-Clientes!V67*Límites!$E$6*12)+(Límites!$E$6-Límites!$D$6)*Clientes!V67*12*$J56+(Límites!$D$6-Límites!$C$6)*Clientes!V67*12*$J45+(Límites!$C$6-Límites!$B$6)*Clientes!V67*12*$J34+Clientes!V67*Límites!$B$6*12*$J23)*(1-$C67)*1000 -> 0 | P67: =+($J67*(Energía!AC67-Clientes!W67*Límites!$E$6*12)+(Límites!$E$6-Límites!$D$6)*Clientes!W67*12*$J56+(Límites!$D$6-Límites!$C$6)*Clientes!W67*12*$J45+(Límites!$C$6-Límites!$B$6)*Clientes!W67*12*$J34+Clientes!W67*Límites!$B$6*12*$J23)*(1-$C67)*1000 -> 0 | Q67: =+SUMPRODUCT(M67:P67,PremisaCosto!$F$84:$I$84) -> 0 | R67: =+Potencia!X67*$K67*12*1000*(1-$C67) -> 0 | T67: =IF(Q67=0,0,(IF($AK$3=1,$E67*$F$4*G67/$Q$20,($E67*$F$4*G67-$AL$20*PremisaCosto!$F$84)/($Q$20-$M$20*PremisaCosto!$F$84)))) -> 0 | U67: =IF(R67=0,0,IF($AK$3=1,$E67*$F$4*H67/$R$20,($E67*$F$4*H67-$AM$20*PremisaCosto!$F$84)/($R$20-$AP$19*PremisaCosto!$F$84))) -> 0 | W67: 0 | X67: 0 | Z67: =+($W67*(Energía!Z67-Clientes!T67*Límites!$E$6*12)+(Límites!$E$6-Límites!$D$6)*Clientes!T67*12*$W56+(Límites!$D$6-Límites!$C$6)*Clientes!T67*12*$W45+(Límites!$C$6-Límites!$B$6)*Clientes!T67*12*$W34+Clientes!T67*Límites!$B$6*12*$W23)*(1-$C67)*1000 -> 0 | AA67: =+($W67*(Energía!AA67-Clientes!U67*Límites!$E$6*12)+(Límites!$E$6-Límites!$D$6)*Clientes!U67*12*$W56+(Límites!$D$6-Límites!$C$6)*Clientes!U67*12*$W45+(Límites!$C$6-Límites!$B$6)*Clientes!U67*12*$W34+Clientes!U67*Límites!$B$6*12*$W23)*(1-$C67)*1000 -> 0 | AB67: =+($W67*(Energía!AB67-Clientes!V67*Límites!$E$6*12)+(Límites!$E$6-Límites!$D$6)*Clientes!V67*12*$W56+(Límites!$D$6-Límites!$C$6)*Clientes!V67*12*$W45+(Límites!$C$6-Límites!$B$6)*Clientes!V67*12*$W34+Clientes!V67*Límites!$B$6*12*$W23)*(1-$C67)*1000 -> 0 | AC67: =+($W67*(Energía!AC67-Clientes!W67*Límites!$E$6*12)+(Límites!$E$6-Límites!$D$6)*Clientes!W67*12*$W56+(Límites!$D$6-Límites!$C$6)*Clientes!W67*12*$W45+(Límites!$C$6-Límites!$B$6)*Clientes!W67*12*$W34+Clientes!W67*Límites!$B$6*12*$W23)*(1-$C67)*1000 -> 0 | AD67: =+SUMPRODUCT(Z67:AC67,PremisaCosto!$F$84:$I$84) -> 0 | AE67: =+IF($AK$3=1,Potencia!T67*$X67*12*1000*(1-$C67),AM67) -> 0 | AF67: =+Potencia!U67*$X67*12*1000*(1-$C67) -> 0 | AG67: =+Potencia!V67*$X67*12*1000*(1-$C67) -> 0 | AH67: =+Potencia!W67*$X67*12*1000*(1-$C67) -> 0 | AI67: =+SUMPRODUCT(AE67:AH67,PremisaCosto!$F$84:$I$84) -> 0 | AK67: MTD_5 Agro | AL67: 0 | AM67: 0 | AP67: =+Potencia!T68*$K68*12*1000*(1-$C68) -> 0
A68: =+PremisaCosto!A150 -> MTD_5 Jub. 1 | B68: =+PremisaCosto!H150 -> Jub. 1 | C68: =+IF(B68=0,0,VLOOKUP(B68,PremisaCosto!$A$69:$D$79,4,FALSE)) -> 0.25 | E68: 0.1839568291 | G68: 0 | H68: 1 | J68: 0 | K68: 0 | M68: =+($J68*(Energía!Z68-Clientes!T68*Límites!$E$6*12)+(Límites!$E$6-Límites!$D$6)*Clientes!T68*12*$J57+(Límites!$D$6-Límites!$C$6)*Clientes!T68*12*$J46+(Límites!$C$6-Límites!$B$6)*Clientes!T68*12*$J35+Clientes!T68*Límites!$B$6*12*$J24)*(1-$C68)*1000 -> 0 | N68: =+($J68*(Energía!AA68-Clientes!U68*Límites!$E$6*12)+(Límites!$E$6-Límites!$D$6)*Clientes!U68*12*$J57+(Límites!$D$6-Límites!$C$6)*Clientes!U68*12*$J46+(Límites!$C$6-Límites!$B$6)*Clientes!U68*12*$J35+Clientes!U68*Límites!$B$6*12*$J24)*(1-$C68)*1000 -> 0 | O68: =+($J68*(Energía!AB68-Clientes!V68*Límites!$E$6*12)+(Límites!$E$6-Límites!$D$6)*Clientes!V68*12*$J57+(Límites!$D$6-Límites!$C$6)*Clientes!V68*12*$J46+(Límites!$C$6-Límites!$B$6)*Clientes!V68*12*$J35+Clientes!V68*Límites!$B$6*12*$J24)*(1-$C68)*1000 -> 0 | P68: =+($J68*(Energía!AC68-Clientes!W68*Límites!$E$6*12)+(Límites!$E$6-Límites!$D$6)*Clientes!W68*12*$J57+(Límites!$D$6-Límites!$C$6)*Clientes!W68*12*$J46+(Límites!$C$6-Límites!$B$6)*Clientes!W68*12*$J35+Clientes!W68*Límites!$B$6*12*$J24)*(1-$C68)*1000 -> 0 | Q68: =+SUMPRODUCT(M68:P68,PremisaCosto!$F$84:$I$84) -> 0 | R68: =+Potencia!X68*$K68*12*1000*(1-$C68) -> 0 | T68: =IF(Q68=0,0,(IF($AK$3=1,$E68*$F$4*G68/$Q$20,($E68*$F$4*G68-$AL$20*PremisaCosto!$F$84)/($Q$20-$M$20*PremisaCosto!$F$84)))) -> 0 | U68: =IF(R68=0,0,IF($AK$3=1,$E68*$F$4*H68/$R$20,($E68*$F$4*H68-$AM$20*PremisaCosto!$F$84)/($R$20-$AP$19*PremisaCosto!$F$84))) -> 0 | W68: 0 | X68: 0 | Z68: =+($W68*(Energía!Z68-Clientes!T68*Límites!$E$6*12)+(Límites!$E$6-Límites!$D$6)*Clientes!T68*12*$W57+(Límites!$D$6-Límites!$C$6)*Clientes!T68*12*$W46+(Límites!$C$6-Límites!$B$6)*Clientes!T68*12*$W35+Clientes!T68*Límites!$B$6*12*$W24)*(1-$C68)*1000 -> 0 | AA68: =+($W68*(Energía!AA68-Clientes!U68*Límites!$E$6*12)+(Límites!$E$6-Límites!$D$6)*Clientes!U68*12*$W57+(Límites!$D$6-Límites!$C$6)*Clientes!U68*12*$W46+(Límites!$C$6-Límites!$B$6)*Clientes!U68*12*$W35+Clientes!U68*Límites!$B$6*12*$W24)*(1-$C68)*1000 -> 0 | AB68: =+($W68*(Energía!AB68-Clientes!V68*Límites!$E$6*12)+(Límites!$E$6-Límites!$D$6)*Clientes!V68*12*$W57+(Límites!$D$6-Límites!$C$6)*Clientes!V68*12*$W46+(Límites!$C$6-Límites!$B$6)*Clientes!V68*12*$W35+Clientes!V68*Límites!$B$6*12*$W24)*(1-$C68)*1000 -> 0 | AC68: =+($W68*(Energía!AC68-Clientes!W68*Límites!$E$6*12)+(Límites!$E$6-Límites!$D$6)*Clientes!W68*12*$W57+(Límites!$D$6-Límites!$C$6)*Clientes!W68*12*$W46+(Límites!$C$6-Límites!$B$6)*Clientes!W68*12*$W35+Clientes!W68*Límites!$B$6*12*$W24)*(1-$C68)*1000 -> 0 | AD68: =+SUMPRODUCT(Z68:AC68,PremisaCosto!$F$84:$I$84) -> 0 | AE68: =+IF($AK$3=1,Potencia!T68*$X68*12*1000*(1-$C68),AM68) -> 0 | AF68: =+Potencia!U68*$X68*12*1000*(1-$C68) -> 0 | AG68: =+Potencia!V68*$X68*12*1000*(1-$C68) -> 0 | AH68: =+Potencia!W68*$X68*12*1000*(1-$C68) -> 0 | AI68: =+SUMPRODUCT(AE68:AH68,PremisaCosto!$F$84:$I$84) -> 0 | AK68: MTD_5 Jub. 1 | AL68: 0 | AM68: 0 | AP68: =+Potencia!T69*$K69*12*1000*(1-$C69) -> 0
A69: =+PremisaCosto!A151 -> MTD_5 Jub. 2 | B69: =+PremisaCosto!H151 -> Jub. 2 | C69: =+IF(B69=0,0,VLOOKUP(B69,PremisaCosto!$A$69:$D$79,4,FALSE)) -> 0.25 | E69: 0.1839568291 | G69: =+G68 -> 0 | H69: =+H68 -> 1 | J69: 0 | K69: 0 | M69: =+($J69*(Energía!Z69-Clientes!T69*Límites!$E$6*12)+(Límites!$E$6-Límites!$D$6)*Clientes!T69*12*$J58+(Límites!$D$6-Límites!$C$6)*Clientes!T69*12*$J47+(Límites!$C$6-Límites!$B$6)*Clientes!T69*12*$J36+Clientes!T69*Límites!$B$6*12*$J25)*(1-$C69)*1000 -> 0 | N69: =+($J69*(Energía!AA69-Clientes!U69*Límites!$E$6*12)+(Límites!$E$6-Límites!$D$6)*Clientes!U69*12*$J58+(Límites!$D$6-Límites!$C$6)*Clientes!U69*12*$J47+(Límites!$C$6-Límites!$B$6)*Clientes!U69*12*$J36+Clientes!U69*Límites!$B$6*12*$J25)*(1-$C69)*1000 -> 0 | O69: =+($J69*(Energía!AB69-Clientes!V69*Límites!$E$6*12)+(Límites!$E$6-Límites!$D$6)*Clientes!V69*12*$J58+(Límites!$D$6-Límites!$C$6)*Clientes!V69*12*$J47+(Límites!$C$6-Límites!$B$6)*Clientes!V69*12*$J36+Clientes!V69*Límites!$B$6*12*$J25)*(1-$C69)*1000 -> 0 | P69: =+($J69*(Energía!AC69-Clientes!W69*Límites!$E$6*12)+(Límites!$E$6-Límites!$D$6)*Clientes!W69*12*$J58+(Límites!$D$6-Límites!$C$6)*Clientes!W69*12*$J47+(Límites!$C$6-Límites!$B$6)*Clientes!W69*12*$J36+Clientes!W69*Límites!$B$6*12*$J25)*(1-$C69)*1000 -> 0 | Q69: =+SUMPRODUCT(M69:P69,PremisaCosto!$F$84:$I$84) -> 0 | R69: =+Potencia!X69*$K69*12*1000*(1-$C69) -> 0 | T69: =IF(Q69=0,0,(IF($AK$3=1,$E69*$F$4*G69/$Q$20,($E69*$F$4*G69-$AL$20*PremisaCosto!$F$84)/($Q$20-$M$20*PremisaCosto!$F$84)))) -> 0 | U69: =IF(R69=0,0,IF($AK$3=1,$E69*$F$4*H69/$R$20,($E69*$F$4*H69-$AM$20*PremisaCosto!$F$84)/($R$20-$AP$19*PremisaCosto!$F$84))) -> 0 | W69: 0 | X69: 0 | Z69: =+($W69*(Energía!Z69-Clientes!T69*Límites!$E$6*12)+(Límites!$E$6-Límites!$D$6)*Clientes!T69*12*$W58+(Límites!$D$6-Límites!$C$6)*Clientes!T69*12*$W47+(Límites!$C$6-Límites!$B$6)*Clientes!T69*12*$W36+Clientes!T69*Límites!$B$6*12*$W25)*(1-$C69)*1000 -> 0 | AA69: =+($W69*(Energía!AA69-Clientes!U69*Límites!$E$6*12)+(Límites!$E$6-Límites!$D$6)*Clientes!U69*12*$W58+(Límites!$D$6-Límites!$C$6)*Clientes!U69*12*$W47+(Límites!$C$6-Límites!$B$6)*Clientes!U69*12*$W36+Clientes!U69*Límites!$B$6*12*$W25)*(1-$C69)*1000 -> 0 | AB69: =+($W69*(Energía!AB69-Clientes!V69*Límites!$E$6*12)+(Límites!$E$6-Límites!$D$6)*Clientes!V69*12*$W58+(Límites!$D$6-Límites!$C$6)*Clientes!V69*12*$W47+(Límites!$C$6-Límites!$B$6)*Clientes!V69*12*$W36+Clientes!V69*Límites!$B$6*12*$W25)*(1-$C69)*1000 -> 0 | AC69: =+($W69*(Energía!AC69-Clientes!W69*Límites!$E$6*12)+(Límites!$E$6-Límites!$D$6)*Clientes!W69*12*$W58+(Límites!$D$6-Límites!$C$6)*Clientes!W69*12*$W47+(Límites!$C$6-Límites!$B$6)*Clientes!W69*12*$W36+Clientes!W69*Límites!$B$6*12*$W25)*(1-$C69)*1000 -> 0 | AD69: =+SUMPRODUCT(Z69:AC69,PremisaCosto!$F$84:$I$84) -> 0 | AE69: =+IF($AK$3=1,Potencia!T69*$X69*12*1000*(1-$C69),AM69) -> 0 | AF69: =+Potencia!U69*$X69*12*1000*(1-$C69) -> 0 | AG69: =+Potencia!V69*$X69*12*1000*(1-$C69) -> 0 | AH69: =+Potencia!W69*$X69*12*1000*(1-$C69) -> 0 | AI69: =+SUMPRODUCT(AE69:AH69,PremisaCosto!$F$84:$I$84) -> 0 | AK69: MTD_5 Jub. 2 | AL69: 0 | AM69: 0 | AP69: =+Potencia!T70*$K70*12*1000*(1-$C70) -> 0
A70: =+PremisaCosto!A152 -> MTD_5 Político | B70: =+PremisaCosto!H152 -> Político | C70: =+IF(B70=0,0,VLOOKUP(B70,PremisaCosto!$A$69:$D$79,4,FALSE)) -> 0.5 | E70: 0.1839568291 | G70: 0 | H70: 1 | J70: 0 | K70: 0 | M70: =+($J70*(Energía!Z70-Clientes!T70*Límites!$E$6*12)+(Límites!$E$6-Límites!$D$6)*Clientes!T70*12*$J59+(Límites!$D$6-Límites!$C$6)*Clientes!T70*12*$J48+(Límites!$C$6-Límites!$B$6)*Clientes!T70*12*$J37+Clientes!T70*Límites!$B$6*12*$J26)*(1-$C70)*1000 -> 0 | N70: =+($J70*(Energía!AA70-Clientes!U70*Límites!$E$6*12)+(Límites!$E$6-Límites!$D$6)*Clientes!U70*12*$J59+(Límites!$D$6-Límites!$C$6)*Clientes!U70*12*$J48+(Límites!$C$6-Límites!$B$6)*Clientes!U70*12*$J37+Clientes!U70*Límites!$B$6*12*$J26)*(1-$C70)*1000 -> 0 | O70: =+($J70*(Energía!AB70-Clientes!V70*Límites!$E$6*12)+(Límites!$E$6-Límites!$D$6)*Clientes!V70*12*$J59+(Límites!$D$6-Límites!$C$6)*Clientes!V70*12*$J48+(Límites!$C$6-Límites!$B$6)*Clientes!V70*12*$J37+Clientes!V70*Límites!$B$6*12*$J26)*(1-$C70)*1000 -> 0 | P70: =+($J70*(Energía!AC70-Clientes!W70*Límites!$E$6*12)+(Límites!$E$6-Límites!$D$6)*Clientes!W70*12*$J59+(Límites!$D$6-Límites!$C$6)*Clientes!W70*12*$J48+(Límites!$C$6-Límites!$B$6)*Clientes!W70*12*$J37+Clientes!W70*Límites!$B$6*12*$J26)*(1-$C70)*1000 -> 0 | Q70: =+SUMPRODUCT(M70:P70,PremisaCosto!$F$84:$I$84) -> 0 | R70: =+Potencia!X70*$K70*12*1000*(1-$C70) -> 0 | T70: =IF(Q70=0,0,(IF($AK$3=1,$E70*$F$4*G70/$Q$20,($E70*$F$4*G70-$AL$20*PremisaCosto!$F$84)/($Q$20-$M$20*PremisaCosto!$F$84)))) -> 0 | U70: =IF(R70=0,0,IF($AK$3=1,$E70*$F$4*H70/$R$20,($E70*$F$4*H70-$AM$20*PremisaCosto!$F$84)/($R$20-$AP$19*PremisaCosto!$F$84))) -> 0 | W70: 0 | X70: 0 | Z70: =+($W70*(Energía!Z70-Clientes!T70*Límites!$E$6*12)+(Límites!$E$6-Límites!$D$6)*Clientes!T70*12*$W59+(Límites!$D$6-Límites!$C$6)*Clientes!T70*12*$W48+(Límites!$C$6-Límites!$B$6)*Clientes!T70*12*$W37+Clientes!T70*Límites!$B$6*12*$W26)*(1-$C70)*1000 -> 0 | AA70: =+($W70*(Energía!AA70-Clientes!U70*Límites!$E$6*12)+(Límites!$E$6-Límites!$D$6)*Clientes!U70*12*$W59+(Límites!$D$6-Límites!$C$6)*Clientes!U70*12*$W48+(Límites!$C$6-Límites!$B$6)*Clientes!U70*12*$W37+Clientes!U70*Límites!$B$6*12*$W26)*(1-$C70)*1000 -> 0 | AB70: =+($W70*(Energía!AB70-Clientes!V70*Límites!$E$6*12)+(Límites!$E$6-Límites!$D$6)*Clientes!V70*12*$W59+(Límites!$D$6-Límites!$C$6)*Clientes!V70*12*$W48+(Límites!$C$6-Límites!$B$6)*Clientes!V70*12*$W37+Clientes!V70*Límites!$B$6*12*$W26)*(1-$C70)*1000 -> 0 | AC70: =+($W70*(Energía!AC70-Clientes!W70*Límites!$E$6*12)+(Límites!$E$6-Límites!$D$6)*Clientes!W70*12*$W59+(Límites!$D$6-Límites!$C$6)*Clientes!W70*12*$W48+(Límites!$C$6-Límites!$B$6)*Clientes!W70*12*$W37+Clientes!W70*Límites!$B$6*12*$W26)*(1-$C70)*1000 -> 0 | AD70: =+SUMPRODUCT(Z70:AC70,PremisaCosto!$F$84:$I$84) -> 0 | AE70: =+IF($AK$3=1,Potencia!T70*$X70*12*1000*(1-$C70),AM70) -> 0 | AF70: =+Potencia!U70*$X70*12*1000*(1-$C70) -> 0 | AG70: =+Potencia!V70*$X70*12*1000*(1-$C70) -> 0 | AH70: =+Potencia!W70*$X70*12*1000*(1-$C70) -> 0 | AI70: =+SUMPRODUCT(AE70:AH70,PremisaCosto!$F$84:$I$84) -> 0 | AK70: MTD_5 Político | AL70: 0 | AM70: 0 | AP70: =+Potencia!T71*$K71*12*1000*(1-$C71) -> 0
A71: =+PremisaCosto!A153 -> MTD_5 x1 | B71: =+PremisaCosto!H153 -> x1 | C71: =+IF(B71=0,0,VLOOKUP(B71,PremisaCosto!$A$69:$D$79,4,FALSE)) -> 0 | E71: 0.1839568291 | G71: 0 | H71: 1 | J71: 0 | K71: 0 | M71: =+($J71*(Energía!Z71-Clientes!T71*Límites!$E$6*12)+(Límites!$E$6-Límites!$D$6)*Clientes!T71*12*$J60+(Límites!$D$6-Límites!$C$6)*Clientes!T71*12*$J49+(Límites!$C$6-Límites!$B$6)*Clientes!T71*12*$J38+Clientes!T71*Límites!$B$6*12*$J27)*(1-$C71)*1000 -> 0 | N71: =+($J71*(Energía!AA71-Clientes!U71*Límites!$E$6*12)+(Límites!$E$6-Límites!$D$6)*Clientes!U71*12*$J60+(Límites!$D$6-Límites!$C$6)*Clientes!U71*12*$J49+(Límites!$C$6-Límites!$B$6)*Clientes!U71*12*$J38+Clientes!U71*Límites!$B$6*12*$J27)*(1-$C71)*1000 -> 0 | O71: =+($J71*(Energía!AB71-Clientes!V71*Límites!$E$6*12)+(Límites!$E$6-Límites!$D$6)*Clientes!V71*12*$J60+(Límites!$D$6-Límites!$C$6)*Clientes!V71*12*$J49+(Límites!$C$6-Límites!$B$6)*Clientes!V71*12*$J38+Clientes!V71*Límites!$B$6*12*$J27)*(1-$C71)*1000 -> 0 | P71: =+($J71*(Energía!AC71-Clientes!W71*Límites!$E$6*12)+(Límites!$E$6-Límites!$D$6)*Clientes!W71*12*$J60+(Límites!$D$6-Límites!$C$6)*Clientes!W71*12*$J49+(Límites!$C$6-Límites!$B$6)*Clientes!W71*12*$J38+Clientes!W71*Límites!$B$6*12*$J27)*(1-$C71)*1000 -> 0 | Q71: =+SUMPRODUCT(M71:P71,PremisaCosto!$F$84:$I$84) -> 0 | R71: =+Potencia!X71*$K71*12*1000*(1-$C71) -> 0 | T71: =IF(Q71=0,0,(IF($AK$3=1,$E71*$F$4*G71/$Q$20,($E71*$F$4*G71-$AL$20*PremisaCosto!$F$84)/($Q$20-$M$20*PremisaCosto!$F$84)))) -> 0 | U71: =IF(R71=0,0,IF($AK$3=1,$E71*$F$4*H71/$R$20,($E71*$F$4*H71-$AM$20*PremisaCosto!$F$84)/($R$20-$AP$19*PremisaCosto!$F$84))) -> 0 | W71: 0 | X71: 0 | Z71: =+($W71*(Energía!Z71-Clientes!T71*Límites!$E$6*12)+(Límites!$E$6-Límites!$D$6)*Clientes!T71*12*$W60+(Límites!$D$6-Límites!$C$6)*Clientes!T71*12*$W49+(Límites!$C$6-Límites!$B$6)*Clientes!T71*12*$W38+Clientes!T71*Límites!$B$6*12*$W27)*(1-$C71)*1000 -> 0 | AA71: =+($W71*(Energía!AA71-Clientes!U71*Límites!$E$6*12)+(Límites!$E$6-Límites!$D$6)*Clientes!U71*12*$W60+(Límites!$D$6-Límites!$C$6)*Clientes!U71*12*$W49+(Límites!$C$6-Límites!$B$6)*Clientes!U71*12*$W38+Clientes!U71*Límites!$B$6*12*$W27)*(1-$C71)*1000 -> 0 | AB71: =+($W71*(Energía!AB71-Clientes!V71*Límites!$E$6*12)+(Límites!$E$6-Límites!$D$6)*Clientes!V71*12*$W60+(Límites!$D$6-Límites!$C$6)*Clientes!V71*12*$W49+(Límites!$C$6-Límites!$B$6)*Clientes!V71*12*$W38+Clientes!V71*Límites!$B$6*12*$W27)*(1-$C71)*1000 -> 0 | AC71: =+($W71*(Energía!AC71-Clientes!W71*Límites!$E$6*12)+(Límites!$E$6-Límites!$D$6)*Clientes!W71*12*$W60+(Límites!$D$6-Límites!$C$6)*Clientes!W71*12*$W49+(Límites!$C$6-Límites!$B$6)*Clientes!W71*12*$W38+Clientes!W71*Límites!$B$6*12*$W27)*(1-$C71)*1000 -> 0 | AD71: =+SUMPRODUCT(Z71:AC71,PremisaCosto!$F$84:$I$84) -> 0 | AE71: =+IF($AK$3=1,Potencia!T71*$X71*12*1000*(1-$C71),AM71) -> 0 | AF71: =+Potencia!U71*$X71*12*1000*(1-$C71) -> 0 | AG71: =+Potencia!V71*$X71*12*1000*(1-$C71) -> 0 | AH71: =+Potencia!W71*$X71*12*1000*(1-$C71) -> 0 | AI71: =+SUMPRODUCT(AE71:AH71,PremisaCosto!$F$84:$I$84) -> 0 | AK71: MTD_5 x1 | AL71: 0 | AM71: 0 | AP71: =+Potencia!T72*$K72*12*1000*(1-$C72) -> 0
A72: =+PremisaCosto!A154 -> MTD_5 x2 | B72: =+PremisaCosto!H154 -> x2 | C72: =+IF(B72=0,0,VLOOKUP(B72,PremisaCosto!$A$69:$D$79,4,FALSE)) -> 0 | E72: 0.1839568291 | G72: 0 | H72: 1 | J72: 0 | K72: 0 | M72: =+($J72*(Energía!Z72-Clientes!T72*Límites!$E$6*12)+(Límites!$E$6-Límites!$D$6)*Clientes!T72*12*$J61+(Límites!$D$6-Límites!$C$6)*Clientes!T72*12*$J50+(Límites!$C$6-Límites!$B$6)*Clientes!T72*12*$J39+Clientes!T72*Límites!$B$6*12*$J28)*(1-$C72)*1000 -> 0 | N72: =+($J72*(Energía!AA72-Clientes!U72*Límites!$E$6*12)+(Límites!$E$6-Límites!$D$6)*Clientes!U72*12*$J61+(Límites!$D$6-Límites!$C$6)*Clientes!U72*12*$J50+(Límites!$C$6-Límites!$B$6)*Clientes!U72*12*$J39+Clientes!U72*Límites!$B$6*12*$J28)*(1-$C72)*1000 -> 0 | O72: =+($J72*(Energía!AB72-Clientes!V72*Límites!$E$6*12)+(Límites!$E$6-Límites!$D$6)*Clientes!V72*12*$J61+(Límites!$D$6-Límites!$C$6)*Clientes!V72*12*$J50+(Límites!$C$6-Límites!$B$6)*Clientes!V72*12*$J39+Clientes!V72*Límites!$B$6*12*$J28)*(1-$C72)*1000 -> 0 | P72: =+($J72*(Energía!AC72-Clientes!W72*Límites!$E$6*12)+(Límites!$E$6-Límites!$D$6)*Clientes!W72*12*$J61+(Límites!$D$6-Límites!$C$6)*Clientes!W72*12*$J50+(Límites!$C$6-Límites!$B$6)*Clientes!W72*12*$J39+Clientes!W72*Límites!$B$6*12*$J28)*(1-$C72)*1000 -> 0 | Q72: =+SUMPRODUCT(M72:P72,PremisaCosto!$F$84:$I$84) -> 0 | R72: =+Potencia!X72*$K72*12*1000*(1-$C72) -> 0 | T72: =IF(Q72=0,0,(IF($AK$3=1,$E72*$F$4*G72/$Q$20,($E72*$F$4*G72-$AL$20*PremisaCosto!$F$84)/($Q$20-$M$20*PremisaCosto!$F$84)))) -> 0 | U72: =IF(R72=0,0,IF($AK$3=1,$E72*$F$4*H72/$R$20,($E72*$F$4*H72-$AM$20*PremisaCosto!$F$84)/($R$20-$AP$19*PremisaCosto!$F$84))) -> 0 | W72: 0 | X72: 0 | Z72: =+($W72*(Energía!Z72-Clientes!T72*Límites!$E$6*12)+(Límites!$E$6-Límites!$D$6)*Clientes!T72*12*$W61+(Límites!$D$6-Límites!$C$6)*Clientes!T72*12*$W50+(Límites!$C$6-Límites!$B$6)*Clientes!T72*12*$W39+Clientes!T72*Límites!$B$6*12*$W28)*(1-$C72)*1000 -> 0 | AA72: =+($W72*(Energía!AA72-Clientes!U72*Límites!$E$6*12)+(Límites!$E$6-Límites!$D$6)*Clientes!U72*12*$W61+(Límites!$D$6-Límites!$C$6)*Clientes!U72*12*$W50+(Límites!$C$6-Límites!$B$6)*Clientes!U72*12*$W39+Clientes!U72*Límites!$B$6*12*$W28)*(1-$C72)*1000 -> 0 | AB72: =+($W72*(Energía!AB72-Clientes!V72*Límites!$E$6*12)+(Límites!$E$6-Límites!$D$6)*Clientes!V72*12*$W61+(Límites!$D$6-Límites!$C$6)*Clientes!V72*12*$W50+(Límites!$C$6-Límites!$B$6)*Clientes!V72*12*$W39+Clientes!V72*Límites!$B$6*12*$W28)*(1-$C72)*1000 -> 0 | AC72: =+($W72*(Energía!AC72-Clientes!W72*Límites!$E$6*12)+(Límites!$E$6-Límites!$D$6)*Clientes!W72*12*$W61+(Límites!$D$6-Límites!$C$6)*Clientes!W72*12*$W50+(Límites!$C$6-Límites!$B$6)*Clientes!W72*12*$W39+Clientes!W72*Límites!$B$6*12*$W28)*(1-$C72)*1000 -> 0 | AD72: =+SUMPRODUCT(Z72:AC72,PremisaCosto!$F$84:$I$84) -> 0 | AE72: =+IF($AK$3=1,Potencia!T72*$X72*12*1000*(1-$C72),AM72) -> 0 | AF72: =+Potencia!U72*$X72*12*1000*(1-$C72) -> 0 | AG72: =+Potencia!V72*$X72*12*1000*(1-$C72) -> 0 | AH72: =+Potencia!W72*$X72*12*1000*(1-$C72) -> 0 | AI72: =+SUMPRODUCT(AE72:AH72,PremisaCosto!$F$84:$I$84) -> 0 | AK72: MTD_5 x2 | AL72: 0 | AM72: 0 | AP72: =+Potencia!T73*$K73*12*1000*(1-$C73) -> 0
A73: =+PremisaCosto!A155 -> MTD_5 Discap. | B73: =+PremisaCosto!H155 -> Discap. | C73: =+IF(B73=0,0,VLOOKUP(B73,PremisaCosto!$A$69:$D$79,4,FALSE)) -> 0.25 | E73: 0.1839568291 | G73: 0 | H73: 1 | J73: 0 | K73: 0 | M73: =+($J73*(Energía!Z73-Clientes!T73*Límites!$E$6*12)+(Límites!$E$6-Límites!$D$6)*Clientes!T73*12*$J62+(Límites!$D$6-Límites!$C$6)*Clientes!T73*12*$J51+(Límites!$C$6-Límites!$B$6)*Clientes!T73*12*$J40+Clientes!T73*Límites!$B$6*12*$J29)*(1-$C73)*1000 -> 0 | N73: =+($J73*(Energía!AA73-Clientes!U73*Límites!$E$6*12)+(Límites!$E$6-Límites!$D$6)*Clientes!U73*12*$J62+(Límites!$D$6-Límites!$C$6)*Clientes!U73*12*$J51+(Límites!$C$6-Límites!$B$6)*Clientes!U73*12*$J40+Clientes!U73*Límites!$B$6*12*$J29)*(1-$C73)*1000 -> 0 | O73: =+($J73*(Energía!AB73-Clientes!V73*Límites!$E$6*12)+(Límites!$E$6-Límites!$D$6)*Clientes!V73*12*$J62+(Límites!$D$6-Límites!$C$6)*Clientes!V73*12*$J51+(Límites!$C$6-Límites!$B$6)*Clientes!V73*12*$J40+Clientes!V73*Límites!$B$6*12*$J29)*(1-$C73)*1000 -> 0 | P73: =+($J73*(Energía!AC73-Clientes!W73*Límites!$E$6*12)+(Límites!$E$6-Límites!$D$6)*Clientes!W73*12*$J62+(Límites!$D$6-Límites!$C$6)*Clientes!W73*12*$J51+(Límites!$C$6-Límites!$B$6)*Clientes!W73*12*$J40+Clientes!W73*Límites!$B$6*12*$J29)*(1-$C73)*1000 -> 0 | Q73: =+SUMPRODUCT(M73:P73,PremisaCosto!$F$84:$I$84) -> 0 | R73: =+Potencia!X73*$K73*12*1000*(1-$C73) -> 0 | T73: =IF(Q73=0,0,(IF($AK$3=1,$E73*$F$4*G73/$Q$20,($E73*$F$4*G73-$AL$20*PremisaCosto!$F$84)/($Q$20-$M$20*PremisaCosto!$F$84)))) -> 0 | U73: =IF(R73=0,0,IF($AK$3=1,$E73*$F$4*H73/$R$20,($E73*$F$4*H73-$AM$20*PremisaCosto!$F$84)/($R$20-$AP$19*PremisaCosto!$F$84))) -> 0 | W73: 0 | X73: 0 | Z73: =+($W73*(Energía!Z73-Clientes!T73*Límites!$E$6*12)+(Límites!$E$6-Límites!$D$6)*Clientes!T73*12*$W62+(Límites!$D$6-Límites!$C$6)*Clientes!T73*12*$W51+(Límites!$C$6-Límites!$B$6)*Clientes!T73*12*$W40+Clientes!T73*Límites!$B$6*12*$W29)*(1-$C73)*1000 -> 0 | AA73: =+($W73*(Energía!AA73-Clientes!U73*Límites!$E$6*12)+(Límites!$E$6-Límites!$D$6)*Clientes!U73*12*$W62+(Límites!$D$6-Límites!$C$6)*Clientes!U73*12*$W51+(Límites!$C$6-Límites!$B$6)*Clientes!U73*12*$W40+Clientes!U73*Límites!$B$6*12*$W29)*(1-$C73)*1000 -> 0 | AB73: =+($W73*(Energía!AB73-Clientes!V73*Límites!$E$6*12)+(Límites!$E$6-Límites!$D$6)*Clientes!V73*12*$W62+(Límites!$D$6-Límites!$C$6)*Clientes!V73*12*$W51+(Límites!$C$6-Límites!$B$6)*Clientes!V73*12*$W40+Clientes!V73*Límites!$B$6*12*$W29)*(1-$C73)*1000 -> 0 | AC73: =+($W73*(Energía!AC73-Clientes!W73*Límites!$E$6*12)+(Límites!$E$6-Límites!$D$6)*Clientes!W73*12*$W62+(Límites!$D$6-Límites!$C$6)*Clientes!W73*12*$W51+(Límites!$C$6-Límites!$B$6)*Clientes!W73*12*$W40+Clientes!W73*Límites!$B$6*12*$W29)*(1-$C73)*1000 -> 0 | AD73: =+SUMPRODUCT(Z73:AC73,PremisaCosto!$F$84:$I$84) -> 0 | AE73: =+IF($AK$3=1,Potencia!T73*$X73*12*1000*(1-$C73),AM73) -> 0 | AF73: =+Potencia!U73*$X73*12*1000*(1-$C73) -> 0 | AG73: =+Potencia!V73*$X73*12*1000*(1-$C73) -> 0 | AH73: =+Potencia!W73*$X73*12*1000*(1-$C73) -> 0 | AI73: =+SUMPRODUCT(AE73:AH73,PremisaCosto!$F$84:$I$84) -> 0 | AK73: MTD_5 Discap. | AL73: 0 | AM73: 0 | AP73: =+Potencia!T74*$K74*12*1000*(1-$C74) -> 0
A74: =+PremisaCosto!A156 -> MTD_5 Discapacitados 601-más | B74: =+PremisaCosto!H156 -> Discapacitados 601-más | C74: =+IF(B74=0,0,VLOOKUP(B74,PremisaCosto!$A$69:$D$79,4,FALSE)) -> 0.25 | E74: =+E73 -> 0.1839568291 | G74: 0 | H74: 1 | J74: 0 | K74: 0 | M74: =+($J74*(Energía!Z74-Clientes!T74*Límites!$E$6*12)+(Límites!$E$6-Límites!$D$6)*Clientes!T74*12*$J63+(Límites!$D$6-Límites!$C$6)*Clientes!T74*12*$J52+(Límites!$C$6-Límites!$B$6)*Clientes!T74*12*$J41+Clientes!T74*Límites!$B$6*12*$J30)*(1-$C74)*1000 -> 0 | N74: =+($J74*(Energía!AA74-Clientes!U74*Límites!$E$6*12)+(Límites!$E$6-Límites!$D$6)*Clientes!U74*12*$J63+(Límites!$D$6-Límites!$C$6)*Clientes!U74*12*$J52+(Límites!$C$6-Límites!$B$6)*Clientes!U74*12*$J41+Clientes!U74*Límites!$B$6*12*$J30)*(1-$C74)*1000 -> 0 | O74: =+($J74*(Energía!AB74-Clientes!V74*Límites!$E$6*12)+(Límites!$E$6-Límites!$D$6)*Clientes!V74*12*$J63+(Límites!$D$6-Límites!$C$6)*Clientes!V74*12*$J52+(Límites!$C$6-Límites!$B$6)*Clientes!V74*12*$J41+Clientes!V74*Límites!$B$6*12*$J30)*(1-$C74)*1000 -> 0 | P74: =+($J74*(Energía!AC74-Clientes!W74*Límites!$E$6*12)+(Límites!$E$6-Límites!$D$6)*Clientes!W74*12*$J63+(Límites!$D$6-Límites!$C$6)*Clientes!W74*12*$J52+(Límites!$C$6-Límites!$B$6)*Clientes!W74*12*$J41+Clientes!W74*Límites!$B$6*12*$J30)*(1-$C74)*1000 -> 0 | Q74: =+SUMPRODUCT(M74:P74,PremisaCosto!$F$84:$I$84) -> 0 | R74: =+Potencia!X74*$K74*12*1000*(1-$C74) -> 0 | T74: =IF(Q74=0,0,(IF($AK$3=1,$E74*$F$4*G74/$Q$20,($E74*$F$4*G74-$AL$20*PremisaCosto!$F$84)/($Q$20-$M$20*PremisaCosto!$F$84)))) -> 0 | U74: =IF(R74=0,0,IF($AK$3=1,$E74*$F$4*H74/$R$20,($E74*$F$4*H74-$AM$20*PremisaCosto!$F$84)/($R$20-$AP$19*PremisaCosto!$F$84))) -> 0 | W74: 0 | X74: 0 | Z74: =+($W74*(Energía!Z74-Clientes!T74*Límites!$E$6*12)+(Límites!$E$6-Límites!$D$6)*Clientes!T74*12*$W63+(Límites!$D$6-Límites!$C$6)*Clientes!T74*12*$W52+(Límites!$C$6-Límites!$B$6)*Clientes!T74*12*$W41+Clientes!T74*Límites!$B$6*12*$W30)*(1-$C74)*1000 -> 0 | AA74: =+($W74*(Energía!AA74-Clientes!U74*Límites!$E$6*12)+(Límites!$E$6-Límites!$D$6)*Clientes!U74*12*$W63+(Límites!$D$6-Límites!$C$6)*Clientes!U74*12*$W52+(Límites!$C$6-Límites!$B$6)*Clientes!U74*12*$W41+Clientes!U74*Límites!$B$6*12*$W30)*(1-$C74)*1000 -> 0 | AB74: =+($W74*(Energía!AB74-Clientes!V74*Límites!$E$6*12)+(Límites!$E$6-Límites!$D$6)*Clientes!V74*12*$W63+(Límites!$D$6-Límites!$C$6)*Clientes!V74*12*$W52+(Límites!$C$6-Límites!$B$6)*Clientes!V74*12*$W41+Clientes!V74*Límites!$B$6*12*$W30)*(1-$C74)*1000 -> 0 | AC74: =+($W74*(Energía!AC74-Clientes!W74*Límites!$E$6*12)+(Límites!$E$6-Límites!$D$6)*Clientes!W74*12*$W63+(Límites!$D$6-Límites!$C$6)*Clientes!W74*12*$W52+(Límites!$C$6-Límites!$B$6)*Clientes!W74*12*$W41+Clientes!W74*Límites!$B$6*12*$W30)*(1-$C74)*1000 -> 0 | AD74: =+SUMPRODUCT(Z74:AC74,PremisaCosto!$F$84:$I$84) -> 0 | AE74: =+IF($AK$3=1,Potencia!T74*$X74*12*1000*(1-$C74),AM74) -> 0 | AF74: =+Potencia!U74*$X74*12*1000*(1-$C74) -> 0 | AG74: =+Potencia!V74*$X74*12*1000*(1-$C74) -> 0 | AH74: =+Potencia!W74*$X74*12*1000*(1-$C74) -> 0 | AI74: =+SUMPRODUCT(AE74:AH74,PremisaCosto!$F$84:$I$84) -> 0 | AK74: MTD_5 Discapacitados 601-más | AL74: 0 | AM74: 0 | AP74: =+Potencia!T75*$K75*12*1000*(1-$C75) -> 0
A75: =+PremisaCosto!A157 -> MTD_5 Cruz Roja | B75: =+PremisaCosto!H157 -> Cruz Roja | C75: =+IF(B75=0,0,VLOOKUP(B75,PremisaCosto!$A$69:$D$79,4,FALSE)) -> 1 | E75: 0.1839568291 | G75: 0 | H75: 1 | J75: 0 | K75: 0 | M75: =+($J75*(Energía!Z75-Clientes!T75*Límites!$E$6*12)+(Límites!$E$6-Límites!$D$6)*Clientes!T75*12*$J64+(Límites!$D$6-Límites!$C$6)*Clientes!T75*12*$J53+(Límites!$C$6-Límites!$B$6)*Clientes!T75*12*$J42+Clientes!T75*Límites!$B$6*12*$J31)*(1-$C75)*1000 -> 0 | N75: =+($J75*(Energía!AA75-Clientes!U75*Límites!$E$6*12)+(Límites!$E$6-Límites!$D$6)*Clientes!U75*12*$J64+(Límites!$D$6-Límites!$C$6)*Clientes!U75*12*$J53+(Límites!$C$6-Límites!$B$6)*Clientes!U75*12*$J42+Clientes!U75*Límites!$B$6*12*$J31)*(1-$C75)*1000 -> 0 | O75: =+($J75*(Energía!AB75-Clientes!V75*Límites!$E$6*12)+(Límites!$E$6-Límites!$D$6)*Clientes!V75*12*$J64+(Límites!$D$6-Límites!$C$6)*Clientes!V75*12*$J53+(Límites!$C$6-Límites!$B$6)*Clientes!V75*12*$J42+Clientes!V75*Límites!$B$6*12*$J31)*(1-$C75)*1000 -> 0 | P75: =+($J75*(Energía!AC75-Clientes!W75*Límites!$E$6*12)+(Límites!$E$6-Límites!$D$6)*Clientes!W75*12*$J64+(Límites!$D$6-Límites!$C$6)*Clientes!W75*12*$J53+(Límites!$C$6-Límites!$B$6)*Clientes!W75*12*$J42+Clientes!W75*Límites!$B$6*12*$J31)*(1-$C75)*1000 -> 0 | Q75: =+SUMPRODUCT(M75:P75,PremisaCosto!$F$84:$I$84) -> 0 | R75: =+Potencia!X75*$K75*12*1000*(1-$C75) -> 0 | T75: =IF(Q75=0,0,(IF($AK$3=1,$E75*$F$4*G75/$Q$20,($E75*$F$4*G75-$AL$20*PremisaCosto!$F$84)/($Q$20-$M$20*PremisaCosto!$F$84)))) -> 0 | U75: =IF(R75=0,0,IF($AK$3=1,$E75*$F$4*H75/$R$20,($E75*$F$4*H75-$AM$20*PremisaCosto!$F$84)/($R$20-$AP$19*PremisaCosto!$F$84))) -> 0 | W75: 0 | X75: 0 | Z75: =+($W75*(Energía!Z75-Clientes!T75*Límites!$E$6*12)+(Límites!$E$6-Límites!$D$6)*Clientes!T75*12*$W64+(Límites!$D$6-Límites!$C$6)*Clientes!T75*12*$W53+(Límites!$C$6-Límites!$B$6)*Clientes!T75*12*$W42+Clientes!T75*Límites!$B$6*12*$W31)*(1-$C75)*1000 -> 0 | AA75: =+($W75*(Energía!AA75-Clientes!U75*Límites!$E$6*12)+(Límites!$E$6-Límites!$D$6)*Clientes!U75*12*$W64+(Límites!$D$6-Límites!$C$6)*Clientes!U75*12*$W53+(Límites!$C$6-Límites!$B$6)*Clientes!U75*12*$W42+Clientes!U75*Límites!$B$6*12*$W31)*(1-$C75)*1000 -> 0 | AB75: =+($W75*(Energía!AB75-Clientes!V75*Límites!$E$6*12)+(Límites!$E$6-Límites!$D$6)*Clientes!V75*12*$W64+(Límites!$D$6-Límites!$C$6)*Clientes!V75*12*$W53+(Límites!$C$6-Límites!$B$6)*Clientes!V75*12*$W42+Clientes!V75*Límites!$B$6*12*$W31)*(1-$C75)*1000 -> 0 | AC75: =+($W75*(Energía!AC75-Clientes!W75*Límites!$E$6*12)+(Límites!$E$6-Límites!$D$6)*Clientes!W75*12*$W64+(Límites!$D$6-Límites!$C$6)*Clientes!W75*12*$W53+(Límites!$C$6-Límites!$B$6)*Clientes!W75*12*$W42+Clientes!W75*Límites!$B$6*12*$W31)*(1-$C75)*1000 -> 0 | AD75: =+SUMPRODUCT(Z75:AC75,PremisaCosto!$F$84:$I$84) -> 0 | AE75: =+IF($AK$3=1,Potencia!T75*$X75*12*1000*(1-$C75),AM75) -> 0 | AF75: =+Potencia!U75*$X75*12*1000*(1-$C75) -> 0 | AG75: =+Potencia!V75*$X75*12*1000*(1-$C75) -> 0 | AH75: =+Potencia!W75*$X75*12*1000*(1-$C75) -> 0 | AI75: =+SUMPRODUCT(AE75:AH75,PremisaCosto!$F$84:$I$84) -> 0 | AK75: MTD_5 Cruz Roja | AL75: 0 | AM75: 0 | AP75: =+SUM(AP76:AP78) -> 785229.3744
A76: =+PremisaCosto!A158 -> BTH | B76: =+PremisaCosto!H158 -> 0 | C76: =+IF(B76=0,0,VLOOKUP(B76,PremisaCosto!$A$69:$D$79,4,FALSE)) -> 0 | E76: 0.006015643401 | G76: 0 | H76: 1 | J76: 0 | M76: =+SUM(M77:M79) -> 0 | N76: 0 | O76: 0 | P76: 0 | Q76: 0 | R76: 2813992.573 | T76: =IF(Q76=0,0,(IF($AK$3=1,$E76*$F$4*G76/$Q$76,($E76*$F$4*G76-$AL$76*PremisaCosto!$F$84)/($Q$76-$M$76*PremisaCosto!$F$84)))) -> 0 | U76: =IF(R76=0,0,IF($AK$3=1,$E76*$F$4*H76/$R$76,($E76*$F$4*H76-$AM$76*PremisaCosto!$F$84)/($R$76-$AP$75*PremisaCosto!$F$84))) -> 1.44365879 | W76: 0 | X76: 0 | Z76: =+SUM(Z77:Z79) -> 0 | AA76: 0 | AB76: 0 | AC76: 0 | AD76: 0 | AE76: 770261.955 | AF76: 1176870.813 | AG76: 1222273.695 | AH76: 1269656.325 | AI76: 3713797.73 | AK76: BTH | AL76: 0 | AM76: 770261.955 | AP76: =+Potencia!T77*$K77*12*1000*(1-$C77) -> 678128.4618
A77: =+PremisaCosto!A159 -> BTH Punta | B77: =+PremisaCosto!H159 -> 0 | C77: =+IF(B77=0,0,VLOOKUP(B77,PremisaCosto!$A$69:$D$79,4,FALSE)) -> 0 | E77: =+E76 -> 0.006015643401 | G77: 0 | H77: 1 | J77: 0 | K77: 11.08 | M77: =+$J77*Energía!Z77*(1-$C77)*1000 -> 0 | N77: =+$J77*Energía!AA77*(1-$C77)*1000 -> 0 | O77: =+$J77*Energía!AB77*(1-$C77)*1000 -> 0 | P77: =+$J77*Energía!AC77*(1-$C77)*1000 -> 0 | Q77: =+SUMPRODUCT(M77:P77,PremisaCosto!$F$84:$I$84) -> 0 | R77: =+Potencia!X77*$K77*12*1000*(1-$C77) -> 2430195.098 | T77: =IF(Q77=0,0,(IF($AK$3=1,$E77*$F$4*G77/$Q$76,($E77*$F$4*G77-$AL$76*PremisaCosto!$F$84)/($Q$76-$M$76*PremisaCosto!$F$84)))) -> 0 | U77: =IF(R77=0,0,IF($AK$3=1,$E77*$F$4*H77/$R$76,($E77*$F$4*H77-$AM$76*PremisaCosto!$F$84)/($R$76-$AP$75*PremisaCosto!$F$84))) -> 1.44365879 | W77: 0 | X77: 15.99573939 | Z77: =+IF($AK$3=1,$W77*Energía!Z77*(1-$C77)*1000,AL77) -> 0 | AA77: =+$W77*Energía!AA77*(1-$C77)*1000 -> 0 | AB77: =+$W77*Energía!AB77*(1-$C77)*1000 -> 0 | AC77: =+$W77*Energía!AC77*(1-$C77)*1000 -> 0 | AD77: =+SUMPRODUCT(Z77:AC77,PremisaCosto!$F$84:$I$84) -> 0 | AE77: =+IF($AK$3=1,Potencia!T77*$X77*12*1000*(1-$C77),AM77) -> 665202.515 | AF77: =+Potencia!U77*$X77*12*1000*(1-$C77) -> 1016356.249 | AG77: =+Potencia!V77*$X77*12*1000*(1-$C77) -> 1055571.58 | AH77: =+Potencia!W77*$X77*12*1000*(1-$C77) -> 1096497.362 | AI77: =+SUMPRODUCT(AE77:AH77,PremisaCosto!$F$84:$I$84) -> 3207278.692 | AK77: =+A77 -> BTH Punta | AL77: 0 | AM77: 665202.515 | AP77: =+Potencia!T78*$K78*12*1000*(1-$C78) -> 53550.4563
A78: =+PremisaCosto!A160 -> BTH Fuera de Punta Medio | B78: =+PremisaCosto!H160 -> 0 | C78: =+IF(B78=0,0,VLOOKUP(B78,PremisaCosto!$A$69:$D$79,4,FALSE)) -> 0 | E78: =+$E$76 -> 0.006015643401 | G78: 0 | H78: 1 | J78: 0 | K78: 1.53 | M78: =+$J78*Energía!Z78*(1-$C78)*1000 -> 0 | N78: =+$J78*Energía!AA78*(1-$C78)*1000 -> 0 | O78: =+$J78*Energía!AB78*(1-$C78)*1000 -> 0 | P78: =+$J78*Energía!AC78*(1-$C78)*1000 -> 0 | Q78: =+SUMPRODUCT(M78:P78,PremisaCosto!$F$84:$I$84) -> 0 | R78: =+Potencia!X78*$K78*12*1000*(1-$C78) -> 191898.7377 | T78: =IF(Q78=0,0,(IF($AK$3=1,$E78*$F$4*G78/$Q$76,($E78*$F$4*G78-$AL$76*PremisaCosto!$F$84)/($Q$76-$M$76*PremisaCosto!$F$84)))) -> 0 | U78: =IF(R78=0,0,IF($AK$3=1,$E78*$F$4*H78/$R$76,($E78*$F$4*H78-$AM$76*PremisaCosto!$F$84)/($R$76-$AP$75*PremisaCosto!$F$84))) -> 1.44365879 | W78: =+J78*T78 -> 0 | X78: =+U78*K78 -> 2.208797948 | Z78: =+IF($AK$3=1,$W78*Energía!Z78*(1-$C78)*1000,AL78) -> 0 | AA78: =+$W78*Energía!AA78*(1-$C78)*1000 -> 0 | AB78: =+$W78*Energía!AB78*(1-$C78)*1000 -> 0 | AC78: =+$W78*Energía!AC78*(1-$C78)*1000 -> 0 | AD78: =+SUMPRODUCT(Z78:AC78,PremisaCosto!$F$84:$I$84) -> 0 | AE78: =+IF($AK$3=1,Potencia!T78*$X78*12*1000*(1-$C78),AM78) -> 52529.72 | AF78: =+Potencia!U78*$X78*12*1000*(1-$C78) -> 80257.28224 | AG78: =+Potencia!V78*$X78*12*1000*(1-$C78) -> 83351.0574 | AH78: =+Potencia!W78*$X78*12*1000*(1-$C78) -> 86579.48145 | AI78: =+SUMPRODUCT(AE78:AH78,PremisaCosto!$F$84:$I$84) -> 253259.519 | AK78: =+A78 -> BTH Fuera de Punta Medio | AL78: 0 | AM78: 52529.72 | AP78: =+Potencia!T79*$K79*12*1000*(1-$C79) -> 53550.4563
A79: =+PremisaCosto!A161 -> BTH Fuera de Punta Bajo | B79: =+PremisaCosto!H161 -> 0 | C79: =+IF(B79=0,0,VLOOKUP(B79,PremisaCosto!$A$69:$D$79,4,FALSE)) -> 0 | E79: =+$E$76 -> 0.006015643401 | G79: 0 | H79: 1 | J79: 0 | K79: 1.53 | M79: =+$J79*Energía!Z79*(1-$C79)*1000 -> 0 | N79: =+$J79*Energía!AA79*(1-$C79)*1000 -> 0 | O79: =+$J79*Energía!AB79*(1-$C79)*1000 -> 0 | P79: =+$J79*Energía!AC79*(1-$C79)*1000 -> 0 | Q79: =+SUMPRODUCT(M79:P79,PremisaCosto!$F$84:$I$84) -> 0 | R79: =+Potencia!X79*$K79*12*1000*(1-$C79) -> 191898.7377 | T79: =IF(Q79=0,0,(IF($AK$3=1,$E79*$F$4*G79/$Q$76,($E79*$F$4*G79-$AL$76*PremisaCosto!$F$84)/($Q$76-$M$76*PremisaCosto!$F$84)))) -> 0 | U79: =IF(R79=0,0,IF($AK$3=1,$E79*$F$4*H79/$R$76,($E79*$F$4*H79-$AM$76*PremisaCosto!$F$84)/($R$76-$AP$75*PremisaCosto!$F$84))) -> 1.44365879 | W79: =+J79*T79 -> 0 | X79: =+U79*K79 -> 2.208797948 | Z79: =+IF($AK$3=1,$W79*Energía!Z79*(1-$C79)*1000,AL79) -> 0 | AA79: =+$W79*Energía!AA79*(1-$C79)*1000 -> 0 | AB79: =+$W79*Energía!AB79*(1-$C79)*1000 -> 0 | AC79: =+$W79*Energía!AC79*(1-$C79)*1000 -> 0 | AD79: =+SUMPRODUCT(Z79:AC79,PremisaCosto!$F$84:$I$84) -> 0 | AE79: =+IF($AK$3=1,Potencia!T79*$X79*12*1000*(1-$C79),AM79) -> 52529.72 | AF79: =+Potencia!U79*$X79*12*1000*(1-$C79) -> 80257.28224 | AG79: =+Potencia!V79*$X79*12*1000*(1-$C79) -> 83351.0574 | AH79: =+Potencia!W79*$X79*12*1000*(1-$C79) -> 86579.48145 | AI79: =+SUMPRODUCT(AE79:AH79,PremisaCosto!$F$84:$I$84) -> 253259.519 | AK79: BTH Fuera de Punta Bajo | AL79: 0 | AM79: 52529.72 | AP79: =+SUM(AP80,AP91,AP102,AP113,AP124) -> 43368433.28
A80: =+PremisaCosto!A162 -> BTD | B80: =+PremisaCosto!H162 -> 0 | C80: =+IF(B80=0,0,VLOOKUP(B80,PremisaCosto!$A$69:$D$79,4,FALSE)) -> 0 | E80: 0.3324183178 | G80: 0 | H80: 1 | J80: 0 | M80: =+SUM(M81,M92,M103,M114,M125) -> 0 | N80: 0 | O80: 0 | P80: 0 | Q80: 0 | R80: 155498361.5 | T80: =IF(Q80=0,0,(IF($AK$3=1,$E80*$F$4*G80/$Q$80,($E80*$F$4*G80-$AL$80*PremisaCosto!$F$84)/($Q$80-$M$80*PremisaCosto!$F$84)))) -> 0 | U80: =IF(R80=0,0,IF($AK$3=1,$E80*$F$4*H80/$R$80,($E80*$F$4*H80-$AM$80*PremisaCosto!$F$84)/($R$80-$AP$79*PremisaCosto!$F$84))) -> 1.443570877 | W80: 0 | X80: 0 | Z80: =+SUM(Z81,Z92,Z103,Z114,Z125) -> 0 | AA80: =+SUM(AA81,AA92,AA103,AA114,AA125) -> 0 | AB80: =+SUM(AB81,AB92,AB103,AB114,AB125) -> 0 | AC80: =+SUM(AC81,AC92,AC103,AC114,AC125) -> 0 | AD80: =+SUM(AD81,AD92,AD103,AD114,AD125) -> 0 | AE80: 42541778.46 | AF80: 65016029.42 | AG80: 67550565.91 | AH80: 70198344.09 | AI80: =+SUM(AI81,AI92,AI103,AI114,AI125) -> 205220674.1 | AK80: BTD | AL80: 0 | AM80: 42541778.46 | AP80: =+SUM(AP81:AP90) -> 16200138.28
A81: =+PremisaCosto!A163 -> BTD_1 (0-10,000) | B81: =+PremisaCosto!H163 -> 0 | C81: =+IF(B81=0,0,VLOOKUP(B81,PremisaCosto!$A$69:$D$79,4,FALSE)) -> 0 | E81: =+E80 -> 0.3324183178 | G81: =+G80 -> 0 | H81: 1 | J81: 0 | K81: 10.71 | M81: =+SUM(M82:M91) -> 0 | N81: 0 | O81: 0 | P81: 0 | Q81: 0 | R81: =+SUM(R82:R91) -> 58085197.12 | T81: =IF(Q81=0,0,(IF($AK$3=1,$E81*$F$4*G81/$Q$80,($E81*$F$4*G81-$AL$80*PremisaCosto!$F$84)/($Q$80-$M$80*PremisaCosto!$F$84)))) -> 0 | U81: =IF(R81=0,0,IF($AK$3=1,$E81*$F$4*H81/$R$80,($E81*$F$4*H81-$AM$80*PremisaCosto!$F$84)/($R$80-$AP$79*PremisaCosto!$F$84))) -> 1.443570877 | W81: 0 | X81: 15.4606441 | Z81: =+SUM(Z82:Z91) -> 0 | AA81: =+SUM(AA82:AA91) -> 0 | AB81: =+SUM(AB82:AB91) -> 0 | AC81: =+SUM(AC82:AC91) -> 0 | AD81: =+SUM(AD82:AD91) -> 0 | AE81: =+SUM(AE82:AE91) -> 15891344.04 | AF81: 24286313.51 | AG81: 25232866.17 | AH81: 26221702.9 | AI81: =+SUM(AI82:AI91) -> 76658489.82 | AK81: BTD_1 (0-10,000) | AL81: 0 | AM81: 0 | AP81: =+Potencia!T82*$K82*12*1000*(1-$C82) -> 16032883.62
A82: =+PremisaCosto!A164 -> BTD_1 Regular | B82: =+PremisaCosto!H164 -> Regular | C82: =+IF(B82=0,0,VLOOKUP(B82,PremisaCosto!$A$69:$D$79,4,FALSE)) -> 0 | E82: 0.3324183178 | G82: 0 | H82: 1 | J82: =+J81 -> 0 | K82: =+K81 -> 10.71 | M82: =+$J82*Energía!Z82*(1-$C82)*1000 -> 0 | N82: =+$J82*Energía!AA82*(1-$C82)*1000 -> 0 | O82: =+$J82*Energía!AB82*(1-$C82)*1000 -> 0 | P82: =+$J82*Energía!AC82*(1-$C82)*1000 -> 0 | Q82: =+SUMPRODUCT(M82:P82,PremisaCosto!$F$84:$I$84) -> 0 | R82: =+Potencia!X82*$K82*12*1000*(1-$C82) -> 57485476.71 | T82: =IF(Q82=0,0,(IF($AK$3=1,$E82*$F$4*G82/$Q$80,($E82*$F$4*G82-$AL$80*PremisaCosto!$F$84)/($Q$80-$M$80*PremisaCosto!$F$84)))) -> 0 | U82: =IF(R82=0,0,IF($AK$3=1,$E82*$F$4*H82/$R$80,($E82*$F$4*H82-$AM$80*PremisaCosto!$F$84)/($R$80-$AP$79*PremisaCosto!$F$84))) -> 1.443570877 | W82: 0 | X82: 15.4606441 | Z82: =+IF($AK$3=1,$W82*Energía!Z82*(1-$C82)*1000,AL82) -> 0 | AA82: =+$W82*Energía!AA82*(1-$C82)*1000 -> 0 | AB82: =+$W82*Energía!AB82*(1-$C82)*1000 -> 0 | AC82: =+$W82*Energía!AC82*(1-$C82)*1000 -> 0 | AD82: =+SUMPRODUCT(Z82:AC82,PremisaCosto!$F$84:$I$84) -> 0 | AE82: =+IF($AK$3=1,Potencia!T82*$X82*12*1000*(1-$C82),AM82) -> 15727277.46 | AF82: =+Potencia!U82*$X82*12*1000*(1-$C82) -> 24035565.45 | AG82: =+Potencia!V82*$X82*12*1000*(1-$C82) -> 24972335.38 | AH82: =+Potencia!W82*$X82*12*1000*(1-$C82) -> 25950951.8 | AI82: =+SUMPRODUCT(AE82:AH82,PremisaCosto!$F$84:$I$84) -> 75866999.04 | AK82: BTD_1 Regular | AL82: 0 | AM82: 15727277.46 | AP82: =+Potencia!T83*$K83*12*1000*(1-$C83) -> 165893.4421
A83: =+PremisaCosto!A165 -> BTD_1 Agro | B83: =+PremisaCosto!H165 -> Agro | C83: =+IF(B83=0,0,VLOOKUP(B83,PremisaCosto!$A$69:$D$79,4,FALSE)) -> 0.05 | E83: 0.3324183178 | G83: 0 | H83: 1 | J83: =+J82 -> 0 | K83: 10.71 | M83: =+$J83*Energía!Z83*(1-$C83)*1000 -> 0 | N83: =+$J83*Energía!AA83*(1-$C83)*1000 -> 0 | O83: =+$J83*Energía!AB83*(1-$C83)*1000 -> 0 | P83: =+$J83*Energía!AC83*(1-$C83)*1000 -> 0 | Q83: =+SUMPRODUCT(M83:P83,PremisaCosto!$F$84:$I$84) -> 0 | R83: =+Potencia!X83*$K83*12*1000*(1-$C83) -> 594839.5307 | T83: =IF(Q83=0,0,(IF($AK$3=1,$E83*$F$4*G83/$Q$80,($E83*$F$4*G83-$AL$80*PremisaCosto!$F$84)/($Q$80-$M$80*PremisaCosto!$F$84)))) -> 0 | U83: =IF(R83=0,0,IF($AK$3=1,$E83*$F$4*H83/$R$80,($E83*$F$4*H83-$AM$80*PremisaCosto!$F$84)/($R$80-$AP$79*PremisaCosto!$F$84))) -> 1.443570877 | W83: 0 | X83: 15.4606441 | Z83: =+IF($AK$3=1,$W83*Energía!Z83*(1-$C83)*1000,AL83) -> 0 | AA83: =+$W83*Energía!AA83*(1-$C83)*1000 -> 0 | AB83: =+$W83*Energía!AB83*(1-$C83)*1000 -> 0 | AC83: =+$W83*Energía!AC83*(1-$C83)*1000 -> 0 | AD83: =+SUMPRODUCT(Z83:AC83,PremisaCosto!$F$84:$I$84) -> 0 | AE83: =+IF($AK$3=1,Potencia!T83*$X83*12*1000*(1-$C83),AM83) -> 162731.3122 | AF83: =+Potencia!U83*$X83*12*1000*(1-$C83) -> 248707.3185 | AG83: =+Potencia!V83*$X83*12*1000*(1-$C83) -> 258410.4328 | AH83: =+Potencia!W83*$X83*12*1000*(1-$C83) -> 268547.5632 | AI83: =+SUMPRODUCT(AE83:AH83,PremisaCosto!$F$84:$I$84) -> 785049.1581 | AK83: BTD_1 Agro | AL83: 0 | AM83: 162731.3122 | AP83: =+Potencia!T84*$K84*12*1000*(1-$C84) -> 0
A84: =+PremisaCosto!A166 -> BTD_1 Jub. 1 | B84: =+PremisaCosto!H166 -> Jub. 1 | C84: =+IF(B84=0,0,VLOOKUP(B84,PremisaCosto!$A$69:$D$79,4,FALSE)) -> 0.25 | E84: 0.3324183178 | G84: =+G83 -> 0 | H84: =+H83 -> 1 | J84: 0 | K84: 10.71 | M84: =+$J84*Energía!Z84*(1-$C84)*1000 -> 0 | N84: =+$J84*Energía!AA84*(1-$C84)*1000 -> 0 | O84: =+$J84*Energía!AB84*(1-$C84)*1000 -> 0 | P84: =+$J84*Energía!AC84*(1-$C84)*1000 -> 0 | Q84: =+SUMPRODUCT(M84:P84,PremisaCosto!$F$84:$I$84) -> 0 | R84: =+Potencia!X84*$K84*12*1000*(1-$C84) -> 0 | T84: =IF(Q84=0,0,(IF($AK$3=1,$E84*$F$4*G84/$Q$80,($E84*$F$4*G84-$AL$80*PremisaCosto!$F$84)/($Q$80-$M$80*PremisaCosto!$F$84)))) -> 0 | U84: =IF(R84=0,0,IF($AK$3=1,$E84*$F$4*H84/$R$80,($E84*$F$4*H84-$AM$80*PremisaCosto!$F$84)/($R$80-$AP$79*PremisaCosto!$F$84))) -> 0 | W84: 0 | X84: 0 | Z84: =+IF($AK$3=1,$W84*Energía!Z84*(1-$C84)*1000,AL84) -> 0 | AA84: =+$W84*Energía!AA84*(1-$C84)*1000 -> 0 | AB84: =+$W84*Energía!AB84*(1-$C84)*1000 -> 0 | AC84: =+$W84*Energía!AC84*(1-$C84)*1000 -> 0 | AD84: =+SUMPRODUCT(Z84:AC84,PremisaCosto!$F$84:$I$84) -> 0 | AE84: =+IF($AK$3=1,Potencia!T84*$X84*12*1000*(1-$C84),AM84) -> 0 | AF84: =+Potencia!U84*$X84*12*1000*(1-$C84) -> 0 | AG84: =+Potencia!V84*$X84*12*1000*(1-$C84) -> 0 | AH84: =+Potencia!W84*$X84*12*1000*(1-$C84) -> 0 | AI84: =+SUMPRODUCT(AE84:AH84,PremisaCosto!$F$84:$I$84) -> 0 | AK84: BTD_1 Jub. 1 | AL84: 0 | AM84: 0 | AP84: =+Potencia!T85*$K85*12*1000*(1-$C85) -> 0
A85: =+PremisaCosto!A167 -> BTD_1 Jub. 2 | B85: =+PremisaCosto!H167 -> Jub. 2 | C85: =+IF(B85=0,0,VLOOKUP(B85,PremisaCosto!$A$69:$D$79,4,FALSE)) -> 0.25 | E85: 0.3324183178 | G85: 0 | H85: 1 | J85: 0 | K85: 10.71 | M85: =+$J85*((Energía!Z85-Clientes!T85*Límites!$B$14*12)+Clientes!T85*Límites!$B$14*12*(1-$C85))*1000 -> 0 | N85: =+$J85*((Energía!AA85-Clientes!U85*Límites!$B$14*12)+Clientes!U85*Límites!$B$14*12*(1-$C85))*1000 -> 0 | O85: =+$J85*((Energía!AB85-Clientes!V85*Límites!$B$14*12)+Clientes!V85*Límites!$B$14*12*(1-$C85))*1000 -> 0 | P85: =+$J85*((Energía!AC85-Clientes!W85*Límites!$B$14*12)+Clientes!W85*Límites!$B$14*12*(1-$C85))*1000 -> 0 | Q85: =+SUMPRODUCT(M85:P85,PremisaCosto!$F$84:$I$84) -> 0 | R85: =+Potencia!X85*$K85*12*1000*(1-$C85) -> 0 | T85: =IF(Q85=0,0,(IF($AK$3=1,$E85*$F$4*G85/$Q$80,($E85*$F$4*G85-$AL$80*PremisaCosto!$F$84)/($Q$80-$M$80*PremisaCosto!$F$84)))) -> 0 | U85: =IF(R85=0,0,IF($AK$3=1,$E85*$F$4*H85/$R$80,($E85*$F$4*H85-$AM$80*PremisaCosto!$F$84)/($R$80-$AP$79*PremisaCosto!$F$84))) -> 0 | W85: 0 | X85: 0 | Z85: =+IF($AK$3=1,$W85*((Energía!Z85-Clientes!T85*Límites!$B$14*12)+Clientes!T85*Límites!$B$14*12*(1-$C85))*1000,AL85) -> 0 | AA85: =+$W85*((Energía!AA85-Clientes!U85*Límites!$B$14*12)+Clientes!U85*Límites!$B$14*12*(1-$C85))*1000 -> 0 | AB85: =+$W85*((Energía!AB85-Clientes!V85*Límites!$B$14*12)+Clientes!V85*Límites!$B$14*12*(1-$C85))*1000 -> 0 | AC85: =+$W85*((Energía!AC85-Clientes!W85*Límites!$B$14*12)+Clientes!W85*Límites!$B$14*12*(1-$C85))*1000 -> 0 | AD85: =+SUMPRODUCT(Z85:AC85,PremisaCosto!$F$84:$I$84) -> 0 | AE85: =+IF($AK$3=1,Potencia!T85*$X85*12*1000*(1-$C85),AM85) -> 0 | AF85: =+Potencia!U85*$X85*12*1000*(1-$C85) -> 0 | AG85: =+Potencia!V85*$X85*12*1000*(1-$C85) -> 0 | AH85: =+Potencia!W85*$X85*12*1000*(1-$C85) -> 0 | AI85: =+SUMPRODUCT(AE85:AH85,PremisaCosto!$F$84:$I$84) -> 0 | AK85: BTD_1 Jub. 2 | AL85: 0 | AM85: 0 | AP85: =+Potencia!T86*$K86*12*1000*(1-$C86) -> 1361.21685
A86: =+PremisaCosto!A168 -> BTD_1 Político | B86: =+PremisaCosto!H168 -> Político | C86: =+IF(B86=0,0,VLOOKUP(B86,PremisaCosto!$A$69:$D$79,4,FALSE)) -> 0.5 | E86: 0.3324183178 | G86: 0 | H86: 1 | J86: 0 | K86: 10.71 | M86: =+$J86*Energía!Z86*(1-$C86)*1000 -> 0 | N86: =+$J86*Energía!AA86*(1-$C86)*1000 -> 0 | O86: =+$J86*Energía!AB86*(1-$C86)*1000 -> 0 | P86: =+$J86*Energía!AC86*(1-$C86)*1000 -> 0 | Q86: =+SUMPRODUCT(M86:P86,PremisaCosto!$F$84:$I$84) -> 0 | R86: =+Potencia!X86*$K86*12*1000*(1-$C86) -> 4880.877641 | T86: =IF(Q86=0,0,(IF($AK$3=1,$E86*$F$4*G86/$Q$80,($E86*$F$4*G86-$AL$80*PremisaCosto!$F$84)/($Q$80-$M$80*PremisaCosto!$F$84)))) -> 0 | U86: =IF(R86=0,0,IF($AK$3=1,$E86*$F$4*H86/$R$80,($E86*$F$4*H86-$AM$80*PremisaCosto!$F$84)/($R$80-$AP$79*PremisaCosto!$F$84))) -> 1.443570877 | W86: 0 | X86: 15.4606441 | Z86: =+IF($AK$3=1,$W86*Energía!Z86*(1-$C86)*1000,AL86) -> 0 | AA86: =+$W86*Energía!AA86*(1-$C86)*1000 -> 0 | AB86: =+$W86*Energía!AB86*(1-$C86)*1000 -> 0 | AC86: =+$W86*Energía!AC86*(1-$C86)*1000 -> 0 | AD86: =+SUMPRODUCT(Z86:AC86,PremisaCosto!$F$84:$I$84) -> 0 | AE86: =+IF($AK$3=1,Potencia!T86*$X86*12*1000*(1-$C86),AM86) -> 1335.270408 | AF86: =+Potencia!U86*$X86*12*1000*(1-$C86) -> 2040.735236 | AG86: =+Potencia!V86*$X86*12*1000*(1-$C86) -> 2120.352866 | AH86: =+Potencia!W86*$X86*12*1000*(1-$C86) -> 2203.531758 | AI86: =+SUMPRODUCT(AE86:AH86,PremisaCosto!$F$84:$I$84) -> 6441.617755 | AK86: BTD_1 Político | AL86: 0 | AM86: 1335.270408 | AP86: =+Potencia!T87*$K87*12*1000*(1-$C87) -> 0
A87: =+PremisaCosto!A169 -> BTD_1 x1 | B87: =+PremisaCosto!H169 -> x1 | C87: =+IF(B87=0,0,VLOOKUP(B87,PremisaCosto!$A$69:$D$79,4,FALSE)) -> 0 | E87: 0.3324183178 | G87: 0 | H87: 1 | J87: 0 | K87: 10.71 | M87: =+$J87*Energía!Z87*(1-$C87)*1000 -> 0 | N87: =+$J87*Energía!AA87*(1-$C87)*1000 -> 0 | O87: =+$J87*Energía!AB87*(1-$C87)*1000 -> 0 | P87: =+$J87*Energía!AC87*(1-$C87)*1000 -> 0 | Q87: =+SUMPRODUCT(M87:P87,PremisaCosto!$F$84:$I$84) -> 0 | R87: =+Potencia!X87*$K87*12*1000*(1-$C87) -> 0 | T87: =IF(Q87=0,0,(IF($AK$3=1,$E87*$F$4*G87/$Q$80,($E87*$F$4*G87-$AL$80*PremisaCosto!$F$84)/($Q$80-$M$80*PremisaCosto!$F$84)))) -> 0 | U87: =IF(R87=0,0,IF($AK$3=1,$E87*$F$4*H87/$R$80,($E87*$F$4*H87-$AM$80*PremisaCosto!$F$84)/($R$80-$AP$79*PremisaCosto!$F$84))) -> 0 | W87: 0 | X87: 0 | Z87: =+IF($AK$3=1,$W87*Energía!Z87*(1-$C87)*1000,AL87) -> 0 | AA87: =+$W87*Energía!AA87*(1-$C87)*1000 -> 0 | AB87: =+$W87*Energía!AB87*(1-$C87)*1000 -> 0 | AC87: =+$W87*Energía!AC87*(1-$C87)*1000 -> 0 | AD87: =+SUMPRODUCT(Z87:AC87,PremisaCosto!$F$84:$I$84) -> 0 | AE87: =+IF($AK$3=1,Potencia!T87*$X87*12*1000*(1-$C87),AM87) -> 0 | AF87: =+Potencia!U87*$X87*12*1000*(1-$C87) -> 0 | AG87: =+Potencia!V87*$X87*12*1000*(1-$C87) -> 0 | AH87: =+Potencia!W87*$X87*12*1000*(1-$C87) -> 0 | AI87: =+SUMPRODUCT(AE87:AH87,PremisaCosto!$F$84:$I$84) -> 0 | AK87: BTD_1 x1 | AL87: 0 | AM87: 0 | AP87: =+Potencia!T88*$K88*12*1000*(1-$C88) -> 0
A88: =+PremisaCosto!A170 -> BTD_1 x2 | B88: =+PremisaCosto!H170 -> x2 | C88: =+IF(B88=0,0,VLOOKUP(B88,PremisaCosto!$A$69:$D$79,4,FALSE)) -> 0 | E88: 0.3324183178 | G88: 0 | H88: 1 | J88: 0 | K88: 10.71 | M88: =+$J88*((Energía!Z88-Clientes!T88*Límites!$B$16*12)+Clientes!T88*Límites!$B$16*12*(1-$C88))*1000 -> 0 | N88: =+$J88*((Energía!AA88-Clientes!U88*Límites!$B$16*12)+Clientes!U88*Límites!$B$16*12*(1-$C88))*1000 -> 0 | O88: =+$J88*((Energía!AB88-Clientes!V88*Límites!$B$16*12)+Clientes!V88*Límites!$B$16*12*(1-$C88))*1000 -> 0 | P88: =+$J88*((Energía!AC88-Clientes!W88*Límites!$B$16*12)+Clientes!W88*Límites!$B$16*12*(1-$C88))*1000 -> 0 | Q88: =+SUMPRODUCT(M88:P88,PremisaCosto!$F$84:$I$84) -> 0 | R88: =+Potencia!X88*$K88*12*1000*(1-$C88) -> 0 | T88: =IF(Q88=0,0,(IF($AK$3=1,$E88*$F$4*G88/$Q$80,($E88*$F$4*G88-$AL$80*PremisaCosto!$F$84)/($Q$80-$M$80*PremisaCosto!$F$84)))) -> 0 | U88: =IF(R88=0,0,IF($AK$3=1,$E88*$F$4*H88/$R$80,($E88*$F$4*H88-$AM$80*PremisaCosto!$F$84)/($R$80-$AP$79*PremisaCosto!$F$84))) -> 0 | W88: 0 | X88: 0 | Z88: =+IF($AK$3=1,$W88*((Energía!Z88-Clientes!T88*Límites!$B$16*12)+Clientes!T88*Límites!$B$16*12*(1-$C88))*1000,AL88) -> 0 | AA88: =+$W88*((Energía!AA88-Clientes!U88*Límites!$B$16*12)+Clientes!U88*Límites!$B$16*12*(1-$C88))*1000 -> 0 | AB88: =+$W88*((Energía!AB88-Clientes!V88*Límites!$B$16*12)+Clientes!V88*Límites!$B$16*12*(1-$C88))*1000 -> 0 | AC88: =+$W88*((Energía!AC88-Clientes!W88*Límites!$B$16*12)+Clientes!W88*Límites!$B$16*12*(1-$C88))*1000 -> 0 | AD88: =+SUMPRODUCT(Z88:AC88,PremisaCosto!$F$84:$I$84) -> 0 | AE88: =+IF($AK$3=1,Potencia!T88*$X88*12*1000*(1-$C88),AM88) -> 0 | AF88: =+Potencia!U88*$X88*12*1000*(1-$C88) -> 0 | AG88: =+Potencia!V88*$X88*12*1000*(1-$C88) -> 0 | AH88: =+Potencia!W88*$X88*12*1000*(1-$C88) -> 0 | AI88: =+SUMPRODUCT(AE88:AH88,PremisaCosto!$F$84:$I$84) -> 0 | AK88: BTD_1 x2 | AL88: 0 | AM88: 0 | AP88: =+Potencia!T89*$K89*12*1000*(1-$C89) -> 0
A89: =+PremisaCosto!A171 -> BTD_1 Discap. | B89: =+PremisaCosto!H171 -> Discap. | C89: =+IF(B89=0,0,VLOOKUP(B89,PremisaCosto!$A$69:$D$79,4,FALSE)) -> 0.25 | E89: 0.3324183178 | G89: 0 | H89: 1 | J89: 0 | K89: 10.71 | M89: =+$J89*Energía!Z89*(1-$C89)*1000 -> 0 | N89: =+$J89*Energía!AA89*(1-$C89)*1000 -> 0 | O89: =+$J89*Energía!AB89*(1-$C89)*1000 -> 0 | P89: =+$J89*Energía!AC89*(1-$C89)*1000 -> 0 | Q89: =+SUMPRODUCT(M89:P89,PremisaCosto!$F$84:$I$84) -> 0 | R89: =+Potencia!X89*$K89*12*1000*(1-$C89) -> 0 | T89: =IF(Q89=0,0,(IF($AK$3=1,$E89*$F$4*G89/$Q$80,($E89*$F$4*G89-$AL$80*PremisaCosto!$F$84)/($Q$80-$M$80*PremisaCosto!$F$84)))) -> 0 | U89: =IF(R89=0,0,IF($AK$3=1,$E89*$F$4*H89/$R$80,($E89*$F$4*H89-$AM$80*PremisaCosto!$F$84)/($R$80-$AP$79*PremisaCosto!$F$84))) -> 0 | W89: 0 | X89: 0 | Z89: =+IF($AK$3=1,$W89*Energía!Z89*(1-$C89)*1000,AL89) -> 0 | AA89: =+$W89*Energía!AA89*(1-$C89)*1000 -> 0 | AB89: =+$W89*Energía!AB89*(1-$C89)*1000 -> 0 | AC89: =+$W89*Energía!AC89*(1-$C89)*1000 -> 0 | AD89: =+SUMPRODUCT(Z89:AC89,PremisaCosto!$F$84:$I$84) -> 0 | AE89: =+IF($AK$3=1,Potencia!T89*$X89*12*1000*(1-$C89),AM89) -> 0 | AF89: =+Potencia!U89*$X89*12*1000*(1-$C89) -> 0 | AG89: =+Potencia!V89*$X89*12*1000*(1-$C89) -> 0 | AH89: =+Potencia!W89*$X89*12*1000*(1-$C89) -> 0 | AI89: =+SUMPRODUCT(AE89:AH89,PremisaCosto!$F$84:$I$84) -> 0 | AK89: BTD_1 Discap. | AL89: 0 | AM89: 0 | AP89: =+Potencia!T90*$K90*12*1000*(1-$C90) -> 0
A90: =+PremisaCosto!A172 -> BTD_1 Discapacitados 601-más | B90: =+PremisaCosto!H172 -> Discapacitados 601-más | C90: =+IF(B90=0,0,VLOOKUP(B90,PremisaCosto!$A$69:$D$79,4,FALSE)) -> 0.25 | E90: 0.3324183178 | G90: 0 | H90: 1 | J90: 0 | K90: 10.71 | M90: =+$J90*((Energía!Z90-Clientes!T90*Límites!$B$15*12)+Clientes!T90*Límites!$B$15*12*(1-$C90))*1000 -> 0 | N90: =+$J90*((Energía!AA90-Clientes!U90*Límites!$B$15*12)+Clientes!U90*Límites!$B$15*12*(1-$C90))*1000 -> 0 | O90: =+$J90*((Energía!AB90-Clientes!V90*Límites!$B$15*12)+Clientes!V90*Límites!$B$15*12*(1-$C90))*1000 -> 0 | P90: =+$J90*((Energía!AC90-Clientes!W90*Límites!$B$15*12)+Clientes!W90*Límites!$B$15*12*(1-$C90))*1000 -> 0 | Q90: =+SUMPRODUCT(M90:P90,PremisaCosto!$F$84:$I$84) -> 0 | R90: =+Potencia!X90*$K90*12*1000*(1-$C90) -> 0 | T90: =IF(Q90=0,0,(IF($AK$3=1,$E90*$F$4*G90/$Q$80,($E90*$F$4*G90-$AL$80*PremisaCosto!$F$84)/($Q$80-$M$80*PremisaCosto!$F$84)))) -> 0 | U90: =IF(R90=0,0,IF($AK$3=1,$E90*$F$4*H90/$R$80,($E90*$F$4*H90-$AM$80*PremisaCosto!$F$84)/($R$80-$AP$79*PremisaCosto!$F$84))) -> 0 | W90: 0 | X90: 0 | Z90: =+IF($AK$3=1,$W90*((Energía!Z90-Clientes!T90*Límites!$B$15*12)+Clientes!T90*Límites!$B$15*12*(1-$C90))*1000,AL90) -> 0 | AA90: =+$W90*((Energía!AA90-Clientes!U90*Límites!$B$15*12)+Clientes!U90*Límites!$B$15*12*(1-$C90))*1000 -> 0 | AB90: =+$W90*((Energía!AB90-Clientes!V90*Límites!$B$15*12)+Clientes!V90*Límites!$B$15*12*(1-$C90))*1000 -> 0 | AC90: =+$W90*((Energía!AC90-Clientes!W90*Límites!$B$15*12)+Clientes!W90*Límites!$B$15*12*(1-$C90))*1000 -> 0 | AD90: =+SUMPRODUCT(Z90:AC90,PremisaCosto!$F$84:$I$84) -> 0 | AE90: =+IF($AK$3=1,Potencia!T90*$X90*12*1000*(1-$C90),AM90) -> 0 | AF90: =+Potencia!U90*$X90*12*1000*(1-$C90) -> 0 | AG90: =+Potencia!V90*$X90*12*1000*(1-$C90) -> 0 | AH90: =+Potencia!W90*$X90*12*1000*(1-$C90) -> 0 | AI90: =+SUMPRODUCT(AE90:AH90,PremisaCosto!$F$84:$I$84) -> 0 | AK90: BTD_1 Discapacitados 601-más | AL90: 0 | AM90: 0 | AP90: =+Potencia!T91*$K91*12*1000*(1-$C91) -> 0
A91: =+PremisaCosto!A173 -> BTD_1 Cruz Roja | B91: =+PremisaCosto!H173 -> Cruz Roja | C91: =+IF(B91=0,0,VLOOKUP(B91,PremisaCosto!$A$69:$D$79,4,FALSE)) -> 1 | E91: 0.3324183178 | G91: 0 | H91: 1 | J91: 0 | K91: 10.71 | M91: =+$J91*Energía!Z91*(1-$C91)*1000 -> 0 | N91: =+$J91*Energía!AA91*(1-$C91)*1000 -> 0 | O91: =+$J91*Energía!AB91*(1-$C91)*1000 -> 0 | P91: =+$J91*Energía!AC91*(1-$C91)*1000 -> 0 | Q91: =+SUMPRODUCT(M91:P91,PremisaCosto!$F$84:$I$84) -> 0 | R91: =+Potencia!X91*$K91*12*1000*(1-$C91) -> 0 | T91: =IF(Q91=0,0,(IF($AK$3=1,$E91*$F$4*G91/$Q$80,($E91*$F$4*G91-$AL$80*PremisaCosto!$F$84)/($Q$80-$M$80*PremisaCosto!$F$84)))) -> 0 | U91: =IF(R91=0,0,IF($AK$3=1,$E91*$F$4*H91/$R$80,($E91*$F$4*H91-$AM$80*PremisaCosto!$F$84)/($R$80-$AP$79*PremisaCosto!$F$84))) -> 0 | W91: 0 | X91: 0 | Z91: =+IF($AK$3=1,$W91*Energía!Z91*(1-$C91)*1000,AL91) -> 0 | AA91: =+$W91*Energía!AA91*(1-$C91)*1000 -> 0 | AB91: =+$W91*Energía!AB91*(1-$C91)*1000 -> 0 | AC91: =+$W91*Energía!AC91*(1-$C91)*1000 -> 0 | AD91: =+SUMPRODUCT(Z91:AC91,PremisaCosto!$F$84:$I$84) -> 0 | AE91: =+IF($AK$3=1,Potencia!T91*$X91*12*1000*(1-$C91),AM91) -> 0 | AF91: =+Potencia!U91*$X91*12*1000*(1-$C91) -> 0 | AG91: =+Potencia!V91*$X91*12*1000*(1-$C91) -> 0 | AH91: =+Potencia!W91*$X91*12*1000*(1-$C91) -> 0 | AI91: =+SUMPRODUCT(AE91:AH91,PremisaCosto!$F$84:$I$84) -> 0 | AK91: BTD_1 Cruz Roja | AL91: 0 | AM91: 0 | AP91: =+SUM(AP92:AP101) -> 13895372.68
A92: =+PremisaCosto!A174 -> BTD_2 (10,001-30,000) | B92: =+PremisaCosto!H174 -> 0 | C92: =+IF(B92=0,0,VLOOKUP(B92,PremisaCosto!$A$69:$D$79,4,FALSE)) -> 0 | E92: 0.3324183178 | G92: 0 | H92: 1 | J92: 0 | K92: 10.71 | M92: =+SUM(M93:M102) -> 0 | N92: 0 | O92: 0 | P92: 0 | Q92: 0 | R92: 49822430.68 | T92: =IF(Q92=0,0,(IF($AK$3=1,$E92*$F$4*G92/$Q$80,($E92*$F$4*G92-$AL$80*PremisaCosto!$F$84)/($Q$80-$M$80*PremisaCosto!$F$84)))) -> 0 | U92: =IF(R92=0,0,IF($AK$3=1,$E92*$F$4*H92/$R$80,($E92*$F$4*H92-$AM$80*PremisaCosto!$F$84)/($R$80-$AP$79*PremisaCosto!$F$84))) -> 1.443570877 | W92: 0 | X92: 15.4606441 | Z92: =+SUM(Z93:Z102) -> 0 | AA92: =+SUM(AA93:AA102) -> 0 | AB92: =+SUM(AB93:AB102) -> 0 | AC92: =+SUM(AC93:AC102) -> 0 | AD92: =+SUM(AD93:AD102) -> 0 | AE92: =+SUM(AE93:AE102) -> 13630510.06 | AF92: 20831415.65 | AG92: 21643579.98 | AH92: 22492034.84 | AI92: =+SUM(AI93:AI102) -> 65753738.59 | AK92: BTD_2 (10,001-30,000) | AL92: 0 | AM92: 0 | AP92: =+Potencia!T93*$K93*12*1000*(1-$C93) -> 13816052.63
A93: =+PremisaCosto!A175 -> BTD_2 Regular | B93: =+PremisaCosto!H175 -> Regular | C93: =+IF(B93=0,0,VLOOKUP(B93,PremisaCosto!$A$69:$D$79,4,FALSE)) -> 0 | E93: 0.3324183178 | G93: 0 | H93: 1 | J93: =+J92 -> 0 | K93: =+K92 -> 10.71 | M93: =+($J93*(Energía!Z93-Clientes!T93*Límites!$B$7*12)+$J82*Clientes!T93*Límites!$B$7*12)*(1-$C93)*1000 -> 0 | N93: =+($J93*(Energía!AA93-Clientes!U93*Límites!$B$7*12)+$J82*Clientes!U93*Límites!$B$7*12)*(1-$C93)*1000 -> 0 | O93: =+($J93*(Energía!AB93-Clientes!V93*Límites!$B$7*12)+$J82*Clientes!V93*Límites!$B$7*12)*(1-$C93)*1000 -> 0 | P93: =+($J93*(Energía!AC93-Clientes!W93*Límites!$B$7*12)+$J82*Clientes!W93*Límites!$B$7*12)*(1-$C93)*1000 -> 0 | Q93: =+SUMPRODUCT(M93:P93,PremisaCosto!$F$84:$I$84) -> 0 | R93: =+Potencia!X93*$K93*12*1000*(1-$C93) -> 49538014.97 | T93: =IF(Q93=0,0,(IF($AK$3=1,$E93*$F$4*G93/$Q$80,($E93*$F$4*G93-$AL$80*PremisaCosto!$F$84)/($Q$80-$M$80*PremisaCosto!$F$84)))) -> 0 | U93: =IF(R93=0,0,IF($AK$3=1,$E93*$F$4*H93/$R$80,($E93*$F$4*H93-$AM$80*PremisaCosto!$F$84)/($R$80-$AP$79*PremisaCosto!$F$84))) -> 1.443570877 | W93: 0 | X93: 15.4606441 | Z93: =+IF($AK$3=1,$W93*Energía!Z93*(1-$C93)*1000,AL93) -> 0 | AA93: =+($W93*(Energía!AA93-Clientes!U93*Límites!$B$7*12)+$W82*Clientes!U93*Límites!$B$7*12)*(1-$C93)*1000 -> 0 | AB93: =+($W93*(Energía!AB93-Clientes!V93*Límites!$B$7*12)+$W82*Clientes!V93*Límites!$B$7*12)*(1-$C93)*1000 -> 0 | AC93: =+($W93*(Energía!AC93-Clientes!W93*Límites!$B$7*12)+$W82*Clientes!W93*Límites!$B$7*12)*(1-$C93)*1000 -> 0 | AD93: =+SUMPRODUCT(Z93:AC93,PremisaCosto!$F$84:$I$84) -> 0 | AE93: =+IF($AK$3=1,Potencia!T93*$X93*12*1000*(1-$C93),AM93) -> 13552701.94 | AF93: =+Potencia!U93*$X93*12*1000*(1-$C93) -> 20712499.09 | AG93: =+Potencia!V93*$X93*12*1000*(1-$C93) -> 21520023.99 | AH93: =+Potencia!W93*$X93*12*1000*(1-$C93) -> 22363631.9 | AI93: =+SUMPRODUCT(AE93:AH93,PremisaCosto!$F$84:$I$84) -> 65378376.32 | AK93: BTD_2 Regular | AL93: 0 | AM93: 13552701.94 | AP93: =+Potencia!T94*$K94*12*1000*(1-$C94) -> 73032.525
A94: =+PremisaCosto!A176 -> BTD_2 Agro | B94: =+PremisaCosto!H176 -> Agro | C94: =+IF(B94=0,0,VLOOKUP(B94,PremisaCosto!$A$69:$D$79,4,FALSE)) -> 0.05 | E94: 0.3324183178 | G94: 0 | H94: 1 | J94: =+J93 -> 0 | K94: 10.71 | M94: =+($J94*(Energía!Z94-Clientes!T94*Límites!$B$7*12)+$J83*Clientes!T94*Límites!$B$7*12)*(1-$C94)*1000 -> 0 | N94: =+($J94*(Energía!AA94-Clientes!U94*Límites!$B$7*12)+$J83*Clientes!U94*Límites!$B$7*12)*(1-$C94)*1000 -> 0 | O94: =+($J94*(Energía!AB94-Clientes!V94*Límites!$B$7*12)+$J83*Clientes!V94*Límites!$B$7*12)*(1-$C94)*1000 -> 0 | P94: =+($J94*(Energía!AC94-Clientes!W94*Límites!$B$7*12)+$J83*Clientes!W94*Límites!$B$7*12)*(1-$C94)*1000 -> 0 | Q94: =+SUMPRODUCT(M94:P94,PremisaCosto!$F$84:$I$84) -> 0 | R94: =+Potencia!X94*$K94*12*1000*(1-$C94) -> 261870.7066 | T94: =IF(Q94=0,0,(IF($AK$3=1,$E94*$F$4*G94/$Q$80,($E94*$F$4*G94-$AL$80*PremisaCosto!$F$84)/($Q$80-$M$80*PremisaCosto!$F$84)))) -> 0 | U94: =IF(R94=0,0,IF($AK$3=1,$E94*$F$4*H94/$R$80,($E94*$F$4*H94-$AM$80*PremisaCosto!$F$84)/($R$80-$AP$79*PremisaCosto!$F$84))) -> 1.443570877 | W94: 0 | X94: 15.4606441 | Z94: =+IF($AK$3=1,$W94*Energía!Z94*(1-$C94)*1000,AL94) -> 0 | AA94: =+($W94*(Energía!AA94-Clientes!U94*Límites!$B$7*12)+$W83*Clientes!U94*Límites!$B$7*12)*(1-$C94)*1000 -> 0 | AB94: =+($W94*(Energía!AB94-Clientes!V94*Límites!$B$7*12)+$W83*Clientes!V94*Límites!$B$7*12)*(1-$C94)*1000 -> 0 | AC94: =+($W94*(Energía!AC94-Clientes!W94*Límites!$B$7*12)+$W83*Clientes!W94*Límites!$B$7*12)*(1-$C94)*1000 -> 0 | AD94: =+SUMPRODUCT(Z94:AC94,PremisaCosto!$F$84:$I$84) -> 0 | AE94: =+IF($AK$3=1,Potencia!T94*$X94*12*1000*(1-$C94),AM94) -> 71640.43663 | AF94: =+Potencia!U94*$X94*12*1000*(1-$C94) -> 109490.3043 | AG94: =+Potencia!V94*$X94*12*1000*(1-$C94) -> 113761.9797 | AH94: =+Potencia!W94*$X94*12*1000*(1-$C94) -> 118224.7253 | AI94: =+SUMPRODUCT(AE94:AH94,PremisaCosto!$F$84:$I$84) -> 345608.1297 | AK94: BTD_2 Agro | AL94: 0 | AM94: 71640.43663 | AP94: =+Potencia!T95*$K95*12*1000*(1-$C95) -> 0
A95: =+PremisaCosto!A177 -> BTD_2 Jub. 1 | B95: =+PremisaCosto!H177 -> Jub. 1 | C95: =+IF(B95=0,0,VLOOKUP(B95,PremisaCosto!$A$69:$D$79,4,FALSE)) -> 0.25 | E95: 0.3324183178 | G95: 0 | H95: 1 | J95: 0 | K95: 10.71 | M95: =+($J95*(Energía!Z95-Clientes!T95*Límites!$B$7*12)+$J84*Clientes!T95*Límites!$B$7*12)*(1-$C95)*1000 -> 0 | N95: =+($J95*(Energía!AA95-Clientes!U95*Límites!$B$7*12)+$J84*Clientes!U95*Límites!$B$7*12)*(1-$C95)*1000 -> 0 | O95: =+($J95*(Energía!AB95-Clientes!V95*Límites!$B$7*12)+$J84*Clientes!V95*Límites!$B$7*12)*(1-$C95)*1000 -> 0 | P95: =+($J95*(Energía!AC95-Clientes!W95*Límites!$B$7*12)+$J84*Clientes!W95*Límites!$B$7*12)*(1-$C95)*1000 -> 0 | Q95: =+SUMPRODUCT(M95:P95,PremisaCosto!$F$84:$I$84) -> 0 | R95: =+Potencia!X95*$K95*12*1000*(1-$C95) -> 0 | T95: =IF(Q95=0,0,(IF($AK$3=1,$E95*$F$4*G95/$Q$80,($E95*$F$4*G95-$AL$80*PremisaCosto!$F$84)/($Q$80-$M$80*PremisaCosto!$F$84)))) -> 0 | U95: =IF(R95=0,0,IF($AK$3=1,$E95*$F$4*H95/$R$80,($E95*$F$4*H95-$AM$80*PremisaCosto!$F$84)/($R$80-$AP$79*PremisaCosto!$F$84))) -> 0 | W95: 0 | X95: 0 | Z95: =+IF($AK$3=1,$W95*Energía!Z95*(1-$C95)*1000,AL95) -> 0 | AA95: =+($W95*(Energía!AA95-Clientes!U95*Límites!$B$7*12)+$W84*Clientes!U95*Límites!$B$7*12)*(1-$C95)*1000 -> 0 | AB95: =+($W95*(Energía!AB95-Clientes!V95*Límites!$B$7*12)+$W84*Clientes!V95*Límites!$B$7*12)*(1-$C95)*1000 -> 0 | AC95: =+($W95*(Energía!AC95-Clientes!W95*Límites!$B$7*12)+$W84*Clientes!W95*Límites!$B$7*12)*(1-$C95)*1000 -> 0 | AD95: =+SUMPRODUCT(Z95:AC95,PremisaCosto!$F$84:$I$84) -> 0 | AE95: =+IF($AK$3=1,Potencia!T95*$X95*12*1000*(1-$C95),AM95) -> 0 | AF95: =+Potencia!U95*$X95*12*1000*(1-$C95) -> 0 | AG95: =+Potencia!V95*$X95*12*1000*(1-$C95) -> 0 | AH95: =+Potencia!W95*$X95*12*1000*(1-$C95) -> 0 | AI95: =+SUMPRODUCT(AE95:AH95,PremisaCosto!$F$84:$I$84) -> 0 | AK95: BTD_2 Jub. 1 | AL95: 0 | AM95: 0 | AP95: =+Potencia!T96*$K96*12*1000*(1-$C96) -> 0
A96: =+PremisaCosto!A178 -> BTD_2 Jub. 2 | B96: =+PremisaCosto!H178 -> Jub. 2 | C96: =+IF(B96=0,0,VLOOKUP(B96,PremisaCosto!$A$69:$D$79,4,FALSE)) -> 0.25 | E96: 0.3324183178 | G96: 0 | H96: 1 | J96: 0 | K96: 10.71 | M96: =+($J96*(Energía!Z96-Clientes!T96*Límites!$B$7*12)+$J85*Clientes!T96*Límites!$B$7*12)*(1-$C96)*1000 -> 0 | N96: =+($J96*(Energía!AA96-Clientes!U96*Límites!$B$7*12)+$J85*Clientes!U96*Límites!$B$7*12)*(1-$C96)*1000 -> 0 | O96: =+($J96*(Energía!AB96-Clientes!V96*Límites!$B$7*12)+$J85*Clientes!V96*Límites!$B$7*12)*(1-$C96)*1000 -> 0 | P96: =+($J96*(Energía!AC96-Clientes!W96*Límites!$B$7*12)+$J85*Clientes!W96*Límites!$B$7*12)*(1-$C96)*1000 -> 0 | Q96: =+SUMPRODUCT(M96:P96,PremisaCosto!$F$84:$I$84) -> 0 | R96: =+Potencia!X96*$K96*12*1000*(1-$C96) -> 0 | T96: =IF(Q96=0,0,(IF($AK$3=1,$E96*$F$4*G96/$Q$80,($E96*$F$4*G96-$AL$80*PremisaCosto!$F$84)/($Q$80-$M$80*PremisaCosto!$F$84)))) -> 0 | U96: =IF(R96=0,0,IF($AK$3=1,$E96*$F$4*H96/$R$80,($E96*$F$4*H96-$AM$80*PremisaCosto!$F$84)/($R$80-$AP$79*PremisaCosto!$F$84))) -> 0 | W96: 0 | X96: 0 | Z96: =+IF($AK$3=1,$W96*((Energía!Z96-Clientes!T96*Límites!$B$14*12)+Clientes!T96*Límites!$B$14*12*(1-$C96))*1000,AL96) -> 0 | AA96: =+($W96*(Energía!AA96-Clientes!U96*Límites!$B$7*12)+$W85*Clientes!U96*Límites!$B$7*12)*(1-$C96)*1000 -> 0 | AB96: =+($W96*(Energía!AB96-Clientes!V96*Límites!$B$7*12)+$W85*Clientes!V96*Límites!$B$7*12)*(1-$C96)*1000 -> 0 | AC96: =+($W96*(Energía!AC96-Clientes!W96*Límites!$B$7*12)+$W85*Clientes!W96*Límites!$B$7*12)*(1-$C96)*1000 -> 0 | AD96: =+SUMPRODUCT(Z96:AC96,PremisaCosto!$F$84:$I$84) -> 0 | AE96: =+IF($AK$3=1,Potencia!T96*$X96*12*1000*(1-$C96),AM96) -> 0 | AF96: =+Potencia!U96*$X96*12*1000*(1-$C96) -> 0 | AG96: =+Potencia!V96*$X96*12*1000*(1-$C96) -> 0 | AH96: =+Potencia!W96*$X96*12*1000*(1-$C96) -> 0 | AI96: =+SUMPRODUCT(AE96:AH96,PremisaCosto!$F$84:$I$84) -> 0 | AK96: BTD_2 Jub. 2 | AL96: 0 | AM96: 0 | AP96: =+Potencia!T97*$K97*12*1000*(1-$C97) -> 6287.52545
A97: =+PremisaCosto!A179 -> BTD_2 Político | B97: =+PremisaCosto!H179 -> Político | C97: =+IF(B97=0,0,VLOOKUP(B97,PremisaCosto!$A$69:$D$79,4,FALSE)) -> 0.5 | E97: 0.3324183178 | G97: 0 | H97: 1 | J97: 0 | K97: 10.71 | M97: =+($J97*(Energía!Z97-Clientes!T97*Límites!$B$7*12)+$J86*Clientes!T97*Límites!$B$7*12)*(1-$C97)*1000 -> 0 | N97: =+($J97*(Energía!AA97-Clientes!U97*Límites!$B$7*12)+$J86*Clientes!U97*Límites!$B$7*12)*(1-$C97)*1000 -> 0 | O97: =+($J97*(Energía!AB97-Clientes!V97*Límites!$B$7*12)+$J86*Clientes!V97*Límites!$B$7*12)*(1-$C97)*1000 -> 0 | P97: =+($J97*(Energía!AC97-Clientes!W97*Límites!$B$7*12)+$J86*Clientes!W97*Límites!$B$7*12)*(1-$C97)*1000 -> 0 | Q97: =+SUMPRODUCT(M97:P97,PremisaCosto!$F$84:$I$84) -> 0 | R97: =+Potencia!X97*$K97*12*1000*(1-$C97) -> 22545.00624 | T97: =IF(Q97=0,0,(IF($AK$3=1,$E97*$F$4*G97/$Q$80,($E97*$F$4*G97-$AL$80*PremisaCosto!$F$84)/($Q$80-$M$80*PremisaCosto!$F$84)))) -> 0 | U97: =IF(R97=0,0,IF($AK$3=1,$E97*$F$4*H97/$R$80,($E97*$F$4*H97-$AM$80*PremisaCosto!$F$84)/($R$80-$AP$79*PremisaCosto!$F$84))) -> 1.443570877 | W97: 0 | X97: 15.4606441 | Z97: =+IF($AK$3=1,$W97*Energía!Z97*(1-$C97)*1000,AL97) -> 0 | AA97: =+($W97*(Energía!AA97-Clientes!U97*Límites!$B$7*12)+$W86*Clientes!U97*Límites!$B$7*12)*(1-$C97)*1000 -> 0 | AB97: =+($W97*(Energía!AB97-Clientes!V97*Límites!$B$7*12)+$W86*Clientes!V97*Límites!$B$7*12)*(1-$C97)*1000 -> 0 | AC97: =+($W97*(Energía!AC97-Clientes!W97*Límites!$B$7*12)+$W86*Clientes!W97*Límites!$B$7*12)*(1-$C97)*1000 -> 0 | AD97: =+SUMPRODUCT(Z97:AC97,PremisaCosto!$F$84:$I$84) -> 0 | AE97: =+IF($AK$3=1,Potencia!T97*$X97*12*1000*(1-$C97),AM97) -> 6167.677601 | AF97: =+Potencia!U97*$X97*12*1000*(1-$C97) -> 9426.253232 | AG97: =+Potencia!V97*$X97*12*1000*(1-$C97) -> 9794.010855 | AH97: =+Potencia!W97*$X97*12*1000*(1-$C97) -> 10178.21812 | AI97: =+SUMPRODUCT(AE97:AH97,PremisaCosto!$F$84:$I$84) -> 29754.13915 | AK97: BTD_2 Político | AL97: 0 | AM97: 6167.677601 | AP97: =+Potencia!T98*$K98*12*1000*(1-$C98) -> 0
A98: =+PremisaCosto!A180 -> BTD_2 x1 | B98: =+PremisaCosto!H180 -> x1 | C98: =+IF(B98=0,0,VLOOKUP(B98,PremisaCosto!$A$69:$D$79,4,FALSE)) -> 0 | E98: 0.3324183178 | G98: 0 | H98: 1 | J98: 0 | K98: 10.71 | M98: =+($J98*(Energía!Z98-Clientes!T98*Límites!$B$7*12)+$J87*Clientes!T98*Límites!$B$7*12)*(1-$C98)*1000 -> 0 | N98: =+($J98*(Energía!AA98-Clientes!U98*Límites!$B$7*12)+$J87*Clientes!U98*Límites!$B$7*12)*(1-$C98)*1000 -> 0 | O98: =+($J98*(Energía!AB98-Clientes!V98*Límites!$B$7*12)+$J87*Clientes!V98*Límites!$B$7*12)*(1-$C98)*1000 -> 0 | P98: =+($J98*(Energía!AC98-Clientes!W98*Límites!$B$7*12)+$J87*Clientes!W98*Límites!$B$7*12)*(1-$C98)*1000 -> 0 | Q98: =+SUMPRODUCT(M98:P98,PremisaCosto!$F$84:$I$84) -> 0 | R98: =+Potencia!X98*$K98*12*1000*(1-$C98) -> 0 | T98: =IF(Q98=0,0,(IF($AK$3=1,$E98*$F$4*G98/$Q$80,($E98*$F$4*G98-$AL$80*PremisaCosto!$F$84)/($Q$80-$M$80*PremisaCosto!$F$84)))) -> 0 | U98: =IF(R98=0,0,IF($AK$3=1,$E98*$F$4*H98/$R$80,($E98*$F$4*H98-$AM$80*PremisaCosto!$F$84)/($R$80-$AP$79*PremisaCosto!$F$84))) -> 0 | W98: 0 | X98: 0 | Z98: =+IF($AK$3=1,$W98*Energía!Z98*(1-$C98)*1000,AL98) -> 0 | AA98: =+($W98*(Energía!AA98-Clientes!U98*Límites!$B$7*12)+$W87*Clientes!U98*Límites!$B$7*12)*(1-$C98)*1000 -> 0 | AB98: =+($W98*(Energía!AB98-Clientes!V98*Límites!$B$7*12)+$W87*Clientes!V98*Límites!$B$7*12)*(1-$C98)*1000 -> 0 | AC98: =+($W98*(Energía!AC98-Clientes!W98*Límites!$B$7*12)+$W87*Clientes!W98*Límites!$B$7*12)*(1-$C98)*1000 -> 0 | AD98: =+SUMPRODUCT(Z98:AC98,PremisaCosto!$F$84:$I$84) -> 0 | AE98: =+IF($AK$3=1,Potencia!T98*$X98*12*1000*(1-$C98),AM98) -> 0 | AF98: =+Potencia!U98*$X98*12*1000*(1-$C98) -> 0 | AG98: =+Potencia!V98*$X98*12*1000*(1-$C98) -> 0 | AH98: =+Potencia!W98*$X98*12*1000*(1-$C98) -> 0 | AI98: =+SUMPRODUCT(AE98:AH98,PremisaCosto!$F$84:$I$84) -> 0 | AK98: BTD_2 x1 | AL98: 0 | AM98: 0 | AP98: =+Potencia!T99*$K99*12*1000*(1-$C99) -> 0
A99: =+PremisaCosto!A181 -> BTD_2 x2 | B99: =+PremisaCosto!H181 -> x2 | C99: =+IF(B99=0,0,VLOOKUP(B99,PremisaCosto!$A$69:$D$79,4,FALSE)) -> 0 | E99: 0.3324183178 | G99: 0 | H99: 1 | J99: 0 | K99: 10.71 | M99: =+($J99*(Energía!Z99-Clientes!T99*Límites!$B$7*12)+$J88*Clientes!T99*Límites!$B$7*12)*(1-$C99)*1000 -> 0 | N99: =+($J99*(Energía!AA99-Clientes!U99*Límites!$B$7*12)+$J88*Clientes!U99*Límites!$B$7*12)*(1-$C99)*1000 -> 0 | O99: =+($J99*(Energía!AB99-Clientes!V99*Límites!$B$7*12)+$J88*Clientes!V99*Límites!$B$7*12)*(1-$C99)*1000 -> 0 | P99: =+($J99*(Energía!AC99-Clientes!W99*Límites!$B$7*12)+$J88*Clientes!W99*Límites!$B$7*12)*(1-$C99)*1000 -> 0 | Q99: =+SUMPRODUCT(M99:P99,PremisaCosto!$F$84:$I$84) -> 0 | R99: =+Potencia!X99*$K99*12*1000*(1-$C99) -> 0 | T99: =IF(Q99=0,0,(IF($AK$3=1,$E99*$F$4*G99/$Q$80,($E99*$F$4*G99-$AL$80*PremisaCosto!$F$84)/($Q$80-$M$80*PremisaCosto!$F$84)))) -> 0 | U99: =IF(R99=0,0,IF($AK$3=1,$E99*$F$4*H99/$R$80,($E99*$F$4*H99-$AM$80*PremisaCosto!$F$84)/($R$80-$AP$79*PremisaCosto!$F$84))) -> 0 | W99: 0 | X99: 0 | Z99: =+IF($AK$3=1,$W99*((Energía!Z99-Clientes!T99*Límites!$B$16*12)+Clientes!T99*Límites!$B$16*12*(1-$C99))*1000,AL99) -> 0 | AA99: =+($W99*(Energía!AA99-Clientes!U99*Límites!$B$7*12)+$W88*Clientes!U99*Límites!$B$7*12)*(1-$C99)*1000 -> 0 | AB99: =+($W99*(Energía!AB99-Clientes!V99*Límites!$B$7*12)+$W88*Clientes!V99*Límites!$B$7*12)*(1-$C99)*1000 -> 0 | AC99: =+($W99*(Energía!AC99-Clientes!W99*Límites!$B$7*12)+$W88*Clientes!W99*Límites!$B$7*12)*(1-$C99)*1000 -> 0 | AD99: =+SUMPRODUCT(Z99:AC99,PremisaCosto!$F$84:$I$84) -> 0 | AE99: =+IF($AK$3=1,Potencia!T99*$X99*12*1000*(1-$C99),AM99) -> 0 | AF99: =+Potencia!U99*$X99*12*1000*(1-$C99) -> 0 | AG99: =+Potencia!V99*$X99*12*1000*(1-$C99) -> 0 | AH99: =+Potencia!W99*$X99*12*1000*(1-$C99) -> 0 | AI99: =+SUMPRODUCT(AE99:AH99,PremisaCosto!$F$84:$I$84) -> 0 | AK99: BTD_2 x2 | AL99: 0 | AM99: 0 | AP99: =+Potencia!T100*$K100*12*1000*(1-$C100) -> 0
A100: =+PremisaCosto!A182 -> BTD_2 Discap. | B100: =+PremisaCosto!H182 -> Discap. | C100: =+IF(B100=0,0,VLOOKUP(B100,PremisaCosto!$A$69:$D$79,4,FALSE)) -> 0.25 | E100: 0.3324183178 | G100: 0 | H100: 1 | J100: 0 | K100: 10.71 | M100: =+($J100*(Energía!Z100-Clientes!T100*Límites!$B$7*12)+$J89*Clientes!T100*Límites!$B$7*12)*(1-$C100)*1000 -> 0 | N100: =+($J100*(Energía!AA100-Clientes!U100*Límites!$B$7*12)+$J89*Clientes!U100*Límites!$B$7*12)*(1-$C100)*1000 -> 0 | O100: =+($J100*(Energía!AB100-Clientes!V100*Límites!$B$7*12)+$J89*Clientes!V100*Límites!$B$7*12)*(1-$C100)*1000 -> 0 | P100: =+($J100*(Energía!AC100-Clientes!W100*Límites!$B$7*12)+$J89*Clientes!W100*Límites!$B$7*12)*(1-$C100)*1000 -> 0 | Q100: =+SUMPRODUCT(M100:P100,PremisaCosto!$F$84:$I$84) -> 0 | R100: =+Potencia!X100*$K100*12*1000*(1-$C100) -> 0 | T100: =IF(Q100=0,0,(IF($AK$3=1,$E100*$F$4*G100/$Q$80,($E100*$F$4*G100-$AL$80*PremisaCosto!$F$84)/($Q$80-$M$80*PremisaCosto!$F$84)))) -> 0 | U100: =IF(R100=0,0,IF($AK$3=1,$E100*$F$4*H100/$R$80,($E100*$F$4*H100-$AM$80*PremisaCosto!$F$84)/($R$80-$AP$79*PremisaCosto!$F$84))) -> 0 | W100: 0 | X100: 0 | Z100: =+IF($AK$3=1,$W100*Energía!Z100*(1-$C100)*1000,AL100) -> 0 | AA100: =+($W100*(Energía!AA100-Clientes!U100*Límites!$B$7*12)+$W89*Clientes!U100*Límites!$B$7*12)*(1-$C100)*1000 -> 0 | AB100: =+($W100*(Energía!AB100-Clientes!V100*Límites!$B$7*12)+$W89*Clientes!V100*Límites!$B$7*12)*(1-$C100)*1000 -> 0 | AC100: =+($W100*(Energía!AC100-Clientes!W100*Límites!$B$7*12)+$W89*Clientes!W100*Límites!$B$7*12)*(1-$C100)*1000 -> 0 | AD100: =+SUMPRODUCT(Z100:AC100,PremisaCosto!$F$84:$I$84) -> 0 | AE100: =+IF($AK$3=1,Potencia!T100*$X100*12*1000*(1-$C100),AM100) -> 0 | AF100: =+Potencia!U100*$X100*12*1000*(1-$C100) -> 0 | AG100: =+Potencia!V100*$X100*12*1000*(1-$C100) -> 0 | AH100: =+Potencia!W100*$X100*12*1000*(1-$C100) -> 0 | AI100: =+SUMPRODUCT(AE100:AH100,PremisaCosto!$F$84:$I$84) -> 0 | AK100: BTD_2 Discap. | AL100: 0 | AM100: 0 | AP100: =+Potencia!T101*$K101*12*1000*(1-$C101) -> 0
A101: =+PremisaCosto!A183 -> BTD_2 Discapacitados 601-más | B101: =+PremisaCosto!H183 -> Discapacitados 601-más | C101: =+IF(B101=0,0,VLOOKUP(B101,PremisaCosto!$A$69:$D$79,4,FALSE)) -> 0.25 | E101: 0.3324183178 | G101: 0 | H101: 1 | J101: 0 | K101: 10.71 | M101: =+($J101*(Energía!Z101-Clientes!T101*Límites!$B$7*12)+$J90*Clientes!T101*Límites!$B$7*12)*(1-$C101)*1000 -> 0 | N101: =+($J101*(Energía!AA101-Clientes!U101*Límites!$B$7*12)+$J90*Clientes!U101*Límites!$B$7*12)*(1-$C101)*1000 -> 0 | O101: =+($J101*(Energía!AB101-Clientes!V101*Límites!$B$7*12)+$J90*Clientes!V101*Límites!$B$7*12)*(1-$C101)*1000 -> 0 | P101: =+($J101*(Energía!AC101-Clientes!W101*Límites!$B$7*12)+$J90*Clientes!W101*Límites!$B$7*12)*(1-$C101)*1000 -> 0 | Q101: =+SUMPRODUCT(M101:P101,PremisaCosto!$F$84:$I$84) -> 0 | R101: =+Potencia!X101*$K101*12*1000*(1-$C101) -> 0 | T101: =IF(Q101=0,0,(IF($AK$3=1,$E101*$F$4*G101/$Q$80,($E101*$F$4*G101-$AL$80*PremisaCosto!$F$84)/($Q$80-$M$80*PremisaCosto!$F$84)))) -> 0 | U101: =IF(R101=0,0,IF($AK$3=1,$E101*$F$4*H101/$R$80,($E101*$F$4*H101-$AM$80*PremisaCosto!$F$84)/($R$80-$AP$79*PremisaCosto!$F$84))) -> 0 | W101: 0 | X101: 0 | Z101: =+IF($AK$3=1,$W101*((Energía!Z101-Clientes!T101*Límites!$B$15*12)+Clientes!T101*Límites!$B$15*12*(1-$C101))*1000,AL101) -> 0 | AA101: =+($W101*(Energía!AA101-Clientes!U101*Límites!$B$7*12)+$W90*Clientes!U101*Límites!$B$7*12)*(1-$C101)*1000 -> 0 | AB101: =+($W101*(Energía!AB101-Clientes!V101*Límites!$B$7*12)+$W90*Clientes!V101*Límites!$B$7*12)*(1-$C101)*1000 -> 0 | AC101: =+($W101*(Energía!AC101-Clientes!W101*Límites!$B$7*12)+$W90*Clientes!W101*Límites!$B$7*12)*(1-$C101)*1000 -> 0 | AD101: =+SUMPRODUCT(Z101:AC101,PremisaCosto!$F$84:$I$84) -> 0 | AE101: =+IF($AK$3=1,Potencia!T101*$X101*12*1000*(1-$C101),AM101) -> 0 | AF101: =+Potencia!U101*$X101*12*1000*(1-$C101) -> 0 | AG101: =+Potencia!V101*$X101*12*1000*(1-$C101) -> 0 | AH101: =+Potencia!W101*$X101*12*1000*(1-$C101) -> 0 | AI101: =+SUMPRODUCT(AE101:AH101,PremisaCosto!$F$84:$I$84) -> 0 | AK101: BTD_2 Discapacitados 601-más | AL101: 0 | AM101: 0 | AP101: =+Potencia!T102*$K102*12*1000*(1-$C102) -> 0
A102: =+PremisaCosto!A184 -> BTD_2 Cruz Roja | B102: =+PremisaCosto!H184 -> Cruz Roja | C102: =+IF(B102=0,0,VLOOKUP(B102,PremisaCosto!$A$69:$D$79,4,FALSE)) -> 1 | E102: 0.3324183178 | G102: 0 | H102: 1 | J102: 0 | K102: 10.71 | M102: =+($J102*(Energía!Z102-Clientes!T102*Límites!$B$7*12)+$J91*Clientes!T102*Límites!$B$7*12)*(1-$C102)*1000 -> 0 | N102: =+($J102*(Energía!AA102-Clientes!U102*Límites!$B$7*12)+$J91*Clientes!U102*Límites!$B$7*12)*(1-$C102)*1000 -> 0 | O102: =+($J102*(Energía!AB102-Clientes!V102*Límites!$B$7*12)+$J91*Clientes!V102*Límites!$B$7*12)*(1-$C102)*1000 -> 0 | P102: =+($J102*(Energía!AC102-Clientes!W102*Límites!$B$7*12)+$J91*Clientes!W102*Límites!$B$7*12)*(1-$C102)*1000 -> 0 | Q102: =+SUMPRODUCT(M102:P102,PremisaCosto!$F$84:$I$84) -> 0 | R102: =+Potencia!X102*$K102*12*1000*(1-$C102) -> 0 | T102: =IF(Q102=0,0,(IF($AK$3=1,$E102*$F$4*G102/$Q$80,($E102*$F$4*G102-$AL$80*PremisaCosto!$F$84)/($Q$80-$M$80*PremisaCosto!$F$84)))) -> 0 | U102: =IF(R102=0,0,IF($AK$3=1,$E102*$F$4*H102/$R$80,($E102*$F$4*H102-$AM$80*PremisaCosto!$F$84)/($R$80-$AP$79*PremisaCosto!$F$84))) -> 0 | W102: 0 | X102: 0 | Z102: =+IF($AK$3=1,$W102*Energía!Z102*(1-$C102)*1000,AL102) -> 0 | AA102: =+($W102*(Energía!AA102-Clientes!U102*Límites!$B$7*12)+$W91*Clientes!U102*Límites!$B$7*12)*(1-$C102)*1000 -> 0 | AB102: =+($W102*(Energía!AB102-Clientes!V102*Límites!$B$7*12)+$W91*Clientes!V102*Límites!$B$7*12)*(1-$C102)*1000 -> 0 | AC102: =+($W102*(Energía!AC102-Clientes!W102*Límites!$B$7*12)+$W91*Clientes!W102*Límites!$B$7*12)*(1-$C102)*1000 -> 0 | AD102: =+SUMPRODUCT(Z102:AC102,PremisaCosto!$F$84:$I$84) -> 0 | AE102: =+IF($AK$3=1,Potencia!T102*$X102*12*1000*(1-$C102),AM102) -> 0 | AF102: =+Potencia!U102*$X102*12*1000*(1-$C102) -> 0 | AG102: =+Potencia!V102*$X102*12*1000*(1-$C102) -> 0 | AH102: =+Potencia!W102*$X102*12*1000*(1-$C102) -> 0 | AI102: =+SUMPRODUCT(AE102:AH102,PremisaCosto!$F$84:$I$84) -> 0 | AK102: BTD_2 Cruz Roja | AL102: 0 | AM102: 0 | AP102: =+SUM(AP103:AP112) -> 5413571.147
A103: =+PremisaCosto!A185 -> BTD_3 (30,001-50,000) | B103: =+PremisaCosto!H185 -> 0 | C103: =+IF(B103=0,0,VLOOKUP(B103,PremisaCosto!$A$69:$D$79,4,FALSE)) -> 0 | E103: 0.3324183178 | G103: 0 | H103: 1 | J103: 0 | K103: 10.71 | M103: =+SUM(M104:M113) -> 0 | N103: 0 | O103: 0 | P103: 0 | Q103: 0 | R103: 19410570.49 | T103: =IF(Q103=0,0,(IF($AK$3=1,$E103*$F$4*G103/$Q$80,($E103*$F$4*G103-$AL$80*PremisaCosto!$F$84)/($Q$80-$M$80*PremisaCosto!$F$84)))) -> 0 | U103: =IF(R103=0,0,IF($AK$3=1,$E103*$F$4*H103/$R$80,($E103*$F$4*H103-$AM$80*PremisaCosto!$F$84)/($R$80-$AP$79*PremisaCosto!$F$84))) -> 1.443570877 | W103: 0 | X103: 15.4606441 | Z103: =+SUM(Z104:Z113) -> 0 | AA103: =+SUM(AA104:AA113) -> 0 | AB103: =+SUM(AB104:AB113) -> 0 | AC103: =+SUM(AC104:AC113) -> 0 | AD103: =+SUM(AD104:AD113) -> 0 | AE103: 5310381.927 | AF103: 8115828.956 | AG103: 8432230.56 | AH103: 8762763.037 | AI103: =+SUM(AI104:AI113) -> 25617327.15 | AK103: BTD_3 (30,001-50,000) | AL103: 0 | AM103: 0 | AP103: =+Potencia!T104*$K104*12*1000*(1-$C104) -> 5381673.298
A104: =+PremisaCosto!A186 -> BTD_3 Regular | B104: =+PremisaCosto!H186 -> Regular | C104: =+IF(B104=0,0,VLOOKUP(B104,PremisaCosto!$A$69:$D$79,4,FALSE)) -> 0 | E104: 0.3324183178 | G104: 0 | H104: 1 | J104: =+J103 -> 0 | K104: =+K103 -> 10.71 | M104: =+($J104*(Energía!Z104-Clientes!T104*Límites!$C$7*12)+$J93*(Límites!$C$7-Límites!$B$7)*Clientes!T104*12+$J82*Clientes!T104*Límites!$B$7*12)*(1-$C104)*1000 -> 0 | N104: =+($J104*(Energía!AA104-Clientes!U104*Límites!$C$7*12)+$J93*(Límites!$C$7-Límites!$B$7)*Clientes!U104*12+$J82*Clientes!U104*Límites!$B$7*12)*(1-$C104)*1000 -> 0 | O104: =+($J104*(Energía!AB104-Clientes!V104*Límites!$C$7*12)+$J93*(Límites!$C$7-Límites!$B$7)*Clientes!V104*12+$J82*Clientes!V104*Límites!$B$7*12)*(1-$C104)*1000 -> 0 | P104: =+($J104*(Energía!AC104-Clientes!W104*Límites!$C$7*12)+$J93*(Límites!$C$7-Límites!$B$7)*Clientes!W104*12+$J82*Clientes!W104*Límites!$B$7*12)*(1-$C104)*1000 -> 0 | Q104: =+SUMPRODUCT(M104:P104,PremisaCosto!$F$84:$I$84) -> 0 | R104: =+Potencia!X104*$K104*12*1000*(1-$C104) -> 19296195.26 | T104: =IF(Q104=0,0,(IF($AK$3=1,$E104*$F$4*G104/$Q$80,($E104*$F$4*G104-$AL$80*PremisaCosto!$F$84)/($Q$80-$M$80*PremisaCosto!$F$84)))) -> 0 | U104: =IF(R104=0,0,IF($AK$3=1,$E104*$F$4*H104/$R$80,($E104*$F$4*H104-$AM$80*PremisaCosto!$F$84)/($R$80-$AP$79*PremisaCosto!$F$84))) -> 1.443570877 | W104: 0 | X104: 15.4606441 | Z104: =+IF($AK$3=1,$W104*Energía!Z104*(1-$C104)*1000,AL104) -> 0 | AA104: =+($W104*(Energía!AA104-Clientes!U104*Límites!$C$7*12)+$W93*(Límites!$C$7-Límites!$B$7)*Clientes!U104*12+$W82*Clientes!U104*Límites!$B$7*12)*(1-$C104)*1000 -> 0 | AB104: =+($W104*(Energía!AB104-Clientes!V104*Límites!$C$7*12)+$W93*(Límites!$C$7-Límites!$B$7)*Clientes!V104*12+$W82*Clientes!V104*Límites!$B$7*12)*(1-$C104)*1000 -> 0 | AC104: =+($W104*(Energía!AC104-Clientes!W104*Límites!$C$7*12)+$W93*(Límites!$C$7-Límites!$B$7)*Clientes!W104*12+$W82*Clientes!W104*Límites!$B$7*12)*(1-$C104)*1000 -> 0 | AD104: =+SUMPRODUCT(Z104:AC104,PremisaCosto!$F$84:$I$84) -> 0 | AE104: =+IF($AK$3=1,Potencia!T104*$X104*12*1000*(1-$C104),AM104) -> 5279092.09 | AF104: =+Potencia!U104*$X104*12*1000*(1-$C104) -> 8068007.727 | AG104: =+Potencia!V104*$X104*12*1000*(1-$C104) -> 8382543.624 | AH104: =+Potencia!W104*$X104*12*1000*(1-$C104) -> 8711126.943 | AI104: =+SUMPRODUCT(AE104:AH104,PremisaCosto!$F$84:$I$84) -> 25466378.57 | AK104: BTD_3 Regular | AL104: 0 | AM104: 5279092.09 | AP104: =+Potencia!T105*$K105*12*1000*(1-$C105) -> 31897.84819
A105: =+PremisaCosto!A187 -> BTD_3 Agro | B105: =+PremisaCosto!H187 -> Agro | C105: =+IF(B105=0,0,VLOOKUP(B105,PremisaCosto!$A$69:$D$79,4,FALSE)) -> 0.05 | E105: 0.3324183178 | G105: 0 | H105: 1 | J105: =+J104 -> 0 | K105: 10.71 | M105: =+($J105*(Energía!Z105-Clientes!T105*Límites!$C$7*12)+$J94*(Límites!$C$7-Límites!$B$7)*Clientes!T105*12+$J83*Clientes!T105*Límites!$B$7*12)*(1-$C105)*1000 -> 0 | N105: =+($J105*(Energía!AA105-Clientes!U105*Límites!$C$7*12)+$J94*(Límites!$C$7-Límites!$B$7)*Clientes!U105*12+$J83*Clientes!U105*Límites!$B$7*12)*(1-$C105)*1000 -> 0 | O105: =+($J105*(Energía!AB105-Clientes!V105*Límites!$C$7*12)+$J94*(Límites!$C$7-Límites!$B$7)*Clientes!V105*12+$J83*Clientes!V105*Límites!$B$7*12)*(1-$C105)*1000 -> 0 | P105: =+($J105*(Energía!AC105-Clientes!W105*Límites!$C$7*12)+$J94*(Límites!$C$7-Límites!$B$7)*Clientes!W105*12+$J83*Clientes!W105*Límites!$B$7*12)*(1-$C105)*1000 -> 0 | Q105: =+SUMPRODUCT(M105:P105,PremisaCosto!$F$84:$I$84) -> 0 | R105: =+Potencia!X105*$K105*12*1000*(1-$C105) -> 114375.2327 | T105: =IF(Q105=0,0,(IF($AK$3=1,$E105*$F$4*G105/$Q$80,($E105*$F$4*G105-$AL$80*PremisaCosto!$F$84)/($Q$80-$M$80*PremisaCosto!$F$84)))) -> 0 | U105: =IF(R105=0,0,IF($AK$3=1,$E105*$F$4*H105/$R$80,($E105*$F$4*H105-$AM$80*PremisaCosto!$F$84)/($R$80-$AP$79*PremisaCosto!$F$84))) -> 1.443570877 | W105: 0 | X105: 15.4606441 | Z105: =+IF($AK$3=1,$W105*Energía!Z105*(1-$C105)*1000,AL105) -> 0 | AA105: =+($W105*(Energía!AA105-Clientes!U105*Límites!$C$7*12)+$W94*(Límites!$C$7-Límites!$B$7)*Clientes!U105*12+$W83*Clientes!U105*Límites!$B$7*12)*(1-$C105)*1000 -> 0 | AB105: =+($W105*(Energía!AB105-Clientes!V105*Límites!$C$7*12)+$W94*(Límites!$C$7-Límites!$B$7)*Clientes!V105*12+$W83*Clientes!V105*Límites!$B$7*12)*(1-$C105)*1000 -> 0 | AC105: =+($W105*(Energía!AC105-Clientes!W105*Límites!$C$7*12)+$W94*(Límites!$C$7-Límites!$B$7)*Clientes!W105*12+$W83*Clientes!W105*Límites!$B$7*12)*(1-$C105)*1000 -> 0 | AD105: =+SUMPRODUCT(Z105:AC105,PremisaCosto!$F$84:$I$84) -> 0 | AE105: =+IF($AK$3=1,Potencia!T105*$X105*12*1000*(1-$C105),AM105) -> 31289.83657 | AF105: =+Potencia!U105*$X105*12*1000*(1-$C105) -> 47821.22902 | AG105: =+Potencia!V105*$X105*12*1000*(1-$C105) -> 49686.93548 | AH105: =+Potencia!W105*$X105*12*1000*(1-$C105) -> 51636.09419 | AI105: =+SUMPRODUCT(AE105:AH105,PremisaCosto!$F$84:$I$84) -> 150948.5761 | AK105: BTD_3 Agro | AL105: 0 | AM105: 31289.83657 | AP105: =+Potencia!T106*$K106*12*1000*(1-$C106) -> 0
A106: =+PremisaCosto!A188 -> BTD_3 Jub. 1 | B106: =+PremisaCosto!H188 -> Jub. 1 | C106: =+IF(B106=0,0,VLOOKUP(B106,PremisaCosto!$A$69:$D$79,4,FALSE)) -> 0.25 | E106: 0.3324183178 | G106: 0 | H106: 1 | J106: 0 | K106: 10.71 | M106: =+($J106*(Energía!Z106-Clientes!T106*Límites!$C$7*12)+$J95*(Límites!$C$7-Límites!$B$7)*Clientes!T106*12+$J84*Clientes!T106*Límites!$B$7*12)*(1-$C106)*1000 -> 0 | N106: =+($J106*(Energía!AA106-Clientes!U106*Límites!$C$7*12)+$J95*(Límites!$C$7-Límites!$B$7)*Clientes!U106*12+$J84*Clientes!U106*Límites!$B$7*12)*(1-$C106)*1000 -> 0 | O106: =+($J106*(Energía!AB106-Clientes!V106*Límites!$C$7*12)+$J95*(Límites!$C$7-Límites!$B$7)*Clientes!V106*12+$J84*Clientes!V106*Límites!$B$7*12)*(1-$C106)*1000 -> 0 | P106: =+($J106*(Energía!AC106-Clientes!W106*Límites!$C$7*12)+$J95*(Límites!$C$7-Límites!$B$7)*Clientes!W106*12+$J84*Clientes!W106*Límites!$B$7*12)*(1-$C106)*1000 -> 0 | Q106: =+SUMPRODUCT(M106:P106,PremisaCosto!$F$84:$I$84) -> 0 | R106: =+Potencia!X106*$K106*12*1000*(1-$C106) -> 0 | T106: =IF(Q106=0,0,(IF($AK$3=1,$E106*$F$4*G106/$Q$80,($E106*$F$4*G106-$AL$80*PremisaCosto!$F$84)/($Q$80-$M$80*PremisaCosto!$F$84)))) -> 0 | U106: =IF(R106=0,0,IF($AK$3=1,$E106*$F$4*H106/$R$80,($E106*$F$4*H106-$AM$80*PremisaCosto!$F$84)/($R$80-$AP$79*PremisaCosto!$F$84))) -> 0 | W106: 0 | X106: 0 | Z106: =+IF($AK$3=1,$W106*Energía!Z106*(1-$C106)*1000,AL106) -> 0 | AA106: =+($W106*(Energía!AA106-Clientes!U106*Límites!$C$7*12)+$W95*(Límites!$C$7-Límites!$B$7)*Clientes!U106*12+$W84*Clientes!U106*Límites!$B$7*12)*(1-$C106)*1000 -> 0 | AB106: =+($W106*(Energía!AB106-Clientes!V106*Límites!$C$7*12)+$W95*(Límites!$C$7-Límites!$B$7)*Clientes!V106*12+$W84*Clientes!V106*Límites!$B$7*12)*(1-$C106)*1000 -> 0 | AC106: =+($W106*(Energía!AC106-Clientes!W106*Límites!$C$7*12)+$W95*(Límites!$C$7-Límites!$B$7)*Clientes!W106*12+$W84*Clientes!W106*Límites!$B$7*12)*(1-$C106)*1000 -> 0 | AD106: =+SUMPRODUCT(Z106:AC106,PremisaCosto!$F$84:$I$84) -> 0 | AE106: =+IF($AK$3=1,Potencia!T106*$X106*12*1000*(1-$C106),AM106) -> 0 | AF106: =+Potencia!U106*$X106*12*1000*(1-$C106) -> 0 | AG106: =+Potencia!V106*$X106*12*1000*(1-$C106) -> 0 | AH106: =+Potencia!W106*$X106*12*1000*(1-$C106) -> 0 | AI106: =+SUMPRODUCT(AE106:AH106,PremisaCosto!$F$84:$I$84) -> 0 | AK106: BTD_3 Jub. 1 | AL106: 0 | AM106: 0 | AP106: =+Potencia!T107*$K107*12*1000*(1-$C107) -> 0
A107: =+PremisaCosto!A189 -> BTD_3 Jub. 2 | B107: =+PremisaCosto!H189 -> Jub. 2 | C107: =+IF(B107=0,0,VLOOKUP(B107,PremisaCosto!$A$69:$D$79,4,FALSE)) -> 0.25 | E107: 0.3324183178 | G107: 0 | H107: 1 | J107: 0 | K107: 10.71 | M107: =+($J107*(Energía!Z107-Clientes!T107*Límites!$C$7*12)+$J96*(Límites!$C$7-Límites!$B$7)*Clientes!T107*12+$J85*Clientes!T107*Límites!$B$7*12)*(1-$C107)*1000 -> 0 | N107: =+($J107*(Energía!AA107-Clientes!U107*Límites!$C$7*12)+$J96*(Límites!$C$7-Límites!$B$7)*Clientes!U107*12+$J85*Clientes!U107*Límites!$B$7*12)*(1-$C107)*1000 -> 0 | O107: =+($J107*(Energía!AB107-Clientes!V107*Límites!$C$7*12)+$J96*(Límites!$C$7-Límites!$B$7)*Clientes!V107*12+$J85*Clientes!V107*Límites!$B$7*12)*(1-$C107)*1000 -> 0 | P107: =+($J107*(Energía!AC107-Clientes!W107*Límites!$C$7*12)+$J96*(Límites!$C$7-Límites!$B$7)*Clientes!W107*12+$J85*Clientes!W107*Límites!$B$7*12)*(1-$C107)*1000 -> 0 | Q107: =+SUMPRODUCT(M107:P107,PremisaCosto!$F$84:$I$84) -> 0 | R107: =+Potencia!X107*$K107*12*1000*(1-$C107) -> 0 | T107: =IF(Q107=0,0,(IF($AK$3=1,$E107*$F$4*G107/$Q$80,($E107*$F$4*G107-$AL$80*PremisaCosto!$F$84)/($Q$80-$M$80*PremisaCosto!$F$84)))) -> 0 | U107: =IF(R107=0,0,IF($AK$3=1,$E107*$F$4*H107/$R$80,($E107*$F$4*H107-$AM$80*PremisaCosto!$F$84)/($R$80-$AP$79*PremisaCosto!$F$84))) -> 0 | W107: 0 | X107: 0 | Z107: =+IF($AK$3=1,$W107*((Energía!Z107-Clientes!T107*Límites!$B$14*12)+Clientes!T107*Límites!$B$14*12*(1-$C107))*1000,AL107) -> 0 | AA107: =+($W107*(Energía!AA107-Clientes!U107*Límites!$C$7*12)+$W96*(Límites!$C$7-Límites!$B$7)*Clientes!U107*12+$W85*Clientes!U107*Límites!$B$7*12)*(1-$C107)*1000 -> 0 | AB107: =+($W107*(Energía!AB107-Clientes!V107*Límites!$C$7*12)+$W96*(Límites!$C$7-Límites!$B$7)*Clientes!V107*12+$W85*Clientes!V107*Límites!$B$7*12)*(1-$C107)*1000 -> 0 | AC107: =+($W107*(Energía!AC107-Clientes!W107*Límites!$C$7*12)+$W96*(Límites!$C$7-Límites!$B$7)*Clientes!W107*12+$W85*Clientes!W107*Límites!$B$7*12)*(1-$C107)*1000 -> 0 | AD107: =+SUMPRODUCT(Z107:AC107,PremisaCosto!$F$84:$I$84) -> 0 | AE107: =+IF($AK$3=1,Potencia!T107*$X107*12*1000*(1-$C107),AM107) -> 0 | AF107: =+Potencia!U107*$X107*12*1000*(1-$C107) -> 0 | AG107: =+Potencia!V107*$X107*12*1000*(1-$C107) -> 0 | AH107: =+Potencia!W107*$X107*12*1000*(1-$C107) -> 0 | AI107: =+SUMPRODUCT(AE107:AH107,PremisaCosto!$F$84:$I$84) -> 0 | AK107: BTD_3 Jub. 2 | AL107: 0 | AM107: 0 | AP107: =+Potencia!T108*$K108*12*1000*(1-$C108) -> 0
A108: =+PremisaCosto!A190 -> BTD_3 Político | B108: =+PremisaCosto!H190 -> Político | C108: =+IF(B108=0,0,VLOOKUP(B108,PremisaCosto!$A$69:$D$79,4,FALSE)) -> 0.5 | E108: 0.3324183178 | G108: 0 | H108: 1 | J108: 0 | K108: 10.71 | M108: =+($J108*(Energía!Z108-Clientes!T108*Límites!$C$7*12)+$J97*(Límites!$C$7-Límites!$B$7)*Clientes!T108*12+$J86*Clientes!T108*Límites!$B$7*12)*(1-$C108)*1000 -> 0 | N108: =+($J108*(Energía!AA108-Clientes!U108*Límites!$C$7*12)+$J97*(Límites!$C$7-Límites!$B$7)*Clientes!U108*12+$J86*Clientes!U108*Límites!$B$7*12)*(1-$C108)*1000 -> 0 | O108: =+($J108*(Energía!AB108-Clientes!V108*Límites!$C$7*12)+$J97*(Límites!$C$7-Límites!$B$7)*Clientes!V108*12+$J86*Clientes!V108*Límites!$B$7*12)*(1-$C108)*1000 -> 0 | P108: =+($J108*(Energía!AC108-Clientes!W108*Límites!$C$7*12)+$J97*(Límites!$C$7-Límites!$B$7)*Clientes!W108*12+$J86*Clientes!W108*Límites!$B$7*12)*(1-$C108)*1000 -> 0 | Q108: =+SUMPRODUCT(M108:P108,PremisaCosto!$F$84:$I$84) -> 0 | R108: =+Potencia!X108*$K108*12*1000*(1-$C108) -> 0 | T108: =IF(Q108=0,0,(IF($AK$3=1,$E108*$F$4*G108/$Q$80,($E108*$F$4*G108-$AL$80*PremisaCosto!$F$84)/($Q$80-$M$80*PremisaCosto!$F$84)))) -> 0 | U108: =IF(R108=0,0,IF($AK$3=1,$E108*$F$4*H108/$R$80,($E108*$F$4*H108-$AM$80*PremisaCosto!$F$84)/($R$80-$AP$79*PremisaCosto!$F$84))) -> 0 | W108: 0 | X108: 0 | Z108: =+IF($AK$3=1,$W108*Energía!Z108*(1-$C108)*1000,AL108) -> 0 | AA108: =+($W108*(Energía!AA108-Clientes!U108*Límites!$C$7*12)+$W97*(Límites!$C$7-Límites!$B$7)*Clientes!U108*12+$W86*Clientes!U108*Límites!$B$7*12)*(1-$C108)*1000 -> 0 | AB108: =+($W108*(Energía!AB108-Clientes!V108*Límites!$C$7*12)+$W97*(Límites!$C$7-Límites!$B$7)*Clientes!V108*12+$W86*Clientes!V108*Límites!$B$7*12)*(1-$C108)*1000 -> 0 | AC108: =+($W108*(Energía!AC108-Clientes!W108*Límites!$C$7*12)+$W97*(Límites!$C$7-Límites!$B$7)*Clientes!W108*12+$W86*Clientes!W108*Límites!$B$7*12)*(1-$C108)*1000 -> 0 | AD108: =+SUMPRODUCT(Z108:AC108,PremisaCosto!$F$84:$I$84) -> 0 | AE108: =+IF($AK$3=1,Potencia!T108*$X108*12*1000*(1-$C108),AM108) -> 0 | AF108: =+Potencia!U108*$X108*12*1000*(1-$C108) -> 0 | AG108: =+Potencia!V108*$X108*12*1000*(1-$C108) -> 0 | AH108: =+Potencia!W108*$X108*12*1000*(1-$C108) -> 0 | AI108: =+SUMPRODUCT(AE108:AH108,PremisaCosto!$F$84:$I$84) -> 0 | AK108: BTD_3 Político | AL108: 0 | AM108: 0 | AP108: =+Potencia!T109*$K109*12*1000*(1-$C109) -> 0
A109: =+PremisaCosto!A191 -> BTD_3 x1 | B109: =+PremisaCosto!H191 -> x1 | C109: =+IF(B109=0,0,VLOOKUP(B109,PremisaCosto!$A$69:$D$79,4,FALSE)) -> 0 | E109: 0.3324183178 | G109: 0 | H109: 1 | J109: 0 | K109: 10.71 | M109: =+($J109*(Energía!Z109-Clientes!T109*Límites!$C$7*12)+$J98*(Límites!$C$7-Límites!$B$7)*Clientes!T109*12+$J87*Clientes!T109*Límites!$B$7*12)*(1-$C109)*1000 -> 0 | N109: =+($J109*(Energía!AA109-Clientes!U109*Límites!$C$7*12)+$J98*(Límites!$C$7-Límites!$B$7)*Clientes!U109*12+$J87*Clientes!U109*Límites!$B$7*12)*(1-$C109)*1000 -> 0 | O109: =+($J109*(Energía!AB109-Clientes!V109*Límites!$C$7*12)+$J98*(Límites!$C$7-Límites!$B$7)*Clientes!V109*12+$J87*Clientes!V109*Límites!$B$7*12)*(1-$C109)*1000 -> 0 | P109: =+($J109*(Energía!AC109-Clientes!W109*Límites!$C$7*12)+$J98*(Límites!$C$7-Límites!$B$7)*Clientes!W109*12+$J87*Clientes!W109*Límites!$B$7*12)*(1-$C109)*1000 -> 0 | Q109: =+SUMPRODUCT(M109:P109,PremisaCosto!$F$84:$I$84) -> 0 | R109: =+Potencia!X109*$K109*12*1000*(1-$C109) -> 0 | T109: =IF(Q109=0,0,(IF($AK$3=1,$E109*$F$4*G109/$Q$80,($E109*$F$4*G109-$AL$80*PremisaCosto!$F$84)/($Q$80-$M$80*PremisaCosto!$F$84)))) -> 0 | U109: =IF(R109=0,0,IF($AK$3=1,$E109*$F$4*H109/$R$80,($E109*$F$4*H109-$AM$80*PremisaCosto!$F$84)/($R$80-$AP$79*PremisaCosto!$F$84))) -> 0 | W109: 0 | X109: 0 | Z109: =+IF($AK$3=1,$W109*Energía!Z109*(1-$C109)*1000,AL109) -> 0 | AA109: =+($W109*(Energía!AA109-Clientes!U109*Límites!$C$7*12)+$W98*(Límites!$C$7-Límites!$B$7)*Clientes!U109*12+$W87*Clientes!U109*Límites!$B$7*12)*(1-$C109)*1000 -> 0 | AB109: =+($W109*(Energía!AB109-Clientes!V109*Límites!$C$7*12)+$W98*(Límites!$C$7-Límites!$B$7)*Clientes!V109*12+$W87*Clientes!V109*Límites!$B$7*12)*(1-$C109)*1000 -> 0 | AC109: =+($W109*(Energía!AC109-Clientes!W109*Límites!$C$7*12)+$W98*(Límites!$C$7-Límites!$B$7)*Clientes!W109*12+$W87*Clientes!W109*Límites!$B$7*12)*(1-$C109)*1000 -> 0 | AD109: =+SUMPRODUCT(Z109:AC109,PremisaCosto!$F$84:$I$84) -> 0 | AE109: =+IF($AK$3=1,Potencia!T109*$X109*12*1000*(1-$C109),AM109) -> 0 | AF109: =+Potencia!U109*$X109*12*1000*(1-$C109) -> 0 | AG109: =+Potencia!V109*$X109*12*1000*(1-$C109) -> 0 | AH109: =+Potencia!W109*$X109*12*1000*(1-$C109) -> 0 | AI109: =+SUMPRODUCT(AE109:AH109,PremisaCosto!$F$84:$I$84) -> 0 | AK109: BTD_3 x1 | AL109: 0 | AM109: 0 | AP109: =+Potencia!T110*$K110*12*1000*(1-$C110) -> 0
A110: =+PremisaCosto!A192 -> BTD_3 x2 | B110: =+PremisaCosto!H192 -> x2 | C110: =+IF(B110=0,0,VLOOKUP(B110,PremisaCosto!$A$69:$D$79,4,FALSE)) -> 0 | E110: 0.3324183178 | G110: 0 | H110: 1 | J110: 0 | K110: 10.71 | M110: =+($J110*(Energía!Z110-Clientes!T110*Límites!$C$7*12)+$J99*(Límites!$C$7-Límites!$B$7)*Clientes!T110*12+$J88*Clientes!T110*Límites!$B$7*12)*(1-$C110)*1000 -> 0 | N110: =+($J110*(Energía!AA110-Clientes!U110*Límites!$C$7*12)+$J99*(Límites!$C$7-Límites!$B$7)*Clientes!U110*12+$J88*Clientes!U110*Límites!$B$7*12)*(1-$C110)*1000 -> 0 | O110: =+($J110*(Energía!AB110-Clientes!V110*Límites!$C$7*12)+$J99*(Límites!$C$7-Límites!$B$7)*Clientes!V110*12+$J88*Clientes!V110*Límites!$B$7*12)*(1-$C110)*1000 -> 0 | P110: =+($J110*(Energía!AC110-Clientes!W110*Límites!$C$7*12)+$J99*(Límites!$C$7-Límites!$B$7)*Clientes!W110*12+$J88*Clientes!W110*Límites!$B$7*12)*(1-$C110)*1000 -> 0 | Q110: =+SUMPRODUCT(M110:P110,PremisaCosto!$F$84:$I$84) -> 0 | R110: =+Potencia!X110*$K110*12*1000*(1-$C110) -> 0 | T110: =IF(Q110=0,0,(IF($AK$3=1,$E110*$F$4*G110/$Q$80,($E110*$F$4*G110-$AL$80*PremisaCosto!$F$84)/($Q$80-$M$80*PremisaCosto!$F$84)))) -> 0 | U110: =IF(R110=0,0,IF($AK$3=1,$E110*$F$4*H110/$R$80,($E110*$F$4*H110-$AM$80*PremisaCosto!$F$84)/($R$80-$AP$79*PremisaCosto!$F$84))) -> 0 | W110: 0 | X110: 0 | Z110: =+IF($AK$3=1,$W110*((Energía!Z110-Clientes!T110*Límites!$B$16*12)+Clientes!T110*Límites!$B$16*12*(1-$C110))*1000,AL110) -> 0 | AA110: =+($W110*(Energía!AA110-Clientes!U110*Límites!$C$7*12)+$W99*(Límites!$C$7-Límites!$B$7)*Clientes!U110*12+$W88*Clientes!U110*Límites!$B$7*12)*(1-$C110)*1000 -> 0 | AB110: =+($W110*(Energía!AB110-Clientes!V110*Límites!$C$7*12)+$W99*(Límites!$C$7-Límites!$B$7)*Clientes!V110*12+$W88*Clientes!V110*Límites!$B$7*12)*(1-$C110)*1000 -> 0 | AC110: =+($W110*(Energía!AC110-Clientes!W110*Límites!$C$7*12)+$W99*(Límites!$C$7-Límites!$B$7)*Clientes!W110*12+$W88*Clientes!W110*Límites!$B$7*12)*(1-$C110)*1000 -> 0 | AD110: =+SUMPRODUCT(Z110:AC110,PremisaCosto!$F$84:$I$84) -> 0 | AE110: =+IF($AK$3=1,Potencia!T110*$X110*12*1000*(1-$C110),AM110) -> 0 | AF110: =+Potencia!U110*$X110*12*1000*(1-$C110) -> 0 | AG110: =+Potencia!V110*$X110*12*1000*(1-$C110) -> 0 | AH110: =+Potencia!W110*$X110*12*1000*(1-$C110) -> 0 | AI110: =+SUMPRODUCT(AE110:AH110,PremisaCosto!$F$84:$I$84) -> 0 | AK110: BTD_3 x2 | AL110: 0 | AM110: 0 | AP110: =+Potencia!T111*$K111*12*1000*(1-$C111) -> 0
A111: =+PremisaCosto!A193 -> BTD_3 Discap. | B111: =+PremisaCosto!H193 -> Discap. | C111: =+IF(B111=0,0,VLOOKUP(B111,PremisaCosto!$A$69:$D$79,4,FALSE)) -> 0.25 | E111: 0.3324183178 | G111: 0 | H111: 1 | J111: 0 | K111: 10.71 | M111: =+($J111*(Energía!Z111-Clientes!T111*Límites!$C$7*12)+$J100*(Límites!$C$7-Límites!$B$7)*Clientes!T111*12+$J89*Clientes!T111*Límites!$B$7*12)*(1-$C111)*1000 -> 0 | N111: =+($J111*(Energía!AA111-Clientes!U111*Límites!$C$7*12)+$J100*(Límites!$C$7-Límites!$B$7)*Clientes!U111*12+$J89*Clientes!U111*Límites!$B$7*12)*(1-$C111)*1000 -> 0 | O111: =+($J111*(Energía!AB111-Clientes!V111*Límites!$C$7*12)+$J100*(Límites!$C$7-Límites!$B$7)*Clientes!V111*12+$J89*Clientes!V111*Límites!$B$7*12)*(1-$C111)*1000 -> 0 | P111: =+($J111*(Energía!AC111-Clientes!W111*Límites!$C$7*12)+$J100*(Límites!$C$7-Límites!$B$7)*Clientes!W111*12+$J89*Clientes!W111*Límites!$B$7*12)*(1-$C111)*1000 -> 0 | Q111: =+SUMPRODUCT(M111:P111,PremisaCosto!$F$84:$I$84) -> 0 | R111: =+Potencia!X111*$K111*12*1000*(1-$C111) -> 0 | T111: =IF(Q111=0,0,(IF($AK$3=1,$E111*$F$4*G111/$Q$80,($E111*$F$4*G111-$AL$80*PremisaCosto!$F$84)/($Q$80-$M$80*PremisaCosto!$F$84)))) -> 0 | U111: =IF(R111=0,0,IF($AK$3=1,$E111*$F$4*H111/$R$80,($E111*$F$4*H111-$AM$80*PremisaCosto!$F$84)/($R$80-$AP$79*PremisaCosto!$F$84))) -> 0 | W111: 0 | X111: 0 | Z111: =+IF($AK$3=1,$W111*Energía!Z111*(1-$C111)*1000,AL111) -> 0 | AA111: =+($W111*(Energía!AA111-Clientes!U111*Límites!$C$7*12)+$W100*(Límites!$C$7-Límites!$B$7)*Clientes!U111*12+$W89*Clientes!U111*Límites!$B$7*12)*(1-$C111)*1000 -> 0 | AB111: =+($W111*(Energía!AB111-Clientes!V111*Límites!$C$7*12)+$W100*(Límites!$C$7-Límites!$B$7)*Clientes!V111*12+$W89*Clientes!V111*Límites!$B$7*12)*(1-$C111)*1000 -> 0 | AC111: =+($W111*(Energía!AC111-Clientes!W111*Límites!$C$7*12)+$W100*(Límites!$C$7-Límites!$B$7)*Clientes!W111*12+$W89*Clientes!W111*Límites!$B$7*12)*(1-$C111)*1000 -> 0 | AD111: =+SUMPRODUCT(Z111:AC111,PremisaCosto!$F$84:$I$84) -> 0 | AE111: =+IF($AK$3=1,Potencia!T111*$X111*12*1000*(1-$C111),AM111) -> 0 | AF111: =+Potencia!U111*$X111*12*1000*(1-$C111) -> 0 | AG111: =+Potencia!V111*$X111*12*1000*(1-$C111) -> 0 | AH111: =+Potencia!W111*$X111*12*1000*(1-$C111) -> 0 | AI111: =+SUMPRODUCT(AE111:AH111,PremisaCosto!$F$84:$I$84) -> 0 | AK111: BTD_3 Discap. | AL111: 0 | AM111: 0 | AP111: =+Potencia!T112*$K112*12*1000*(1-$C112) -> 0
A112: =+PremisaCosto!A194 -> BTD_3 Discapacitados 601-más | B112: =+PremisaCosto!H194 -> Discapacitados 601-más | C112: =+IF(B112=0,0,VLOOKUP(B112,PremisaCosto!$A$69:$D$79,4,FALSE)) -> 0.25 | E112: 0.3324183178 | G112: 0 | H112: 1 | J112: 0 | K112: 10.71 | M112: =+($J112*(Energía!Z112-Clientes!T112*Límites!$C$7*12)+$J101*(Límites!$C$7-Límites!$B$7)*Clientes!T112*12+$J90*Clientes!T112*Límites!$B$7*12)*(1-$C112)*1000 -> 0 | N112: =+($J112*(Energía!AA112-Clientes!U112*Límites!$C$7*12)+$J101*(Límites!$C$7-Límites!$B$7)*Clientes!U112*12+$J90*Clientes!U112*Límites!$B$7*12)*(1-$C112)*1000 -> 0 | O112: =+($J112*(Energía!AB112-Clientes!V112*Límites!$C$7*12)+$J101*(Límites!$C$7-Límites!$B$7)*Clientes!V112*12+$J90*Clientes!V112*Límites!$B$7*12)*(1-$C112)*1000 -> 0 | P112: =+($J112*(Energía!AC112-Clientes!W112*Límites!$C$7*12)+$J101*(Límites!$C$7-Límites!$B$7)*Clientes!W112*12+$J90*Clientes!W112*Límites!$B$7*12)*(1-$C112)*1000 -> 0 | Q112: =+SUMPRODUCT(M112:P112,PremisaCosto!$F$84:$I$84) -> 0 | R112: =+Potencia!X112*$K112*12*1000*(1-$C112) -> 0 | T112: =IF(Q112=0,0,(IF($AK$3=1,$E112*$F$4*G112/$Q$80,($E112*$F$4*G112-$AL$80*PremisaCosto!$F$84)/($Q$80-$M$80*PremisaCosto!$F$84)))) -> 0 | U112: =IF(R112=0,0,IF($AK$3=1,$E112*$F$4*H112/$R$80,($E112*$F$4*H112-$AM$80*PremisaCosto!$F$84)/($R$80-$AP$79*PremisaCosto!$F$84))) -> 0 | W112: 0 | X112: 0 | Z112: =+IF($AK$3=1,$W112*((Energía!Z112-Clientes!T112*Límites!$B$15*12)+Clientes!T112*Límites!$B$15*12*(1-$C112))*1000,AL112) -> 0 | AA112: =+($W112*(Energía!AA112-Clientes!U112*Límites!$C$7*12)+$W101*(Límites!$C$7-Límites!$B$7)*Clientes!U112*12+$W90*Clientes!U112*Límites!$B$7*12)*(1-$C112)*1000 -> 0 | AB112: =+($W112*(Energía!AB112-Clientes!V112*Límites!$C$7*12)+$W101*(Límites!$C$7-Límites!$B$7)*Clientes!V112*12+$W90*Clientes!V112*Límites!$B$7*12)*(1-$C112)*1000 -> 0 | AC112: =+($W112*(Energía!AC112-Clientes!W112*Límites!$C$7*12)+$W101*(Límites!$C$7-Límites!$B$7)*Clientes!W112*12+$W90*Clientes!W112*Límites!$B$7*12)*(1-$C112)*1000 -> 0 | AD112: =+SUMPRODUCT(Z112:AC112,PremisaCosto!$F$84:$I$84) -> 0 | AE112: =+IF($AK$3=1,Potencia!T112*$X112*12*1000*(1-$C112),AM112) -> 0 | AF112: =+Potencia!U112*$X112*12*1000*(1-$C112) -> 0 | AG112: =+Potencia!V112*$X112*12*1000*(1-$C112) -> 0 | AH112: =+Potencia!W112*$X112*12*1000*(1-$C112) -> 0 | AI112: =+SUMPRODUCT(AE112:AH112,PremisaCosto!$F$84:$I$84) -> 0 | AK112: BTD_3 Discapacitados 601-más | AL112: 0 | AM112: 0 | AP112: =+Potencia!T113*$K113*12*1000*(1-$C113) -> 0
A113: =+PremisaCosto!A195 -> BTD_3 Cruz Roja | B113: =+PremisaCosto!H195 -> Cruz Roja | C113: =+IF(B113=0,0,VLOOKUP(B113,PremisaCosto!$A$69:$D$79,4,FALSE)) -> 1 | E113: 0.3324183178 | G113: 0 | H113: 1 | J113: 0 | K113: 10.71 | M113: =+($J113*(Energía!Z113-Clientes!T113*Límites!$C$7*12)+$J102*(Límites!$C$7-Límites!$B$7)*Clientes!T113*12+$J91*Clientes!T113*Límites!$B$7*12)*(1-$C113)*1000 -> 0 | N113: =+($J113*(Energía!AA113-Clientes!U113*Límites!$C$7*12)+$J102*(Límites!$C$7-Límites!$B$7)*Clientes!U113*12+$J91*Clientes!U113*Límites!$B$7*12)*(1-$C113)*1000 -> 0 | O113: =+($J113*(Energía!AB113-Clientes!V113*Límites!$C$7*12)+$J102*(Límites!$C$7-Límites!$B$7)*Clientes!V113*12+$J91*Clientes!V113*Límites!$B$7*12)*(1-$C113)*1000 -> 0 | P113: =+($J113*(Energía!AC113-Clientes!W113*Límites!$C$7*12)+$J102*(Límites!$C$7-Límites!$B$7)*Clientes!W113*12+$J91*Clientes!W113*Límites!$B$7*12)*(1-$C113)*1000 -> 0 | Q113: =+SUMPRODUCT(M113:P113,PremisaCosto!$F$84:$I$84) -> 0 | R113: =+Potencia!X113*$K113*12*1000*(1-$C113) -> 0 | T113: =IF(Q113=0,0,(IF($AK$3=1,$E113*$F$4*G113/$Q$80,($E113*$F$4*G113-$AL$80*PremisaCosto!$F$84)/($Q$80-$M$80*PremisaCosto!$F$84)))) -> 0 | U113: =IF(R113=0,0,IF($AK$3=1,$E113*$F$4*H113/$R$80,($E113*$F$4*H113-$AM$80*PremisaCosto!$F$84)/($R$80-$AP$79*PremisaCosto!$F$84))) -> 0 | W113: 0 | X113: 0 | Z113: =+IF($AK$3=1,$W113*Energía!Z113*(1-$C113)*1000,AL113) -> 0 | AA113: =+($W113*(Energía!AA113-Clientes!U113*Límites!$C$7*12)+$W102*(Límites!$C$7-Límites!$B$7)*Clientes!U113*12+$W91*Clientes!U113*Límites!$B$7*12)*(1-$C113)*1000 -> 0 | AB113: =+($W113*(Energía!AB113-Clientes!V113*Límites!$C$7*12)+$W102*(Límites!$C$7-Límites!$B$7)*Clientes!V113*12+$W91*Clientes!V113*Límites!$B$7*12)*(1-$C113)*1000 -> 0 | AC113: =+($W113*(Energía!AC113-Clientes!W113*Límites!$C$7*12)+$W102*(Límites!$C$7-Límites!$B$7)*Clientes!W113*12+$W91*Clientes!W113*Límites!$B$7*12)*(1-$C113)*1000 -> 0 | AD113: =+SUMPRODUCT(Z113:AC113,PremisaCosto!$F$84:$I$84) -> 0 | AE113: =+IF($AK$3=1,Potencia!T113*$X113*12*1000*(1-$C113),AM113) -> 0 | AF113: =+Potencia!U113*$X113*12*1000*(1-$C113) -> 0 | AG113: =+Potencia!V113*$X113*12*1000*(1-$C113) -> 0 | AH113: =+Potencia!W113*$X113*12*1000*(1-$C113) -> 0 | AI113: =+SUMPRODUCT(AE113:AH113,PremisaCosto!$F$84:$I$84) -> 0 | AK113: BTD_3 Cruz Roja | AL113: 0 | AM113: 0 | AP113: =+SUM(AP114:AP123) -> 7859351.176
A114: =+PremisaCosto!A196 -> BTD_4 (50,001-más) | B114: =+PremisaCosto!H196 -> 0 | C114: =+IF(B114=0,0,VLOOKUP(B114,PremisaCosto!$A$69:$D$79,4,FALSE)) -> 0 | E114: 0.3324183178 | G114: 0 | H114: 1 | J114: 0 | K114: 10.71 | M114: =+SUM(M115:M124) -> 0 | N114: 0 | O114: 0 | P114: 0 | Q114: 0 | R114: 28180163.25 | T114: =IF(Q114=0,0,(IF($AK$3=1,$E114*$F$4*G114/$Q$80,($E114*$F$4*G114-$AL$80*PremisaCosto!$F$84)/($Q$80-$M$80*PremisaCosto!$F$84)))) -> 0 | U114: =IF(R114=0,0,IF($AK$3=1,$E114*$F$4*H114/$R$80,($E114*$F$4*H114-$AM$80*PremisaCosto!$F$84)/($R$80-$AP$79*PremisaCosto!$F$84))) -> 1.443570877 | W114: 0 | X114: 15.4606441 | Z114: =+SUM(Z115:Z124) -> 0 | AA114: =+SUM(AA115:AA124) -> 0 | AB114: =+SUM(AB115:AB124) -> 0 | AC114: =+SUM(AC115:AC124) -> 0 | AD114: =+SUM(AD115:AD124) -> 0 | AE114: 7709542.431 | AF114: 11782471.31 | AG114: 12241889.2 | AH114: 12721843.32 | AI114: =+SUM(AI115:AI124) -> 37191118.58 | AK114: BTD_4 (50,001-más) | AL114: 0 | AM114: 0 | AP114: =+Potencia!T115*$K115*12*1000*(1-$C115) -> 7756514.484
A115: =+PremisaCosto!A197 -> BTD_4 Regular | B115: =+PremisaCosto!H197 -> Regular | C115: =+IF(B115=0,0,VLOOKUP(B115,PremisaCosto!$A$69:$D$79,4,FALSE)) -> 0 | E115: 0.3324183178 | G115: 0 | H115: 1 | J115: =+J114 -> 0 | K115: =+K114 -> 10.71 | M115: =+($J115*(Energía!Z115-Clientes!T115*Límites!$D$7*12)+$J104*(Límites!$D$7-Límites!$C$7)*Clientes!T115*12+$J93*(Límites!$C$7-Límites!$B$7)*Clientes!T115*12+$J82*Clientes!T115*Límites!$B$7*12)*(1-$C115)*1000 -> 0 | N115: =+($J115*(Energía!AA115-Clientes!U115*Límites!$D$7*12)+$J104*(Límites!$D$7-Límites!$C$7)*Clientes!U115*12+$J93*(Límites!$C$7-Límites!$B$7)*Clientes!U115*12+$J82*Clientes!U115*Límites!$B$7*12)*(1-$C115)*1000 -> 0 | O115: =+($J115*(Energía!AB115-Clientes!V115*Límites!$D$7*12)+$J104*(Límites!$D$7-Límites!$C$7)*Clientes!V115*12+$J93*(Límites!$C$7-Límites!$B$7)*Clientes!V115*12+$J82*Clientes!V115*Límites!$B$7*12)*(1-$C115)*1000 -> 0 | P115: =+($J115*(Energía!AC115-Clientes!W115*Límites!$D$7*12)+$J104*(Límites!$D$7-Límites!$C$7)*Clientes!W115*12+$J93*(Límites!$C$7-Límites!$B$7)*Clientes!W115*12+$J82*Clientes!W115*Límites!$B$7*12)*(1-$C115)*1000 -> 0 | Q115: =+SUMPRODUCT(M115:P115,PremisaCosto!$F$84:$I$84) -> 0 | R115: =+Potencia!X115*$K115*12*1000*(1-$C115) -> 27811424.57 | T115: =IF(Q115=0,0,(IF($AK$3=1,$E115*$F$4*G115/$Q$80,($E115*$F$4*G115-$AL$80*PremisaCosto!$F$84)/($Q$80-$M$80*PremisaCosto!$F$84)))) -> 0 | U115: =IF(R115=0,0,IF($AK$3=1,$E115*$F$4*H115/$R$80,($E115*$F$4*H115-$AM$80*PremisaCosto!$F$84)/($R$80-$AP$79*PremisaCosto!$F$84))) -> 1.443570877 | W115: 0 | X115: 15.4606441 | Z115: =+IF($AK$3=1,$W115*Energía!Z115*(1-$C115)*1000,AL115) -> 0 | AA115: =+($W115*(Energía!AA115-Clientes!U115*Límites!$D$7*12)+$W104*(Límites!$D$7-Límites!$C$7)*Clientes!U115*12+$W93*(Límites!$C$7-Límites!$B$7)*Clientes!U115*12+$W82*Clientes!U115*Límites!$B$7*12)*(1-$C115)*1000 -> 0 | AB115: =+($W115*(Energía!AB115-Clientes!V115*Límites!$D$7*12)+$W104*(Límites!$D$7-Límites!$C$7)*Clientes!V115*12+$W93*(Límites!$C$7-Límites!$B$7)*Clientes!V115*12+$W82*Clientes!V115*Límites!$B$7*12)*(1-$C115)*1000 -> 0 | AC115: =+($W115*(Energía!AC115-Clientes!W115*Límites!$D$7*12)+$W104*(Límites!$D$7-Límites!$C$7)*Clientes!W115*12+$W93*(Límites!$C$7-Límites!$B$7)*Clientes!W115*12+$W82*Clientes!W115*Límites!$B$7*12)*(1-$C115)*1000 -> 0 | AD115: =+SUMPRODUCT(Z115:AC115,PremisaCosto!$F$84:$I$84) -> 0 | AE115: =+IF($AK$3=1,Potencia!T115*$X115*12*1000*(1-$C115),AM115) -> 7608665.931 | AF115: =+Potencia!U115*$X115*12*1000*(1-$C115) -> 11628298.62 | AG115: =+Potencia!V115*$X115*12*1000*(1-$C115) -> 12081701.59 | AH115: =+Potencia!W115*$X115*12*1000*(1-$C115) -> 12555371.74 | AI115: =+SUMPRODUCT(AE115:AH115,PremisaCosto!$F$84:$I$84) -> 36704469.7 | AK115: BTD_4 Regular | AL115: 0 | AM115: 7608665.931 | AP115: =+Potencia!T116*$K116*12*1000*(1-$C116) -> 102836.692
A116: =+PremisaCosto!A198 -> BTD_4 Agro | B116: =+PremisaCosto!H198 -> Agro | C116: =+IF(B116=0,0,VLOOKUP(B116,PremisaCosto!$A$69:$D$79,4,FALSE)) -> 0.05 | E116: 0.3324183178 | G116: 0 | H116: 1 | J116: =+J115 -> 0 | K116: 10.71 | M116: =+($J116*(Energía!Z116-Clientes!T116*Límites!$D$7*12)+$J105*(Límites!$D$7-Límites!$C$7)*Clientes!T116*12+$J94*(Límites!$C$7-Límites!$B$7)*Clientes!T116*12+$J83*Clientes!T116*Límites!$B$7*12)*(1-$C116)*1000 -> 0 | N116: =+($J116*(Energía!AA116-Clientes!U116*Límites!$D$7*12)+$J105*(Límites!$D$7-Límites!$C$7)*Clientes!U116*12+$J94*(Límites!$C$7-Límites!$B$7)*Clientes!U116*12+$J83*Clientes!U116*Límites!$B$7*12)*(1-$C116)*1000 -> 0 | O116: =+($J116*(Energía!AB116-Clientes!V116*Límites!$D$7*12)+$J105*(Límites!$D$7-Límites!$C$7)*Clientes!V116*12+$J94*(Límites!$C$7-Límites!$B$7)*Clientes!V116*12+$J83*Clientes!V116*Límites!$B$7*12)*(1-$C116)*1000 -> 0 | P116: =+($J116*(Energía!AC116-Clientes!W116*Límites!$D$7*12)+$J105*(Límites!$D$7-Límites!$C$7)*Clientes!W116*12+$J94*(Límites!$C$7-Límites!$B$7)*Clientes!W116*12+$J83*Clientes!W116*Límites!$B$7*12)*(1-$C116)*1000 -> 0 | Q116: =+SUMPRODUCT(M116:P116,PremisaCosto!$F$84:$I$84) -> 0 | R116: =+Potencia!X116*$K116*12*1000*(1-$C116) -> 368738.6846 | T116: =IF(Q116=0,0,(IF($AK$3=1,$E116*$F$4*G116/$Q$80,($E116*$F$4*G116-$AL$80*PremisaCosto!$F$84)/($Q$80-$M$80*PremisaCosto!$F$84)))) -> 0 | U116: =IF(R116=0,0,IF($AK$3=1,$E116*$F$4*H116/$R$80,($E116*$F$4*H116-$AM$80*PremisaCosto!$F$84)/($R$80-$AP$79*PremisaCosto!$F$84))) -> 1.443570877 | W116: 0 | X116: 15.4606441 | Z116: =+IF($AK$3=1,$W116*Energía!Z116*(1-$C116)*1000,AL116) -> 0 | AA116: =+($W116*(Energía!AA116-Clientes!U116*Límites!$D$7*12)+$W105*(Límites!$D$7-Límites!$C$7)*Clientes!U116*12+$W94*(Límites!$C$7-Límites!$B$7)*Clientes!U116*12+$W83*Clientes!U116*Límites!$B$7*12)*(1-$C116)*1000 -> 0 | AB116: =+($W116*(Energía!AB116-Clientes!V116*Límites!$D$7*12)+$W105*(Límites!$D$7-Límites!$C$7)*Clientes!V116*12+$W94*(Límites!$C$7-Límites!$B$7)*Clientes!V116*12+$W83*Clientes!V116*Límites!$B$7*12)*(1-$C116)*1000 -> 0 | AC116: =+($W116*(Energía!AC116-Clientes!W116*Límites!$D$7*12)+$W105*(Límites!$D$7-Límites!$C$7)*Clientes!W116*12+$W94*(Límites!$C$7-Límites!$B$7)*Clientes!W116*12+$W83*Clientes!W116*Límites!$B$7*12)*(1-$C116)*1000 -> 0 | AD116: =+SUMPRODUCT(Z116:AC116,PremisaCosto!$F$84:$I$84) -> 0 | AE116: =+IF($AK$3=1,Potencia!T116*$X116*12*1000*(1-$C116),AM116) -> 100876.5001 | AF116: =+Potencia!U116*$X116*12*1000*(1-$C116) -> 154172.6882 | AG116: =+Potencia!V116*$X116*12*1000*(1-$C116) -> 160187.6105 | AH116: =+Potencia!W116*$X116*12*1000*(1-$C116) -> 166471.5778 | AI116: =+SUMPRODUCT(AE116:AH116,PremisaCosto!$F$84:$I$84) -> 486648.8842 | AK116: BTD_4 Agro | AL116: 0 | AM116: 100876.5001 | AP116: =+Potencia!T117*$K117*12*1000*(1-$C117) -> 0
